Workbook

Sheet Intro
M7: © 2020
B8: TI NexFET Sync Buck Power Loss Calculation Tool- Rev. 1
B9: User Input Worksheet Instructions:
B10: Step 1: Fill in the blue System Parameters cells.
B11: Step 2: Click on the big blue Start FET Selection button.
B12: Step 3: (a) Select FET configuration (b) Click Sync FET1 (c) Select sync FET (d) Click Cont FET1 (e) Select control FET. Repeat to compare 3 FET combinations
B13: The yellow cells are from the FET datasheet. The green cells are calculated values.
B14: The user can change the operating conditions and losses will automatically be recalculated in the summary table on User Input tab.
B15: Click on the big blue Start FET Selection button to clear previous FET selections and to start a new search.
B16: Refer to Equations worksheet for equations used to estimate FET power loss.
B17: Comments or suggestions should be posted on: e2e.ti.com
B19: This worksheet is designed with Microsoft Excel 2010. Its use is intended to assist power supply designers in their routine, day-to-day
B20: calculations.
B22: The blue cells on worksheet "User Input" are inputs, yellow cells are from the FET datasheet and green cells are calculated values
B23: After entering the system parameters, click on the big blue button to start the FET selection process. You can compare up to 3 different devices.
B24: There are pulldown lists with estimated power losses, FET part number, package and 1ku pricing to help with your selection.
B25: Questions, comments or suggestions should be posted on: e2e.ti.com
C30: Disclaimer
C31: This product is designed as an aid for customers of Texas Instruments. No warranties, either express
C32: or implied, with respect to this software or its fitness for any particular purpose is claimed by Texas
C33: Instruments or the author. The software is licensed solely on an "as is" basis. The entire risk as to its
C34: quality and performance is with the customer.

Sheet User Input
A3: User Inputs
A5: Datasheet Values
A7: Calculated Values
A10: Step 1: Input System Parameters | E10: Step 3: Select FET Configuration, Pick Sync FET & Control FET, Compare up to 3 FET Combinations
A11: ≤ 80V | B11: Input Voltage (V) | C11: 5 | E11: 3a. Select FET Configuration →→→ | F11: Dual/Power Block | G11: Single Discrete | H11: Dual/Power Block
A12: 2.5V ≤ VGS ≤ 16V | B12: Gate Drive Voltage (V) | C12: 5 | E12: 3b. Start Sync FET Selection →→→
A13: Vout < Vin & Vout ≤ 75V | B13: Output Voltage (V) | C13: 1.2 | F13: Choice 1 | G13: Choice 2 | H13: Choice 3
A14: Iout ≤ 50A | B14: Max Output Current (A) | C14: 8 | F14: PLOSS, PN, PKG, $/1ku | G14: PLOSS, PN, PKG, $/1ku | H14: PLOSS, PN, PKG, $/1ku
A15: Fsw ≤ 2MHz | B15: Switching Frequency (kHz) | C15: 1000 | E15: 3c. Pick Sync FET →→→ | F15: 0.74W, CSD87381P (SYNC), LGA3x2.5, $0.27
A16: ƞ < 100% | B16: Target Efficiency for Duty Cycle | C16: 0.95 | E16: TI Part Number | F16: =IF(F15<>"Invalid Part",IF(F11="Single Discrete",Q2_Part_Number,IF(F11="Dual/Power Block",LEFT(Q2_Part_Number,FIND(")",Q2_Part_Number)-7),Q2_Part_Number)),"Not Allowed") -> CSD87381P | G16: =IF(G15<>"Invalid Part",IF(G11="Single Discrete",Q2_Part_Number2,IF(G11="Dual/Power Block",LEFT(Q2_Part_Number2,FIND(")",Q2_Part_Number2)-7),Q2_Part_Number2)),"Not Allowed") ->  | H16: =IF(H15<>"Invalid Part",IF(H11="Single Discrete",Q2_Part_Number3,IF(H11="Dual/Power Block",LEFT(Q2_Part_Number3,FIND(")",Q2_Part_Number3)-7),Q2_Part_Number3)),"Not Allowed") -> 
A17: 20% - 30% Typical | B17: Target Ripple Ratio ΔIo/Io | C17: 0.25 | E17: BVDSS (V) | F17: =IF(Q2_Part_Number<>"Invalid Part",LOOKUP(Q2_Part_Number,Discrete_NFET[PARTNUMBER],Discrete_NFET[VDSMAX]),"Not Allowed") -> 30 | G17: =IF(Q2_Part_Number2<>"Invalid Part",LOOKUP(Q2_Part_Number2,Discrete_NFET[PARTNUMBER],Discrete_NFET[VDSMAX]),"Not Allowed") ->  | H17: =IF(Q2_Part_Number3<>"Invalid Part",LOOKUP(Q2_Part_Number3,Discrete_NFET[PARTNUMBER],Discrete_NFET[VDSMAX]),"Not Allowed") -> 
B18: Minimum Inductor (µH) | C18: =Ltarget -> 0.48 | E18: VGS Max (V) | F18: =IF(Q2_Part_Number<>"Invalid Part",LOOKUP(Q2_Part_Number,Discrete_NFET[PARTNUMBER],Discrete_NFET[VGSMAX]),"Not Allowed") -> 8 | G18: =IF(Q2_Part_Number2<>"Invalid Part",LOOKUP(Q2_Part_Number2,Discrete_NFET[PARTNUMBER],Discrete_NFET[VGSMAX]),"Not Allowed") ->  | H18: =IF(Q2_Part_Number3<>"Invalid Part",LOOKUP(Q2_Part_Number3,Discrete_NFET[PARTNUMBER],Discrete_NFET[VGSMAX]),"Not Allowed") -> 
A19: Pick Inductor | B19: Select Inductor (µH) | C19: 0.47 | E19: RDS(ON) Max (mΩ) | F19: =IF(Q2_Part_Number<>"Invalid Part",Q2RDSON,"Not Allowed") -> 8.4 | G19: =IF(Q2_Part_Number2<>"Invalid Part",Q2RDSON2,"Not Allowed") ->  | H19: =IF(Q2_Part_Number3<>"Invalid Part",Q2RDSON3,"Not Allowed") -> 
A20: Controller Datasheet | B20: HS Driver Pull Up (Ω) | C20: 3 | E20: QG(tot) (nC) | F20: =IF(Q2_Part_Number<>"Invalid Part",IF(Vd>7,LOOKUP(Q2_Part_Number,Discrete_NFET[PARTNUMBER],Discrete_NFET[QG10TYP]),LOOKUP(Q2_Part_Number,Discrete_NFET[PARTNUMBER],Discrete_NFET[QGTYP])),"Not Allowed") -> 8.9 | G20: =IF(Q2_Part_Number2<>"Invalid Part",IF(Vd>7,LOOKUP(Q2_Part_Number2,Discrete_NFET[PARTNUMBER],Discrete_NFET[QG10TYP]),LOOKUP(Q2_Part_Number2,Discrete_NFET[PARTNUMBER],Discrete_NFET[QGTYP])),"Not Allowed") ->  | H20: =IF(Q2_Part_Number3<>"Invalid Part",IF(Vd>7,LOOKUP(Q2_Part_Number3,Discrete_NFET[PARTNUMBER],Discrete_NFET[QG10TYP]),LOOKUP(Q2_Part_Number3,Discrete_NFET[PARTNUMBER],Discrete_NFET[QGTYP])),"Not Allowed") -> 
A21: Controller Datasheet | B21: HS Driver Pull Down (Ω) | C21: 2 | E21: QGD (nC) | F21: =IF(Q2_Part_Number<>"Invalid Part",LOOKUP(Q2_Part_Number,Discrete_NFET[PARTNUMBER],Discrete_NFET[QGD]),"Not Allowed") -> 2.5 | G21: =IF(Q2_Part_Number2<>"Invalid Part",LOOKUP(Q2_Part_Number2,Discrete_NFET[PARTNUMBER],Discrete_NFET[QGD]),"Not Allowed") ->  | H21: =IF(Q2_Part_Number3<>"Invalid Part",LOOKUP(Q2_Part_Number3,Discrete_NFET[PARTNUMBER],Discrete_NFET[QGD]),"Not Allowed") -> 
A22: Controller Datasheet | B22: LS Driver Pull Up (Ω) | C22: 3 | E22: TJ Max (°C) | F22: =IF(Q2_Part_Number<>"Invalid Part",LOOKUP(Q2_Part_Number,Discrete_NFET[PARTNUMBER],Discrete_NFET[TJMAX]),"Not Allowed") -> 150 | G22: =IF(Q2_Part_Number2<>"Invalid Part",LOOKUP(Q2_Part_Number2,Discrete_NFET[PARTNUMBER],Discrete_NFET[TJMAX]),"Not Allowed") ->  | H22: =IF(Q2_Part_Number3<>"Invalid Part",LOOKUP(Q2_Part_Number3,Discrete_NFET[PARTNUMBER],Discrete_NFET[TJMAX]),"Not Allowed") -> 
A23: Controller Datasheet | B23: LS Driver Pull Down (Ω) | C23: 0.4 | E23: Package | F23: =IF(Q2_Part_Number<>"Invalid Part",LOOKUP(Q2_Part_Number,Discrete_NFET[PARTNUMBER],Discrete_NFET[TI_EQ_PACKAGE]),"Not Allowed") -> LGA3x2.5 | G23: =IF(Q2_Part_Number2<>"Invalid Part",LOOKUP(Q2_Part_Number2,Discrete_NFET[PARTNUMBER],Discrete_NFET[TI_EQ_PACKAGE]),"Not Allowed") ->  | H23: =IF(Q2_Part_Number3<>"Invalid Part",LOOKUP(Q2_Part_Number3,Discrete_NFET[PARTNUMBER],Discrete_NFET[TI_EQ_PACKAGE]),"Not Allowed") -> 
A24: Controller Datasheet | B24: VSW Rising Deadtime (ns) | C24: 15 | E24: 1ku Price | F24: =IF(Q2_Part_Number<>"Invalid Part",LOOKUP(Q2_Part_Number,Discrete_NFET[PARTNUMBER],Discrete_NFET[1KPRICE]),"Not Allowed") -> 0.27 | G24: =IF(Q2_Part_Number2<>"Invalid Part",LOOKUP(Q2_Part_Number2,Discrete_NFET[PARTNUMBER],Discrete_NFET[1KPRICE]),"Not Allowed") ->  | H24: =IF(Q2_Part_Number3<>"Invalid Part",LOOKUP(Q2_Part_Number3,Discrete_NFET[PARTNUMBER],Discrete_NFET[1KPRICE]),"Not Allowed") -> 
A25: Controller Datasheet | B25: VSW Falling Deadtime (ns) | C25: 15 | E25: Datasheet Link | F25: =IF(Q2_Part_Number<>"Invalid Part",HYPERLINK(LOOKUP(Q2_Part_Number,Discrete_NFET[PARTNUMBER],Discrete_NFET[DATASHEET_URL]),F16),"Not Allowed") -> CSD87381P | G25: =IF(Q2_Part_Number2<>"Invalid Part",HYPERLINK(LOOKUP(Q2_Part_Number2,Discrete_NFET[PARTNUMBER],Discrete_NFET[DATASHEET_URL]),G16),"Not Allowed") ->  | H25: =IF(Q2_Part_Number3<>"Invalid Part",HYPERLINK(LOOKUP(Q2_Part_Number3,Discrete_NFET[PARTNUMBER],Discrete_NFET[DATASHEET_URL]),H16),"Not Allowed") -> 
A26: T ≤ 125°C | B26: Temperature (ºC) for RDS(ON) | C26: 75 | E26: 3d. Start Control FET Selection →→→
A27: Calculated Operating Conditions | E27: 3e. Pick Control FET →→→ | F27: 0.66W, CSD87381P (CONT), LGA3x2.5, $0.27
B28: Duty Cycle | C28: =DC -> 0.2526315789 | E28: TI Part Number | F28: =IF(F27<>"Invalid Part",IF(F11="Single Discrete",Q1_Part_Number,IF(F11="Dual/Power Block",LEFT(Q1_Part_Number,FIND(")",Q1_Part_Number)-7),Q1_Part_Number)),"Not Allowed") -> CSD87381P | G28: =IF(G27<>"Invalid Part",IF(G11="Single Discrete",Q1_Part_Number2,IF(G11="Dual/Power Block",LEFT(Q1_Part_Number2,FIND(")",Q1_Part_Number2)-7),Q1_Part_Number2)),"Not Allowed") ->  | H28: =IF(H27<>"Invalid Part",IF(H11="Single Discrete",Q1_Part_Number3,IF(H11="Dual/Power Block",LEFT(Q1_Part_Number3,FIND(")",Q1_Part_Number3)-7),Q1_Part_Number3)),"Not Allowed") -> 
B29: On Time (µs) | C29: =Ton -> 0.2526315789 | E29: BVDSS (V) | F29: =IF(Q1_Part_Number<>"Invalid Part",LOOKUP(Q1_Part_Number,Discrete_NFET[PARTNUMBER],Discrete_NFET[VDSMAX]),"Not Allowed") -> 30 | G29: =IF(Q1_Part_Number2<>"Invalid Part",LOOKUP(Q1_Part_Number2,Discrete_NFET[PARTNUMBER],Discrete_NFET[VDSMAX]),"Not Allowed") ->  | H29: =IF(Q1_Part_Number3<>"Invalid Part",LOOKUP(Q1_Part_Number3,Discrete_NFET[PARTNUMBER],Discrete_NFET[VDSMAX]),"Not Allowed") -> 
B30: Off Time (µs) | C30: =Toff -> 0.7473684211 | E30: VGS Max (V) | F30: =IF(Q1_Part_Number<>"Invalid Part",LOOKUP(Q1_Part_Number,Discrete_NFET[PARTNUMBER],Discrete_NFET[VGSMAX]),"Not Allowed") -> 8 | G30: =IF(Q1_Part_Number2<>"Invalid Part",LOOKUP(Q1_Part_Number2,Discrete_NFET[PARTNUMBER],Discrete_NFET[VGSMAX]),"Not Allowed") ->  | H30: =IF(Q1_Part_Number3<>"Invalid Part",LOOKUP(Q1_Part_Number3,Discrete_NFET[PARTNUMBER],Discrete_NFET[VGSMAX]),"Not Allowed") -> 
B31: Inductor Ripple Current (AP-P) | C31: =Ior -> 2.042553191 | E31: RDS(ON) Max (mΩ) | F31: =IF(Q1_Part_Number<>"Invalid Part",Q1RDSON,"Not Allowed") -> 18.9 | G31: =IF(Q1_Part_Number2<>"Invalid Part",Q1RDSON2,"Not Allowed") ->  | H31: =IF(Q1_Part_Number3<>"Invalid Part",Q1RDSON3,"Not Allowed") -> 
A32: Target 25% to 30% | B32: Ripple Current Ratio | C32: =rr -> 0.2553191489 | E32: QG(tot) (nC) | F32: =IF(Q1_Part_Number<>"Invalid Part",IF(Vd>7,LOOKUP(Q1_Part_Number,Discrete_NFET[PARTNUMBER],Discrete_NFET[QG10TYP]),LOOKUP(Q1_Part_Number,Discrete_NFET[PARTNUMBER],Discrete_NFET[QGTYP])),"Not Allowed") -> 3.9 | G32: =IF(Q1_Part_Number2<>"Invalid Part",IF(Vd>7,LOOKUP(Q1_Part_Number2,Discrete_NFET[PARTNUMBER],Discrete_NFET[QG10TYP]),LOOKUP(Q1_Part_Number2,Discrete_NFET[PARTNUMBER],Discrete_NFET[QGTYP])),"Not Allowed") ->  | H32: =IF(Q1_Part_Number3<>"Invalid Part",IF(Vd>7,LOOKUP(Q1_Part_Number3,Discrete_NFET[PARTNUMBER],Discrete_NFET[QG10TYP]),LOOKUP(Q1_Part_Number3,Discrete_NFET[PARTNUMBER],Discrete_NFET[QGTYP])),"Not Allowed") -> 
B33: Control FET RMS Current (ARMS) | C33: =IQ1_rms -> 4.031904405 | E33: QGD (nC) | F33: =IF(Q1_Part_Number<>"Invalid Part",LOOKUP(Q1_Part_Number,Discrete_NFET[PARTNUMBER],Discrete_NFET[QGD]),"Not Allowed") -> 0.9 | G33: =IF(Q1_Part_Number2<>"Invalid Part",LOOKUP(Q1_Part_Number2,Discrete_NFET[PARTNUMBER],Discrete_NFET[QGD]),"Not Allowed") ->  | H33: =IF(Q1_Part_Number3<>"Invalid Part",LOOKUP(Q1_Part_Number3,Discrete_NFET[PARTNUMBER],Discrete_NFET[QGD]),"Not Allowed") -> 
B34: Sync FET RMS Current (ARMS) | C34: =IQ2_rms -> 6.934797438 | E34: TJ Max (°C) | F34: =IF(Q1_Part_Number<>"Invalid Part",LOOKUP(Q1_Part_Number,Discrete_NFET[PARTNUMBER],Discrete_NFET[TJMAX]),"Not Allowed") -> 150 | G34: =IF(Q1_Part_Number2<>"Invalid Part",LOOKUP(Q1_Part_Number2,Discrete_NFET[PARTNUMBER],Discrete_NFET[TJMAX]),"Not Allowed") ->  | H34: =IF(Q1_Part_Number3<>"Invalid Part",LOOKUP(Q1_Part_Number3,Discrete_NFET[PARTNUMBER],Discrete_NFET[TJMAX]),"Not Allowed") -> 
A35: Step 2: Click The Blue Button Below | E35: Package | F35: =IF(Q1_Part_Number<>"Invalid Part",LOOKUP(Q1_Part_Number,Discrete_NFET[PARTNUMBER],Discrete_NFET[TI_EQ_PACKAGE]),"Not Allowed") -> LGA3x2.5 | G35: =IF(Q1_Part_Number2<>"Invalid Part",LOOKUP(Q1_Part_Number2,Discrete_NFET[PARTNUMBER],Discrete_NFET[TI_EQ_PACKAGE]),"Not Allowed") ->  | H35: =IF(Q1_Part_Number3<>"Invalid Part",LOOKUP(Q1_Part_Number3,Discrete_NFET[PARTNUMBER],Discrete_NFET[TI_EQ_PACKAGE]),"Not Allowed") -> 
A36: ↓↓↓↓↓↓↓↓↓↓↓↓↓↓↓↓↓↓↓↓ | E36: 1ku Price | F36: =IF(Q1_Part_Number<>"Invalid Part",LOOKUP(Q1_Part_Number,Discrete_NFET[PARTNUMBER],Discrete_NFET[1KPRICE]),"Not Allowed") -> 0.27 | G36: =IF(Q1_Part_Number2<>"Invalid Part",LOOKUP(Q1_Part_Number2,Discrete_NFET[PARTNUMBER],Discrete_NFET[1KPRICE]),"Not Allowed") ->  | H36: =IF(Q1_Part_Number3<>"Invalid Part",LOOKUP(Q1_Part_Number3,Discrete_NFET[PARTNUMBER],Discrete_NFET[1KPRICE]),"Not Allowed") -> 
E37: Datasheet Link | F37: =IF(Q1_Part_Number<>"Invalid Part",HYPERLINK(LOOKUP(Q1_Part_Number,Discrete_NFET[PARTNUMBER],Discrete_NFET[DATASHEET_URL]),F28),"Not Allowed") -> CSD87381P | G37: =IF(Q1_Part_Number2<>"Invalid Part",HYPERLINK(LOOKUP(Q1_Part_Number2,Discrete_NFET[PARTNUMBER],Discrete_NFET[DATASHEET_URL]),G28),"Not Allowed") ->  | H37: =IF(Q1_Part_Number3<>"Invalid Part",HYPERLINK(LOOKUP(Q1_Part_Number3,Discrete_NFET[PARTNUMBER],Discrete_NFET[DATASHEET_URL]),H28),"Not Allowed") -> 
E38: Click Here for N-Channel MOSFET Selector on TI.com | G38: Click Here for Power Block MOSFET Selector on TI.com
E39: FET Power Loss and Cost Summary
E40: Sync FET RDS(ON) @ TJ (mΩ) | F40: =IF(Q2_Part_Number<>"Invalid Part",Q2RDSONTJ,"Not Allowed") -> 10.584 | G40: =IF(Q2_Part_Number2<>"Invalid Part",Q2RDSONTJ2,"Not Allowed") ->  | H40: =IF(Q2_Part_Number3<>"Invalid Part",Q2RDSONTJ3,"Not Allowed") -> 
E41: Control FET RDS(ON) @ TJ (mΩ) | F41: =IF(Q1_Part_Number<>"Invalid Part",Q1RDSONTJ,"Not Allowed") -> 22.4532 | G41: =IF(Q1_Part_Number2<>"Invalid Part",Q1RDSONTJ2,"Not Allowed") ->  | H41: =IF(Q1_Part_Number3<>"Invalid Part",Q1RDSONTJ3,"Not Allowed") -> 
A42: ↑↑↑↑↑↑↑↑↑↑↑↑↑↑↑↑↑↑↑↑ | E42: Sync FET Loss (W) | F42: =IF(Q2_Part_Number<>"Invalid Part",Q2_Ploss,"Not Allowed") -> 0.7430995417 | G42: =IF(Q2_Part_Number2<>"Invalid Part",Q2_Ploss2,"Not Allowed") ->  | H42: =IF(Q2_Part_Number3<>"Invalid Part",Q2_Ploss3,"Not Allowed") -> 
E43: Control FET Loss (W) | F43: =IF(Q2_Part_Number<>"Invalid Part",Q1_Ploss,"Not Allowed") -> 0.6604038195 | G43: =IF(Q2_Part_Number2<>"Invalid Part",Q1_Ploss2,"Not Allowed") ->  | H43: =IF(Q2_Part_Number3<>"Invalid Part",Q1_Ploss3,"Not Allowed") -> 
E44: Total MOSFET Losses (W) | F44: =IF(Q2_Part_Number<>"Invalid Part",SUM(F42:F43),"Not Allowed") -> 1.403503361 | G44: =IF(Q2_Part_Number2<>"Invalid Part",SUM(G42:G43),"Not Allowed") ->  | H44: =IF(Q2_Part_Number3<>"Invalid Part",SUM(H42:H43),"Not Allowed") -> 
E45: Total MOSFET Cost ($/1ku) | F45: =IF(AND(Q2_Part_Number<>"Invalid Part",F11="Single Discrete"),F24+F36, IF(AND(Q2_Part_Number<>"Invalid Part",F11="Dual/Power Block"),F24,"Not Allowed")) -> 0.27 | G45: =IF(AND(Q2_Part_Number2<>"Invalid Part",G11="Single Discrete"),G24+G36, IF(AND(Q2_Part_Number2<>"Invalid Part",G11="Dual/Power Block"),G24,"Not Allowed")) ->  | H45: =IF(AND(Q2_Part_Number3<>"Invalid Part",H11="Single Discrete"),H24+H36, IF(AND(Q2_Part_Number3<>"Invalid Part",H11="Dual/Power Block"),H24,"Not Allowed")) -> 
E46: Click Here to See FET Power Loss Capability by Package
A50: Select FET Configuration
A51: Single Discrete
A52: Dual/Power Block

Sheet Equations
B2: Click here to see Power Loss Calculation With Common Source Inductance Consideration for Synchronous Buck Converters Application Report
B4: MOSFET on resistance at junction temperature = TJ: | I4: Control FET switching losses:
B9: Duty cycle:
I12: Synchronous FET body diode losses during deadtime:
B14: MOSFET on & off times:
I16: Synchronous FET body diode reverse recovery losses:
B20: Target inductor ripple & inductance: | I20: Control FET output capacitance losses:
I24: Synchronous FET output capacitance losses:
B28: Inductor currents: | I28: Control FET conduction loss:
I32: Synchronous FET conduction loss:
I36: MOSFET gate drive loss for both FETs:
B39: Ripple current ratio:
B45: Control FET RMS current:
B51: Synchronous FET RMS current:

Sheet Calculations (hidden)
B1: Sync FET | C1: Control FET
A2: TI Part Number | B2: =IF('User Input'!F15<>"Invalid Part",LOOKUP(MID('User Input'!F15,8,18),Discrete_NFET[PARTNUMBER],Discrete_NFET[PARTNUMBER]),"Not Allowed") -> CSD87381P (SYNC) | C2: =IF('User Input'!F27<>"Invalid Part",LOOKUP(MID('User Input'!F27,8,18),Discrete_NFET[PARTNUMBER],Discrete_NFET[PARTNUMBER]),"Not Allowed") -> CSD87381P (CONT) | E2: Duty Cycle | J2: FET Conduction Loss | K2: FET switching loss | L2: FET gate drive loss | M2: Deadtime Losses | N2: Total Losses
A3: VGS(TH) Min (V) | B3: =IF(Q2_Part_Number<>"Invalid Part",LOOKUP(Q2_Part_Number,Discrete_NFET[PARTNUMBER],Discrete_NFET[VTHMIN]),"Not Allowed") -> 1 | C3: =IF(Q1_Part_Number<>"Invalid Part",LOOKUP(Q1_Part_Number,Discrete_NFET[PARTNUMBER],Discrete_NFET[VTHMIN]),"Not Allowed") -> 1.1 | E3: =Vo/Vi/Target_eff -> 0.2526315789 | I3: Sync | J3: =IQ2_rms^2*Q2RDSONTJ*m -> 0.5089995417 | K3: 0 | L3: =Q2_Qg*n*Fsw*k*Vd -> 0.0445 | M3: =(Vsw_Fdt+Vsw_Rdt)*n*Q2_Vsd*Io*Fsw*k -> 0.1896 | N3: =SUM(J3:M3) -> 0.7430995417
A4: VGS(TH) Max (V) | B4: =IF(Q2_Part_Number<>"Invalid Part",LOOKUP(Q2_Part_Number,Discrete_NFET[PARTNUMBER],Discrete_NFET[VTHMAX]),"Not Allowed") -> 1.7 | C4: =IF(Q1_Part_Number<>"Invalid Part",LOOKUP(Q1_Part_Number,Discrete_NFET[PARTNUMBER],Discrete_NFET[VTHMAX]),"Not Allowed") -> 1.9 | E4: On Time | I4: Control | J4: =IQ1_rms^2*Q1RDSONTJ*m -> 0.3650049027 | K4: =J29 -> 0.2758989168 | L4: =Q1_Qg*n*Fsw*k*Vd -> 0.0195 | M4: 0 | N4: =SUM(J4:M4) -> 0.6604038195
A5: VMILLER (V) | B5: =IF(Q2_Part_Number<>"Invalid Part",LOOKUP(Q2_Part_Number,Discrete_NFET[PARTNUMBER],Discrete_NFET[VMILLER]),"Not Allowed") -> 1.97 | C5: =IF(Q1_Part_Number<>"Invalid Part",LOOKUP(Q1_Part_Number,Discrete_NFET[PARTNUMBER],Discrete_NFET[VMILLER]),"Not Allowed") -> 2.53 | E5: =DC*k/(Fsw) -> 0.2526315789 | F5: µs
A6: QGS (nC) | B6: =IF(Q2_Part_Number<>"Invalid Part",LOOKUP(Q2_Part_Number,Discrete_NFET[PARTNUMBER],Discrete_NFET[QGS]),"Not Allowed") -> 2 | C6: =IF(Q1_Part_Number<>"Invalid Part",LOOKUP(Q1_Part_Number,Discrete_NFET[PARTNUMBER],Discrete_NFET[QGS]),"Not Allowed") -> 1.2 | E6: Off Time
A7: QGTH (nC) | B7: =IF(Q2_Part_Number<>"Invalid Part",LOOKUP(Q2_Part_Number,Discrete_NFET[PARTNUMBER],Discrete_NFET[QGTH]),"Not Allowed") -> 1.3 | C7: =IF(Q1_Part_Number<>"Invalid Part",LOOKUP(Q1_Part_Number,Discrete_NFET[PARTNUMBER],Discrete_NFET[QGTH]),"Not Allowed") -> 0.7 | E7: =(1-DC)*k/(Fsw) -> 0.7473684211 | F7: µs | I7: Control FET Switch Loss Calculations
A8: QOSS (nC) | B8: =IF(Q2_Part_Number<>"Invalid Part",LOOKUP(Q2_Part_Number,Discrete_NFET[PARTNUMBER],Discrete_NFET[QOSSTYP]),"Not Allowed") -> 8.5 | C8: =IF(Q1_Part_Number<>"Invalid Part",LOOKUP(Q1_Part_Number,Discrete_NFET[PARTNUMBER],Discrete_NFET[QOSSTYP]),"Not Allowed") -> 4.9 | D8: Inductor Average Current | I8: KA_ON | J8: =Q1_CSI*p*Q2_Qoss*n/((Q1_Qgd*n)^2) -> 2.62345679
A9: QRR (nC) | B9: =IF(Q2_Part_Number<>"Invalid Part",LOOKUP(Q2_Part_Number,Discrete_NFET[PARTNUMBER],Discrete_NFET[QRR]),"Not Allowed") -> 16 | C9: =IF(Q1_Part_Number<>"Invalid Part",LOOKUP(Q1_Part_Number,Discrete_NFET[PARTNUMBER],Discrete_NFET[QRR]),"Not Allowed") -> 8 | E9: =Io -> 8 | F9: A | I9: KB_ON | J9: =Q1_GDRsource+Q1_Rg -> 8
A10: RG Typ (Ω) | B10: =IF(Q2_Part_Number<>"Invalid Part",LOOKUP(Q2_Part_Number,Discrete_NFET[PARTNUMBER],Discrete_NFET[RGITYP]),"Not Allowed") -> 1.25 | C10: =IF(Q1_Part_Number<>"Invalid Part",LOOKUP(Q1_Part_Number,Discrete_NFET[PARTNUMBER],Discrete_NFET[RGITYP]),"Not Allowed") -> 5 | D10: Target Inductor Current Ripple | I10: KC_ON | J10: =Vd-Q1_VMILLER -> 2.47
E11: =Target_rr*Io -> 2 | I11: KA_OFF | J11: =Q1_CSI*p*Q2_Qoss*n/((Q1_Qgd*n)^2) -> 2.62345679
A12: Constants | D12: Target Inductance Value | I12: KB_OFF | J12: =Q1_GDRsink+Q1_Rg -> 7
A13: p | B13: 1e-12 | E13: =(Vi-Vo)/(ILripple)*Ton -> 0.48 | I13: KC_OFF | J13: =Q1_VMILLER -> 2.53
A14: n | B14: 1e-09 | E14: Inductor Current Ripple | I14: KB+ON | J14: =(-Kb_on+SQRT(Kb_on*Kb_on+4*Ka_on*Kc_on))/(2*Ka_on) -> 0.2825666234
A15: u | B15: 1e-06 | E15: =((Vi-Vo)/Lo)*Ton -> 2.042553191 | F15: A | I15: KB-ON | J15: =(-Kb_on-SQRT(Kb_on*Kb_on+4*Ka_on*Kc_on))/(2*Ka_on) -> -3.331978388
A16: m | B16: 0.001 | D16: Critical Current | G16: =(Vi-Vo)/(Ltarget)*Ton -> 2 | I16: KB+OFF | J16: =(-Kb_off+SQRT(Kb_off*Kb_off+4*Ka_off*Kc_off))/(2*Ka_off) -> 0.3224590541
A17: k | B17: 1000 | E17: =INT(Ior/2+1) -> 2 | F17: A | I17: KB-OFF | J17: =(-Kb_off-SQRT(Kb_off*Kb_off+4*Ka_off*Kc_off))/(2*Ka_off) -> -2.990694348
A18: Meg | B18: 1000000 | D18: Pedestal Current | I18: Q1_Iqgs2_on | J18: =(Vd-Q1_VMILLER)/(Q1_Rg+Q1_GDRsource+(Q1_CSI*p)*(Io-Ior/2)/(E33*n)) -> 0.2149814815
A19: G | B19: 1000000000 | E19: =(Io-Ior/2) -> 6.978723404 | F19: A | I19: Q1_Iqgd_on | J19: =(-Kb_on+SQRT(Kb_on*Kb_on+4*Ka_on*Kc_on))/(2*Ka_on) -> 0.2825666234
D20: Peak Current | I20: Q1_Iqgs2_off | J20: =(Q1_VMILLER)/(Q1_Rg+Q1_GDRsink+(Q1_CSI*p)*(Io+Ior/2)/(E33*n)) -> 0.2197966728
E21: =(Io+Ior/2) -> 9.021276596 | F21: A | I21: Q1_Iqgd_off | J21: =(-Kb_off+SQRT(Kb_off*Kb_off+4*Ka_off*Kc_off))/(2*Ka_off) -> 0.3224590541
D22: Ripple Current Ratio | I22: ton | J22: =E33*n/Q1_Iqgs2_on+Q1_Qgd*n/Q1_Iqgd_on -> 5.510871273e-09
E23: =Ior/Io -> 0.2553191489 | I23: toff | J23: =E33*n/Q1_Iqgs2_off+Q1_Qgd*n/Q1_Iqgd_off -> 5.065881741e-09
D24: Control FET RMS Current | I24: Qsw on | J24: =Vi*ABS(Io-Ior/2)*Fsw*k*(E33*n/Q1_Iqgs2_on)*0.5+Vi*ABS(Io-Ior/2)*Fsw*k*(Q1_Qgd*n/Q1_Iqgd_on)*0.5 -> 0.09614711583
E25: =SQRT(DC*((Io+Ior/2)^2+ABS((Io-Ior/2)*(Io+Ior/2))+(Io-Ior/2)^2)/3) -> 4.031904405 | F25: A | I25: Qsw off | J25: =Vi*ABS(Io+Ior/2)*Fsw*k*(E33*n/Q1_Iqgs2_off)*0.5+Vi*ABS(Io+Ior/2)*Fsw*k*(Q1_Qgd*n/Q1_Iqgd_off)*0.5 -> 0.114251801
D26: Control FET Rds(on) @ Tj | I26: HS Qoss | J26: =Q1_Qoss*n*Vi*Fsw*k/2 -> 0.01225
E27: =Q1_Rdson*(1+(Tj-25)*(LOOKUP(Q1_Part_Number,Discrete_NFET[PARTNUMBER],Discrete_NFET[RDSDELTA])/((LOOKUP(Q1_Part_Number,Discrete_NFET[PARTNUMBER],Discrete_NFET[TJMAX])-25)))) -> 22.4532 | F27: mΩ | I27: LS Qoss | J27: =Q2_Qoss*n*Vi*Fsw*k/2 -> 0.02125
D28: Control FET Package ID | I28: Qrr | J28: =Q2_Qrr*n*Vi*Fsw*k*Io/20 -> 0.032
E29: =IF('User Input'!$F$11="Dual/Power Block",RIGHT(LEFT(Q1_Part_Number,FIND(" (",Q1_Part_Number)-1),2),RIGHT(Q1_Part_Number,2)) -> 1P | I29: Total | J29: =SUM(J24:J28) -> 0.2758989168
D30: Control FET CSI
E31: =IF(OR(E29<>"0",E29<>""),IF(OR(E29="Q5",E29="Q3",E29="5B"),450,IF(OR(E29="1P",E29="4M",E29="8N"),250,IF(OR(E29="5D",E29="3D"),100,IF(OR(E29="Q2",E29="2H",E29="3A"),650,IF(OR(E29="TT",E29="CS"),7500,IF(E29="ND",1500,IF(E29="5A",850,"")))))))) -> 250 | F31: pH
D32: Control FET Qgs2
E33: =Q1_Qgs-Q1_Qgth -> 0.5
D34: Sync FET RMS Current
E35: =SQRT((1-DC)*((Io+Ior/2)^2+ABS((Io-Ior/2)*(Io+Ior/2))+(Io-Ior/2)^2)/3) -> 6.934797438 | F35: A
D36: Sync FET Rds(on) @ Tj
E37: =Q2_Rdson*(1+(Tj-25)*(LOOKUP(Q2_Part_Number,Discrete_NFET[PARTNUMBER],Discrete_NFET[RDSDELTA])/((LOOKUP(Q2_Part_Number,Discrete_NFET[PARTNUMBER],Discrete_NFET[TJMAX])-25)))) -> 10.584 | F37: mΩ
D38: Sync FET Vsd (V)
E39: =LOOKUP(Q2_Part_Number,Discrete_NFET[PARTNUMBER],Discrete_NFET[VF_TYP]) -> 0.79 | F39: V

Sheet Calculations2 (hidden)
B1: Sync FET | C1: Control FET
A2: TI Part Number | B2: =IF('User Input'!G15<>"Invalid Part",LOOKUP(MID('User Input'!G15,8,18),Discrete_NFET[PARTNUMBER],Discrete_NFET[PARTNUMBER]),"Not Allowed") ->  | C2: =IF('User Input'!G27<>"Invalid Part",LOOKUP(MID('User Input'!G27,8,18),Discrete_NFET[PARTNUMBER],Discrete_NFET[PARTNUMBER]),"Not Allowed") ->  | E2: Duty Cycle | J2: FET Conduction Loss | K2: FET switching loss | L2: FET gate drive loss | M2: Deadtime Losses | N2: Total Losses
A3: VGS(TH) Min (V) | B3: =IF(Q2_Part_Number2<>"Invalid Part",LOOKUP(Q2_Part_Number2,Discrete_NFET[PARTNUMBER],Discrete_NFET[VTHMIN]),"Not Allowed") ->  | C3: =IF(Q1_Part_Number2<>"Invalid Part",LOOKUP(Q1_Part_Number2,Discrete_NFET[PARTNUMBER],Discrete_NFET[VTHMIN]),"Not Allowed") ->  | E3: =Vo/Vi/Target_eff -> 0.2526315789 | I3: Sync | J3: =IQ2_rms^2*Q2RDSONTJ2*m ->  | K3: 0 | L3: =Q2_Qg2*n*Fsw*k*Vd ->  | M3: =(Vsw_Fdt+Vsw_Rdt)*n*Q2_Vsd*Io*Fsw*k ->  | N3: =SUM(J3:M3) -> 
A4: VGS(TH) Max (V) | B4: =IF(Q2_Part_Number2<>"Invalid Part",LOOKUP(Q2_Part_Number2,Discrete_NFET[PARTNUMBER],Discrete_NFET[VTHMAX]),"Not Allowed") ->  | C4: =IF(Q1_Part_Number2<>"Invalid Part",LOOKUP(Q1_Part_Number2,Discrete_NFET[PARTNUMBER],Discrete_NFET[VTHMAX]),"Not Allowed") ->  | E4: On Time | I4: Control | J4: =IQ1_rms^2*Q1RDSONTJ2*m ->  | K4: =J29 ->  | L4: =Q1_Qg2*n*Fsw*k*Vd ->  | M4: 0 | N4: =SUM(J4:M4) -> 
A5: VMILLER (V) | B5: =IF(Q2_Part_Number2<>"Invalid Part",LOOKUP(Q2_Part_Number2,Discrete_NFET[PARTNUMBER],Discrete_NFET[VMILLER]),"Not Allowed") ->  | C5: =IF(Q1_Part_Number2<>"Invalid Part",LOOKUP(Q1_Part_Number2,Discrete_NFET[PARTNUMBER],Discrete_NFET[VMILLER]),"Not Allowed") ->  | E5: =DC*k/(Fsw) -> 0.2526315789 | F5: µs
A6: QGS (nC) | B6: =IF(Q2_Part_Number2<>"Invalid Part",LOOKUP(Q2_Part_Number2,Discrete_NFET[PARTNUMBER],Discrete_NFET[QGS]),"Not Allowed") ->  | C6: =IF(Q1_Part_Number2<>"Invalid Part",LOOKUP(Q1_Part_Number2,Discrete_NFET[PARTNUMBER],Discrete_NFET[QGS]),"Not Allowed") ->  | E6: Off Time
A7: QGTH (nC) | B7: =IF(Q2_Part_Number2<>"Invalid Part",LOOKUP(Q2_Part_Number2,Discrete_NFET[PARTNUMBER],Discrete_NFET[QGTH]),"Not Allowed") ->  | C7: =IF(Q1_Part_Number2<>"Invalid Part",LOOKUP(Q1_Part_Number2,Discrete_NFET[PARTNUMBER],Discrete_NFET[QGTH]),"Not Allowed") ->  | E7: =(1-DC)*k/(Fsw) -> 0.7473684211 | F7: µs | I7: Control FET Switch Loss Calculations
A8: QOSS (nC) | B8: =IF(Q2_Part_Number2<>"Invalid Part",LOOKUP(Q2_Part_Number2,Discrete_NFET[PARTNUMBER],Discrete_NFET[QOSSTYP]),"Not Allowed") ->  | C8: =IF(Q1_Part_Number2<>"Invalid Part",LOOKUP(Q1_Part_Number2,Discrete_NFET[PARTNUMBER],Discrete_NFET[QOSSTYP]),"Not Allowed") ->  | D8: Inductor Average Current | I8: KA_ON | J8: =Q1_CSI*p*Q2_Qoss2*n/((Q1_Qgd2*n)^2) -> 
A9: QRR (nC) | B9: =IF(Q2_Part_Number2<>"Invalid Part",LOOKUP(Q2_Part_Number2,Discrete_NFET[PARTNUMBER],Discrete_NFET[QRR]),"Not Allowed") ->  | C9: =IF(Q1_Part_Number2<>"Invalid Part",LOOKUP(Q1_Part_Number2,Discrete_NFET[PARTNUMBER],Discrete_NFET[QRR]),"Not Allowed") ->  | E9: =Io -> 8 | F9: A | I9: KB_ON | J9: =Q1_GDRsource+Q1_Rg2 -> 
A10: RG Typ (Ω) | B10: =IF(Q2_Part_Number2<>"Invalid Part",LOOKUP(Q2_Part_Number2,Discrete_NFET[PARTNUMBER],Discrete_NFET[RGITYP]),"Not Allowed") ->  | C10: =IF(Q1_Part_Number2<>"Invalid Part",LOOKUP(Q1_Part_Number2,Discrete_NFET[PARTNUMBER],Discrete_NFET[RGITYP]),"Not Allowed") ->  | D10: Target Inductor Current Ripple | I10: KC_ON | J10: =Vd-Q1_VMILLER2 -> 
E11: =Target_rr*Io -> 2 | I11: KA_OFF | J11: =Q1_CSI*p*Q2_Qoss2*n/((Q1_Qgd2*n)^2) -> 
A12: Constants | D12: Target Inductance Value | I12: KB_OFF | J12: =Q1_GDRsink+Q1_Rg2 -> 
A13: p | B13: 1e-12 | E13: =(Vi-Vo)/(ILripple)*Ton -> 0.48 | I13: KC_OFF | J13: =Q1_VMILLER2 -> 
A14: n | B14: 1e-09 | E14: Inductor Current Ripple | I14: KB+ON | J14: =(-Kb_on+SQRT(Kb_on*Kb_on+4*Ka_on*Kc_on))/(2*Ka_on) -> 
A15: u | B15: 1e-06 | E15: =((Vi-Vo)/Lo)*Ton -> 2.042553191 | F15: A | I15: KB-ON | J15: =(-Kb_on-SQRT(Kb_on*Kb_on+4*Ka_on*Kc_on))/(2*Ka_on) -> 
A16: m | B16: 0.001 | D16: Critical Current | G16: =(Vi-Vo)/(Ltarget)*Ton -> 2 | I16: KB+OFF | J16: =(-Kb_off+SQRT(Kb_off*Kb_off+4*Ka_off*Kc_off))/(2*Ka_off) -> 
A17: k | B17: 1000 | E17: =INT(Ior/2+1) -> 2 | F17: A | I17: KB-OFF | J17: =(-Kb_off-SQRT(Kb_off*Kb_off+4*Ka_off*Kc_off))/(2*Ka_off) -> 
A18: Meg | B18: 1000000 | D18: Pedestal Current | I18: Q1_Iqgs2_on | J18: =(Vd-Q1_VMILLER2)/(Q1_Rg2+Q1_GDRsource+(Q1_CSI*p)*(Io-Ior/2)/(E33*n)) -> 
A19: G | B19: 1000000000 | E19: =(Io-Ior/2) -> 6.978723404 | F19: A | I19: Q1_Iqgd_on | J19: =(-Kb_on+SQRT(Kb_on*Kb_on+4*Ka_on*Kc_on))/(2*Ka_on) -> 
D20: Peak Current | I20: Q1_Iqgs2_off | J20: =(Q1_VMILLER2)/(Q1_Rg2+Q1_GDRsink+(Q1_CSI*p)*(Io+Ior/2)/(E33*n)) -> 
E21: =(Io+Ior/2) -> 9.021276596 | F21: A | I21: Q1_Iqgd_off | J21: =(-Kb_off+SQRT(Kb_off*Kb_off+4*Ka_off*Kc_off))/(2*Ka_off) -> 
D22: Ripple Current Ratio | I22: ton | J22: =E33*n/Q1_Iqgs2_on+Q1_Qgd*n/Q1_Iqgd_on -> 
E23: =Ior/Io -> 0.2553191489 | I23: toff | J23: =E33*n/Q1_Iqgs2_off+Q1_Qgd*n/Q1_Iqgd_off -> 
D24: Control FET RMS Current | I24: Qsw on | J24: =Vi*ABS(Io-Ior/2)*Fsw*k*(E33*n/Q1_Iqgs2_on)*0.5+Vi*ABS(Io-Ior/2)*Fsw*k*(Q1_Qgd2*n/Q1_Iqgd_on)*0.5 -> 
E25: =SQRT(DC*((Io+Ior/2)^2+ABS((Io-Ior/2)*(Io+Ior/2))+(Io-Ior/2)^2)/3) -> 4.031904405 | F25: A | I25: Qsw off | J25: =Vi*ABS(Io+Ior/2)*Fsw*k*(E33*n/Q1_Iqgs2_off)*0.5+Vi*ABS(Io+Ior/2)*Fsw*k*(Q1_Qgd2*n/Q1_Iqgd_off)*0.5 -> 
D26: Control FET Rds(on) @ Tj | I26: HS Qoss | J26: =Q1_Qoss2*n*Vi*Fsw*k/2 -> 
E27: =Q1_Rdson2*(1+(Tj-25)*(LOOKUP(Q1_Part_Number2,Discrete_NFET[PARTNUMBER],Discrete_NFET[RDSDELTA])/((LOOKUP(Q1_Part_Number2,Discrete_NFET[PARTNUMBER],Discrete_NFET[TJMAX])-25)))) ->  | F27: mΩ | I27: LS Qoss | J27: =Q2_Qoss2*n*Vi*Fsw*k/2 -> 
D28: Control FET Package ID | I28: Qrr | J28: =Q2_Qrr2*n*Vi*Fsw*k*Io/20 -> 
E29: =IF('User Input'!$G$11="Dual/Power Block",RIGHT(LEFT(Q1_Part_Number2,FIND(" (",Q1_Part_Number2)-1),2),RIGHT(Q1_Part_Number2,2)) ->  | I29: Total | J29: =SUM(J24:J28) -> 
D30: Control FET CSI
E31: =IF(OR(E29<>"0",E29<>""),IF(OR(E29="Q5",E29="Q3",E29="5B"),450,IF(OR(E29="1P",E29="4M",E29="8N"),250,IF(OR(E29="5D",E29="3D"),100,IF(OR(E29="Q2",E29="2H",E29="3A"),650,IF(OR(E29="TT",E29="CS"),7500,IF(E29="ND",1500,IF(E29="5A",850,"")))))))) ->  | F31: pH
D32: Control FET Qgs2
E33: =Q1_Qgs2-Q1_Qgth2 -> 
D34: Sync FET RMS Current
E35: =SQRT((1-DC)*((Io+Ior/2)^2+ABS((Io-Ior/2)*(Io+Ior/2))+(Io-Ior/2)^2)/3) -> 6.934797438 | F35: A
D36: Sync FET Rds(on) @ Tj
E37: =Q2_Rdson2*(1+(Tj-25)*(LOOKUP(Q2_Part_Number2,Discrete_NFET[PARTNUMBER],Discrete_NFET[RDSDELTA])/((LOOKUP(Q2_Part_Number2,Discrete_NFET[PARTNUMBER],Discrete_NFET[TJMAX])-25)))) ->  | F37: mΩ
D38: Sync FET Vsd (V)
E39: =LOOKUP(Q2_Part_Number2,Discrete_NFET[PARTNUMBER],Discrete_NFET[VF_TYP]) ->  | F39: V

Sheet Calculations3 (hidden)
B1: Sync FET | C1: Control FET
A2: TI Part Number | B2: =IF('User Input'!H15<>"Invalid Part",LOOKUP(MID('User Input'!H15,8,18),Discrete_NFET[PARTNUMBER],Discrete_NFET[PARTNUMBER]),"Not Allowed") ->  | C2: =IF('User Input'!H27<>"Invalid Part",LOOKUP(MID('User Input'!H27,8,18),Discrete_NFET[PARTNUMBER],Discrete_NFET[PARTNUMBER]),"Not Allowed") ->  | E2: Duty Cycle | J2: FET Conduction Loss | K2: FET switching loss | L2: FET gate drive loss | M2: Deadtime Losses | N2: Total Losses
A3: VGS(TH) Min (V) | B3: =IF(Q2_Part_Number3<>"Invalid Part",LOOKUP(Q2_Part_Number3,Discrete_NFET[PARTNUMBER],Discrete_NFET[VTHMIN]),"Not Allowed") ->  | C3: =IF(Q1_Part_Number3<>"Invalid Part",LOOKUP(Q1_Part_Number3,Discrete_NFET[PARTNUMBER],Discrete_NFET[VTHMIN]),"Not Allowed") ->  | E3: =Vo/Vi/Target_eff -> 0.2526315789 | I3: Sync | J3: =IQ2_rms^2*Q2RDSONTJ3*m ->  | K3: 0 | L3: =Q2_Qg3*n*Fsw*k*Vd ->  | M3: =(Vsw_Fdt+Vsw_Rdt)*n*Q2_Vsd*Io*Fsw*k ->  | N3: =SUM(J3:M3) -> 
A4: VGS(TH) Max (V) | B4: =IF(Q2_Part_Number3<>"Invalid Part",LOOKUP(Q2_Part_Number3,Discrete_NFET[PARTNUMBER],Discrete_NFET[VTHMAX]),"Not Allowed") ->  | C4: =IF(Q1_Part_Number3<>"Invalid Part",LOOKUP(Q1_Part_Number3,Discrete_NFET[PARTNUMBER],Discrete_NFET[VTHMAX]),"Not Allowed") ->  | E4: On Time | I4: Control | J4: =IQ1_rms^2*Q1RDSONTJ3*m ->  | K4: =J29 ->  | L4: =Q1_Qg3*n*Fsw*k*Vd ->  | M4: 0 | N4: =SUM(J4:M4) -> 
A5: VMILLER (V) | B5: =IF(Q2_Part_Number3<>"Invalid Part",LOOKUP(Q2_Part_Number3,Discrete_NFET[PARTNUMBER],Discrete_NFET[VMILLER]),"Not Allowed") ->  | C5: =IF(Q1_Part_Number3<>"Invalid Part",LOOKUP(Q1_Part_Number3,Discrete_NFET[PARTNUMBER],Discrete_NFET[VMILLER]),"Not Allowed") ->  | E5: =DC*k/(Fsw) -> 0.2526315789 | F5: µs
A6: QGS (nC) | B6: =IF(Q2_Part_Number3<>"Invalid Part",LOOKUP(Q2_Part_Number3,Discrete_NFET[PARTNUMBER],Discrete_NFET[QGS]),"Not Allowed") ->  | C6: =IF(Q1_Part_Number3<>"Invalid Part",LOOKUP(Q1_Part_Number3,Discrete_NFET[PARTNUMBER],Discrete_NFET[QGS]),"Not Allowed") ->  | E6: Off Time
A7: QGTH (nC) | B7: =IF(Q2_Part_Number3<>"Invalid Part",LOOKUP(Q2_Part_Number3,Discrete_NFET[PARTNUMBER],Discrete_NFET[QGTH]),"Not Allowed") ->  | C7: =IF(Q1_Part_Number3<>"Invalid Part",LOOKUP(Q1_Part_Number3,Discrete_NFET[PARTNUMBER],Discrete_NFET[QGTH]),"Not Allowed") ->  | E7: =(1-DC)*k/(Fsw) -> 0.7473684211 | F7: µs | I7: Control FET Switch Loss Calculations
A8: QOSS (nC) | B8: =IF(Q2_Part_Number3<>"Invalid Part",LOOKUP(Q2_Part_Number3,Discrete_NFET[PARTNUMBER],Discrete_NFET[QOSSTYP]),"Not Allowed") ->  | C8: =IF(Q1_Part_Number3<>"Invalid Part",LOOKUP(Q1_Part_Number3,Discrete_NFET[PARTNUMBER],Discrete_NFET[QOSSTYP]),"Not Allowed") ->  | D8: Inductor Average Current | I8: KA_ON | J8: =Q1_CSI*p*Q2_Qoss3*n/((Q1_Qgd3*n)^2) -> 
A9: QRR (nC) | B9: =IF(Q2_Part_Number3<>"Invalid Part",LOOKUP(Q2_Part_Number3,Discrete_NFET[PARTNUMBER],Discrete_NFET[QRR]),"Not Allowed") ->  | C9: =IF(Q1_Part_Number3<>"Invalid Part",LOOKUP(Q1_Part_Number3,Discrete_NFET[PARTNUMBER],Discrete_NFET[QRR]),"Not Allowed") ->  | E9: =Io -> 8 | F9: A | I9: KB_ON | J9: =Q1_GDRsource+Q1_Rg3 -> 
A10: RG Typ (Ω) | B10: =IF(Q2_Part_Number3<>"Invalid Part",LOOKUP(Q2_Part_Number3,Discrete_NFET[PARTNUMBER],Discrete_NFET[RGITYP]),"Not Allowed") ->  | C10: =IF(Q1_Part_Number3<>"Invalid Part",LOOKUP(Q1_Part_Number3,Discrete_NFET[PARTNUMBER],Discrete_NFET[RGITYP]),"Not Allowed") ->  | D10: Target Inductor Current Ripple | I10: KC_ON | J10: =Vd-Q1_VMILLER3 -> 
E11: =Target_rr*Io -> 2 | I11: KA_OFF | J11: =Q1_CSI*p*Q2_Qoss3*n/((Q1_Qgd3*n)^2) -> 
A12: Constants | D12: Target Inductance Value | I12: KB_OFF | J12: =Q1_GDRsink+Q1_Rg3 -> 
A13: p | B13: 1e-12 | E13: =(Vi-Vo)/(ILripple)*Ton -> 0.48 | I13: KC_OFF | J13: =Q1_VMILLER3 -> 
A14: n | B14: 1e-09 | E14: Inductor Current Ripple | I14: KB+ON | J14: =(-Kb_on+SQRT(Kb_on*Kb_on+4*Ka_on*Kc_on))/(2*Ka_on) -> 
A15: u | B15: 1e-06 | E15: =((Vi-Vo)/Lo)*Ton -> 2.042553191 | F15: A | I15: KB-ON | J15: =(-Kb_on-SQRT(Kb_on*Kb_on+4*Ka_on*Kc_on))/(2*Ka_on) -> 
A16: m | B16: 0.001 | D16: Critical Current | G16: =(Vi-Vo)/(Ltarget)*Ton -> 2 | I16: KB+OFF | J16: =(-Kb_off+SQRT(Kb_off*Kb_off+4*Ka_off*Kc_off))/(2*Ka_off) -> 
A17: k | B17: 1000 | E17: =INT(Ior/2+1) -> 2 | F17: A | I17: KB-OFF | J17: =(-Kb_off-SQRT(Kb_off*Kb_off+4*Ka_off*Kc_off))/(2*Ka_off) -> 
A18: Meg | B18: 1000000 | D18: Pedestal Current | I18: Q1_Iqgs2_on | J18: =(Vd-Q1_VMILLER3)/(Q1_Rg3+Q1_GDRsource+(Q1_CSI*p)*(Io-Ior/2)/(E33*n)) -> 
A19: G | B19: 1000000000 | E19: =(Io-Ior/2) -> 6.978723404 | F19: A | I19: Q1_Iqgd_on | J19: =(-Kb_on+SQRT(Kb_on*Kb_on+4*Ka_on*Kc_on))/(2*Ka_on) -> 
D20: Peak Current | I20: Q1_Iqgs2_off | J20: =(Q1_VMILLER3)/(Q1_Rg3+Q1_GDRsink+(Q1_CSI*p)*(Io+Ior/2)/(E33*n)) -> 
E21: =(Io+Ior/2) -> 9.021276596 | F21: A | I21: Q1_Iqgd_off | J21: =(-Kb_off+SQRT(Kb_off*Kb_off+4*Ka_off*Kc_off))/(2*Ka_off) -> 
D22: Ripple Current Ratio | I22: ton | J22: =E33*n/Q1_Iqgs2_on+Q1_Qgd3*n/Q1_Iqgd_on -> 
E23: =Ior/Io -> 0.2553191489 | I23: toff | J23: =E33*n/Q1_Iqgs2_off+Q1_Qgd3*n/Q1_Iqgd_off -> 
D24: Control FET RMS Current | I24: Qsw on | J24: =Vi*ABS(Io-Ior/2)*Fsw*k*(E33*n/Q1_Iqgs2_on)*0.5+Vi*ABS(Io-Ior/2)*Fsw*k*(Q1_Qgd3*n/Q1_Iqgd_on)*0.5 -> 
E25: =SQRT(DC*((Io+Ior/2)^2+ABS((Io-Ior/2)*(Io+Ior/2))+(Io-Ior/2)^2)/3) -> 4.031904405 | F25: A | I25: Qsw off | J25: =Vi*ABS(Io+Ior/2)*Fsw*k*(E33*n/Q1_Iqgs2_off)*0.5+Vi*ABS(Io+Ior/2)*Fsw*k*(Q1_Qgd3*n/Q1_Iqgd_off)*0.5 -> 
D26: Control FET Rds(on) @ Tj | I26: HS Qoss | J26: =Q1_Qoss3*n*Vi*Fsw*k/2 -> 
E27: =Q1_Rdson3*(1+(Tj-25)*(LOOKUP(Q1_Part_Number3,Discrete_NFET[PARTNUMBER],Discrete_NFET[RDSDELTA])/((LOOKUP(Q1_Part_Number3,Discrete_NFET[PARTNUMBER],Discrete_NFET[TJMAX])-25)))) ->  | F27: mΩ | I27: LS Qoss | J27: =Q2_Qoss3*n*Vi*Fsw*k/2 -> 
D28: Control FET Package ID | I28: Qrr | J28: =Q2_Qrr3*n*Vi*Fsw*k*Io/20 -> 
E29: =IF('User Input'!$H$11="Dual/Power Block",RIGHT(LEFT(Q1_Part_Number3,FIND(" (",Q1_Part_Number3)-1),2),RIGHT(Q1_Part_Number3,2)) ->  | I29: Total | J29: =SUM(J24:J28) -> 
D30: Control FET CSI
E31: =IF(OR(E29<>"0",E29<>""),IF(OR(E29="Q5",E29="Q3",E29="5B"),450,IF(OR(E29="1P",E29="4M",E29="8N"),250,IF(OR(E29="5D",E29="3D"),100,IF(OR(E29="Q2",E29="2H",E29="3A"),650,IF(OR(E29="TT",E29="CS"),7500,IF(E29="ND",1500,IF(E29="5A",850,"")))))))) ->  | F31: pH
D32: Control FET Qgs2
E33: =Q1_Qgs3-Q1_Qgth3 -> 
D34: Sync FET RMS Current
E35: =SQRT((1-DC)*((Io+Ior/2)^2+ABS((Io-Ior/2)*(Io+Ior/2))+(Io-Ior/2)^2)/3) -> 6.934797438 | F35: A
D36: Sync FET Rds(on) @ Tj
E37: =Q2_Rdson3*(1+(Tj-25)*(LOOKUP(Q2_Part_Number3,Discrete_NFET[PARTNUMBER],Discrete_NFET[RDSDELTA])/((LOOKUP(Q2_Part_Number3,Discrete_NFET[PARTNUMBER],Discrete_NFET[TJMAX])-25)))) ->  | F37: mΩ
D38: Sync FET Vsd (V)
E39: =LOOKUP(Q2_Part_Number3,Discrete_NFET[PARTNUMBER],Discrete_NFET[VF_TYP]) ->  | F39: V

Sheet FET Data (hidden)
A1: PARTNUMBER | B1: PARTID | C1: WIZARD_ENABLED | D1: AVAILABLE | E1: SCHEMATIC_SYMBOL | F1: THERMAL_ID | G1: COMMENTS | H1: CHTYPE | I1: CHNUM | J1: SUBID | K1: MOUNT | L1: VDSMAX | M1: VGSMAX | N1: IDSMAX | O1: IDMMAX | P1: TJMAX | Q1: PDMAX | R1: RTHJA | S1: RTHJF | T1: VTHMIN | U1: VTHMAX | V1: VMILLER | W1: VFMAX | X1: TRRTYP | Y1: TRRIF | Z1: TRRISR | AA1: GFSTYP | AB1: RGITYP | AC1: RDSON18 | AD1: RDSON25 | AE1: RDSON3 | AF1: RDSON45 | AG1: RDSON6 | AH1: RDSON8 | AI1: RDSON10 | AJ1: RDSDELTA | AK1: QGTYP | AL1: QG2_5TYP | AM1: QGTH | AN1: QG10TYP | AO1: QOSSTYP | AP1: CISS_AT_1V | AQ1: CISS_AT_VDSSPEC | AR1: CISSMAX | AS1: COSS_AT_1V | AT1: COSS_AT_VDSSPEC | AU1: COSSMAX | AV1: CRSS_AT_1V | AW1: CRSS_AT_VDSSPEC | AX1: CRSSMAX | AY1: VDSSPEC | AZ1: SOATIME_MS | BA1: VDS_START | BB1: ID_START | BC1: VDS_1STDROP | BD1: ID_1STDROP | BE1: VDS_2NDDROP | BF1: ID_2NDDROP | BG1: VDS_3RDDROP | BH1: ID_3RDDROP | BI1: VDS_END | BJ1: ID_END | BK1: KQG | BL1: POWERBLOCK | BM1: VF_TYP | BN1: HEATSINKABLE | BO1: PACKAGE | BP1: CGS1 | BQ1: ROHS | BR1: DATASHEET_URL | BS1: KVTH | BT1: RGIMAX | BU1: VGSATMAXRDS | BV1: QRR | BW1: QGD | BX1: QGS | BY1: DEPLETIONMODE | BZ1: TI_EQ_PACKAGE | CA1: AUTOMOTIVE | CB1: GRADE | CC1: TIMESTAMP | CD1: DATEMODIFIED | CE1: ID | CF1: 1KPRICE
A2: CSD13202Q2 | B2: 146 | C2: Y | D2: Y | E2: WB_MOSFET_N_D12568G3S47 | F2: DQK0006C | G2: PJ added New; Oliver set symbol automotive and footprint and changed to A | H2: N | I2: 1 | J2: 0 | K2: 1 | L2: 12 | M2: 8 | N2: 22 | O2: 76 | P2: 150 | Q2: 2.7 | R2: 60 | S2: 6.4 | T2: 0.58 | U2: 1.1 | V2: 1.4 | W2: 1 | X2: 28 | Y2: 5 | Z2: 200 | AA2: 44 | AB2: 0.7 | AC2: (NULL) | AD2: 0.0116 | AE2: 0.0104 | AF2: 0.0093 | AG2: (NULL) | AH2: (NULL) | AI2: (NULL) | AJ2: 0.39 | AK2: 5.1 | AL2: 2.9 | AM2: 0.57 | AN2: (NULL) | AO2: 5.7 | AP2: 0.781 | AQ2: 0.767 | AR2: 0.806 | AS2: 0.814 | AT2: 0.506 | AU2: 0.977 | AV2: 0.0696 | AW2: 0.043 | AX2: 0.0968 | AY2: 6 | AZ2: 10 | BA2: 0.01 | BB2: 0.9 | BC2: 0.5 | BD2: 45 | BE2: 1 | BF2: 22 | BG2: 13 | BH2: 2 | BI2: 13 | BJ2: 0.01 | BK2: 0.98 | BL2: N | BM2: 0.75 | BN2: (NULL) | BO2: (NULL) | BP2: (NULL) | BQ2: Y | BR2: http://www.ti.com/lit/ds/symlink/csd13202q2.pdf | BS2: (NULL) | BT2: 1.4 | BU2: 1.7 | BV2: 13 | BW2: 0.76 | BX2: 0.98 | BY2: (NULL) | BZ2: SON2X2 | CA2: N | CB2: (NULL) | CC2: 42577 | CD2: 42662 | CE2: 2585 | CF2: 0.12
A3: CSD15571Q2 | B3: 146 | C3: Y | D3: N | E3: WB_MOSFET_N_D1256G3S4 | F3: DQK0006C | G3: PJ added New | H3: N | I3: 1 | J3: 0 | K3: (NULL) | L3: 20 | M3: 20 | N3: 22 | O3: 52 | P3: 150 | Q3: 2.5 | R3: 65 | S3: 4.5 | T3: 1.1 | U3: 1.9 | V3: 2.5 | W3: 1 | X3: 19 | Y3: 5 | Z3: 300 | AA3: 25 | AB3: 3.8 | AC3: (NULL) | AD3: (NULL) | AE3: (NULL) | AF3: 0.0192 | AG3: (NULL) | AH3: (NULL) | AI3: 0.015 | AJ3: 0.63 | AK3: 2.5 | AL3: 1.3 | AM3: 0.52 | AN3: 5.1 | AO3: 4.1 | AP3: 0.361 | AQ3: 0.32 | AR3: 0.392 | AS3: 0.423 | AT3: 0.184 | AU3: 0.519 | AV3: 0.0735 | AW3: 0.032 | AX3: 0.0966 | AY3: 10 | AZ3: 10 | BA3: 0.01 | BB3: 0.5 | BC3: 0.6 | BD3: 30 | BE3: 20 | BF3: 0.9 | BG3: 20 | BH3: 0.01 | BI3: 20 | BJ3: 0.01 | BK3: 2.03 | BL3: N | BM3: 0.82 | BN3: (NULL) | BO3: (NULL) | BP3: (NULL) | BQ3: Y | BR3: http://www.ti.com/lit/ds/symlink/csd15571q2.pdf | BS3: (NULL) | BT3: 7.6 | BU3: 3 | BV3: 10.7 | BW3: 0.66 | BX3: 0.93 | BY3: (NULL) | BZ3: SON2X2 | CA3: (NULL) | CB3: (NULL) | CC3: 42577 | CD3: (NULL) | CE3: 2590 | CF3: 0.1
A4: CSD16301Q2 | B4: 146 | C4: Y | D4: Y | E4: WB_MOSFET_N_D12568G3S47 | F4: DQK0006C | G4: Updated by PJ Added by Jonathan -Disabed for PCB export - Howard | H4: N | I4: 1 | J4: 0 | K4: 1 | L4: 25 | M4: 10 | N4: 5 | O4: 85 | P4: 150 | Q4: 2.5 | R4: 65 | S4: 8.4 | T4: 0.9 | U4: 1.55 | V4: 1.94 | W4: 1 | X4: 11 | Y4: 4 | Z4: 200 | AA4: 16.5 | AB4: 1.3 | AC4: (NULL) | AD4: (NULL) | AE4: 0.034 | AF4: 0.029 | AG4: (NULL) | AH4: 0.024 | AI4: (NULL) | AJ4: 0.57 | AK4: 2 | AL4: 1.25 | AM4: 0.3 | AN4: 4 | AO4: 3 | AP4: 0.285 | AQ4: 0.26 | AR4: 0.31 | AS4: 0.406 | AT4: 0.165 | AU4: 0.56 | AV4: 0.0406 | AW4: 0.013 | AX4: 0.05 | AY4: 12.5 | AZ4: 10 | BA4: 0.1 | BB4: 22.5 | BC4: 1.69 | BD4: 278 | BE4: 2.41 | BF4: 194 | BG4: 60 | BH4: 1.53 | BI4: 60 | BJ4: 0.1 | BK4: 2.66 | BL4: N | BM4: 0.8 | BN4: (NULL) | BO4: 1156 | BP4: 0.26 | BQ4: Y | BR4: http://www.ti.com/lit/ds/symlink/csd16301q2.pdf | BS4: (NULL) | BT4: 2.6 | BU4: 2 | BV4: 5.1 | BW4: 0.4 | BX4: 0.6 | BY4: (NULL) | BZ4: SON2X2 | CA4: (NULL) | CB4: (NULL) | CC4: 40760 | CD4: 42577 | CE4: 2474 | CF4: 0.12
A5: CSD16321Q5 | B5: 146 | C5: Y | D5: Y | E5: WB_MOSFET_N_D56789G4S123 | F5: TRANS_NexFET_Q5 | G5: Updated by PJ Added by Jonathan | H5: N | I5: 1 | J5: 0 | K5: 1 | L5: 25 | M5: 10 | N5: 100 | O5: 200 | P5: 150 | Q5: 3.125 | R5: 50 | S5: 0.9 | T5: 0.9 | U5: 1.4 | V5: 2.1 | W5: 1 | X5: 32 | Y5: 25 | Z5: 300 | AA5: 150 | AB5: 1.5 | AC5: (NULL) | AD5: (NULL) | AE5: 0.0038 | AF5: 0.0026 | AG5: (NULL) | AH5: 0.0024 | AI5: (NULL) | AJ5: 0.53 | AK5: 14 | AL5: 6 | AM5: 2.1 | AN5: 25.15 | AO5: 36 | AP5: 2.45 | AQ5: 2.36 | AR5: 2.56 | AS5: 4.12 | AT5: 1.7 | AU5: 5.62 | AV5: 0.252 | AW5: 0.115 | AX5: 0.391 | AY5: 12.5 | AZ5: 10 | BA5: 0.01 | BB5: 3 | BC5: 0.4 | BD5: 175 | BE5: 1.4 | BF5: 175 | BG5: 25 | BH5: 8.5 | BI5: 25 | BJ5: 0.01 | BK5: 0.44 | BL5: N | BM5: 0.8 | BN5: (NULL) | BO5: 1155 | BP5: 3.1 | BQ5: Y | BR5: http://www.ti.com/lit/ds/symlink/csd16321q5.pdf | BS5: (NULL) | BT5: 3 | BU5: 2.1 | BV5: 33 | BW5: 2.5 | BX5: 4 | BY5: (NULL) | BZ5: SON5X6 | CA5: (NULL) | CB5: (NULL) | CC5: 40764 | CD5: 42577 | CE5: 2475 | CF5: 0.54
A6: CSD16322Q5 | B6: 146 | C6: Y | D6: Y | E6: WB_MOSFET_N_D56789G4S123 | F6: TRANS_NexFET_Q5 | G6: Updated by PJ Added by Amod | H6: N | I6: 1 | J6: 0 | K6: 1 | L6: 25 | M6: 10 | N6: 97 | O6: 136 | P6: 150 | Q6: 3.125 | R6: 50 | S6: 2.4 | T6: 0.9 | U6: 1.4 | V6: 2.32 | W6: 1 | X6: 21 | Y6: 20 | Z6: 300 | AA6: 106 | AB6: 1.1 | AC6: (NULL) | AD6: (NULL) | AE6: 0.0072 | AF6: 0.0058 | AG6: (NULL) | AH6: 0.005 | AI6: (NULL) | AJ6: 0.3 | AK6: 6.8 | AL6: 3.9 | AM6: 1.3 | AN6: 14.5 | AO6: 17 | AP6: 1.11 | AQ6: 1.05 | AR6: 1.16 | AS6: 1.8 | AT6: 0.74 | AU6: 2.46 | AV6: 0.114 | AW6: 0.055 | AX6: 0.17 | AY6: 12.5 | AZ6: 10 | BA6: 0.01 | BB6: 2 | BC6: 0.6 | BD6: 110 | BE6: 0.8 | BF6: 110 | BG6: 25 | BH6: 3.7 | BI6: 25 | BJ6: 0.01 | BK6: 0.71 | BL6: N | BM6: 0.8 | BN6: (NULL) | BO6: 1155 | BP6: 1.365 | BQ6: Y | BR6: http://www.ti.com/lit/ds/symlink/csd16322q5.pdf | BS6: (NULL) | BT6: 2.2 | BU6: 2.2 | BV6: 19 | BW6: 1.3 | BX6: 2.4 | BY6: (NULL) | BZ6: SON5X6 | CA6: (NULL) | CB6: (NULL) | CC6: 40777 | CD6: 42577 | CE6: 2477 | CF6: 0.35
A7: CSD16323Q3 | B7: 146 | C7: Y | D7: Y | E7: WB_MOSFET_N_D56789G4S123 | F7: DQG0008A | G7: Added by Jonathan;PJ added new params from PL;Oliver updated Thermal_Id | H7: N | I7: 1 | J7: 0 | K7: 1 | L7: 25 | M7: 10 | N7: 60 | O7: 240 | P7: 150 | Q7: 2.8 | R7: 55 | S7: 1.7 | T7: 0.9 | U7: 1.4 | V7: 2.06 | W7: 1 | X7: 16 | Y7: 24 | Z7: 300 | AA7: 108 | AB7: 1.4 | AC7: (NULL) | AD7: (NULL) | AE7: 0.0072 | AF7: 0.0055 | AG7: (NULL) | AH7: 0.0045 | AI7: (NULL) | AJ7: 0.49 | AK7: 6.2 | AL7: 4 | AM7: 1 | AN7: 10.5 | AO7: 14 | AP7: 1.08 | AQ7: 1.02 | AR7: 1.1 | AS7: 1.73 | AT7: 0.74 | AU7: 2.2 | AV7: 0.1 | AW7: 0.05 | AX7: 0.15 | AY7: 12.5 | AZ7: 10 | BA7: 0.1 | BB7: 16 | BC7: 1.1 | BD7: 160 | BE7: 9 | BF7: 18 | BG7: 25 | BH7: 2.6 | BI7: 25 | BJ7: 0.1 | BK7: 0.947 | BL7: N | BM7: 0.85 | BN7: (NULL) | BO7: 1154 | BP7: 0.95 | BQ7: Y | BR7: http://www.ti.com/lit/ds/symlink/csd16323q3.pdf | BS7: (NULL) | BT7: 2.8 | BU7: 2 | BV7: 21 | BW7: 1.1 | BX7: 1.8 | BY7: (NULL) | BZ7: SON3X3 | CA7: (NULL) | CB7: (NULL) | CC7: 40744 | CD7: 42599 | CE7: 1987 | CF7: 0.32
A8: CSD16325Q5 | B8: 146 | C8: Y | D8: Y | E8: WB_MOSFET_N_D56789G4S123 | F8: TRANS_NexFET_Q5 | G8: Updated by PJ Added by Amod | H8: N | I8: 1 | J8: 0 | K8: 1 | L8: 25 | M8: 10 | N8: 100 | O8: 200 | P8: 150 | Q8: 3.125 | R8: 50 | S8: 1 | T8: 0.9 | U8: 1.4 | V8: 2.48 | W8: 1 | X8: 47 | Y8: 30 | Z8: 300 | AA8: 159 | AB8: 1.6 | AC8: (NULL) | AD8: (NULL) | AE8: 0.0029 | AF8: 0.0022 | AG8: (NULL) | AH8: 0.002 | AI8: (NULL) | AJ8: 0.47 | AK8: 18 | AL8: 10.1 | AM8: 3.3 | AN8: 42.02 | AO8: 43 | AP8: 3.21 | AQ8: 3.07 | AR8: 3.36 | AS8: 5.19 | AT8: 2.19 | AU8: 7.11 | AV8: 0.327 | AW8: 0.12 | AX8: 0.567 | AY8: 12.5 | AZ8: 10 | BA8: 0.01 | BB8: 4.7 | BC8: 0.5 | BD8: 180 | BE8: 0.8 | BF8: 180 | BG8: 25 | BH8: 5.5 | BI8: 25 | BJ8: 0.01 | BK8: 0.24 | BL8: N | BM8: 0.8 | BN8: (NULL) | BO8: 1155 | BP8: 4 | BQ8: Y | BR8: http://www.ti.com/lit/ds/symlink/csd16325q5.pdf | BS8: (NULL) | BT8: 3.2 | BU8: 2.2 | BV8: 63 | BW8: 3.5 | BX8: 6.6 | BY8: (NULL) | BZ8: SON5X6 | CA8: (NULL) | CB8: (NULL) | CC8: 40777 | CD8: 42577 | CE8: 2479 | CF8: 0.64
A9: CSD16327Q3 | B9: 146 | C9: Y | D9: Y | E9: WB_MOSFET_N_D56789G4S123 | F9: DQG0008A | G9: Added by Gerold; PJ added new params from PL; Oliver updated Thermal_Id | H9: N | I9: 1 | J9: 0 | K9: 1 | L9: 25 | M9: 10 | N9: 22 | O9: 240 | P9: 150 | Q9: 2.8 | R9: 55 | S9: 1.7 | T9: 0.9 | U9: 1.4 | V9: 2 | W9: 1 | X9: 16 | Y9: 24 | Z9: 300 | AA9: 96 | AB9: 1.4 | AC9: (NULL) | AD9: (NULL) | AE9: 0.0065 | AF9: 0.0048 | AG9: (NULL) | AH9: 0.004 | AI9: 0.0028 | AJ9: 0.44 | AK9: 6.2 | AL9: 3.89 | AM9: 1 | AN9: 11 | AO9: 14 | AP9: 1.16 | AQ9: 1.02 | AR9: 1.2 | AS9: 1.9 | AT9: 0.74 | AU9: 2.2 | AV9: 0.109 | AW9: 0.05 | AX9: 0.17 | AY9: 12.5 | AZ9: 10 | BA9: 0.1 | BB9: 19 | BC9: 1.1 | BD9: 180 | BE9: 8 | BF9: 20 | BG9: 25 | BH9: 2.2 | BI9: 25 | BJ9: 0.1 | BK9: 1 | BL9: N | BM9: 0.85 | BN9: (NULL) | BO9: 1154 | BP9: 1.03 | BQ9: Y | BR9: http://www.ti.com/lit/ds/symlink/csd16327q3.pdf | BS9: (NULL) | BT9: 2.8 | BU9: 2.4 | BV9: 21 | BW9: 1.1 | BX9: 1.8 | BY9: (NULL) | BZ9: SON3X3 | CA9: (NULL) | CB9: (NULL) | CC9: (NULL) | CD9: 42599 | CE9: 1991 | CF9: 0.32
A10: CSD16340Q3 | B10: 146 | C10: Y | D10: Y | E10: WB_MOSFET_N_D56789G4S123 | F10: DQG0008A | G10: Added by Amod; PJ added new params from PL; Oliver updated Thermal_Id | H10: N | I10: 1 | J10: 0 | K10: 1 | L10: 25 | M10: 10 | N10: 60 | O10: 115 | P10: 150 | Q10: 3 | R10: 42 | S10: 20.6 | T10: 0.6 | U10: 1.1 | V10: 2.02 | W10: 1 | X10: 20 | Y10: 20 | Z10: 300 | AA10: 121 | AB10: 1.5 | AC10: (NULL) | AD10: 0.0078 | AE10: (NULL) | AF10: 0.0043 | AG10: (NULL) | AH10: 0.0045 | AI10: 0.0038 | AJ10: 0.32 | AK10: 6.5 | AL10: 4 | AM10: 1 | AN10: 11.5 | AO10: 15 | AP10: 1.1 | AQ10: 1.05 | AR10: 1.16 | AS10: 1.72 | AT10: 0.73 | AU10: 2.37 | AV10: 0.118 | AW10: 0.053 | AX10: 0.194 | AY10: 12.5 | AZ10: 10 | BA10: 0.01 | BB10: 2 | BC10: 0.45 | BD10: 100 | BE10: 0.9 | BF10: 100 | BG10: 25 | BH10: 3.8 | BI10: 25 | BJ10: 0.01 | BK10: 1 | BL10: N | BM10: 0.8 | BN10: (NULL) | BO10: 1154 | BP10: 0.966 | BQ10: Y | BR10: http://www.ti.com/lit/ds/symlink/csd16340q3.pdf | BS10: (NULL) | BT10: 3 | BU10: 1.9 | BV10: 14.5 | BW10: 1.2 | BX10: 2.1 | BY10: (NULL) | BZ10: SON3X3 | CA10: (NULL) | CB10: (NULL) | CC10: 40777 | CD10: 42599 | CE10: 1992 | CF10: 0.33
A11: CSD16342Q5A | B11: 146 | C11: Y | D11: Y | E11: WB_MOSFET_N_D56789G4S123 | F11: TRANS_NexFET_Q5A | G11: Updated by PJ Added by Steven | H11: N | I11: 1 | J11: 0 | K11: 1 | L11: 25 | M11: 10 | N11: 100 | O11: 131 | P11: 150 | Q11: 3.125 | R11: 50 | S11: 1.2 | T11: 0.6 | U11: 1.1 | V11: 1.6 | W11: 1 | X11: 20 | Y11: 20 | Z11: 300 | AA11: 91 | AB11: 1.5 | AC11: (NULL) | AD11: 0.0078 | AE11: (NULL) | AF11: 0.0055 | AG11: (NULL) | AH11: 0.0047 | AI11: (NULL) | AJ11: 0.47 | AK11: 6.8 | AL11: 3.8 | AM11: 1.2 | AN11: 13 | AO11: 13.7 | AP11: 1.15 | AQ11: 1.05 | AR11: 1.19 | AS11: 1.88 | AT11: 0.73 | AU11: 2.37 | AV11: 0.113 | AW11: 0.053 | AX11: 0.159 | AY11: 12.5 | AZ11: 10 | BA11: 0.01 | BB11: 2 | BC11: 0.55 | BD11: 110 | BE11: 0.55 | BF11: 110 | BG11: 25 | BH11: 2 | BI11: 25 | BJ11: 0.01 | BK11: 0.88 | BL11: N | BM11: 0.8 | BN11: (NULL) | BO11: 1155 | BP11: 1.05 | BQ11: Y | BR11: http://www.ti.com/lit/ds/symlink/csd16342q5a.pdf | BS11: (NULL) | BT11: 3 | BU11: 1.8 | BV11: 14.5 | BW11: 0.9 | BX11: 1.9 | BY11: (NULL) | BZ11: SON5X6 | CA11: (NULL) | CB11: (NULL) | CC11: 41503 | CD11: 42577 | CE11: 2481 | CF11: 0.32
A12: CSD16401Q5 | B12: 146 | C12: Y | D12: Y | E12: WB_MOSFET_N_D56789G4S123 | F12: TRANS_NexFET_Q5 | G12: Updated by PJ Added by Amod Jaz: hotswap | H12: N | I12: 1 | J12: 0 | K12: 1 | L12: 25 | M12: 16 | N12: 100 | O12: 240 | P12: 150 | Q12: 3.125 | R12: 50 | S12: 1.1 | T12: 1.2 | U12: 1.9 | V12: 2.92 | W12: 1 | X12: 45 | Y12: 40 | Z12: 300 | AA12: 168 | AB12: 1.2 | AC12: (NULL) | AD12: (NULL) | AE12: (NULL) | AF12: 0.0023 | AG12: (NULL) | AH12: (NULL) | AI12: 0.0016 | AJ12: 0.47 | AK12: 21 | AL12: 7.7 | AM12: 4.8 | AN12: 43.5 | AO12: 55 | AP12: 3.42 | AQ12: 3.15 | AR12: 3.58 | AS12: 5.93 | AT12: 2.53 | AU12: 8.04 | AV12: 0.459 | AW12: 0.175 | AX12: 0.682 | AY12: 12.5 | AZ12: 10 | BA12: 0.1 | BB12: 43.8 | BC12: 1.4 | BD12: 376 | BE12: 4.21 | BF12: 125 | BG12: 25 | BH12: 6.37 | BI12: 25 | BJ12: 0.1 | BK12: 0.24 | BL12: N | BM12: 0.85 | BN12: (NULL) | BO12: 1155 | BP12: 4.1 | BQ12: Y | BR12: http://www.ti.com/lit/ds/symlink/csd16401q5.pdf | BS12: (NULL) | BT12: 2.4 | BU12: 3 | BV12: 72 | BW12: 5.2 | BX12: 8.3 | BY12: (NULL) | BZ12: SON5X6 | CA12: (NULL) | CB12: (NULL) | CC12: 41033 | CD12: 42577 | CE12: 2482 | CF12: 0.76
A13: CSD16403Q5A | B13: 146 | C13: Y | D13: Y | E13: WB_MOSFET_N_D56789G4S123 | F13: TRANS_NexFET_Q5A | G13: Updated by PJ HotSwap disabled by HC | H13: N | I13: 1 | J13: 0 | K13: 1 | L13: 25 | M13: 16 | N13: 100 | O13: 184 | P13: 150 | Q13: 3.125 | R13: 50 | S13: 1.8 | T13: 1.2 | U13: 1.9 | V13: 2.83 | W13: 1 | X13: 35 | Y13: 20 | Z13: 300 | AA13: 91 | AB13: 1.2 | AC13: (NULL) | AD13: (NULL) | AE13: (NULL) | AF13: 0.0037 | AG13: (NULL) | AH13: (NULL) | AI13: 0.0028 | AJ13: 0.52 | AK13: 13.3 | AL13: 4.85 | AM13: 3.1 | AN13: 28 | AO13: 33 | AP13: 2.18 | AQ13: 2.04 | AR13: 2.29 | AS13: 3.83 | AT13: 1.6 | AU13: 5.22 | AV13: 0.318 | AW13: 0.115 | AX13: 0.642 | AY13: 12.5 | AZ13: 10 | BA13: 0.01 | BB13: 3.8 | BC13: 0.4 | BD13: 180 | BE13: 1.6 | BF13: 180 | BG13: 25 | BH13: 9 | BI13: 25 | BJ13: 0.01 | BK13: 0.38 | BL13: N | BM13: 0.8 | BN13: (NULL) | BO13: 1155 | BP13: 1.85 | BQ13: Y | BR13: http://www.ti.com/lit/ds/symlink/csd16403q5a.pdf | BS13: (NULL) | BT13: 2.4 | BU13: 3 | BV13: 47 | BW13: 3.5 | BX13: 5.5 | BY13: (NULL) | BZ13: SON5X6 | CA13: (NULL) | CB13: (NULL) | CC13: 41033 | CD13: 42577 | CE13: 2483 | CF13: 0.51
A14: CSD16404Q5A | B14: 146 | C14: Y | D14: Y | E14: WB_MOSFET_N_D56789G4S123 | F14: TRANS_NexFET_Q5A | G14: Updated by PJ Added by Amod Jaz: hotswap | H14: N | I14: 1 | J14: 0 | K14: 1 | L14: 25 | M14: 16 | N14: 81 | O14: 135 | P14: 150 | Q14: 3.125 | R14: 50 | S14: 3.3 | T14: 1.4 | U14: 2.1 | V14: 3.16 | W14: 1 | X14: 22 | Y14: 20 | Z14: 300 | AA14: 57 | AB14: 0.9 | AC14: (NULL) | AD14: (NULL) | AE14: (NULL) | AF14: 0.0072 | AG14: (NULL) | AH14: (NULL) | AI14: 0.0051 | AJ14: 0.43 | AK14: 6.5 | AL14: 2.25 | AM14: 1.5 | AN14: 13 | AO14: 16 | AP14: 0.99 | AQ14: 0.94 | AR14: 1.03 | AS14: 1.92 | AT14: 0.81 | AU14: 2.61 | AV14: 0.144 | AW14: 0.062 | AX14: 0.206 | AY14: 12.5 | AZ14: 10 | BA14: 0.01 | BB14: 1.98 | BC14: 0.42 | BD14: 70 | BE14: 25 | BF14: 1.1 | BG14: 25 | BH14: 0.01 | BI14: 25 | BJ14: 0.01 | BK14: 0.8 | BL14: N | BM14: 0.85 | BN14: (NULL) | BO14: 1155 | BP14: 1.22 | BQ14: Y | BR14: http://www.ti.com/lit/ds/symlink/csd16404q5a.pdf | BS14: (NULL) | BT14: 1.8 | BU14: 3.3 | BV14: 20 | BW14: 1.7 | BX14: 3 | BY14: (NULL) | BZ14: SON5X6 | CA14: (NULL) | CB14: (NULL) | CC14: 41033 | CD14: 42577 | CE14: 2484 | CF14: 0.3
A15: CSD16406Q3 | B15: 146 | C15: Y | D15: Y | E15: WB_MOSFET_N_D56789G4S123 | F15: DQG0008A | G15: Added by Amod Jaz: hotswap; PJ added new params from PL; Oliver updated Thermal_Id | H15: N | I15: 1 | J15: 0 | K15: 1 | L15: 25 | M15: 16 | N15: 60 | O15: 240 | P15: 150 | Q15: 2.8 | R15: 55 | S15: 2.7 | T15: 1.4 | U15: 2.2 | V15: 2.996 | W15: 1 | X15: 22 | Y15: 20 | Z15: 300 | AA15: 53 | AB15: 1.2 | AC15: (NULL) | AD15: (NULL) | AE15: (NULL) | AF15: 0.0074 | AG15: (NULL) | AH15: 0.0043 | AI15: 0.0042 | AJ15: 0.41 | AK15: 5.8 | AL15: 2 | AM15: 1.5 | AN15: 11.6 | AO15: 13.9 | AP15: 0.94 | AQ15: 0.84 | AR15: 1 | AS15: 1.6 | AT15: 0.7 | AU15: 2.2 | AV15: 0.15 | AW15: 0.06 | AX15: 0.19 | AY15: 12.5 | AZ15: 10 | BA15: 0.1 | BB15: 13 | BC15: 0.8 | BD15: 103 | BE15: 1.4 | BF15: 103 | BG15: 25 | BH15: 3.3 | BI15: 25 | BJ15: 0.1 | BK15: 1 | BL15: N | BM15: 0.85 | BN15: (NULL) | BO15: 1154 | BP15: 0.81 | BQ15: Y | BR15: http://www.ti.com/lit/ds/symlink/csd16406q3.pdf | BS15: (NULL) | BT15: 2.4 | BU15: 3.7 | BV15: 18 | BW15: 1.5 | BX15: 2.5 | BY15: (NULL) | BZ15: SON3X3 | CA15: (NULL) | CB15: (NULL) | CC15: 41033 | CD15: 42599 | CE15: 1997 | CF15: 0.32
A16: CSD16407Q5 | B16: 146 | C16: Y | D16: Y | E16: WB_MOSFET_N_D56789G4S123 | F16: TRANS_NexFET_Q5 | G16: Updated by PJ Added by Amod Jaz: hotswap | H16: N | I16: 1 | J16: 0 | K16: 1 | L16: 25 | M16: 16 | N16: 100 | O16: 200 | P16: 150 | Q16: 3.125 | R16: 50 | S16: 1.1 | T16: 1.3 | U16: 1.9 | V16: 2.797 | W16: 1 | X16: 34 | Y16: 25 | Z16: 300 | AA16: 111 | AB16: 1.2 | AC16: (NULL) | AD16: (NULL) | AE16: (NULL) | AF16: 0.0033 | AG16: (NULL) | AH16: (NULL) | AI16: 0.0024 | AJ16: 0.42 | AK16: 13.3 | AL16: 4.9 | AM16: 3.1 | AN16: 27.8 | AO16: 33 | AP16: 2.05 | AQ16: 2.04 | AR16: 2.1 | AS16: 3.5 | AT16: 1.6 | AU16: 5.1 | AV16: 0.15 | AW16: 0.115 | AX16: 0.2 | AY16: 12.5 | AZ16: 10 | BA16: 0.01 | BB16: 3.9 | BC16: 0.5 | BD16: 190 | BE16: 0.85 | BF16: 190 | BG16: 25 | BH16: 6 | BI16: 25 | BJ16: 0.01 | BK16: 0.37 | BL16: N | BM16: 0.8 | BN16: (NULL) | BO16: 1155 | BP16: 2.66 | BQ16: Y | BR16: http://www.ti.com/lit/ds/symlink/csd16407q5.pdf | BS16: (NULL) | BT16: 2.4 | BU16: 3.1 | BV16: 41 | BW16: 3.5 | BX16: 5.3 | BY16: (NULL) | BZ16: SON5X6 | CA16: (NULL) | CB16: (NULL) | CC16: 41033 | CD16: 42577 | CE16: 2485 | CF16: 0.57
A17: CSD16408Q5 | B17: 146 | C17: Y | D17: Y | E17: WB_MOSFET_N_D56789G4S123 | F17: TRANS_NexFET_Q5 | G17: Updated by PJ Added by Amod Jaz: hotswap | H17: N | I17: 1 | J17: 0 | K17: 1 | L17: 25 | M17: 16 | N17: 113 | O17: 141 | P17: 150 | Q17: 3.125 | R17: 50 | S17: 1.9 | T17: 1.4 | U17: 2.1 | V17: 3.2 | W17: 1 | X17: 21 | Y17: 25 | Z17: 300 | AA17: 60 | AB17: 0.8 | AC17: (NULL) | AD17: (NULL) | AE17: (NULL) | AF17: 0.0068 | AG17: (NULL) | AH17: (NULL) | AI17: 0.0045 | AJ17: 0.49 | AK17: 6.7 | AL17: 2.3 | AM17: 1.8 | AN17: 14 | AO17: 15.7 | AP17: 1.06 | AQ17: 0.99 | AR17: 1.14 | AS17: 1.8 | AT17: 0.76 | AU17: 2.53 | AV17: 0.181 | AW17: 0.075 | AX17: 0.283 | AY17: 12.5 | AZ17: 10 | BA17: 0.01 | BB17: 2.3 | BC17: 0.55 | BD17: 110 | BE17: 1 | BF17: 110 | BG17: 25 | BH17: 4.8 | BI17: 25 | BJ17: 0.01 | BK17: 0.75 | BL17: N | BM17: 0.8 | BN17: (NULL) | BO17: 1155 | BP17: 1.3 | BQ17: Y | BR17: http://www.ti.com/lit/ds/symlink/csd16408q5.pdf | BS17: (NULL) | BT17: 1.6 | BU17: 3.2 | BV17: 17 | BW17: 1.9 | BX17: 3.1 | BY17: (NULL) | BZ17: SON5X6 | CA17: (NULL) | CB17: (NULL) | CC17: 41033 | CD17: 42577 | CE17: 2487 | CF17: 0.44
A18: CSD16409Q3 | B18: 146 | C18: Y | D18: Y | E18: WB_MOSFET_N_D56789G4S123 | F18: DQG0008A | G18: Added by Jonathan; Updated by PJ; Oliver updated Thermal_Id | H18: N | I18: 1 | J18: 0 | K18: 1 | L18: 25 | M18: 16 | N18: 60 | O18: 90 | P18: 150 | Q18: 2.6 | R18: 59 | S18: 3.5 | T18: 1.7 | U18: 2.3 | V18: 3.47 | W18: 1 | X18: 17.5 | Y18: 17 | Z18: 300 | AA18: 38 | AB18: 0.9 | AC18: (NULL) | AD18: (NULL) | AE18: (NULL) | AF18: 0.0124 | AG18: (NULL) | AH18: 0.0068 | AI18: 0.0082 | AJ18: 0.45 | AK18: 4 | AL18: 1.5 | AM18: 1.1 | AN18: 8 | AO18: 9.1 | AP18: 0.637 | AQ18: 0.6 | AR18: 0.671 | AS18: 1.09 | AT18: 0.48 | AU18: 1.5 | AV18: 0.0943 | AW18: 0.04 | AX18: 0.135 | AY18: 12.5 | AZ18: 10 | BA18: 0.01 | BB18: 1.2 | BC18: 0.6 | BD18: 80 | BE18: 0.65 | BF18: 80 | BG18: 25 | BH18: 2 | BI18: 25 | BJ18: 0.01 | BK18: 0.625 | BL18: N | BM18: 0.85 | BN18: (NULL) | BO18: 1154 | BP18: 0.536 | BQ18: Y | BR18: http://www.ti.com/lit/ds/symlink/csd16409q3.pdf | BS18: (NULL) | BT18: 1.8 | BU18: 3.8 | BV18: 13.8 | BW18: 1 | BX18: 2.1 | BY18: (NULL) | BZ18: SON3X3 | CA18: (NULL) | CB18: (NULL) | CC18: 40742 | CD18: 42599 | CE18: 2489 | CF18: 0.28
A19: CSD16410Q5A | B19: 146 | C19: Y | D19: Y | E19: WB_MOSFET_N_D56789G4S123 | F19: TRANS_NexFET_Q5A | G19: Updated by PJ HotSwap disabled by HC | H19: N | I19: 1 | J19: 0 | K19: 1 | L19: 25 | M19: 16 | N19: 59 | O19: 158 | P19: 150 | Q19: 3.125 | R19: 50 | S19: 3.8 | T19: 1.6 | U19: 2.3 | V19: 3.23 | W19: 1 | X19: 18.2 | Y19: 17 | Z19: 300 | AA19: 38 | AB19: 0.7 | AC19: (NULL) | AD19: (NULL) | AE19: (NULL) | AF19: 0.012 | AG19: (NULL) | AH19: (NULL) | AI19: 0.0085 | AJ19: 0.43 | AK19: 3.9 | AL19: 1.5 | AM19: 1.1 | AN19: 7.9 | AO19: 10 | AP19: 0.6 | AQ19: 0.58 | AR19: 0.629 | AS19: 1.1 | AT19: 0.46 | AU19: 1.49 | AV19: 0.0866 | AW19: 0.04 | AX19: 0.123 | AY19: 12.5 | AZ19: 10 | BA19: 0.01 | BB19: 1.2 | BC19: 0.7 | BD19: 80 | BE19: 25 | BF19: 2.1 | BG19: 25 | BH19: 0.01 | BI19: 25 | BJ19: 0.01 | BK19: 1.36 | BL19: N | BM19: 0.85 | BN19: (NULL) | BO19: 1155 | BP19: 0.74 | BQ19: Y | BR19: http://www.ti.com/lit/ds/symlink/csd16410q5a.pdf | BS19: (NULL) | BT19: 1.4 | BU19: 3.5 | BV19: 14 | BW19: 1.1 | BX19: 1.8 | BY19: (NULL) | BZ19: SON5X6 | CA19: (NULL) | CB19: (NULL) | CC19: 41033 | CD19: 42577 | CE19: 2490 | CF19: 0.23
A20: CSD16411Q3 | B20: 146 | C20: Y | D20: Y | E20: WB_MOSFET_N_D56789G4S123 | F20: DQG0008A | G20: HotSwap disabled by HC; Updated by PJ; Oliver updated Thermal_Id | H20: N | I20: 1 | J20: 0 | K20: 1 | L20: 25 | M20: 16 | N20: 50 | O20: 130 | P20: 150 | Q20: 2.87 | R20: 55 | S20: 3.5 | T20: 1.7 | U20: 2.3 | V20: 3.25 | W20: 1 | X20: 15.5 | Y20: 10 | Z20: 300 | AA20: 30 | AB20: 0.8 | AC20: (NULL) | AD20: (NULL) | AE20: (NULL) | AF20: 0.015 | AG20: (NULL) | AH20: (NULL) | AI20: 0.01 | AJ20: 0.42 | AK20: 2.9 | AL20: 1.2 | AM20: 0.9 | AN20: 6.1 | AO20: 6.5 | AP20: 0.49 | AQ20: 0.42 | AR20: 0.49 | AS20: 0.8 | AT20: 0.33 | AU20: 1.01 | AV20: 0.07 | AW20: 0.033 | AX20: 0.09 | AY20: 12.5 | AZ20: 10 | BA20: 0.1 | BB20: 7 | BC20: 1.1 | BD20: 75 | BE20: 9.5 | BF20: 8.5 | BG20: 25 | BH20: 1.2 | BI20: 25 | BJ20: 0.1 | BK20: 0.476 | BL20: N | BM20: 0.85 | BN20: (NULL) | BO20: 1154 | BP20: 0.4 | BQ20: Y | BR20: http://www.ti.com/lit/ds/symlink/csd16411q3.pdf | BS20: (NULL) | BT20: 1.6 | BU20: 3.25 | BV20: 11.7 | BW20: 0.7 | BX20: 1.5 | BY20: (NULL) | BZ20: SON3X3 | CA20: (NULL) | CB20: (NULL) | CC20: 41033 | CD20: 42599 | CE20: 2491 | CF20: 0.24
A21: CSD16412Q5A | B21: 146 | C21: Y | D21: Y | E21: WB_MOSFET_N_D56789G4S123 | F21: TRANS_NexFET_Q5A | G21: Updated by PJ HotSwap disabled by HC | H21: N | I21: 1 | J21: 0 | K21: 1 | L21: 25 | M21: 16 | N21: 52 | O21: 91 | P21: 150 | Q21: 3.125 | R21: 50 | S21: 3.7 | T21: 1.7 | U21: 2.3 | V21: 3.17 | W21: 1 | X21: 16 | Y21: 10 | Z21: 300 | AA21: 33 | AB21: 0.7 | AC21: (NULL) | AD21: (NULL) | AE21: (NULL) | AF21: 0.016 | AG21: (NULL) | AH21: (NULL) | AI21: 0.011 | AJ21: 0.49 | AK21: 2.9 | AL21: 1.1 | AM21: 0.9 | AN21: 6.1 | AO21: 7 | AP21: 0.444 | AQ21: 0.41 | AR21: 0.464 | AS21: 0.797 | AT21: 0.35 | AU21: 1.08 | AV21: 0.066 | AW21: 0.032 | AX21: 0.0911 | AY21: 12.5 | AZ21: 10 | BA21: 0.01 | BB21: 1.2 | BC21: 0.7 | BD21: 85 | BE21: 0.8 | BF21: 85 | BG21: 25 | BH21: 2.5 | BI21: 25 | BJ21: 0.01 | BK21: 1.77 | BL21: N | BM21: 0.85 | BN21: (NULL) | BO21: 1155 | BP21: 0.41 | BQ21: Y | BR21: http://www.ti.com/lit/ds/symlink/csd16412q5a.pdf | BS21: (NULL) | BT21: 1.4 | BU21: 3.4 | BV21: 12 | BW21: 0.7 | BX21: 1.4 | BY21: (NULL) | BZ21: SON5X6 | CA21: (NULL) | CB21: (NULL) | CC21: 41033 | CD21: 42577 | CE21: 2492 | CF21: 0.24
A22: CSD16413Q5A | B22: 146 | C22: Y | D22: Y | E22: WB_MOSFET_N_D56789G4S123 | F22: TRANS_NexFET_Q5A | G22: Updated by PJ HotSwap disabled by HC | H22: N | I22: 1 | J22: 0 | K22: 1 | L22: 25 | M22: 16 | N22: 100 | O22: 156 | P22: 150 | Q22: 3.125 | R22: 50 | S22: 2.6 | T22: 1.2 | U22: 1.9 | V22: 2.84 | W22: 1 | X22: 28 | Y22: 24 | Z22: 300 | AA22: 95 | AB22: 0.9 | AC22: (NULL) | AD22: (NULL) | AE22: (NULL) | AF22: 0.0056 | AG22: (NULL) | AH22: (NULL) | AI22: 0.0039 | AJ22: 0.399 | AK22: 9 | AL22: 6.2 | AM22: 2.2 | AN22: 18.9 | AO22: 21 | AP22: 1.442 | AQ22: 1.37 | AR22: 1.524 | AS22: 2.61 | AT22: 1.06 | AU22: 3.57 | AV22: 0.2 | AW22: 0.084 | AX22: 0.302 | AY22: 12.5 | AZ22: 10 | BA22: 0.01 | BB22: 3 | BC22: 0.47 | BD22: 180 | BE22: 0.65 | BF22: 180 | BG22: 25 | BH22: 3.9 | BI22: 25 | BJ22: 0.01 | BK22: 0.59 | BL22: N | BM22: 0.85 | BN22: (NULL) | BO22: 1155 | BP22: 1.78 | BQ22: Y | BR22: http://www.ti.com/lit/ds/symlink/csd16413q5a.pdf | BS22: (NULL) | BT22: 1.8 | BU22: 2.9 | BV22: 32 | BW22: 2.5 | BX22: 3.5 | BY22: (NULL) | BZ22: SON5X6 | CA22: (NULL) | CB22: (NULL) | CC22: 41033 | CD22: 42577 | CE22: 2493 | CF22: 0.41
A23: CSD16414Q5 | B23: 146 | C23: Y | D23: Y | E23: WB_MOSFET_N_D56789G4S123 | F23: TRANS_NexFET_Q5 | G23: Updated by PJ Added by Jonathan | H23: N | I23: 1 | J23: 0 | K23: 1 | L23: 25 | M23: 16 | N23: 100 | O23: 213 | P23: 150 | Q23: 3.125 | R23: 50 | S23: 1.1 | T23: 1.3 | U23: 2 | V23: 3.02 | W23: 1 | X23: 35 | Y23: 30 | Z23: 300 | AA23: 138 | AB23: 1.4 | AC23: (NULL) | AD23: (NULL) | AE23: (NULL) | AF23: 0.0026 | AG23: (NULL) | AH23: (NULL) | AI23: 0.0019 | AJ23: 0.46 | AK23: 16.6 | AL23: 6 | AM23: 4.5 | AN23: 35 | AO23: 40 | AP23: 2.88 | AQ23: 2.81 | AR23: 3.03 | AS23: 4.75 | AT23: 2.04 | AU23: 6.53 | AV23: 0.395 | AW23: 0.14 | AX23: 0.586 | AY23: 12.5 | AZ23: 10 | BA23: 0.01 | BB23: 5 | BC23: 0.4 | BD23: 200 | BE23: 1 | BF23: 200 | BG23: 25 | BH23: 8 | BI23: 25 | BJ23: 0.01 | BK23: 0.3 | BL23: N | BM23: 0.81 | BN23: (NULL) | BO23: 1346 | BP23: 2.4 | BQ23: Y | BR23: http://www.ti.com/lit/ds/symlink/csd16414q5.pdf | BS23: (NULL) | BT23: 2.8 | BU23: 3 | BV23: 44 | BW23: 4.4 | BX23: 7.3 | BY23: (NULL) | BZ23: SON5X6 | CA23: (NULL) | CB23: (NULL) | CC23: 40764 | CD23: 42577 | CE23: 2494 | CF23: 0.64
A24: CSD16415Q5 | B24: 146 | C24: Y | D24: Y | E24: WB_MOSFET_N_D56789G4S123 | F24: TRANS_NexFET_Q5 | G24: Updated by PJ HotSwap disabled by HC | H24: N | I24: 1 | J24: 0 | K24: 1 | L24: 25 | M24: 16 | N24: 100 | O24: 200 | P24: 150 | Q24: 3.125 | R24: 50 | S24: 1.1 | T24: 1.2 | U24: 1.9 | V24: 2.92 | W24: 1 | X24: 45 | Y24: 40 | Z24: 300 | AA24: 168 | AB24: 1.2 | AC24: (NULL) | AD24: (NULL) | AE24: (NULL) | AF24: 0.0018 | AG24: (NULL) | AH24: (NULL) | AI24: 0.0011 | AJ24: 0.47 | AK24: 21 | AL24: 6.5 | AM24: 4.8 | AN24: 43.5 | AO24: 55 | AP24: 3.42 | AQ24: 3.15 | AR24: 3.58 | AS24: 5.93 | AT24: 2.53 | AU24: 8.04 | AV24: 0.459 | AW24: 0.175 | AX24: 0.682 | AY24: 12.5 | AZ24: 10 | BA24: 0.1 | BB24: 60.89 | BC24: 0.65 | BD24: 400 | BE24: 1.38 | BF24: 400 | BG24: 25 | BH24: 6.47 | BI24: 25 | BJ24: 0.1 | BK24: 0.24 | BL24: N | BM24: 0.85 | BN24: (NULL) | BO24: 1155 | BP24: 8.3 | BQ24: Y | BR24: http://www.ti.com/lit/ds/symlink/csd16415q5.pdf | BS24: (NULL) | BT24: 2.4 | BU24: 3 | BV24: 72 | BW24: 5.2 | BX24: 8.3 | BY24: (NULL) | BZ24: SON5X6 | CA24: (NULL) | CB24: (NULL) | CC24: 41030 | CD24: 42577 | CE24: 2495 | CF24: 0.8
A25: CSD16556Q5B | B25: 146 | C25: Y | D25: Y | E25: WB_MOSFET_N_D56789G4S123 | F25: TRANS_NexFET_Q5B | G25: Updated by PJ Added by Steven | H25: N | I25: 1 | J25: 0 | K25: 1 | L25: 25 | M25: 20 | N25: 100 | O25: 400 | P25: 150 | Q25: 3.125 | R25: 50 | S25: 1.1 | T25: 1.2 | U25: 1.7 | V25: 2.5 | W25: 1 | X25: 41 | Y25: 30 | Z25: 300 | AA25: 191 | AB25: 0.7 | AC25: (NULL) | AD25: (NULL) | AE25: (NULL) | AF25: 0.0015 | AG25: (NULL) | AH25: (NULL) | AI25: 0.001 | AJ25: 0.65 | AK25: 36 | AL25: 18 | AM25: 7 | AN25: 76 | AO25: 45 | AP25: 5.3 | AQ25: 4.75 | AR25: 5.62 | AS25: 6.85 | AT25: 2.27 | AU25: 8.9 | AV25: 0.759 | AW25: 0.22 | AX25: 1.04 | AY25: 12.5 | AZ25: 10 | BA25: 0.1 | BB25: 56.64 | BC25: 0.55 | BD25: 311 | BE25: 1.33 | BF25: 311 | BG25: 25 | BH25: 2.59 | BI25: 25 | BJ25: 0.1 | BK25: 0.13 | BL25: N | BM25: 0.8 | BN25: (NULL) | BO25: 1345 | BP25: 4.99 | BQ25: Y | BR25: http://www.ti.com/lit/ds/symlink/csd16556q5b.pdf | BS25: (NULL) | BT25: 1.4 | BU25: 2.8 | BV25: 84 | BW25: 12 | BX25: 11 | BY25: (NULL) | BZ25: SON5X6 | CA25: (NULL) | CB25: (NULL) | CC25: 41503 | CD25: 42577 | CE25: 2496 | CF25: 0.75
A26: CSD17301Q5A | B26: 146 | C26: Y | D26: Y | E26: WB_MOSFET_N_D56789G4S123 | F26: TRANS_NexFET_Q5A | G26: Updated by PJ Added by Jonathan | H26: N | I26: 1 | J26: 0 | K26: 1 | L26: 30 | M26: 10 | N26: 100 | O26: 181 | P26: 150 | Q26: 3.125 | R26: 50 | S26: 2.2 | T26: 0.9 | U26: 1.55 | V26: 2.26 | W26: 1 | X26: 33 | Y26: 25 | Z26: 300 | AA26: 149 | AB26: 1.3 | AC26: (NULL) | AD26: (NULL) | AE26: 0.0037 | AF26: 0.003 | AG26: (NULL) | AH26: 0.0026 | AI26: (NULL) | AJ26: 0.61 | AK26: 19 | AL26: 11 | AM26: 2.9 | AN26: 4.03 | AO26: 35 | AP26: 2.87 | AQ26: 2.66 | AR26: 3.18 | AS26: 4.31 | AT26: 1.42 | AU26: 6.14 | AV26: 0.301 | AW26: 0.08 | AX26: 0.659 | AY26: 15 | AZ26: 10 | BA26: 0.01 | BB26: 4.7 | BC26: 0.5 | BD26: 180 | BE26: 0.9 | BF26: 180 | BG26: 25 | BH26: 5.7 | BI26: 25 | BJ26: 0.01 | BK26: 0.25 | BL26: N | BM26: 0.8 | BN26: (NULL) | BO26: 1155 | BP26: 3.48 | BQ26: Y | BR26: http://www.ti.com/lit/ds/symlink/csd17301q5a.pdf | BS26: (NULL) | BT26: 2.6 | BU26: 2.15 | BV26: 50 | BW26: 4.3 | BX26: 5.7 | BY26: (NULL) | BZ26: SON5X6 | CA26: (NULL) | CB26: (NULL) | CC26: 40763 | CD26: 42577 | CE26: 2498 | CF26: 0.51
A27: CSD17302Q5A | B27: 146 | C27: Y | D27: Y | E27: WB_MOSFET_N_D56789G4S123 | F27: TRANS_NexFET_Q5A | G27: Updated by PJ Added by Amod | H27: N | I27: 1 | J27: 0 | K27: 1 | L27: 30 | M27: 10 | N27: 87 | O27: 104 | P27: 150 | Q27: 3.125 | R27: 50 | S27: 1.8 | T27: 0.9 | U27: 1.7 | V27: 2.28 | W27: 1 | X27: 17.5 | Y27: 14 | Z27: 300 | AA27: 68 | AB27: 0.8 | AC27: (NULL) | AD27: (NULL) | AE27: 0.0128 | AF27: 0.009 | AG27: (NULL) | AH27: 0.0079 | AI27: (NULL) | AJ27: 0.56 | AK27: 5.4 | AL27: 3 | AM27: 0.9 | AN27: 11.2 | AO27: 9.5 | AP27: 0.784 | AQ27: 0.73 | AR27: 0.871 | AS27: 1.17 | AT27: 0.39 | AU27: 1.64 | AV27: 0.0998 | AW27: 0.035 | AX27: 0.181 | AY27: 15 | AZ27: 10 | BA27: 0.01 | BB27: 1.2 | BC27: 0.8 | BD27: 90 | BE27: 25 | BF27: 2.3 | BG27: 25 | BH27: 0.1 | BI27: 25 | BJ27: 0.01 | BK27: 0.92 | BL27: N | BM27: 0.85 | BN27: (NULL) | BO27: 1155 | BP27: 0.95 | BQ27: Y | BR27: http://www.ti.com/lit/ds/symlink/csd17302q5a.pdf | BS27: (NULL) | BT27: 1.6 | BU27: 2.2 | BV27: 15.4 | BW27: 1.2 | BX27: 1.7 | BY27: (NULL) | BZ27: SON5X6 | CA27: (NULL) | CB27: (NULL) | CC27: 40777 | CD27: 42577 | CE27: 2499 | CF27: 0.29
A28: CSD17303Q5 | B28: 146 | C28: Y | D28: Y | E28: WB_MOSFET_N_D56789G4S123 | F28: TRANS_NexFET_Q5 | G28: PJ added new params from PL;Added by Jonathan | H28: N | I28: 1 | J28: 0 | K28: 1 | L28: 30 | M28: 10 | N28: 100 | O28: 200 | P28: 150 | Q28: 3.125 | R28: 50 | S28: 1.1 | T28: 0.9 | U28: 1.6 | V28: 2.29 | W28: 1 | X28: 33 | Y28: 25 | Z28: 300 | AA28: 114 | AB28: 1.4 | AC28: (NULL) | AD28: (NULL) | AE28: 0.0037 | AF28: 0.0026 | AG28: (NULL) | AH28: 0.0024 | AI28: (NULL) | AJ28: 0.43 | AK28: 18 | AL28: 11 | AM28: 3 | AN28: 39 | AO28: 34 | AP28: 2.83 | AQ28: 2.63 | AR28: 3.12 | AS28: 4.32 | AT28: 1.44 | AU28: 6.12 | AV28: 0.295 | AW28: 0.083 | AX28: 0.598 | AY28: 15 | AZ28: 10 | BA28: 0.01 | BB28: 4.5 | BC28: 0.5 | BD28: 180 | BE28: 1 | BF28: 180 | BG28: 30 | BH28: 6 | BI28: 30 | BJ28: 0.01 | BK28: 0.27 | BL28: N | BM28: 0.8 | BN28: (NULL) | BO28: 1155 | BP28: 3.42 | BQ28: Y | BR28: http://www.ti.com/lit/ds/symlink/csd17303q5.pdf | BS28: (NULL) | BT28: 2.8 | BU28: 2.3 | BV28: 50 | BW28: 4 | BX28: 5.6 | BY28: (NULL) | BZ28: SON5X6 | CA28: (NULL) | CB28: (NULL) | CC28: 40763 | CD28: 42564 | CE28: 2012 | CF28: 0.56
A29: CSD17304Q3 | B29: 146 | C29: Y | D29: Y | E29: WB_MOSFET_N_D56789G4S123 | F29: DQG0008A | G29: Added by Jonathan;PJ added new params from PL;Oliver updated Thermal_Id | H29: N | I29: 1 | J29: 0 | K29: 1 | L29: 30 | M29: 10 | N29: 56 | O29: 88 | P29: 150 | Q29: 2.7777 | R29: 55 | S29: 3.9 | T29: 0.9 | U29: 1.8 | V29: 2.51 | W29: 1 | X29: 17.3 | Y29: 17 | Z29: 300 | AA29: 48 | AB29: 1.1 | AC29: (NULL) | AD29: (NULL) | AE29: 0.0126 | AF29: 0.0088 | AG29: (NULL) | AH29: 0.0075 | AI29: (NULL) | AJ29: 0.51 | AK29: 5.1 | AL29: 1.7 | AM29: 0.9 | AN29: 10.8 | AO29: 9.9 | AP29: 0.8 | AQ29: 0.735 | AR29: 0.865 | AS29: 1.3 | AT29: 0.39 | AU29: 1.76 | AV29: 0.089 | AW29: 0.029 | AX29: 0.157 | AY29: 15 | AZ29: 10 | BA29: 0.01 | BB29: 1 | BC29: 0.75 | BD29: 80 | BE29: 0.9 | BF29: 80 | BG29: 30 | BH29: 2 | BI29: 30 | BJ29: 0.01 | BK29: 0.94 | BL29: N | BM29: 0.85 | BN29: (NULL) | BO29: 1154 | BP29: 0.955 | BQ29: Y | BR29: http://www.ti.com/lit/ds/symlink/csd17304q3.pdf | BS29: (NULL) | BT29: 2.2 | BU29: 2.5 | BV29: 14.5 | BW29: 1.1 | BX29: 1.8 | BY29: (NULL) | BZ29: SON3X3 | CA29: (NULL) | CB29: (NULL) | CC29: 40742 | CD29: 42599 | CE29: 2013 | CF29: 0.25
A30: CSD17305Q5A | B30: 146 | C30: Y | D30: Y | E30: WB_MOSFET_N_D56789G4S123 | F30: TRANS_NexFET_Q5A | G30: Updated by PJ Added by Amod | H30: N | I30: 1 | J30: 0 | K30: 1 | L30: 30 | M30: 10 | N30: 100 | O30: 181 | P30: 150 | Q30: 3.125 | R30: 50 | S30: 1.3 | T30: 0.9 | U30: 1.6 | V30: 2.34 | W30: 1 | X30: 27 | Y30: 30 | Z30: 300 | AA30: 139 | AB30: 1 | AC30: (NULL) | AD30: (NULL) | AE30: 0.0054 | AF30: 0.0036 | AG30: (NULL) | AH30: 0.0034 | AI30: (NULL) | AJ30: 0.56 | AK30: 14.1 | AL30: 8.5 | AM30: 2.2 | AN30: 31 | AO30: 27 | AP30: 2.15 | AQ30: 2 | AR30: 2.36 | AS30: 3.4 | AT30: 1.1 | AU30: 4.78 | AV30: 0.246 | AW30: 0.079 | AX30: 0.497 | AY30: 15 | AZ30: 10 | BA30: 0.01 | BB30: 4 | BC30: 0.4 | BD30: 170 | BE30: 0.9 | BF30: 170 | BG30: 25 | BH30: 4.7 | BI30: 25 | BJ30: 0.01 | BK30: 0.29 | BL30: N | BM30: 0.85 | BN30: (NULL) | BO30: 1155 | BP30: 2.6 | BQ30: Y | BR30: http://www.ti.com/lit/ds/symlink/csd17305q5a.pdf | BS30: (NULL) | BT30: 2 | BU30: 2.1 | BV30: 34 | BW30: 3 | BX30: 4.5 | BY30: (NULL) | BZ30: SON5X6 | CA30: (NULL) | CB30: (NULL) | CC30: 40777 | CD30: 42577 | CE30: 2500 | CF30: 0.45
A31: CSD17306Q5A | B31: 146 | C31: Y | D31: Y | E31: WB_MOSFET_N_D56789G4S123 | F31: TRANS_NexFET_Q5A | G31: Updated by PJ Added by Amod | H31: N | I31: 1 | J31: 0 | K31: 1 | L31: 30 | M31: 10 | N31: 100 | O31: 155 | P31: 150 | Q31: 3.125 | R31: 50 | S31: 0.9 | T31: 0.9 | U31: 1.6 | V31: 2.14 | W31: 1 | X31: 25 | Y31: 25 | Z31: 300 | AA31: 105 | AB31: 1 | AC31: (NULL) | AD31: (NULL) | AE31: 0.0054 | AF31: 0.0042 | AG31: (NULL) | AH31: 0.0037 | AI31: (NULL) | AJ31: 0.53 | AK31: 11.8 | AL31: 6.7 | AM31: 1.8 | AN31: 25 | AO31: 23 | AP31: 1.78 | AQ31: 1.67 | AR31: 1.95 | AS31: 2.9 | AT31: 0.89 | AU31: 4.06 | AV31: 0.203 | AW31: 0.056 | AX31: 0.4 | AY31: 15 | AZ31: 10 | BA31: 0.01 | BB31: 2.2 | BC31: 0.5 | BD31: 140 | BE31: 2.1 | BF31: 140 | BG31: 25 | BH31: 9 | BI31: 25 | BJ31: 0.01 | BK31: 0.41 | BL31: N | BM31: 0.85 | BN31: (NULL) | BO31: 1155 | BP31: 2.17 | BQ31: Y | BR31: http://www.ti.com/lit/ds/symlink/csd17306q5a.pdf | BS31: (NULL) | BT31: 2 | BU31: 2.05 | BV31: 27 | BW31: 2.4 | BX31: 3.5 | BY31: (NULL) | BZ31: SON5X6 | CA31: (NULL) | CB31: (NULL) | CC31: 40777 | CD31: 42577 | CE31: 2501 | CF31: 0.39
A32: CSD17307Q5A | B32: 146 | C32: Y | D32: Y | E32: WB_MOSFET_N_D56789G4S123 | F32: TRANS_NexFET_Q5A | G32: Updated by PJ Added by Amod | H32: N | I32: 1 | J32: 0 | K32: 1 | L32: 30 | M32: 10 | N32: 73 | O32: 92 | P32: 150 | Q32: 3.125 | R32: 50 | S32: 1.9 | T32: 0.9 | U32: 1.8 | V32: 2.34 | W32: 1 | X32: 16 | Y32: 11 | Z32: 300 | AA32: 66 | AB32: 0.9 | AC32: (NULL) | AD32: (NULL) | AE32: 0.0173 | AF32: 0.0121 | AG32: (NULL) | AH32: 0.0105 | AI32: (NULL) | AJ32: 0.57 | AK32: 4 | AL32: 2.3 | AM32: 0.65 | AN32: 8.25 | AO32: 7.3 | AP32: 0.577 | AQ32: 0.535 | AR32: 0.638 | AS32: 0.89 | AT32: 0.29 | AU32: 1.25 | AV32: 0.0783 | AW32: 0.028 | AX32: 0.146 | AY32: 15 | AZ32: 10 | BA32: 0.01 | BB32: 0.9 | BC32: 0.7 | BD32: 8 | BE32: 0.8 | BF32: 80 | BG32: 25 | BH32: 2 | BI32: 25 | BJ32: 0.01 | BK32: 1.27 | BL32: N | BM32: 0.85 | BN32: (NULL) | BO32: 1155 | BP32: 0.7 | BQ32: Y | BR32: http://www.ti.com/lit/ds/symlink/csd17307q5a.pdf | BS32: (NULL) | BT32: 1.8 | BU32: 2.3 | BV32: 13 | BW32: 1 | BX32: 1.3 | BY32: (NULL) | BZ32: SON5X6 | CA32: (NULL) | CB32: (NULL) | CC32: 40777 | CD32: 42577 | CE32: 2502 | CF32: 0.2
A33: CSD17308Q3 | B33: 146 | C33: Y | D33: Y | E33: WB_MOSFET_N_D56789G4S123 | F33: DQG0008A | G33: Added by Amod; PJ added new params from PL; Oliver updated Thermal_Id | H33: N | I33: 1 | J33: 0 | K33: 1 | L33: 30 | M33: 10 | N33: 50 | O33: 167 | P33: 150 | Q33: 2.7777 | R33: 55 | S33: 4.5 | T33: 0.9 | U33: 1.8 | V33: 2.35 | W33: 1 | X33: 14.3 | Y33: 10 | Z33: 300 | AA33: 37 | AB33: 0.9 | AC33: (NULL) | AD33: (NULL) | AE33: 0.0165 | AF33: 0.0118 | AG33: (NULL) | AH33: 0.0103 | AI33: (NULL) | AJ33: 0.41 | AK33: 3.9 | AL33: 2.25 | AM33: 0.7 | AN33: 8.18 | AO33: 7.4 | AP33: 0.59 | AQ33: 0.54 | AR33: 0.634 | AS33: 0.924 | AT33: 0.28 | AU33: 1.28 | AV33: 0.0748 | AW33: 0.027 | AX33: 0.135 | AY33: 15 | AZ33: 10 | BA33: 0.1 | BB33: 6.85 | BC33: 0.81 | BD33: 55.8 | BE33: 2.04 | BF33: 55.8 | BG33: 30 | BH33: 1.3 | BI33: 30 | BJ33: 0.1 | BK33: 1.3 | BL33: N | BM33: 0.85 | BN33: (NULL) | BO33: 1154 | BP33: 0.7 | BQ33: Y | BR33: http://www.ti.com/lit/ds/symlink/csd17308q3.pdf | BS33: (NULL) | BT33: 1.8 | BU33: 2.3 | BV33: 9.3 | BW33: 0.8 | BX33: 1.3 | BY33: (NULL) | BZ33: SON3X3 | CA33: (NULL) | CB33: (NULL) | CC33: 40777 | CD33: 42599 | CE33: 2017 | CF33: 0.22
A34: CSD17309Q3 | B34: 146 | C34: Y | D34: Y | E34: WB_MOSFET_N_D56789G4S123 | F34: DQG0008A | G34: Added by Jonathan;PJ added new params from PL;Oliver updated Thermal_Id | H34: N | I34: 1 | J34: 0 | K34: 1 | L34: 30 | M34: 10 | N34: 60 | O34: 112 | P34: 150 | Q34: 2.7777 | R34: 55 | S34: 2 | T34: 0.9 | U34: 1.7 | V34: 2.47 | W34: 1 | X34: 23 | Y34: 18 | Z34: 300 | AA34: 67 | AB34: 1.2 | AC34: (NULL) | AD34: (NULL) | AE34: 0.0085 | AF34: 0.0063 | AG34: (NULL) | AH34: 0.0054 | AI34: (NULL) | AJ34: 0.39 | AK34: 7.5 | AL34: 4.5 | AM34: 1.3 | AN34: 16.4 | AO34: 15 | AP34: 1.19 | AQ34: 1.15 | AR34: 1.3 | AS34: 1.95 | AT34: 0.58 | AU34: 2.71 | AV34: 0.143 | AW34: 0.043 | AX34: 0.278 | AY34: 15 | AZ34: 10 | BA34: 0.01 | BB34: 1.7 | BC34: 0.5 | BD34: 100 | BE34: 0.9 | BF34: 100 | BG34: 30 | BH34: 2.7 | BI34: 30 | BJ34: 0.01 | BK34: 0.625 | BL34: N | BM34: 0.85 | BN34: (NULL) | BO34: 1154 | BP34: 1.44 | BQ34: Y | BR34: http://www.ti.com/lit/ds/symlink/csd17309q3.pdf | BS34: (NULL) | BT34: 2.4 | BU34: 2.2 | BV34: 30 | BW34: 1.7 | BX34: 2.5 | BY34: (NULL) | BZ34: SON3X3 | CA34: (NULL) | CB34: (NULL) | CC34: 40743 | CD34: 42599 | CE34: 2018 | CF34: 0.33
A35: CSD17310Q5A | B35: 146 | C35: Y | D35: Y | E35: WB_MOSFET_N_D56789G4S123 | F35: TRANS_NexFET_Q5A | G35: Updated by PJ Added by Jonathan | H35: N | I35: 1 | J35: 0 | K35: 1 | L35: 30 | M35: 10 | N35: 100 | O35: 134 | P35: 150 | Q35: 3.125 | R35: 50 | S35: 1.9 | T35: 0.9 | U35: 1.8 | V35: 2.23 | W35: 1 | X35: 22 | Y35: 20 | Z35: 300 | AA35: 85 | AB35: 0.9 | AC35: (NULL) | AD35: (NULL) | AE35: 0.0078 | AF35: 0.0059 | AG35: (NULL) | AH35: 0.0051 | AI35: (NULL) | AJ35: 0.4 | AK35: 8.9 | AL35: 5.25 | AM35: 1.4 | AN35: 19.6 | AO35: 15.9 | AP35: 1.32 | AQ35: 1.2 | AR35: 1.46 | AS35: 1.98 | AT35: 0.63 | AU35: 2.81 | AV35: 0.171 | AW35: 0.059 | AX35: 0.339 | AY35: 15 | AZ35: 10 | BA35: 0.01 | BB35: 1.9 | BC35: 0.6 | BD35: 105 | BE35: 0.9 | BF35: 105 | BG35: 25 | BH35: 3 | BI35: 25 | BJ35: 0.01 | BK35: 0.52 | BL35: N | BM35: 0.85 | BN35: (NULL) | BO35: 1155 | BP35: 1.53 | BQ35: Y | BR35: http://www.ti.com/lit/ds/symlink/csd17310q5a.pdf | BS35: (NULL) | BT35: 1.8 | BU35: 2.1 | BV35: 21 | BW35: 2.1 | BX35: 2.7 | BY35: (NULL) | BZ35: SON5X6 | CA35: (NULL) | CB35: (NULL) | CC35: 40744 | CD35: 42577 | CE35: 2503 | CF35: 0.28
A36: CSD17311Q5 | B36: 146 | C36: Y | D36: Y | E36: WB_MOSFET_N_D56789G4S123 | F36: TRANS_NexFET_Q5 | G36: PJ added new params from PL;Added by Jonathan | H36: N | I36: 1 | J36: 0 | K36: 1 | L36: 30 | M36: 10 | N36: 100 | O36: 200 | P36: 150 | Q36: 3.125 | R36: 50 | S36: 1 | T36: 0.9 | U36: 1.6 | V36: 2.11 | W36: 1 | X36: 39 | Y36: 30 | Z36: 300 | AA36: 200 | AB36: 1.2 | AC36: (NULL) | AD36: (NULL) | AE36: 0.0031 | AF36: 0.0023 | AG36: (NULL) | AH36: 0.002 | AI36: (NULL) | AJ36: 0.599 | AK36: 24 | AL36: 14 | AM36: 3.9 | AN36: 51 | AO36: 47 | AP36: 3.5 | AQ36: 3.29 | AR36: 3.9 | AS36: 5.85 | AT36: 1.74 | AU36: 8.32 | AV36: 0.3 | AW36: 0.085 | AX36: 0.792 | AY36: 15 | AZ36: 10 | BA36: 0.01 | BB36: 4.5 | BC36: 0.35 | BD36: 180 | BE36: 0.95 | BF36: 180 | BG36: 30 | BH36: 5.5 | BI36: 30 | BJ36: 0.01 | BK36: 0.21 | BL36: N | BM36: 0.85 | BN36: (NULL) | BO36: 1155 | BP36: 4.28 | BQ36: Y | BR36: http://www.ti.com/lit/ds/symlink/csd17311q5.pdf | BS36: (NULL) | BT36: 2.4 | BU36: 2.1 | BV36: 74 | BW36: 5.2 | BX36: 6.6 | BY36: (NULL) | BZ36: SON5X6 | CA36: (NULL) | CB36: (NULL) | CC36: 40764 | CD36: 42564 | CE36: 2020 | CF36: 0.64
A37: CSD17312Q5 | B37: 146 | C37: Y | D37: Y | E37: WB_MOSFET_N_D56789G4S123 | F37: TRANS_NexFET_Q5 | G37: PJ added new params from PL;Added by Amod Jaz: hotswap | H37: N | I37: 1 | J37: 0 | K37: 1 | L37: 30 | M37: 10 | N37: 100 | O37: 200 | P37: 150 | Q37: 3.125 | R37: 50 | S37: 1 | T37: 0.9 | U37: 1.5 | V37: 2.25 | W37: 1 | X37: 43 | Y37: 35 | Z37: 300 | AA37: 200 | AB37: 1.1 | AC37: (NULL) | AD37: (NULL) | AE37: 0.0024 | AF37: 0.0027 | AG37: (NULL) | AH37: 0.0015 | AI37: (NULL) | AJ37: 0.599 | AK37: 28 | AL37: 16 | AM37: 4.4 | AN37: 61 | AO37: 57 | AP37: 4.32 | AQ37: 4.05 | AR37: 4.7 | AS37: 7.18 | AT37: 2.22 | AU37: 10.1 | AV37: 0.375 | AW37: 0.093 | AX37: 0.9 | AY37: 15 | AZ37: 10 | BA37: 0.01 | BB37: 5 | BC37: 0.4 | BD37: 200 | BE37: 1.1 | BF37: 200 | BG37: 30 | BH37: 7 | BI37: 30 | BJ37: 0.01 | BK37: 0.17 | BL37: N | BM37: 0.8 | BN37: (NULL) | BO37: 1155 | BP37: 5.24 | BQ37: Y | BR37: http://www.ti.com/lit/ds/symlink/csd17312q5.pdf | BS37: (NULL) | BT37: 2.2 | BU37: 2.3 | BV37: 88 | BW37: 6 | BX37: 8.4 | BY37: (NULL) | BZ37: SON5X6 | CA37: (NULL) | CB37: (NULL) | CC37: 41033 | CD37: 42564 | CE37: 2021 | CF37: 0.73
A38: CSD17313Q2 | B38: 146 | C38: Y | D38: Y | E38: WB_MOSFET_N_D12568G3S47 | F38: DQK0006C | G38: Added by Jonathan; Oliver updated Thermal_Id | H38: N | I38: 1 | J38: 0 | K38: 1 | L38: 30 | M38: 10 | N38: 5 | O38: 57 | P38: 150 | Q38: 2.4 | R38: 67 | S38: 7.4 | T38: 0.9 | U38: 1.8 | V38: 2.2 | W38: 1 | X38: 12.9 | Y38: 4 | Z38: 300 | AA38: 16 | AB38: 1.3 | AC38: (NULL) | AD38: (NULL) | AE38: 0.042 | AF38: 0.032 | AG38: (NULL) | AH38: 0.03 | AI38: (NULL) | AJ38: 0.48 | AK38: 2.1 | AL38: 1.25 | AM38: 0.3 | AN38: 3.5 | AO38: 3.8 | AP38: 0.29 | AQ38: 0.27 | AR38: 0.31 | AS38: 0.48 | AT38: 0.14 | AU38: 0.58 | AV38: 0.045 | AW38: 0.0135 | AX38: 0.068 | AY38: 15 | AZ38: 10 | BA38: 0.1 | BB38: 2.4 | BC38: 1 | BD38: 22 | BE38: 6 | BF38: 6.5 | BG38: 10 | BH38: 3.7 | BI38: 30 | BJ38: 0.1 | BK38: (NULL) | BL38: N | BM38: 0.85 | BN38: (NULL) | BO38: 1156 | BP38: 0.242 | BQ38: Y | BR38: http://www.ti.com/lit/ds/symlink/csd17313q2.pdf | BS38: (NULL) | BT38: 2.6 | BU38: 2.1 | BV38: 6.4 | BW38: 0.4 | BX38: 0.7 | BY38: (NULL) | BZ38: SON2X2 | CA38: N | CB38: (NULL) | CC38: 40742 | CD38: 42598 | CE38: 2617 | CF38: 0.13
A39: CSD17318Q2 | B39: 146 | C39: N | D39: Y | E39: (NULL) | F39: DQK0006C | G39: JW | H39: N | I39: 1 | J39: 0 | K39: 1 | L39: 30 | M39: 10 | N39: 21.5 | O39: 68 | P39: 150 | Q39: 2.5 | R39: 65 | S39: 7.9 | T39: 0.6 | U39: 1.2 | V39: 1.84 | W39: 1 | X39: 12 | Y39: 8 | Z39: 300 | AA39: 42 | AB39: 1 | AC39: (NULL) | AD39: 0.03 | AE39: (NULL) | AF39: 0.0169 | AG39: (NULL) | AH39: 0.0151 | AI39: (NULL) | AJ39: 0.65 | AK39: 6 | AL39: 3.25 | AM39: 0.7 | AN39: 10 | AO39: 2.7 | AP39: 0.743 | AQ39: 0.643 | AR39: 0.862 | AS39: 0.352 | AT39: 0.0694 | AU39: 0.77 | AV39: 0.125 | AW39: 0.0357 | AX39: 0.244 | AY39: 15 | AZ39: 10 | BA39: 0.1 | BK39: (NULL) | BL39: N | BM39: 0.8 | BN39: (NULL) | BO39: 1156 | BP39: (NULL) | BQ39: Y | BR39: http://www.ti.com/lit/ds/symlink/csd17318q2.pdf | BS39: (NULL) | BT39: 2 | BU39: 1.9 | BV39: 2.9 | BW39: 1.3 | BX39: 1.5 | BY39: (NULL) | BZ39: SON2X2 | CA39: N | CB39: (NULL) | CC39: 43724 | CD39: 42598 | CE39: 2617 | CF39: 0.11
A40: CSD17322Q5A | B40: 146 | C40: Y | D40: Y | E40: WB_MOSFET_N_D56789G4S123 | F40: TRANS_NexFET_Q5A | G40: Updated by PJ Added by Amod | H40: N | I40: 1 | J40: 0 | K40: 1 | L40: 30 | M40: 10 | N40: 87 | O40: 104 | P40: 150 | Q40: 3.125 | R40: 50 | S40: 1.8 | T40: 1.1 | U40: 2 | V40: 3.2 | W40: 1 | X40: 17.8 | Y40: 14 | Z40: 300 | AA40: 37 | AB40: 4.7 | AC40: (NULL) | AD40: (NULL) | AE40: (NULL) | AF40: 0.0124 | AG40: (NULL) | AH40: 0.0088 | AI40: (NULL) | AJ40: 0.5 | AK40: 3.6 | AL40: 1.3 | AM40: 0.9 | AN40: 7.6 | AO40: 8.6 | AP40: 0.817 | AQ40: 0.58 | AR40: 0.866 | AS40: 1.2 | AT40: 0.39 | AU40: 1.64 | AV40: 0.105 | AW40: 0.035 | AX40: 0.168 | AY40: 15 | AZ40: 10 | BA40: 0.01 | BB40: 1.2 | BC40: 0.6 | BD40: 90 | BE40: 0.9 | BF40: 90 | BG40: 30 | BH40: 2 | BI40: 30 | BJ40: 0.01 | BK40: 0.36 | BL40: N | BM40: 0.85 | BN40: (NULL) | BO40: 1155 | BP40: 0.695 | BQ40: Y | BR40: http://www.ti.com/lit/ds/symlink/csd17322q5a.pdf | BS40: (NULL) | BT40: 4.7 | BU40: 3.1 | BV40: 19.6 | BW40: 1.1 | BX40: 1.6 | BY40: (NULL) | BZ40: SON5X6 | CA40: (NULL) | CB40: (NULL) | CC40: 40778 | CD40: 42577 | CE40: 2505 | CF40: 0.3
A41: CSD17327Q5A | B41: 146 | C41: Y | D41: Y | E41: WB_MOSFET_N_D56789G4S123 | F41: TRANS_NexFET_Q5A | G41: Updated by PJ Added by Amod | H41: N | I41: 1 | J41: 0 | K41: 1 | L41: 30 | M41: 10 | N41: 65 | O41: 85 | P41: 150 | Q41: 3.125 | R41: 50 | S41: 1.9 | T41: 1.1 | U41: 2 | V41: 3 | W41: 1 | X41: 14.6 | Y41: 11 | Z41: 300 | AA41: 44 | AB41: 4.7 | AC41: (NULL) | AD41: (NULL) | AE41: (NULL) | AF41: 0.0155 | AG41: (NULL) | AH41: 0.0122 | AI41: (NULL) | AJ41: 0.48 | AK41: 2.8 | AL41: 1 | AM41: 0.6 | AN41: 5.7 | AO41: 6.8 | AP41: 0.43 | AQ41: 0.422 | AR41: 0.48 | AS41: 0.9 | AT41: 0.286 | AU41: 1.5 | AV41: 0.07 | AW41: 0.026 | AX41: 0.095 | AY41: 15 | AZ41: 10 | BA41: 0.01 | BB41: 0.8 | BC41: 0.5 | BD41: 40 | BE41: 30 | BF41: 0.7 | BG41: 30 | BH41: 0.01 | BI41: 30 | BJ41: 0.01 | BK41: 1.75 | BL41: N | BM41: 0.85 | BN41: (NULL) | BO41: 1155 | BP41: 0.506 | BQ41: Y | BR41: http://www.ti.com/lit/ds/symlink/csd17327q5a.pdf | BS41: (NULL) | BT41: 4.7 | BU41: 3 | BV41: 10.5 | BW41: 0.8 | BX41: 1.2 | BY41: (NULL) | BZ41: SON5X6 | CA41: (NULL) | CB41: (NULL) | CC41: 40778 | CD41: 42577 | CE41: 2506 | CF41: 0.28
A42: CSD17501Q5A | B42: 146 | C42: Y | D42: Y | E42: (NULL) | F42: (NULL) | G42: JW | H42: N | I42: 1 | J42: 0 | K42: 1 | L42: 30 | M42: 20 | N42: 100 | O42: 187 | P42: 150 | Q42: 3.2 | R42: 49 | S42: 1 | T42: 1 | U42: 1.8 | V42: 2.9 | W42: 1 | X42: 32 | Y42: 25 | Z42: 300 | AA42: 110 | AB42: 1.3 | AC42: (NULL) | AD42: (NULL) | AE42: (NULL) | AF42: 0.0037 | AG42: (NULL) | AH42: (NULL) | AI42: 0.0029 | AJ42: 0.45 | AK42: 13.2 | AL42: 5 | AM42: 2.9 | AN42: 28 | AO42: 35 | AP42: (NULL) | AQ42: 2.04 | AR42: (NULL) | AS42: (NULL) | AT42: 1.35 | AU42: (NULL) | AV42: (NULL) | AW42: 0.066 | AX42: (NULL) | AY42: 15 | AZ42: (NULL) | BA42: (NULL) | BB42: (NULL) | BC42: (NULL) | BD42: (NULL) | BE42: (NULL) | BF42: (NULL) | BG42: (NULL) | BH42: (NULL) | BI42: (NULL) | BJ42: (NULL) | BK42: (NULL) | BL42: N | BM42: 0.8 | BN42: (NULL) | BO42: 1155 | BP42: (NULL) | BQ42: Y | BR42: http://www.ti.com/lit/ds/symlink/csd17501q5a.pdf | BS42: (NULL) | BT42: 2.6 | BU42: 2.5 | BV42: 46 | BW42: 3.5 | BX42: 5.4 | BY42: (NULL) | BZ42: SON5x6 | CA42: (NULL) | CB42: (NULL) | CC42: (NULL) | CD42: (NULL) | CE42: (NULL) | CF42: 0.6
A43: CSD17505Q5A | B43: 146 | C43: Y | D43: Y | E43: (NULL) | F43: (NULL) | G43: JW | H43: N | I43: 1 | J43: 0 | K43: 1 | L43: 30 | M43: 20 | N43: 100 | O43: 153 | P43: 150 | Q43: 3.2 | R43: 50 | S43: 1.3 | T43: 1 | U43: 1.8 | V43: 2.5 | W43: 1 | X43: 28 | Y43: 20 | Z43: 300 | AA43: 82 | AB43: 1 | AC43: (NULL) | AD43: (NULL) | AE43: (NULL) | AF43: 0.0046 | AG43: (NULL) | AH43: (NULL) | AI43: 0.0035 | AJ43: 0.5 | AK43: 10 | AL43: 3 | AM43: 1.9 | AN43: 22 | AO43: 26 | AP43: (NULL) | AQ43: 1.56 | AR43: (NULL) | AS43: (NULL) | AT43: 1.03 | AU43: (NULL) | AV43: (NULL) | AW43: 0.065 | AX43: (NULL) | AY43: 15 | AZ43: (NULL) | BA43: (NULL) | BB43: (NULL) | BC43: (NULL) | BD43: (NULL) | BE43: (NULL) | BF43: (NULL) | BG43: (NULL) | BH43: (NULL) | BI43: (NULL) | BJ43: (NULL) | BK43: (NULL) | BL43: N | BM43: 0.8 | BN43: (NULL) | BO43: 1155 | BP43: (NULL) | BQ43: Y | BR43: http://www.ti.com/lit/ds/symlink/csd17505q5a.pdf | BS43: (NULL) | BT43: 2 | BU43: 2.5 | BV43: 30 | BW43: 2.7 | BX43: 3.5 | BY43: (NULL) | BZ43: SON5x6 | CA43: (NULL) | CB43: (NULL) | CC43: (NULL) | CD43: (NULL) | CE43: (NULL) | CF43: 0.54
A44: CSD17506Q5A | B44: 146 | C44: Y | D44: Y | E44: (NULL) | F44: (NULL) | G44: JW | H44: N | I44: 1 | J44: 0 | K44: 1 | L44: 30 | M44: 20 | N44: 100 | O44: 150 | P44: 150 | Q44: 3.2 | R44: 50 | S44: 1 | T44: 1 | U44: 1.8 | V44: 2.6 | W44: 1 | X44: 27 | Y44: 20 | Z44: 300 | AA44: 76 | AB44: 1.1 | AC44: (NULL) | AD44: (NULL) | AE44: (NULL) | AF44: 0.0053 | AG44: (NULL) | AH44: (NULL) | AI44: 0.004 | AJ44: 0.45 | AK44: 8.3 | AL44: 2.5 | AM44: 1.6 | AN44: 17 | AO44: 23 | AP44: (NULL) | AQ44: 1.27 | AR44: (NULL) | AS44: (NULL) | AT44: 0.86 | AU44: (NULL) | AV44: (NULL) | AW44: 0.05 | AX44: (NULL) | AY44: 15 | AZ44: (NULL) | BA44: (NULL) | BB44: (NULL) | BC44: (NULL) | BD44: (NULL) | BE44: (NULL) | BF44: (NULL) | BG44: (NULL) | BH44: (NULL) | BI44: (NULL) | BJ44: (NULL) | BK44: (NULL) | BL44: N | BM44: 0.8 | BN44: (NULL) | BO44: 1155 | BP44: (NULL) | BQ44: Y | BR44: http://www.ti.com/lit/ds/symlink/csd17506q5a.pdf | BS44: (NULL) | BT44: 2.2 | BU44: 2.5 | BV44: 33 | BW44: 2.3 | BX44: 3.1 | BY44: (NULL) | BZ44: SON5x6 | CA44: (NULL) | CB44: (NULL) | CC44: (NULL) | CD44: (NULL) | CE44: (NULL) | CF44: 0.47
A45: CSD17507Q5A | B45: 146 | C45: Y | D45: Y | E45: (NULL) | F45: (NULL) | G45: JW | H45: N | I45: 1 | J45: 0 | K45: 1 | L45: 30 | M45: 20 | N45: 61 | O45: 163 | P45: 150 | Q45: 3.1 | R45: 50 | S45: 2.1 | T45: 1.1 | U45: 2.1 | V45: 2.8 | W45: 1 | X45: 16 | Y45: 11 | Z45: 300 | AA45: 44 | AB45: 0.7 | AC45: (NULL) | AD45: (NULL) | AE45: (NULL) | AF45: 0.0161 | AG45: (NULL) | AH45: (NULL) | AI45: 0.0108 | AJ45: 0.47 | AK45: 2.8 | AL45: 1 | AM45: 0.7 | AN45: 6 | AO45: 7.2 | AP45: (NULL) | AQ45: 0.41 | AR45: (NULL) | AS45: (NULL) | AT45: 0.27 | AU45: (NULL) | AV45: (NULL) | AW45: 0.023 | AX45: (NULL) | AY45: 15 | AZ45: (NULL) | BA45: (NULL) | BB45: (NULL) | BC45: (NULL) | BD45: (NULL) | BE45: (NULL) | BF45: (NULL) | BG45: (NULL) | BH45: (NULL) | BI45: (NULL) | BJ45: (NULL) | BK45: (NULL) | BL45: N | BM45: 0.85 | BN45: (NULL) | BO45: 1155 | BP45: (NULL) | BQ45: Y | BR45: http://www.ti.com/lit/ds/symlink/csd17507q5a.pdf | BS45: (NULL) | BT45: 1.4 | BU45: 3 | BV45: 11 | BW45: 0.7 | BX45: 1.3 | BY45: (NULL) | BZ45: SON5x6 | CA45: (NULL) | CB45: (NULL) | CC45: (NULL) | CD45: (NULL) | CE45: (NULL) | CF45: 0.23
A46: CSD17510Q5A | B46: 146 | C46: Y | D46: Y | E46: (NULL) | F46: (NULL) | G46: JW | H46: N | I46: 1 | J46: 0 | K46: 1 | L46: 30 | M46: 20 | N46: 55 | O46: 129 | P46: 150 | Q46: 3 | R46: 51 | S46: 1.6 | T46: 1 | U46: 2.1 | V46: 2.9 | W46: 1 | X46: 24 | Y46: 20 | Z46: 300 | AA46: 59 | AB46: 0.85 | AC46: (NULL) | AD46: (NULL) | AE46: (NULL) | AF46: 0.0073 | AG46: (NULL) | AH46: (NULL) | AI46: 0.0052 | AJ46: 0.47 | AK46: 6.4 | AL46: 2.5 | AM46: 1.5 | AN46: 13 | AO46: 16 | AP46: (NULL) | AQ46: 0.96 | AR46: (NULL) | AS46: (NULL) | AT46: 0.63 | AU46: (NULL) | AV46: (NULL) | AW46: 0.051 | AX46: (NULL) | AY46: 15 | AZ46: (NULL) | BA46: (NULL) | BB46: (NULL) | BC46: (NULL) | BD46: (NULL) | BE46: (NULL) | BF46: (NULL) | BG46: (NULL) | BH46: (NULL) | BI46: (NULL) | BJ46: (NULL) | BK46: (NULL) | BL46: N | BM46: 0.85 | BN46: (NULL) | BO46: 1155 | BP46: (NULL) | BQ46: Y | BR46: http://www.ti.com/lit/ds/symlink/csd17510q5a.pdf | BS46: (NULL) | BT46: 1.7 | BU46: 3 | BV46: 25 | BW46: 1.9 | BX46: 2.7 | BY46: (NULL) | BZ46: SON5x6 | CA46: (NULL) | CB46: (NULL) | CC46: (NULL) | CD46: (NULL) | CE46: (NULL) | CF46: 0.34
A47: CSD17522Q5A | B47: 146 | C47: Y | D47: Y | E47: (NULL) | F47: (NULL) | G47: JW | H47: N | I47: 1 | J47: 0 | K47: 1 | L47: 30 | M47: 20 | N47: 87 | O47: 104 | P47: 150 | Q47: 3 | R47: 51 | S47: 1.8 | T47: 1.1 | U47: 2 | V47: 3.1 | W47: 1 | X47: 17.8 | Y47: 14 | Z47: 300 | AA47: 37 | AB47: 4.7 | AC47: (NULL) | AD47: (NULL) | AE47: (NULL) | AF47: 0.0124 | AG47: (NULL) | AH47: (NULL) | AI47: 0.0081 | AJ47: 0.42 | AK47: 3.6 | AL47: 1 | AM47: 0.9 | AN47: 7.5 | AO47: 8.6 | AP47: (NULL) | AQ47: 0.58 | AR47: (NULL) | AS47: (NULL) | AT47: 0.39 | AU47: (NULL) | AV47: (NULL) | AW47: 0.035 | AX47: (NULL) | AY47: 15 | AZ47: (NULL) | BA47: (NULL) | BB47: (NULL) | BC47: (NULL) | BD47: (NULL) | BE47: (NULL) | BF47: (NULL) | BG47: (NULL) | BH47: (NULL) | BI47: (NULL) | BJ47: (NULL) | BK47: (NULL) | BL47: N | BM47: 0.85 | BN47: (NULL) | BO47: 1155 | BP47: (NULL) | BQ47: Y | BR47: http://www.ti.com/lit/ds/symlink/csd17522q5a.pdf | BS47: (NULL) | BT47: (NULL) | BU47: 3 | BV47: 19.6 | BW47: 1.1 | BX47: 1.6 | BY47: (NULL) | BZ47: SON5x6 | CA47: (NULL) | CB47: (NULL) | CC47: (NULL) | CD47: (NULL) | CE47: (NULL) | CF47: 0.36
A48: CSD17527Q5A | B48: 146 | C48: Y | D48: Y | E48: (NULL) | F48: (NULL) | G48: JW | H48: N | I48: 1 | J48: 0 | K48: 1 | L48: 30 | M48: 20 | N48: 65 | O48: 85 | P48: 150 | Q48: 3 | R48: 51 | S48: 1.9 | T48: 1.1 | U48: 2 | V48: 3 | W48: 1 | X48: 14.6 | Y48: 11 | Z48: 300 | AA48: 44 | AB48: 4.7 | AC48: (NULL) | AD48: (NULL) | AE48: (NULL) | AF48: 0.0155 | AG48: (NULL) | AH48: (NULL) | AI48: 0.0108 | AJ48: 0.5 | AK48: 2.8 | AL48: 1 | AM48: 0.6 | AN48: 6 | AO48: 6.8 | AP48: (NULL) | AQ48: 0.422 | AR48: (NULL) | AS48: (NULL) | AT48: 0.286 | AU48: (NULL) | AV48: (NULL) | AW48: 0.026 | AX48: (NULL) | AY48: 15 | AZ48: (NULL) | BA48: (NULL) | BB48: (NULL) | BC48: (NULL) | BD48: (NULL) | BE48: (NULL) | BF48: (NULL) | BG48: (NULL) | BH48: (NULL) | BI48: (NULL) | BJ48: (NULL) | BK48: (NULL) | BL48: N | BM48: 0.85 | BN48: (NULL) | BO48: 1155 | BP48: (NULL) | BQ48: Y | BR48: http://www.ti.com/lit/ds/symlink/csd17527q5a.pdf | BS48: (NULL) | BT48: (NULL) | BU48: 3.1 | BV48: 10.5 | BW48: 0.8 | BX48: 1.2 | BY48: (NULL) | BZ48: SON5x6 | CA48: (NULL) | CB48: (NULL) | CC48: (NULL) | CD48: (NULL) | CE48: (NULL) | CF48: 0.33
A49: CSD17551Q3A | B49: 146 | C49: Y | D49: Y | E49: (NULL) | F49: (NULL) | G49: JW | H49: N | I49: 1 | J49: 0 | K49: 1 | L49: 30 | M49: 20 | N49: 48 | O49: 71 | P49: 150 | Q49: 2.6 | R49: 60 | S49: 3.9 | T49: 1.1 | U49: 2.1 | V49: 2.9 | W49: 1 | X49: 14 | Y49: 11 | Z49: 300 | AA49: 101 | AB49: 1.5 | AC49: (NULL) | AD49: (NULL) | AE49: (NULL) | AF49: 0.0118 | AG49: (NULL) | AH49: (NULL) | AI49: 0.009 | AJ49: 0.7 | AK49: 6 | AL49: 3 | AM49: 1.4 | AN49: 13 | AO49: 7.4 | AP49: (NULL) | AQ49: 1.05 | AR49: (NULL) | AS49: (NULL) | AT49: 0.244 | AU49: (NULL) | AV49: (NULL) | AW49: 0.024 | AX49: (NULL) | AY49: 15 | AZ49: (NULL) | BA49: (NULL) | BB49: (NULL) | BC49: (NULL) | BD49: (NULL) | BE49: (NULL) | BF49: (NULL) | BG49: (NULL) | BH49: (NULL) | BI49: (NULL) | BJ49: (NULL) | BK49: (NULL) | BL49: N | BM49: 0.8 | BN49: (NULL) | BO49: 1155 | BP49: (NULL) | BQ49: Y | BR49: http://www.ti.com/lit/ds/symlink/csd17551q3a.pdf | BS49: (NULL) | BT49: 3 | BU49: 2.8 | BV49: 13 | BW49: 1.5 | BX49: 2.3 | BY49: (NULL) | BZ49: SON3X3 | CA49: (NULL) | CB49: (NULL) | CC49: (NULL) | CD49: (NULL) | CE49: (NULL) | CF49: 0.23
A50: CSD17551Q5A | B50: 146 | C50: Y | D50: Y | E50: (NULL) | F50: (NULL) | G50: JW | H50: N | I50: 1 | J50: 0 | K50: 1 | L50: 30 | M50: 20 | N50: 48 | O50: 85 | P50: 150 | Q50: 3 | R50: 52.3 | S50: 4.2 | T50: 1.2 | U50: 2.2 | V50: 2.9 | W50: 1 | X50: 13.5 | Y50: 11 | Z50: 300 | AA50: 107 | AB50: 1.4 | AC50: (NULL) | AD50: (NULL) | AE50: (NULL) | AF50: 0.011 | AG50: (NULL) | AH50: (NULL) | AI50: 0.0088 | AJ50: 0.75 | AK50: 6 | AL50: 3 | AM50: 1.4 | AN50: 13 | AO50: 7.2 | AP50: (NULL) | AQ50: 1.06 | AR50: (NULL) | AS50: (NULL) | AT50: 0.247 | AU50: (NULL) | AV50: (NULL) | AW50: 0.019 | AX50: (NULL) | AY50: 15 | AZ50: (NULL) | BA50: (NULL) | BB50: (NULL) | BC50: (NULL) | BD50: (NULL) | BE50: (NULL) | BF50: (NULL) | BG50: (NULL) | BH50: (NULL) | BI50: (NULL) | BJ50: (NULL) | BK50: (NULL) | BL50: N | BM50: 0.8 | BN50: (NULL) | BO50: 1155 | BP50: (NULL) | BQ50: Y | BR50: http://www.ti.com/lit/ds/symlink/csd17551q5a.pdf | BS50: (NULL) | BT50: 1.9 | BU50: 2.8 | BV50: 8.7 | BW50: 1.4 | BX50: 2.8 | BY50: (NULL) | BZ50: SON5X6 | CA50: (NULL) | CB50: (NULL) | CC50: (NULL) | CD50: (NULL) | CE50: (NULL) | CF50: 0.29
A51: CSD17552Q3A | B51: 146 | C51: Y | D51: Y | E51: (NULL) | F51: (NULL) | G51: JW | H51: N | I51: 1 | J51: 0 | K51: 1 | L51: 30 | M51: 20 | N51: 60 | O51: 84 | P51: 150 | Q51: 2.6 | R51: 60 | S51: 2.3 | T51: 1.1 | U51: 1.9 | V51: 2.6 | W51: 1 | X51: 15 | Y51: 11 | Z51: 300 | AA51: 106 | AB51: 0.9 | AC51: (NULL) | AD51: (NULL) | AE51: (NULL) | AF51: 0.0081 | AG51: (NULL) | AH51: (NULL) | AI51: 0.006 | AJ51: 0.7 | AK51: 9 | AL51: 5 | AM51: 1.8 | AN51: 18 | AO51: 11 | AP51: (NULL) | AQ51: 1.58 | AR51: (NULL) | AS51: (NULL) | AT51: 0.385 | AU51: (NULL) | AV51: (NULL) | AW51: 0.028 | AX51: (NULL) | AY51: 15 | AZ51: (NULL) | BA51: (NULL) | BB51: (NULL) | BC51: (NULL) | BD51: (NULL) | BE51: (NULL) | BF51: (NULL) | BG51: (NULL) | BH51: (NULL) | BI51: (NULL) | BJ51: (NULL) | BK51: (NULL) | BL51: N | BM51: 0.8 | BN51: (NULL) | BO51: 1155 | BP51: (NULL) | BQ51: Y | BR51: http://www.ti.com/lit/ds/symlink/csd17552q3a.pdf | BS51: (NULL) | BT51: 1.8 | BU51: 2.8 | BV51: 17 | BW51: 2.3 | BX51: 3.6 | BY51: (NULL) | BZ51: SON3X3 | CA51: (NULL) | CB51: (NULL) | CC51: (NULL) | CD51: (NULL) | CE51: (NULL) | CF51: 0.28
A52: CSD17552Q5A | B52: 146 | C52: Y | D52: Y | E52: (NULL) | F52: (NULL) | G52: JW | H52: N | I52: 1 | J52: 0 | K52: 1 | L52: 30 | M52: 20 | N52: 88 | O52: 106 | P52: 150 | Q52: 3 | R52: 50 | S52: 1.8 | T52: 1.1 | U52: 1.9 | V52: 2.6 | W52: 1 | X52: 18 | Y52: 15 | Z52: 300 | AA52: 77 | AB52: 0.9 | AC52: (NULL) | AD52: (NULL) | AE52: (NULL) | AF52: 0.0075 | AG52: (NULL) | AH52: (NULL) | AI52: 0.0062 | AJ52: 0.75 | AK52: 9 | AL52: 4 | AM52: 2.1 | AN52: 18 | AO52: 11 | AP52: (NULL) | AQ52: 1.58 | AR52: (NULL) | AS52: (NULL) | AT52: 0.385 | AU52: (NULL) | AV52: (NULL) | AW52: 0.028 | AX52: (NULL) | AY52: 15 | AZ52: (NULL) | BA52: (NULL) | BB52: (NULL) | BC52: (NULL) | BD52: (NULL) | BE52: (NULL) | BF52: (NULL) | BG52: (NULL) | BH52: (NULL) | BI52: (NULL) | BJ52: (NULL) | BK52: (NULL) | BL52: N | BM52: 0.8 | BN52: (NULL) | BO52: 1155 | BP52: (NULL) | BQ52: Y | BR52: http://www.ti.com/lit/ds/symlink/csd17552q5a.pdf | BS52: (NULL) | BT52: 1.8 | BU52: 2.8 | BV52: 20 | BW52: 2 | BX52: 3.6 | BY52: (NULL) | BZ52: SON5X6 | CA52: (NULL) | CB52: (NULL) | CC52: (NULL) | CD52: (NULL) | CE52: (NULL) | CF52: 0.3
A53: CSD17553Q5A | B53: 146 | C53: Y | D53: Y | E53: (NULL) | F53: (NULL) | G53: JW | H53: N | I53: 1 | J53: 0 | K53: 1 | L53: 30 | M53: 20 | N53: 100 | O53: 151 | P53: 150 | Q53: 3.1 | R53: 50.6 | S53: 1.3 | T53: 1 | U53: 1.9 | V53: 2.2 | W53: 1 | X53: 23.1 | Y53: 20 | Z53: 300 | AA53: 106 | AB53: 0.7 | AC53: (NULL) | AD53: (NULL) | AE53: (NULL) | AF53: 0.004 | AG53: (NULL) | AH53: (NULL) | AI53: 0.0031 | AJ53: 0.7 | AK53: 17.5 | AL53: 12 | AM53: 4.1 | AN53: 37 | AO53: 19.6 | AP53: (NULL) | AQ53: 2.71 | AR53: (NULL) | AS53: (NULL) | AT53: 0.635 | AU53: (NULL) | AV53: (NULL) | AW53: 0.048 | AX53: (NULL) | AY53: 15 | AZ53: (NULL) | BA53: (NULL) | BB53: (NULL) | BC53: (NULL) | BD53: (NULL) | BE53: (NULL) | BF53: (NULL) | BG53: (NULL) | BH53: (NULL) | BI53: (NULL) | BJ53: (NULL) | BK53: (NULL) | BL53: N | BM53: 0.8 | BN53: (NULL) | BO53: 1155 | BP53: (NULL) | BQ53: Y | BR53: http://www.ti.com/lit/ds/symlink/csd17553q5a.pdf | BS53: (NULL) | BT53: 0.9 | BU53: 2.8 | BV53: 23.8 | BW53: 4.7 | BX53: 5.8 | BY53: (NULL) | BZ53: SON5X6 | CA53: (NULL) | CB53: (NULL) | CC53: (NULL) | CD53: (NULL) | CE53: (NULL) | CF53: 0.42
A54: CSD17555Q5A | B54: 146 | C54: Y | D54: Y | E54: (NULL) | F54: (NULL) | G54: JW | H54: N | I54: 1 | J54: 0 | K54: 1 | L54: 30 | M54: 20 | N54: 115 | O54: 153 | P54: 150 | Q54: 3 | R54: 52 | S54: 2.2 | T54: 1 | U54: 1.9 | V54: 2.2 | W54: 1 | X54: 25 | Y54: 25 | Z54: 300 | AA54: 109 | AB54: 0.8 | AC54: (NULL) | AD54: (NULL) | AE54: (NULL) | AF54: 0.0034 | AG54: (NULL) | AH54: (NULL) | AI54: 0.0027 | AJ54: 0.7 | AK54: 23 | AL54: 10 | AM54: 5 | AN54: 50 | AO54: 25 | AP54: (NULL) | AQ54: 3.875 | AR54: (NULL) | AS54: (NULL) | AT54: 0.949 | AU54: (NULL) | AV54: (NULL) | AW54: 0.07 | AX54: (NULL) | AY54: 15 | AZ54: (NULL) | BA54: (NULL) | BB54: (NULL) | BC54: (NULL) | BD54: (NULL) | BE54: (NULL) | BF54: (NULL) | BG54: (NULL) | BH54: (NULL) | BI54: (NULL) | BJ54: (NULL) | BK54: (NULL) | BL54: N | BM54: 0.8 | BN54: (NULL) | BO54: 1155 | BP54: (NULL) | BQ54: Y | BR54: http://www.ti.com/lit/ds/symlink/csd17555q5a.pdf | BS54: (NULL) | BT54: 1.6 | BU54: 2.8 | BV54: 31 | BW54: 5 | BX54: 7.5 | BY54: (NULL) | BZ54: SON5X6 | CA54: (NULL) | CB54: (NULL) | CC54: (NULL) | CD54: (NULL) | CE54: (NULL) | CF54: 0.54
A55: CSD17556Q5B | B55: 146 | C55: Y | D55: Y | E55: WB_MOSFET_N_D56789G4S123 | F55: TRANS_NexFET_Q5B | G55: Updated by PJ Added by Hadi | H55: N | I55: 1 | J55: 0 | K55: 1 | L55: 30 | M55: 20 | N55: 100 | O55: 400 | P55: 150 | Q55: 3.125 | R55: 50 | S55: 1.3 | T55: 1.15 | U55: 1.65 | V55: 2.4 | W55: 1 | X55: 36 | Y55: 40 | Z55: 300 | AA55: 197 | AB55: 0.7 | AC55: (NULL) | AD55: (NULL) | AE55: (NULL) | AF55: 0.0018 | AG55: (NULL) | AH55: (NULL) | AI55: 0.0014 | AJ55: 0.75 | AK55: 30 | AL55: 14.5 | AM55: 6.1 | AN55: 63 | AO55: 48 | AP55: 5.75 | AQ55: 5.4 | AR55: 5.95 | AS55: 7.11 | AT55: 1.77 | AU55: 8.9 | AV55: 0.379 | AW55: 0.068 | AX55: 0.474 | AY55: 15 | AZ55: 10 | BA55: 0.1 | BB55: 40 | BC55: 0.7 | BD55: 283 | BE55: 1.7 | BF55: 283 | BG55: 30 | BH55: 3.43 | BI55: 30 | BJ55: 0.1 | BK55: 0.16 | BL55: N | BM55: 0.8 | BN55: (NULL) | BO55: 1155 | BP55: 5.5 | BQ55: Y | BR55: http://www.ti.com/lit/ds/symlink/csd17556q5b.pdf | BS55: (NULL) | BT55: 1.4 | BU55: 2.5 | BV55: 68 | BW55: 7.5 | BX55: 11 | BY55: (NULL) | BZ55: SON5x6 | CA55: (NULL) | CB55: (NULL) | CC55: 42173 | CD55: 42577 | CE55: 2523 | CF55: 0.77
A56: CSD17559Q5 | B56: 146 | C56: Y | D56: Y | E56: WB_MOSFET_N_D56789G4S123 | F56: TRANS_NexFET_Q5 | G56: PJ added new params from PL;Added by Gerold | H56: N | I56: 1 | J56: 0 | K56: 1 | L56: 30 | M56: 20 | N56: 100 | O56: 400 | P56: 150 | Q56: 3.125 | R56: 50 | S56: 1.2 | T56: 1.2 | U56: 1.7 | V56: 2.3 | W56: 1 | X56: 37 | Y56: 40 | Z56: 300 | AA56: 235 | AB56: 1.2 | AC56: (NULL) | AD56: (NULL) | AE56: (NULL) | AF56: 0.0015 | AG56: (NULL) | AH56: (NULL) | AI56: 0.0011 | AJ56: 0.7 | AK56: 39 | AL56: 15.3 | AM56: 8.3 | AN56: 85 | AO56: 50 | AP56: 7.72 | AQ56: 7.07 | AR56: 8 | AS56: 7.87 | AT56: 1.78 | AU56: 10.05 | AV56: 0.575 | AW56: 0.09 | AX56: 0.8 | AY56: 15 | AZ56: 10 | BA56: 0.1 | BB56: 43.7 | BC56: 0.55 | BD56: 240 | BE56: 2.15 | BF56: 240 | BG56: 30 | BH56: 4.02 | BI56: 30 | BJ56: 0.1 | BK56: 0.116 | BL56: N | BM56: 0.8 | BN56: (NULL) | BO56: 1346 | BP56: 7.2 | BQ56: Y | BR56: http://www.ti.com/lit/ds/symlink/csd17559q5.pdf | BS56: (NULL) | BT56: 2.4 | BU56: 2.6 | BV56: 80 | BW56: 9.3 | BX56: 14.4 | BY56: (NULL) | BZ56: SON5X6 | CA56: (NULL) | CB56: (NULL) | CC56: (NULL) | CD56: 42564 | CE56: 2038 | CF56: 0.86
A57: CSD17571Q2 | B57: 146 | C57: Y | D57: Y | E57: WB_MOSFET_N_D12568G3S47 | F57: DQK0006C | G57: Updated by PJ Altium for Vince Paku | H57: N | I57: 1 | J57: 0 | K57: 1 | L57: 30 | M57: 20 | N57: 22 | O57: 39 | P57: 150 | Q57: 2.5 | R57: 65 | S57: 6.2 | T57: 1.3 | U57: 2 | V57: 2.5 | W57: 1 | X57: 11 | Y57: 5 | Z57: 300 | AA57: 43 | AB57: 3.8 | AC57: (NULL) | AD57: (NULL) | AE57: (NULL) | AF57: 0.029 | AG57: (NULL) | AH57: (NULL) | AI57: 0.024 | AJ57: 0.78 | AK57: 2.4 | AL57: 1.3 | AM57: 0.6 | AN57: 5 | AO57: 3.4 | AP57: 0.381 | AQ57: 0.36 | AR57: 0.39 | AS57: 0.396 | AT57: 0.101 | AU57: 0.482 | AV57: 0.0349 | AW57: 0.009 | AX57: 0.0417 | AY57: 15 | AZ57: 10 | BA57: 0.01 | BB57: 0.36 | BC57: 0.8 | BD57: 25 | BE57: 30 | BF57: 0.7 | BG57: 30 | BH57: 0.01 | BI57: 30 | BJ57: 0.01 | BK57: 2.07 | BL57: N | BM57: 0.8 | BN57: (NULL) | BO57: (NULL) | BP57: (NULL) | BQ57: Y | BR57: http://www.ti.com/lit/ds/symlink/csd17571q2.pdf | BS57: (NULL) | BT57: 7.6 | BU57: 2.9 | BV57: 2.3 | BW57: 0.9 | BX57: 0.9 | BY57: (NULL) | BZ57: SON2X2 | CA57: (NULL) | CB57: (NULL) | CC57: 42194 | CD57: 42598 | CE57: 2525 | CF57: 0.1
A58: CSD17573Q5B | B58: 146 | C58: Y | D58: Y | E58: WB_MOSFET_N_D56789G4S123 | F58: DNK0008A | G58: Updated by PJAdded by Hadi | H58: N | I58: 1 | J58: 0 | K58: 1 | L58: 30 | M58: 20 | N58: 100 | O58: 400 | P58: 150 | Q58: 195 | R58: 50 | S58: 0.8 | T58: 1.1 | U58: 1.8 | V58: 2.4 | W58: 1 | X58: 21 | Y58: 35 | Z58: 300 | AA58: 181 | AB58: 0.9 | AC58: (NULL) | AD58: (NULL) | AE58: (NULL) | AF58: 0.0014 | AG58: (NULL) | AH58: (NULL) | AI58: 0.001 | AJ58: 0.77 | AK58: 49 | AL58: 30 | AM58: 8.6 | AN58: 110 | AO58: 21 | AP58: 7.53 | AQ58: 6.92 | AR58: 7.97 | AS58: 3.51 | AT58: 0.769 | AU58: 4.99 | AV58: 0.887 | AW58: 0.3 | AX58: 1.29 | AY58: 15 | AZ58: 10 | BA58: 0.1 | BB58: 56.82 | BC58: 0.65 | BD58: 320 | BE58: 3.5 | BF58: 60 | BG58: 30 | BH58: 10 | BI58: 10 | BJ58: 0.1 | BK58: 0.09 | BL58: N | BM58: 0.8 | BN58: N | BO58: 1155 | BP58: 6.68 | BQ58: Y | BR58: http://www.ti.com/lit/ds/symlink/csd17573q5b.pdf | BS58: (NULL) | BT58: 1.8 | BU58: 2.8 | BV58: 29 | BW58: 11.9 | BX58: 17.1 | BY58: (NULL) | BZ58: SON5x6 | CA58: N | CB58: (NULL) | CC58: 42173 | CD58: 42577 | CE58: 2526 | CF58: 0.52
A59: CSD17575Q3 | B59: 146 | C59: Y | D59: Y | E59: WB_MOSFET_N_D56789G4S123 | F59: DQG0008A | G59: Added by ; revert thermal ID back to NxtFET-HC 7/2016; PJ added new params from PL; Oliver updated Thermal_Id | H59: N | I59: 1 | J59: 0 | K59: 1 | L59: 30 | M59: 20 | N59: 60 | O59: 240 | P59: 150 | Q59: 2.7777 | R59: 55 | S59: 1.5 | T59: 1.1 | U59: 1.8 | V59: 2.5 | W59: 1 | X59: 13 | Y59: 25 | Z59: 300 | AA59: 118 | AB59: 0.9 | AC59: (NULL) | AD59: (NULL) | AE59: (NULL) | AF59: 0.0032 | AG59: (NULL) | AH59: (NULL) | AI59: 0.002 | AJ59: 0.75 | AK59: 23 | AL59: 11.6 | AM59: 4.6 | AN59: 47.5 | AO59: 11.6 | AP59: 3.67 | AQ59: 3.4 | AR59: 4 | AS59: 1.76 | AT59: 0.393 | AU59: 2.64 | AV59: 0.4 | AW59: 0.157 | AX59: 0.7 | AY59: 15 | AZ59: 10 | BA59: 0.1 | BB59: 30 | BC59: 0.6 | BD59: 180 | BE59: 0.85 | BF59: 180 | BG59: 30 | BH59: 0.5 | BI59: 30 | BJ59: 0.1 | BK59: 0.22 | BL59: N | BM59: 0.8 | BN59: (NULL) | BO59: 0 | BP59: 3.3 | BQ59: Y | BR59: http://www.ti.com/lit/ds/symlink/csd17575q3.pdf | BS59: (NULL) | BT59: 1.8 | BU59: 2.5 | BV59: 15 | BW59: 5.4 | BX59: 8.5 | BY59: (NULL) | BZ59: SON3X3 | CA59: (NULL) | CB59: (NULL) | CC59: 42576 | CD59: 43741 | CE59: 2040 | CF59: 0.31
A60: CSD17576Q5B | B60: 146 | C60: Y | D60: Y | E60: WB_MOSFET_N_D56789G4S123 | F60: TRANS_NexFET_Q5B | G60: Updated by PJ Added by Hadi | H60: N | I60: 1 | J60: 0 | K60: 1 | L60: 30 | M60: 20 | N60: 100 | O60: 400 | P60: 150 | Q60: 3.125 | R60: 50 | S60: 1.31 | T60: 1.1 | U60: 1.8 | V60: 2.4 | W60: 1 | X60: 14 | Y60: 25 | Z60: 300 | AA60: 120 | AB60: 1 | AC60: (NULL) | AD60: (NULL) | AE60: (NULL) | AF60: 0.0029 | AG60: (NULL) | AH60: (NULL) | AI60: 0.002 | AJ60: 0.85 | AK60: 25 | AL60: 13.5 | AM60: 4.7 | AN60: 53 | AO60: 12.3 | AP60: 3.71 | AQ60: 3.41 | AR60: 3.99 | AS60: 1.78 | AT60: 0.389 | AU60: 2.75 | AV60: 0.363 | AW60: 0.151 | AX60: 0.694 | AY60: 15 | AZ60: 10 | BA60: 0.1 | BB60: 30 | BC60: 0.9 | BD60: 230 | BE60: 1 | BF60: 230 | BG60: 30 | BH60: 1.6 | BI60: 30 | BJ60: 0.1 | BK60: 0.198 | BL60: N | BM60: 0.8 | BN60: (NULL) | BO60: 0 | BP60: 3.3 | BQ60: Y | BR60: http://www.ti.com/lit/ds/symlink/csd17576q5b.pdf | BS60: (NULL) | BT60: 2 | BU60: 3 | BV60: 14.7 | BW60: 5.4 | BX60: 8.9 | BY60: (NULL) | BZ60: SON5X6 | CA60: (NULL) | CB60: (NULL) | CC60: 42193 | CD60: 42577 | CE60: 2527 | CF60: 0.38
A61: CSD17577Q3A | B61: 146 | C61: Y | D61: Y | E61: WB_MOSFET_N_D56789G4S123 | F61: DNH0008A | G61: Added by Hadi; PJ added new params from PL; Oliver updated Thermal_Id | H61: N | I61: 1 | J61: 0 | K61: 1 | L61: 30 | M61: 20 | N61: 35 | O61: 239 | P61: 150 | Q61: 2.5 | R61: 55 | S61: 3 | T61: 1.1 | U61: 1.8 | V61: 2.7 | W61: 1 | X61: 8.6 | Y61: 16 | Z61: 300 | AA61: 76 | AB61: 1.4 | AC61: (NULL) | AD61: (NULL) | AE61: (NULL) | AF61: 0.0064 | AG61: (NULL) | AH61: (NULL) | AI61: 0.004 | AJ61: 0.6 | AK61: 13 | AL61: 5 | AM61: 2.5 | AN61: 28 | AO61: 6 | AP61: 2 | AQ61: 1.78 | AR61: 2.11 | AS61: 0.854 | AT61: 0.2 | AU61: 1.23 | AV61: 0.213 | AW61: 0.079 | AX61: 0.367 | AY61: 15 | AZ61: 10 | BA61: 0.1 | BB61: 14.5 | BC61: 0.58 | BD61: 76 | BE61: 0.91 | BF61: 76 | BG61: 30 | BH61: 0.32 | BI61: 30 | BJ61: 0.1 | BK61: 0.36 | BL61: N | BM61: 0.8 | BN61: (NULL) | BO61: 0 | BP61: 1.743 | BQ61: Y | BR61: http://www.ti.com/lit/ds/symlink/csd17577q3a.pdf | BS61: (NULL) | BT61: 2.8 | BU61: 2.5 | BV61: 8.2 | BW61: 2.8 | BX61: 5.1 | BY61: (NULL) | BZ61: SON3x3 | CA61: N | CB61: (NULL) | CC61: 42198 | CD61: 42599 | CE61: 2042 | CF61: 0.18
A62: CSD17577Q5A | B62: 146 | C62: Y | D62: Y | E62: WB_MOSFET_N_D56789G4S123 | F62: TRANS_NexFET_Q5A | G62: Updated by PJ Added by Hadi | H62: N | I62: 1 | J62: 0 | K62: 1 | L62: 30 | M62: 20 | N62: 60 | O62: 280 | P62: 150 | Q62: 3.125 | R62: 50 | S62: 2.8 | T62: 1.1 | U62: 1.8 | V62: 2.7 | W62: 1 | X62: 9.3 | Y62: 18 | Z62: 300 | AA62: 79 | AB62: 1.4 | AC62: (NULL) | AD62: (NULL) | AE62: (NULL) | AF62: 0.0058 | AG62: (NULL) | AH62: (NULL) | AI62: 0.0042 | AJ62: 0.6 | AK62: 13 | AL62: 4.95 | AM62: 2.5 | AN62: 26.4 | AO62: 6 | AP62: 1.9 | AQ62: 1.78 | AR62: 2.04 | AS62: 0.89 | AT62: 0.208 | AU62: 1.36 | AV62: 0.174 | AW62: 0.079 | AX62: 0.313 | AY62: 15 | AZ62: 10 | BA62: 0.1 | BB62: 17 | BC62: 0.47 | BD62: 85 | BE62: 1 | BF62: 85 | BG62: 30 | BH62: 0.47 | BI62: 30 | BJ62: 0.1 | BK62: 0.38 | BL62: N | BM62: 0.8 | BN62: (NULL) | BO62: 1155 | BP62: 1.7 | BQ62: Y | BR62: http://www.ti.com/lit/ds/symlink/csd17577q5a.pdf | BS62: (NULL) | BT62: 2.8 | BU62: 2.5 | BV62: 8.2 | BW62: 2.8 | BX62: 5.1 | BY62: (NULL) | BZ62: SON5x6 | CA62: (NULL) | CB62: (NULL) | CC62: 42198 | CD62: 42577 | CE62: 2528 | CF62: 0.2
A63: CSD17578Q3A | B63: 146 | C63: Y | D63: Y | E63: WB_MOSFET_N_D56789G4S123 | F63: DNH0008A | G63: Added by Hadi; PJ added new params from PL; Oliver updated Thermal_Id | H63: N | I63: 1 | J63: 0 | K63: 1 | L63: 30 | M63: 20 | N63: 20 | O63: 142 | P63: 150 | Q63: 2.5 | R63: 60 | S63: 4.2 | T63: 1.1 | U63: 1.9 | V63: 2.8 | W63: 1 | X63: 6 | Y63: 10 | Z63: 300 | AA63: 48 | AB63: 1.8 | AC63: (NULL) | AD63: (NULL) | AE63: (NULL) | AF63: 0.0094 | AG63: (NULL) | AH63: (NULL) | AI63: 0.0062 | AJ63: 0.7 | AK63: 7.9 | AL63: 3.15 | AM63: 1.7 | AN63: 17 | AO63: 4.2 | AP63: 1.3 | AQ63: 1.15 | AR63: 1.4 | AS63: 0.566 | AT63: 0.13 | AU63: 0.8 | AV63: 0.153 | AW63: 0.06 | AX63: 0.24 | AY63: 15 | AZ63: 10 | BA63: 0.1 | BB63: 8 | BC63: 0.65 | BD63: 50 | BE63: 0.9 | BF63: 50 | BG63: 30 | BH63: 0.3 | BI63: 30 | BJ63: 0.1 | BK63: 0.67 | BL63: N | BM63: 0.8 | BN63: (NULL) | BO63: 0 | BP63: 1.16 | BQ63: Y | BR63: http://www.ti.com/lit/ds/symlink/csd17578q3a.pdf | BS63: (NULL) | BT63: 3.6 | BU63: 2.5 | BV63: 4.4 | BW63: 1.7 | BX63: 3.3 | BY63: (NULL) | BZ63: SON3x3 | CA63: N | CB63: (NULL) | CC63: 42198 | CD63: 42599 | CE63: 2044 | CF63: 0.17
A64: CSD17578Q5A | B64: 146 | C64: Y | D64: Y | E64: WB_MOSFET_N_D56789G4S123 | F64: TRANS_NexFET_Q5A | G64: Updated by PJ Added by Hadi | H64: N | I64: 1 | J64: 0 | K64: 1 | L64: 30 | M64: 20 | N64: 59 | O64: 132 | P64: 150 | Q64: 3.125 | R64: 50 | S64: 3.8 | T64: 1.1 | U64: 1.9 | V64: 2.7 | W64: 1 | X64: 6.8 | Y64: 10 | Z64: 300 | AA64: 44 | AB64: 1.8 | AC64: (NULL) | AD64: (NULL) | AE64: (NULL) | AF64: 0.0093 | AG64: (NULL) | AH64: (NULL) | AI64: 0.0069 | AJ64: 0.75 | AK64: 7.9 | AL64: 3.02 | AM64: 1.7 | AN64: 17 | AO64: 4.2 | AP64: 1.26 | AQ64: 1.17 | AR64: 1.36 | AS64: 0.544 | AT64: 0.136 | AU64: 0.796 | AV64: 0.166 | AW64: 0.058 | AX64: 0.263 | AY64: 15 | AZ64: 10 | BA64: 0.1 | BB64: 8.28 | BC64: 0.72 | BD64: 60 | BE64: 1.52 | BF64: 60 | BG64: 30 | BH64: 0.49 | BI64: 30 | BJ64: 0.1 | BK64: 0.59 | BL64: N | BM64: 0.8 | BN64: (NULL) | BO64: 1155 | BP64: 1 | BQ64: Y | BR64: http://www.ti.com/lit/ds/symlink/csd17578q5a.pdf | BS64: (NULL) | BT64: 3.6 | BU64: 2.5 | BV64: 6.5 | BW64: 2 | BX64: 3.1 | BY64: (NULL) | BZ64: SON5x6 | CA64: (NULL) | CB64: (NULL) | CC64: 42201 | CD64: 42577 | CE64: 2529 | CF64: 0.18
A65: CSD17579Q3A | B65: 146 | C65: Y | D65: Y | E65: WB_MOSFET_N_D56789G4S123 | F65: DNH0008A | G65: Added by Hadi; PJ added new params from PL; Oliver updated Thermal_Id | H65: N | I65: 1 | J65: 0 | K65: 1 | L65: 30 | M65: 20 | N65: 20 | O65: 106 | P65: 150 | Q65: 2.5 | R65: 60 | S65: 5.4 | T65: 1.1 | U65: 1.9 | V65: 2.8 | W65: 1 | X65: 5 | Y65: 8 | Z65: 300 | AA65: 37 | AB65: 1.9 | AC65: (NULL) | AD65: (NULL) | AE65: (NULL) | AF65: 0.0142 | AG65: (NULL) | AH65: (NULL) | AI65: 0.0087 | AJ65: 0.72 | AK65: 5.3 | AL65: 2.5 | AM65: 1.1 | AN65: 11 | AO65: 3 | AP65: 0.869 | AQ65: 0.8 | AR65: 0.92 | AS65: 0.352 | AT65: 0.09 | AU65: 0.5 | AV65: 0.098 | AW65: 0.04 | AX65: 0.152 | AY65: 15 | AZ65: 10 | BA65: 0.1 | BB65: 5.5 | BC65: 0.7 | BD65: 37 | BE65: 1.3 | BF65: 37 | BG65: 30 | BH65: 0.26 | BI65: 30 | BJ65: 0.1 | BK65: 0.92 | BL65: N | BM65: 0.8 | BN65: (NULL) | BO65: 0 | BP65: 0.768 | BQ65: Y | BR65: http://www.ti.com/lit/ds/symlink/csd17579q3a.pdf | BS65: (NULL) | BT65: 3.8 | BU65: 2.5 | BV65: 3.4 | BW65: 1.2 | BX65: 2.2 | BY65: (NULL) | BZ65: SON3x3 | CA65: N | CB65: (NULL) | CC65: 42201 | CD65: 42599 | CE65: 2046 | CF65: 0.15
A66: CSD17579Q5A | B66: 146 | C66: Y | D66: Y | E66: WB_MOSFET_N_D56789G4S123 | F66: TRANS_NexFET_Q5A | G66: Updated by PJ Added by Hadi | H66: N | I66: 1 | J66: 0 | K66: 1 | L66: 30 | M66: 20 | N66: 25 | O66: 105 | P66: 150 | Q66: 3.125 | R66: 50 | S66: 4.3 | T66: 1 | U66: 2 | V66: 2.9 | W66: 1 | X66: 5.7 | Y66: 10 | Z66: 300 | AA66: 36 | AB66: 1.9 | AC66: (NULL) | AD66: (NULL) | AE66: (NULL) | AF66: 0.0133 | AG66: (NULL) | AH66: (NULL) | AI66: 0.0097 | AJ66: 0.75 | AK66: 5.4 | AL66: 2.05 | AM66: 1.1 | AN66: 11.2 | AO66: 2.9 | AP66: 0.853 | AQ66: 0.796 | AR66: 0.893 | AS66: 0.388 | AT66: 0.095 | AU66: 0.56 | AV66: 0.123 | AW66: 0.04 | AX66: 0.187 | AY66: 15 | AZ66: 10 | BA66: 0.1 | BB66: 5.88 | BC66: 0.76 | BD66: 44.8 | BE66: 1.55 | BF66: 44.8 | BG66: 30 | BH66: 0.39 | BI66: 30 | BJ66: 0.1 | BK66: 0.89 | BL66: N | BM66: 0.8 | BN66: (NULL) | BO66: 1155 | BP66: 0.91 | BQ66: Y | BR66: http://www.ti.com/lit/ds/slps524/slps524.pdf | BS66: (NULL) | BT66: 3.8 | BU66: 2.5 | BV66: 4.2 | BW66: 1.2 | BX66: 2.3 | BY66: (NULL) | BZ66: SON5x6 | CA66: (NULL) | CB66: (NULL) | CC66: 42202 | CD66: 42577 | CE66: 2530 | CF66: 0.16
A67: CSD17581Q3A | B67: 146 | C67: Y | D67: A | E67: WB_MOSFET_N_D56789G4S123 | F67: DNH0008A | G67: by Hadi | H67: N | I67: 1 | J67: 0 | K67: 1 | L67: 30 | M67: 20 | N67: 60 | O67: 154 | P67: 150 | Q67: 3.1 | R67: 55 | S67: 2 | T67: 1 | U67: 1.7 | V67: 2.4 | W67: 1 | X67: 9.8 | Y67: 16 | Z67: 300 | AA67: 78 | AB67: 1.8 | AC67: (NULL) | AD67: (NULL) | AE67: (NULL) | AF67: 0.0047 | AG67: (NULL) | AH67: (NULL) | AI67: 0.0038 | AJ67: 0.6 | AK67: 20 | AL67: 22 | AM67: 3.6 | AN67: 42 | AO67: 11.7 | AP67: 3.55 | AQ67: 2.8 | AR67: 3.6 | AS67: 2.7 | AT67: 0.35 | AU67: 2.8 | AV67: 0.641 | AW67: 0.15 | AX67: 0.65 | AY67: 15 | AZ67: 10 | BA67: 0.1 | BB67: 16 | BC67: 0.7 | BD67: 125 | BE67: 1 | BF67: 85 | BG67: 30 | BH67: 0.65 | BI67: 30 | BJ67: 0.1 | BK67: 1.77 | BL67: N | BM67: 0.8 | BN67: (NULL) | BO67: 1155 | BP67: 2.95 | BQ67: Y | BR67: http://www.ti.com/lit/ds/symlink/csd17581q3a.pdf | BS67: (NULL) | BT67: 3.6 | BU67: 4.5 | BV67: 10.2 | BW67: 4 | BX67: 6.9 | BY67: (NULL) | BZ67: SON3X3 | CA67: N | CB67: (NULL) | CC67: 43320 | CD67: 43320 | CE67: 3485 | CF67: 0.22
A68: CSD17581Q5A | B68: 146 | C68: N | D68: A | E68: WB_MOSFET_N_D56789G4S124 | F68: DNH0008A | G68: JW | H68: N | I68: 1 | J68: 0 | K68: 1 | L68: 30 | M68: 20 | N68: 60 | O68: 265 | P68: 150 | Q68: 3.1 | R68: 50 | S68: 1.5 | T68: 1 | U68: 1.7 | V68: 2.4 | W68: 1 | X68: 11 | Y68: 16 | Z68: 300 | AA68: 85 | AB68: 1.8 | AC68: (NULL) | AD68: (NULL) | AE68: (NULL) | AF68: 0.0042 | AG68: (NULL) | AH68: (NULL) | AI68: 0.0034 | AJ68: 0.6 | AK68: 20 | AL68: 22 | AM68: 3.6 | AN68: 41 | AO68: 11.7 | AP68: 3.55 | AQ68: 2.8 | AR68: 3.6 | AS68: 2.7 | AT68: 0.35 | AU68: 2.8 | AV68: 0.641 | AW68: 0.15 | AX68: 0.65 | AY68: 15 | AZ68: 10 | BA68: 0.1 | BB68: 16 | BC68: 0.7 | BD68: 125 | BE68: 1 | BF68: 85 | BG68: 30 | BH68: 0.65 | BI68: 30 | BJ68: 0.1 | BK68: 1.77 | BL68: N | BM68: 0.8 | BN68: (NULL) | BO68: 1155 | BP68: 2.95 | BQ68: Y | BR68: http://www.ti.com/lit/ds/symlink/csd17581q5a.pdf | BS68: (NULL) | BT68: 3.6 | BU68: 4.5 | BV68: 13 | BW68: 4 | BX68: 6.9 | BY68: (NULL) | BZ68: SON5X6 | CA68: N | CB68: (NULL) | CC68: 43724 | CD68: 43724 | CF68: 0.24
A69: CSD18501Q5A | B69: 146 | C69: Y | D69: Y | E69: WB_MOSFET_N_D56789G4S123 | F69: TRANS_NexFET_Q5A | G69: PJ added new params from PL;Added by Gerold | H69: N | I69: 1 | J69: 0 | K69: 1 | L69: 40 | M69: 20 | N69: 100 | O69: 400 | P69: 150 | Q69: 3.125 | R69: 50 | S69: 1 | T69: 1.4 | U69: 2.3 | V69: 2.5 | W69: 1 | X69: 40 | Y69: 25 | Z69: 300 | AA69: 118 | AB69: 1.2 | AC69: (NULL) | AD69: (NULL) | AE69: (NULL) | AF69: 0.0043 | AG69: (NULL) | AH69: (NULL) | AI69: 0.0032 | AJ69: 0.84 | AK69: 20 | AL69: 10.6 | AM69: 5.7 | AN69: 42 | AO69: 48 | AP69: 3.5 | AQ69: 3.2 | AR69: 3.53 | AS69: 4.13 | AT69: 0.725 | AU69: 5 | AV69: 0.3 | AW69: 0.019 | AX69: 0.34 | AY69: 20 | AZ69: 10 | BA69: 0.1 | BB69: 18 | BC69: 1.1 | BD69: 180 | BE69: 2 | BF69: 180 | BG69: 40 | BH69: 1.9 | BI69: 40 | BJ69: 0.1 | BK69: 0.25 | BL69: N | BM69: 0.8 | BN69: (NULL) | BO69: 1155 | BP69: 3.52 | BQ69: Y | BR69: http://www.ti.com/lit/ds/symlink/csd18501q5a.pdf | BS69: (NULL) | BT69: 2.4 | BU69: 3.1 | BV69: 70 | BW69: 5.9 | BX69: 8.1 | BY69: (NULL) | BZ69: SON5X6 | CA69: (NULL) | CB69: (NULL) | CC69: 41163 | CD69: 42564 | CE69: 2048 | CF69: 0.56
A70: CSD18502KCS | B70: 146 | C70: Y | D70: N | E70: WB_MOSFET_N_D2G1S3 | F70: TO-220AB | G70: Updated by PJ Added by Gerold | H70: N | I70: 1 | J70: 0 | K70: 4 | L70: 40 | M70: 20 | N70: 100 | O70: 400 | P70: 175 | Q70: 259 | R70: 62 | S70: 0.6 | T70: 1.5 | U70: 2.1 | V70: 3.2 | W70: 1 | X70: 48 | Y70: 100 | Z70: 300 | AA70: 138 | AB70: 1.2 | AC70: (NULL) | AD70: (NULL) | AE70: (NULL) | AF70: 0.0043 | AG70: (NULL) | AH70: (NULL) | AI70: 0.0029 | AJ70: 0.8 | AK70: 25 | AL70: 10 | AM70: 7.5 | AN70: 52 | AO70: 52 | AP70: 4.28 | AQ70: 3.9 | AR70: 4.37 | AS70: 5.09 | AT70: 0.9 | AU70: 5.19 | AV70: 0.245 | AW70: 0.021 | AX70: 0.245 | AY70: 20 | AZ70: 10 | BA70: 0.1 | BB70: 18 | BC70: 1.5 | BD70: 250 | BE70: 3 | BF70: 250 | BG70: 40 | BH70: 3 | BI70: 40 | BJ70: 0.1 | BK70: 0.2 | BL70: N | BM70: 0.8 | BN70: (NULL) | BO70: 42 | BP70: 4.1 | BQ70: Y | BR70: http://www.ti.com/lit/ds/symlink/csd18502kcs.pdf | BS70: (NULL) | BT70: 2.4 | BU70: 3.5 | BV70: 105 | BW70: 8.4 | BX70: 10.3 | BY70: (NULL) | BZ70: TO-220 | CA70: (NULL) | CB70: (NULL) | CC70: 41163 | CD70: 42577 | CE70: 2531 | CF70: 0.78
A71: CSD18502Q5B | B71: 146 | C71: Y | D71: Y | E71: WB_MOSFET_N_D56789G4S123 | F71: TRANS_NexFET_Q5B | G71: PJ added new params from PL;Added by Gerold | H71: N | I71: 1 | J71: 0 | K71: 1 | L71: 40 | M71: 20 | N71: 100 | O71: 400 | P71: 150 | Q71: 3.125 | R71: 50 | S71: 0.8 | T71: 1.5 | U71: 2.2 | V71: 2.6 | W71: 1 | X71: 44 | Y71: 30 | Z71: 300 | AA71: 143 | AB71: 1.2 | AC71: (NULL) | AD71: (NULL) | AE71: (NULL) | AF71: 0.0033 | AG71: (NULL) | AH71: (NULL) | AI71: 0.0023 | AJ71: 0.9 | AK71: 25 | AL71: 12 | AM71: 6.9 | AN71: 52 | AO71: 59 | AP71: 4.2 | AQ71: 3.9 | AR71: 4.29 | AS71: 5.25 | AT71: 0.9 | AU71: 6.58 | AV71: 0.34 | AW71: 0.022 | AX71: 0.4 | AY71: 20 | AZ71: 10 | BA71: 0.01 | BB71: 2.5 | BC71: 1.2 | BD71: 260 | BE71: 2 | BF71: 260 | BG71: 40 | BH71: 2 | BI71: 40 | BJ71: 0.01 | BK71: 0.2 | BL71: N | BM71: 0.8 | BN71: (NULL) | BO71: 1345 | BP71: 4.1 | BQ71: Y | BR71: http://www.ti.com/lit/ds/symlink/csd18502Q5B.pdf | BS71: (NULL) | BT71: 2.4 | BU71: 3.3 | BV71: 88 | BW71: 8.4 | BX71: 10.3 | BY71: (NULL) | BZ71: SON5X6 | CA71: (NULL) | CB71: (NULL) | CC71: (NULL) | CD71: 42564 | CE71: 2049 | CF71: 0.81
A72: CSD18503KCS | B72: 146 | C72: Y | D72: N | E72: WB_MOSFET_N_D2G1S3 | F72: TO-220AB | G72: Updated by PJ Added by Gerold | H72: N | I72: 1 | J72: 0 | K72: 4 | L72: 40 | M72: 20 | N72: 100 | O72: 155 | P72: 150 | Q72: 143 | R72: 62 | S72: 0.9 | T72: 1.5 | U72: 2.3 | V72: 3.4 | W72: 1 | X72: 37 | Y72: 75 | Z72: 300 | AA72: 98 | AB72: 1.4 | AC72: (NULL) | AD72: (NULL) | AE72: (NULL) | AF72: 0.0068 | AG72: (NULL) | AH72: (NULL) | AI72: 0.0045 | AJ72: 0.87 | AK72: 15 | AL72: 6.5 | AM72: 4.7 | AN72: 30 | AO72: 30 | AP72: 2.4 | AQ72: 2.3 | AR72: 2.5 | AS72: 2.4 | AT72: 0.5 | AU72: 3.1 | AV72: 0.21 | AW72: 0.012 | AX72: 0.23 | AY72: 20 | AZ72: 10 | BA72: 0.01 | BB72: 1.8 | BC72: 0.8 | BD72: 160 | BE72: 2 | BF72: 160 | BG72: 40 | BH72: 7.8 | BI72: 40 | BJ72: 0.01 | BK72: 0.38 | BL72: N | BM72: 0.8 | BN72: (NULL) | BO72: 42 | BP72: 2.27 | BQ72: Y | BR72: http://www.ti.com/lit/ds/symlink/csd18503kcs.pdf | BS72: (NULL) | BT72: 2.8 | BU72: 3.8 | BV72: 60 | BW72: 4.6 | BX72: 7.7 | BY72: (NULL) | BZ72: TO-220 | CA72: (NULL) | CB72: (NULL) | CC72: 42577 | CD72: 42577 | CE72: 2532 | CF72: 0.55
A73: CSD18503Q5A | B73: 146 | C73: Y | D73: Y | E73: WB_MOSFET_N_D56789G4S123 | F73: TRANS_NexFET_Q5A | G73: Added by Gerold; PJ added new params from PL; Oliver set ROHS to E and Automotive to N | H73: N | I73: 1 | J73: 0 | K73: 1 | L73: 40 | M73: 20 | N73: 100 | O73: 321 | P73: 150 | Q73: 3.125 | R73: 50 | S73: 1.3 | T73: 1.5 | U73: 2.3 | V73: 2.53 | W73: 1 | X73: 37 | Y73: 22 | Z73: 300 | AA73: 100 | AB73: 1.2 | AC73: (NULL) | AD73: (NULL) | AE73: (NULL) | AF73: 0.0062 | AG73: (NULL) | AH73: (NULL) | AI73: 0.0043 | AJ73: 0.9 | AK73: 13 | AL73: 6 | AM73: 3.8 | AN73: 26.25 | AO73: 30 | AP73: 2.5 | AQ73: 2.2 | AR73: 2.5 | AS73: 2.86 | AT73: 0.5 | AU73: 3.6 | AV73: 0.24 | AW73: 0.013 | AX73: 0.3 | AY73: 20 | AZ73: 10 | BA73: 0.1 | BB73: 12 | BC73: 1 | BD73: 110 | BE73: 2.1 | BF73: 110 | BG73: 40 | BH73: 1.7 | BI73: 40 | BJ73: 0.1 | BK73: 0.4 | BL73: N | BM73: 0.8 | BN73: (NULL) | BO73: 1155 | BP73: 2.2 | BQ73: E | BR73: http://www.ti.com/lit/ds/symlink/csd18503q5a.pdf | BS73: (NULL) | BT73: 2.4 | BU73: 3.5 | BV73: 52 | BW73: 4.3 | BX73: 4.5 | BY73: (NULL) | BZ73: SON5X6 | CA73: N | CB73: (NULL) | CC73: 41163 | CD73: 42669 | CE73: 2050 | CF73: 0.44
A74: CSD18504KCS | B74: 146 | C74: Y | D74: A | E74: WB_MOSFET_N_D2G1S3 | F74: KCS0003B | G74: Added by Gerold; Updated by PJ; Oliver updated Thermal_Id set Automotive and set Available to A | H74: N | I74: 1 | J74: 0 | K74: 4 | L74: 40 | M74: 20 | N74: 100 | O74: 238 | P74: 175 | Q74: 115 | R74: 62 | S74: 1.3 | T74: 1.5 | U74: 2.3 | V74: 3.36 | W74: 1 | X74: 33 | Y74: 40 | Z74: 300 | AA74: 72 | AB74: 1.5 | AC74: (NULL) | AD74: (NULL) | AE74: (NULL) | AF74: 0.01 | AG74: (NULL) | AH74: (NULL) | AI74: 0.007 | AJ74: 0.88 | AK74: 9.2 | AL74: 3.8 | AM74: 3 | AN74: 19 | AO74: 19 | AP74: 1.5 | AQ74: 1.38 | AR74: 1.53 | AS74: 1.59 | AT74: 0.32 | AU74: 1.89 | AV74: 0.151 | AW74: 0.008 | AX74: 0.176 | AY74: 20 | AZ74: 10 | BA74: 0.1 | BB74: 7.14 | BC74: 1.2 | BD74: 100 | BE74: 2.18 | BF74: 100 | BG74: 40 | BH74: 0.91 | BI74: 40 | BJ74: 0.1 | BK74: 0.56 | BL74: N | BM74: 0.8 | BN74: (NULL) | BO74: 42 | BP74: 1.42 | BQ74: Y | BR74: http://www.ti.com/lit/ds/symlink/csd18504kcs.pdf | BS74: (NULL) | BT74: 3 | BU74: 3.9 | BV74: 46 | BW74: 3.5 | BX74: 4.4 | BY74: N | BZ74: TO-220 | CA74: N | CB74: (NULL) | CC74: 42577 | CD74: 42664 | CE74: 2533 | CF74: 0.44
A75: CSD18504Q5A | B75: 146 | C75: Y | D75: Y | E75: WB_MOSFET_N_D56789G4S123 | F75: TRANS_NexFET_Q5A | G75: PJ added new params from PL;Added by Gerold | H75: N | I75: 1 | J75: 0 | K75: 1 | L75: 40 | M75: 20 | N75: 50 | O75: 275 | P75: 150 | Q75: 3.125 | R75: 50 | S75: 2 | T75: 1.5 | U75: 2.4 | V75: 2.98 | W75: 1 | X75: 28 | Y75: 17 | Z75: 300 | AA75: 71 | AB75: 1.4 | AC75: (NULL) | AD75: (NULL) | AE75: (NULL) | AF75: 0.0098 | AG75: (NULL) | AH75: (NULL) | AI75: 0.0066 | AJ75: 0.84 | AK75: 7.7 | AL75: 3.2 | AM75: 2.2 | AN75: 16 | AO75: 21 | AP75: 1.45 | AQ75: 1.38 | AR75: 1.49 | AS75: 1.74 | AT75: 0.31 | AU75: 2.07 | AV75: 0.14 | AW75: 0.008 | AX75: 0.167 | AY75: 20 | AZ75: 10 | BA75: 0.1 | BB75: 8 | BC75: 1 | BD75: 90 | BE75: 1.7 | BF75: 90 | BG75: 40 | BH75: 0.95 | BI75: 40 | BJ75: 0.1 | BK75: 1.25 | BL75: N | BM75: 0.8 | BN75: (NULL) | BO75: 1155 | BP75: 1.42 | BQ75: Y | BR75: http://www.ti.com/lit/ds/symlink/csd18504q5a.pdf | BS75: (NULL) | BT75: 2.8 | BU75: 3.5 | BV75: 39 | BW75: 2.4 | BX75: 3.2 | BY75: (NULL) | BZ75: SON5X6 | CA75: N | CB75: (NULL) | CC75: 41163 | CD75: 42564 | CE75: 2051 | CF75: 0.31
A76: CSD18509Q5B | B76: 146 | C76: Y | D76: Y | E76: WB_MOSFET_N_D56789G4S123 | F76: TRANS_NexFET_Q5B | G76: Updated PJ for missing entries.Updated by PJ 7/5 RL: Updated Thermal_Id DNK0008A -> TRANS_NexFET_Q5B; Added by Hadi | H76: N | I76: 1 | J76: 0 | K76: 1 | L76: 40 | M76: 20 | N76: 100 | O76: 400 | P76: 150 | Q76: 3.125 | R76: 50 | S76: 0.8 | T76: 1.5 | U76: 2.2 | V76: 2.8 | W76: 1 | X76: 23 | Y76: 32 | Z76: 300 | AA76: 180 | AB76: 0.8 | AC76: (NULL) | AD76: (NULL) | AE76: (NULL) | AF76: 0.0017 | AG76: (NULL) | AH76: (NULL) | AI76: 0.0012 | AJ76: 0.82 | AK76: 70 | AL76: 29 | AM76: 18 | AN76: 150 | AO76: 39 | AP76: 11.5 | AQ76: 10.7 | AR76: 12.3 | AS76: 6.1 | AT76: 0.821 | AU76: 9.01 | AV76: 0.778 | AW76: 0.272 | AX76: 1.68 | AY76: 20 | AZ76: 10 | BA76: 0.1 | BB76: 45.8 | BC76: 0.87 | BD76: 400 | BE76: 1.29 | BF76: 400 | BG76: 40 | BH76: 1.52 | BI76: 40 | BJ76: 0.1 | BK76: 0.07 | BL76: N | BM76: 0.8 | BN76: (NULL) | BO76: 1345 | BP76: 12 | BQ76: Y | BR76: http://www.ti.com/lit/ds/symlink/csd18509q5b.pdf | BS76: (NULL) | BT76: 1.6 | BU76: 2.7 | BV76: 40 | BW76: 17 | BX76: 29 | BY76: (NULL) | BZ76: SON5X6 | CA76: (NULL) | CB76: (NULL) | CC76: 42537 | CD76: 42585 | CE76: 2534 | CF76: 0.76
A77: CSD18510KCS | B77: 146 | C77: N | D77: Y | E77: WB_MOSFET_N_D56789G4S123 | F77: TRANS_NexFET_Q5B | G77: JW | H77: N | I77: 1 | J77: 0 | K77: 4 | L77: 40 | M77: 20 | N77: 200 | O77: 400 | P77: 175 | Q77: 250 | R77: 62 | S77: 0.6 | T77: 1.4 | U77: 2.3 | V77: 3.2 | W77: 1 | X77: 41 | Y77: 100 | Z77: 300 | AA77: 330 | AB77: 0.9 | AC77: (NULL) | AD77: (NULL) | AE77: (NULL) | AF77: 0.0026 | AG77: (NULL) | AH77: (NULL) | AI77: 0.0014 | AJ77: 0.82 | AK77: 58 | AL77: 22 | AM77: 15 | AN77: 118 | AO77: 35 | AP77: 9.48 | AQ77: 8.42 | AR77: 10.13 | AS77: 5.54 | AT77: 0.844 | AU77: 9.45 | AV77: 1.15 | AW77: 0.373 | AX77: 1.91 | AY77: 20 | AZ77: 10 | BA77: 0.1 | BB77: 45.8 | BC77: 0.87 | BD77: 400 | BE77: 1.29 | BF77: 400 | BG77: 40 | BH77: 1.52 | BI77: 40 | BJ77: 0.1 | BK77: 0.07 | BL77: N | BM77: 0.85 | BN77: Y | BO77: 42 | BP77: 12 | BQ77: Y | BR77: http://www.ti.com/lit/ds/symlink/csd18510kcs.pdf | BS77: (NULL) | BT77: 1.8 | BU77: 2.7 | BV77: 70 | BW77: 21 | BX77: 28 | BY77: (NULL) | BZ77: TO-220 | CA77: (NULL) | CB77: (NULL) | CC77: 43724 | CD77: 43724 | CE77: 2534 | CF77: 0.72
A78: CSD18510KTT | B78: 146 | C78: N | D78: Y | E78: WB_MOSFET_N_D56789G4S123 | F78: TRANS_NexFET_Q5B | G78: JW | H78: N | I78: 1 | J78: 0 | K78: 1 | L78: 40 | M78: 20 | N78: 200 | O78: 274 | P78: 175 | Q78: 250 | R78: 62 | S78: 0.6 | T78: 1.4 | U78: 2.3 | V78: 3.5 | W78: 1 | X78: 41 | Y78: 100 | Z78: 300 | AA78: 330 | AB78: 0.9 | AC78: (NULL) | AD78: (NULL) | AE78: (NULL) | AF78: 0.0026 | AG78: (NULL) | AH78: (NULL) | AI78: 0.0014 | AJ78: 0.82 | AK78: 58 | AL78: 22 | AM78: 15 | AN78: 118 | AO78: 35 | AP78: 9.48 | AQ78: 8.42 | AR78: 10.13 | AS78: 5.54 | AT78: 0.844 | AU78: 9.45 | AV78: 1.15 | AW78: 0.373 | AX78: 1.91 | AY78: 20 | AZ78: 10 | BA78: 0.1 | BB78: 45.8 | BC78: 0.87 | BD78: 400 | BE78: 1.29 | BF78: 400 | BG78: 40 | BH78: 1.52 | BI78: 40 | BJ78: 0.1 | BK78: 0.07 | BL78: N | BM78: 0.85 | BN78: (NULL) | BO78: (NULL) | BP78: 12 | BQ78: Y | BR78: http://www.ti.com/lit/ds/symlink/csd18510ktt.pdf | BS78: (NULL) | BT78: 1.8 | BU78: 2.7 | BV78: 70 | BW78: 21 | BX78: 28 | BY78: (NULL) | BZ78: DDPAK | CA78: (NULL) | CB78: (NULL) | CC78: 43724 | CD78: 43724 | CE78: 2534 | CF78: 0.77
A79: CSD18510Q5B | B79: 146 | C79: N | D79: Y | E79: WB_MOSFET_N_D56789G4S123 | F79: TRANS_NexFET_Q5B | G79: JW | H79: N | I79: 1 | J79: 0 | K79: 1 | L79: 40 | M79: 20 | N79: 100 | O79: 400 | P79: 150 | Q79: 3.1 | R79: 50 | S79: 0.8 | T79: 1.2 | U79: 2.3 | V79: 2.9 | W79: 1 | X79: 19 | Y79: 32 | Z79: 300 | AA79: 147 | AB79: 0.9 | AC79: (NULL) | AD79: (NULL) | AE79: (NULL) | AF79: 0.0016 | AG79: (NULL) | AH79: (NULL) | AI79: 0.00096 | AJ79: 0.82 | AK79: 58 | AL79: 22 | AM79: 15 | AN79: 118 | AO79: 35 | AP79: 9.48 | AQ79: 8.42 | AR79: 10.13 | AS79: 5.54 | AT79: 0.844 | AU79: 9.45 | AV79: 1.15 | AW79: 0.373 | AX79: 1.91 | AY79: 20 | AZ79: 10 | BA79: 0.1 | BB79: 45.8 | BC79: 0.87 | BD79: 400 | BE79: 1.29 | BF79: 400 | BG79: 40 | BH79: 1.52 | BI79: 40 | BJ79: 0.1 | BK79: 0.07 | BL79: N | BM79: 0.8 | BN79: (NULL) | BO79: 1145 | BP79: 12 | BQ79: Y | BR79: http://www.ti.com/lit/ds/symlink/csd18510q5b.pdf | BS79: (NULL) | BT79: 1.8 | BU79: 2.7 | BV79: 31 | BW79: 21 | BX79: 28 | BY79: (NULL) | BZ79: SON5X6 | CA79: (NULL) | CB79: (NULL) | CC79: 43724 | CD79: 43724 | CE79: 2534 | CF79: 0.75
A80: CSD18511KCS | B80: 146 | C80: N | D80: Y | E80: WB_MOSFET_N_D56789G4S123 | F80: TRANS_NexFET_Q5A | G80: JW | H80: N | I80: 1 | J80: 0 | K80: 4 | L80: 40 | M80: 20 | N80: 110 | O80: 400 | P80: 175 | Q80: 188 | R80: 62 | S80: 0.8 | T80: 1.5 | U80: 2.4 | V80: 3.6 | W80: 1 | X80: 31 | Y80: 100 | Z80: 300 | AA80: 249 | AB80: 0.9 | AC80: (NULL) | AD80: (NULL) | AE80: (NULL) | AF80: 0.0042 | AG80: (NULL) | AH80: (NULL) | AI80: 0.0026 | AJ80: 0.66 | AK80: 31 | AL80: 10 | AM80: 7.4 | AN80: 64 | AO80: 20.7 | AP80: 4.83 | AQ80: 4.36 | AR80: 5.18 | AS80: 2.91 | AT80: 0.442 | AU80: 5.14 | AV80: 0.532 | AW80: 0.19 | AX80: 0.957 | AY80: 20 | AZ80: 10 | BA80: 0.1 | BB80: 25 | BC80: 0.9 | BD80: 100 | BE80: 1 | BF80: 200 | BG80: 40 | BH80: 1 | BI80: 40 | BJ80: 0.5 | BK80: 1.12 | BL80: N | BM80: 0.9 | BN80: Y | BO80: 42 | BP80: 4.5 | BQ80: Y | BR80: http://www.ti.com/lit/ds/symlink/csd18511kcs.pdf | BS80: (NULL) | BT80: 1.8 | BU80: 4.5 | BV80: 62 | BW80: 9.7 | BX80: 17.9 | BY80: N | BZ80: TO-220 | CA80: N | CB80: (NULL) | CC80: 43724 | CD80: 43724 | CE80: 3305 | CF80: 0.51
A81: CSD18511KTT | B81: 146 | C81: N | D81: Y | E81: WB_MOSFET_N_D56789G4S123 | F81: TRANS_NexFET_Q5A | G81: JW | H81: N | I81: 1 | J81: 0 | K81: 1 | L81: 40 | M81: 20 | N81: 110 | O81: 400 | P81: 175 | Q81: 188 | R81: 62 | S81: 0.8 | T81: 1.5 | U81: 2.4 | V81: 3.64 | W81: 1 | X81: 31 | Y81: 100 | Z81: 300 | AA81: 249 | AB81: 0.9 | AC81: (NULL) | AD81: (NULL) | AE81: (NULL) | AF81: 0.0042 | AG81: (NULL) | AH81: (NULL) | AI81: 0.0026 | AJ81: 0.66 | AK81: 31 | AL81: 10 | AM81: 7.4 | AN81: 64 | AO81: 20.7 | AP81: 4.83 | AQ81: 4.36 | AR81: 5.18 | AS81: 2.91 | AT81: 0.442 | AU81: 5.14 | AV81: 0.532 | AW81: 0.19 | AX81: 0.957 | AY81: 20 | AZ81: 10 | BA81: 0.1 | BB81: 25 | BC81: 0.9 | BD81: 100 | BE81: 1 | BF81: 200 | BG81: 40 | BH81: 1 | BI81: 40 | BJ81: 0.5 | BK81: 1.12 | BL81: N | BM81: 0.9 | BN81: N | BO81: (NULL) | BP81: 4.5 | BQ81: Y | BR81: http://www.ti.com/lit/ds/symlink/csd18511ktt.pdf | BS81: (NULL) | BT81: 1.8 | BU81: 4.5 | BV81: 62 | BW81: 9.7 | BX81: 17.9 | BY81: N | BZ81: DDPAK | CA81: N | CB81: (NULL) | CC81: 43724 | CD81: 43724 | CE81: 3305 | CF81: 0.56
A82: CSD18511Q5A | B82: 146 | C82: Y | D82: Y | E82: WB_MOSFET_N_D56789G4S123 | F82: TRANS_NexFET_Q5A | G82: Hadi: per brett barr request; Oliver corrected Thermal_Id | H82: N | I82: 1 | J82: 0 | K82: 1 | L82: 40 | M82: 20 | N82: 100 | O82: 400 | P82: 150 | Q82: 3.1 | R82: 50 | S82: 1.2 | T82: 1.5 | U82: 2.4 | V82: 3.15 | W82: 1 | X82: 14 | Y82: 24 | Z82: 300 | AA82: 5.2 | AB82: 0.7 | AC82: (NULL) | AD82: (NULL) | AE82: (NULL) | AF82: 0.0035 | AG82: (NULL) | AH82: (NULL) | AI82: 0.0023 | AJ82: 0.66 | AK82: 31 | AL82: 10 | AM82: 8.2 | AN82: 63 | AO82: 20 | AP82: 5.75 | AQ82: 4.5 | AR82: 5.85 | AS82: 5 | AT82: 0.45 | AU82: 0.588 | AV82: 1 | AW82: 0.21 | AX82: 0.309 | AY82: 20 | AZ82: 10 | BA82: 0.1 | BB82: 25 | BC82: 0.9 | BD82: 100 | BE82: 1 | BF82: 200 | BG82: 40 | BH82: 1 | BI82: 40 | BJ82: 0.5 | BK82: 1.12 | BL82: N | BM82: 0.75 | BN82: N | BO82: 1155 | BP82: 4.5 | BQ82: Y | BR82: http://www.ti.com/lit/ds/symlink/csd18511q5a.pdf | BS82: (NULL) | BT82: 1.4 | BU82: 4.5 | BV82: 17 | BW82: 11.2 | BX82: 13.2 | BY82: N | BZ82: SON5X6 | CA82: N | CB82: (NULL) | CC82: 42781 | CD82: (NULL) | CE82: 3305 | CF82: 0.41
A83: CSD18512Q5B | B83: 146 | C83: Y | D83: Y | E83: WB_MOSFET_N_D56789G4S123 | F83: TRANS_NexFET_Q5B | G83: Hadi: per brett barr request; Oliver corrected URL | H83: N | I83: 1 | J83: 0 | K83: 1 | L83: 40 | M83: 20 | N83: 100 | O83: 400 | P83: 150 | Q83: 3.1 | R83: 50 | S83: 0.9 | T83: 1.3 | U83: 2.2 | V83: 2.9 | W83: 1 | X83: 17 | Y83: 30 | Z83: 300 | AA83: 136 | AB83: 1 | AC83: (NULL) | AD83: (NULL) | AE83: (NULL) | AF83: 0.0023 | AG83: (NULL) | AH83: (NULL) | AI83: 0.0016 | AJ83: 0.73 | AK83: 37 | AL83: 6 | AM83: 8.2 | AN83: 75 | AO83: 23 | AP83: 7 | AQ83: 6.5 | AR83: 7.12 | AS83: 6 | AT83: 0.5 | AU83: 0.699 | AV83: 1.4 | AW83: 0.23 | AX83: 0.333 | AY83: 20 | AZ83: 10 | BA83: 0.1 | BB83: 25 | BC83: 0.9 | BD83: 100 | BE83: 1 | BF83: 180 | BG83: 40 | BH83: 0.8 | BI83: 40 | BJ83: 0.5 | BK83: 1.05 | BL83: N | BM83: 1 | BN83: N | BO83: 1145 | BP83: 5.85 | BQ83: Y | BR83: http://www.ti.com/lit/ds/symlink/csd18512q5b.pdf | BS83: (NULL) | BT83: 2 | BU83: 4.5 | BV83: 22 | BW83: 13.3 | BX83: 15.1 | BY83: N | BZ83: SON5X6 | CA83: N | CB83: (NULL) | CC83: 42782 | CD83: (NULL) | CE83: 3306 | CF83: 0.58
A84: CSD18513Q5A | B84: 146 | C84: Y | D84: Y | E84: WB_MOSFET_N_D56789G4S123 | F84: TRANS_NexFET_Q5A | G84: Hadi: per brett barr request; Oliver corrected Thermal_Id | H84: N | I84: 1 | J84: 0 | K84: 1 | L84: 40 | M84: 20 | N84: 100 | O84: 400 | P84: 150 | Q84: 3.1 | R84: 50 | S84: 1.3 | T84: 1.5 | U84: 2.4 | V84: 3.18 | W84: 1 | X84: 12 | Y84: 19 | Z84: 300 | AA84: 89 | AB84: 0.9 | AC84: (NULL) | AD84: (NULL) | AE84: (NULL) | AF84: 0.0053 | AG84: (NULL) | AH84: (NULL) | AI84: 0.0034 | AJ84: 0.6 | AK84: 23 | AL84: 7 | AM84: 5.8 | AN84: 45 | AO84: 15 | AP84: 4 | AQ84: 3.2 | AR84: 4.28 | AS84: 3 | AT84: 0.22 | AU84: 0.433 | AV84: 0.8 | AW84: 0.09 | AX84: 0.231 | AY84: 20 | AZ84: 10 | BA84: 0.1 | BB84: 15 | BC84: 0.9 | BD84: 100 | BE84: 1 | BF84: 180 | BG84: 40 | BH84: 0.8 | BI84: 40 | BJ84: 0.6 | BK84: 1.08 | BL84: N | BM84: 1 | BN84: N | BO84: 1155 | BP84: 3.1 | BQ84: Y | BR84: http://www.ti.com/lit/ds/symlink/csd18513q5a.pdf | BS84: (NULL) | BT84: 1.8 | BU84: 4.5 | BV84: 14.7 | BW84: 8.8 | BX84: 9.1 | BY84: N | BZ84: SON5X6 | CA84: N | CB84: (NULL) | CC84: 42781 | CD84: (NULL) | CE84: 3237 | CF84: 0.34
A85: CSD18514Q5A | B85: 146 | C85: Y | D85: Y | E85: WB_MOSFET_N_D56789G4S123 | F85: TRANS_NexFET_Q5A | G85: Hadi: per brett barr request; Oliver corrected Thermal_Id | H85: N | I85: 1 | J85: 0 | K85: 1 | L85: 40 | M85: 20 | N85: 50 | O85: 237 | P85: 150 | Q85: 3.1 | R85: 50 | S85: 1.7 | T85: 1.5 | U85: 2.4 | V85: 3.3 | W85: 1 | X85: 9 | Y85: 14 | Z85: 300 | AA85: 59 | AB85: 1.3 | AC85: (NULL) | AD85: (NULL) | AE85: (NULL) | AF85: 0.0079 | AG85: (NULL) | AH85: (NULL) | AI85: 0.0049 | AJ85: 0.62 | AK85: 14 | AL85: 5 | AM85: 3.4 | AN85: 29 | AO85: 9.2 | AP85: 2.4 | AQ85: 2 | AR85: 2.68 | AS85: 1.9 | AT85: 0.2 | AU85: 0.268 | AV85: 0.4 | AW85: 0.1 | AX85: 0.138 | AY85: 20 | AZ85: 10 | BA85: 0.1 | BB85: 10 | BC85: 0.9 | BD85: 100 | BE85: 1 | BF85: 180 | BG85: 40 | BH85: 0.6 | BI85: 40 | BJ85: 0.6 | BK85: 1.05 | BL85: N | BM85: 1 | BN85: N | BO85: 1155 | BP85: 1.8 | BQ85: Y | BR85: http://www.ti.com/lit/ds/symlink/csd18514q5a.pdf | BS85: (NULL) | BT85: 2.6 | BU85: 4.5 | BV85: 8.5 | BW85: 5 | BX85: 6 | BY85: N | BZ85: SON5X6 | CA85: N | CB85: (NULL) | CC85: 42781 | CD85: (NULL) | CE85: 3307 | CF85: 0.24
A86: CSD18531Q5A | B86: 146 | C86: Y | D86: Y | E86: WB_MOSFET_N_D56789G4S123 | F86: TRANS_NexFET_Q5A | G86: Added by Gerold; PJ added new params from PL; Oliver set ROHS to E and Automotive to N | H86: N | I86: 1 | J86: 0 | K86: 1 | L86: 60 | M86: 20 | N86: 100 | O86: 370 | P86: 150 | Q86: 3.125 | R86: 50 | S86: 1 | T86: 1.5 | U86: 2.3 | V86: 2.9 | W86: 1 | X86: 40 | Y86: 22 | Z86: 300 | AA86: 128 | AB86: 1.2 | AC86: (NULL) | AD86: (NULL) | AE86: (NULL) | AF86: 0.0058 | AG86: (NULL) | AH86: (NULL) | AI86: 0.0046 | AJ86: 0.95 | AK86: 18 | AL86: 7 | AM86: 5.2 | AN86: 36 | AO86: 32 | AP86: 3.48 | AQ86: 3.2 | AR86: 3.54 | AS86: 3.51 | AT86: 0.4 | AU86: 4.26 | AV86: 0.2 | AW86: 0.011 | AX86: 0.215 | AY86: 30 | AZ86: 10 | BA86: 0.1 | BB86: 12 | BC86: 1.4 | BD86: 160 | BE86: 2.6 | BF86: 160 | BG86: 60 | BH86: 1.5 | BI86: 60 | BJ86: 0.1 | BK86: 0.29 | BL86: N | BM86: 0.8 | BN86: (NULL) | BO86: 1155 | BP86: 3.39 | BQ86: E | BR86: http://www.ti.com/lit/ds/symlink/csd18531q5a.pdf | BS86: (NULL) | BT86: 2.4 | BU86: 3.4 | BV86: 100 | BW86: 5.9 | BX86: 6.9 | BY86: (NULL) | BZ86: SON5X6 | CA86: N | CB86: (NULL) | CC86: 41163 | CD86: 42669 | CE86: 2052 | CF86: 0.56
A87: CSD18532KCS | B87: 146 | C87: Y | D87: A | E87: WB_MOSFET_N_D2G1S3 | F87: KCS0003B | G87: Added by Gerold; Updated by PJ; Oliver updated Thermal_Id updated Mount and set Available to A | H87: N | I87: 1 | J87: 0 | K87: 4 | L87: 60 | M87: 20 | N87: 100 | O87: 400 | P87: 175 | Q87: 2.5 | R87: 62 | S87: 0.6 | T87: 1.5 | U87: 2.2 | V87: 3.44 | W87: 1 | X87: 57 | Y87: 100 | Z87: 300 | AA87: 187 | AB87: 1.3 | AC87: (NULL) | AD87: (NULL) | AE87: (NULL) | AF87: 0.0053 | AG87: (NULL) | AH87: (NULL) | AI87: 0.0042 | AJ87: 0.97 | AK87: 21 | AL87: 10 | AM87: 7.3 | AN87: 44 | AO87: 52 | AP87: 4.24 | AQ87: 3.9 | AR87: 4.3 | AS87: 4.55 | AT87: 0.47 | AU87: 5.55 | AV87: 0.304 | AW87: 0.011 | AX87: 0.35 | AY87: 30 | AZ87: 10 | BA87: 0.1 | BB87: 9.55 | BC87: 3.11 | BD87: 300 | BE87: 4.63 | BF87: 200 | BG87: 60 | BH87: 1.9 | BI87: 60 | BJ87: 0.1 | BK87: 0.2 | BL87: N | BM87: 0.8 | BN87: (NULL) | BO87: 42 | BP87: 3.85 | BQ87: Y | BR87: http:// www.ti.com/lit/ds/symlink/csd18532kcs.pdf | BS87: (NULL) | BT87: 2.6 | BU87: 3.6 | BV87: 127 | BW87: 6.9 | BX87: 10 | BY87: N | BZ87: TO-220 | CA87: N | CB87: (NULL) | CC87: 41163 | CD87: 42664 | CE87: 2535 | CF87: 0.78
A88: CSD18532NQ5B | B88: 146 | C88: Y | D88: Y | E88: WB_MOSFET_N_D56789G4S123 | F88: DNK0008A | G88: Updated by PJ; Oliver set Thermal_Id Mount symbol Automotive and set Avaialble to A | H88: N | I88: 1 | J88: 0 | K88: 1 | L88: 60 | M88: 20 | N88: 100 | O88: 400 | P88: 150 | Q88: 3.1 | R88: 50 | S88: 0.8 | T88: 2.4 | U88: 3.4 | V88: 4.5 | W88: 1 | X88: 64 | Y88: 25 | Z88: 300 | AA88: 140 | AB88: 1.2 | AC88: (NULL) | AD88: (NULL) | AE88: (NULL) | AF88: (NULL) | AG88: 0.0044 | AH88: (NULL) | AI88: 0.0034 | AJ88: 0.85 | AK88: 22 | AL88: 9.2 | AM88: 11 | AN88: 49 | AO88: 69 | AP88: 4.35 | AQ88: 4.1 | AR88: 4.39 | AS88: 4.86 | AT88: 0.495 | AU88: 5.9 | AV88: 0.248 | AW88: 0.016 | AX88: 0.264 | AY88: 30 | AZ88: 10 | BA88: 0.1 | BB88: 9 | BC88: 1.89 | BD88: 170 | BE88: 3.08 | BF88: 170 | BG88: 60 | BH88: 0.86 | BI88: 60 | BJ88: 0.1 | BK88: 0.21 | BL88: N | BM88: 0.8 | BN88: (NULL) | BO88: (NULL) | BP88: (NULL) | BQ88: Y | BR88: http://www.ti.com/lit/ds/symlink/csd18532nq5b.pdf | BS88: (NULL) | BT88: 2.4 | BU88: 4.3 | BV88: 139 | BW88: 7.9 | BX88: 16 | BY88: N | BZ88: SON5X6 | CA88: N | CB88: (NULL) | CC88: 42577 | CD88: 42664 | CE88: 2536 | CF88: 0.81
A89: CSD18532Q5B | B89: 146 | C89: Y | D89: Y | E89: WB_MOSFET_N_D56789G4S123 | F89: TRANS_NexFET_Q5B | G89: PJ added new params from PL;Added by Gerold | H89: N | I89: 1 | J89: 0 | K89: 1 | L89: 60 | M89: 20 | N89: 100 | O89: 400 | P89: 150 | Q89: 3.125 | R89: 50 | S89: 0.8 | T89: 1.5 | U89: 2.2 | V89: 3.1 | W89: 1 | X89: 49 | Y89: 25 | Z89: 300 | AA89: 143 | AB89: 1.2 | AC89: (NULL) | AD89: (NULL) | AE89: (NULL) | AF89: 0.0043 | AG89: (NULL) | AH89: (NULL) | AI89: 0.0032 | AJ89: 1.04 | AK89: 20 | AL89: 8.75 | AM89: 6.3 | AN89: 44 | AO89: 52 | AP89: 4.2 | AQ89: 4 | AR89: 4.3 | AS89: 4.36 | AT89: 0.48 | AU89: 5.22 | AV89: 0.256 | AW89: 0.014 | AX89: 0.26 | AY89: 30 | AZ89: 10 | BA89: 0.1 | BB89: 17 | BC89: 1.4 | BD89: 200 | BE89: 2.6 | BF89: 200 | BG89: 60 | BH89: 0.9 | BI89: 60 | BJ89: 0.1 | BK89: 0.23 | BL89: N | BM89: 0.8 | BN89: (NULL) | BO89: 1345 | BP89: 4.03 | BQ89: Y | BR89: http://www.ti.com/lit/ds/symlink/csd18532q5b.pdf | BS89: (NULL) | BT89: 2.4 | BU89: 3.2 | BV89: 111 | BW89: 6.9 | BX89: 10 | BY89: (NULL) | BZ89: SON5X6 | CA89: (NULL) | CB89: (NULL) | CC89: (NULL) | CD89: 42564 | CE89: 2053 | CF89: 0.81
A90: CSD18533KCS | B90: 146 | C90: Y | D90: N | E90: WB_MOSFET_N_D2G1S3 | F90: TO-220AB | G90: Updated by PJ Added by Gerold | H90: N | I90: 1 | J90: 0 | K90: 4 | L90: 60 | M90: 20 | N90: 100 | O90: 294 | P90: 175 | Q90: 192 | R90: 62 | S90: 0.8 | T90: 1.5 | U90: 2.3 | V90: 3.79 | W90: 1 | X90: 49 | Y90: 75 | Z90: 300 | AA90: 150 | AB90: 1.4 | AC90: (NULL) | AD90: (NULL) | AE90: (NULL) | AF90: 0.009 | AG90: (NULL) | AH90: (NULL) | AI90: 0.0063 | AJ90: 0.96 | AK90: 14 | AL90: 6 | AM90: 4.6 | AN90: 28 | AO90: 31 | AP90: 2.45 | AQ90: 2.42 | AR90: 2.5 | AS90: 2.29 | AT90: 0.3 | AU90: 2.8 | AV90: 0.232 | AW90: 0.007 | AX90: 0.28 | AY90: 30 | AZ90: 10 | BA90: 0.1 | BB90: 7.23 | BC90: 1.74 | BD90: 125 | BE90: 2.79 | BF90: 125 | BG90: 60 | BH90: 0.68 | BI90: 60 | BJ90: 0.1 | BK90: 0.36 | BL90: N | BM90: 0.8 | BN90: (NULL) | BO90: 42 | BP90: 2.22 | BQ90: Y | BR90: http://www.ti.com/lit/ds/symlink/csd18533kcs.pdf | BS90: (NULL) | BT90: 2.8 | BU90: 4 | BV90: 97 | BW90: 3.9 | BX90: 9.4 | BY90: (NULL) | BZ90: TO-220 | CA90: (NULL) | CB90: (NULL) | CC90: 42577 | CD90: 42577 | CE90: 2537 | CF90: 0.55
A91: CSD18533Q5A | B91: 146 | C91: Y | D91: Y | E91: WB_MOSFET_N_D56789G4S123 | F91: DQJ0008A | G91: Added by Gerold; Updated by PJ; Oliver updated Thermal_Id set Automotive and changed Available to A | H91: N | I91: 1 | J91: 0 | K91: 1 | L91: 60 | M91: 20 | N91: 100 | O91: 267 | P91: 150 | Q91: 3.2 | R91: 50 | S91: 1.3 | T91: 1.5 | U91: 2.3 | V91: 3.24 | W91: 1 | X91: 40 | Y91: 18 | Z91: 300 | AA91: 122 | AB91: 1.3 | AC91: (NULL) | AD91: (NULL) | AE91: (NULL) | AF91: 0.0085 | AG91: (NULL) | AH91: (NULL) | AI91: 0.0059 | AJ91: 1 | AK91: 14 | AL91: 5 | AM91: 4.7 | AN91: 29 | AO91: 31 | AP91: 2.44 | AQ91: 2.2 | AR91: 2.48 | AS91: 2.25 | AT91: 0.292 | AU91: 2.65 | AV91: 0.234 | AW91: 0.007 | AX91: 0.28 | AY91: 30 | AZ91: 10 | BA91: 0.1 | BB91: 8.5 | BC91: 1.18 | BD91: 100 | BE91: 2.49 | BF91: 100 | BG91: 60 | BH91: 0.69 | BI91: 60 | BJ91: 0.1 | BK91: 0.4 | BL91: N | BM91: 0.8 | BN91: (NULL) | BO91: 1155 | BP91: 2.2 | BQ91: Y | BR91: http://www.ti.com/lit/ds/symlink/csd18533q5a.pdf | BS91: (NULL) | BT91: 2.6 | BU91: 3.7 | BV91: 68 | BW91: 5.4 | BX91: 6.6 | BY91: N | BZ91: SON5X6 | CA91: N | CB91: (NULL) | CC91: 42577 | CD91: 42664 | CE91: 2538 | CF91: 0.44
A92: CSD18534KCS | B92: 146 | C92: Y | D92: A | E92: WB_MOSFET_N_D2G1S3 | F92: KCS0003B | G92: Added by Gerold; Updated by PJ; Oliver updated Thermal_Id set Mount and set Available to A | H92: N | I92: 1 | J92: 0 | K92: 4 | L92: 60 | M92: 20 | N92: 100 | O92: 164 | P92: 175 | Q92: 107 | R92: 62 | S92: 1.3 | T92: 1.5 | U92: 2.3 | V92: 3.29 | W92: 1 | X92: 49 | Y92: 40 | Z92: 300 | AA92: 100 | AB92: 1.5 | AC92: (NULL) | AD92: (NULL) | AE92: (NULL) | AF92: 0.0133 | AG92: (NULL) | AH92: (NULL) | AI92: 0.0095 | AJ92: 1.05 | AK92: 9.3 | AL92: 4 | AM92: 3.3 | AN92: 19 | AO92: 18 | AP92: 1.45 | AQ92: 1.4 | AR92: 1.5 | AS92: 1.45 | AT92: 0.164 | AU92: 1.7 | AV92: 0.14 | AW92: 0.005 | AX92: 0.16 | AY92: 30 | AZ92: 10 | BA92: 0.4 | BB92: 4.55 | BC92: 1.7 | BD92: 82 | BE92: 2.53 | BF92: 82 | BG92: 60 | BH92: 0.88 | BI92: 60 | BJ92: 0.1 | BK92: 0.59 | BL92: N | BM92: 0.8 | BN92: (NULL) | BO92: 42 | BP92: 1.34 | BQ92: Y | BR92: http://www.ti.com/lit/ds/symlink/csd18534kcs.pdf | BS92: (NULL) | BT92: 3 | BU92: 3.5 | BV92: 68 | BW92: 3.1 | BX92: 4.8 | BY92: N | BZ92: TO-220 | CA92: N | CB92: (NULL) | CC92: 42577 | CD92: 42664 | CE92: 2539 | CF92: 0.44
A93: CSD18534Q5A | B93: 146 | C93: Y | D93: Y | E93: WB_MOSFET_N_D56789G4S123 | F93: DQJ0008A | G93: Updated by PJ Added by Gerold | H93: N | I93: 1 | J93: 0 | K93: 1 | L93: 60 | M93: 20 | N93: 50 | O93: 229 | P93: 150 | Q93: 3.1 | R93: 50 | S93: 2 | T93: 1.5 | U93: 2.3 | V93: 2.81 | W93: 1 | X93: 40 | Y93: 14 | Z93: 300 | AA93: 72 | AB93: 1.5 | AC93: (NULL) | AD93: (NULL) | AE93: (NULL) | AF93: 0.0124 | AG93: (NULL) | AH93: (NULL) | AI93: 0.0098 | AJ93: 0.94 | AK93: 8.5 | AL93: 4.1 | AM93: 2.6 | AN93: 17 | AO93: 19 | AP93: 1.46 | AQ93: 1.36 | AR93: 1.48 | AS93: 1.55 | AT93: 0.167 | AU93: 1.89 | AV93: 0.14 | AW93: 0.005 | AX93: 0.158 | AY93: 30 | AZ93: 10 | BA93: 0.1 | BB93: 5.3 | BC93: 1.08 | BD93: 56.6 | BE93: 3.1 | BF93: 56.6 | BG93: 60 | BH93: 0.77 | BI93: 60 | BJ93: 0.1 | BK93: 0.63 | BL93: N | BM93: 0.8 | BN93: (NULL) | BO93: 1155 | BP93: 1.34 | BQ93: Y | BR93: http://www.ti.com/lit/ds/symlink/csd18534q5a.pdf | BS93: (NULL) | BT93: 3 | BU93: 3.5 | BV93: 54 | BW93: 3.5 | BX93: 3.2 | BY93: (NULL) | BZ93: SON5X6 | CA93: (NULL) | CB93: (NULL) | CC93: 42577 | CD93: 42577 | CE93: 2540 | CF93: 0.31
A94: CSD18535KCS | B94: 146 | C94: Y | D94: A | E94: WB_MOSFET_N_D2G1S3 | F94: KCS0003B | G94: Updated by PJ; Oliver set Thermal_Id symbol Mount Automotive and set Available to A | H94: N | I94: 1 | J94: 0 | K94: 4 | L94: 60 | M94: 20 | N94: 200 | O94: 400 | P94: 175 | Q94: 300 | R94: 62 | S94: 0.5 | T94: 1.4 | U94: 2.4 | V94: 3.4 | W94: 1 | X94: 63 | Y94: 100 | Z94: 300 | AA94: 263 | AB94: 0.8 | AC94: (NULL) | AD94: (NULL) | AE94: (NULL) | AF94: 0.0029 | AG94: (NULL) | AH94: (NULL) | AI94: 0.002 | AJ94: 0.75 | AK94: 30 | AL94: 13 | AM94: 9.4 | AN94: 63 | AO94: 140 | AP94: 5.5 | AQ94: 5.09 | AR94: 5.59 | AS94: 9.95 | AT94: 0.89 | AU94: 11.6 | AV94: 0.557 | AW94: 0.024 | AX94: 0.662 | AY94: 30 | AZ94: 10 | BA94: 0.1 | BB94: 26 | BC94: 1.54 | BD94: 400 | BE94: 3.69 | BF94: 255 | BG94: 100 | BH94: 0.85 | BI94: 100 | BJ94: 0.1 | BK94: 0.17 | BL94: N | BM94: 0.9 | BN94: (NULL) | BO94: (NULL) | BP94: (NULL) | BQ94: Y | BR94: http://www.ti.com/lit/ds/symlink/csd18535kcs.pdf | BS94: (NULL) | BT94: 1.6 | BU94: 3.9 | BV94: 214 | BW94: 10.4 | BX94: 15.7 | BY94: N | BZ94: TO-220 | CA94: N | CB94: (NULL) | CC94: 42577 | CD94: 42664 | CE94: 2541 | CF94: 1.16
A95: CSD18535KTT | B95: 146 | C95: Y | D95: N | E95: WB_MOSFET_N_D2G1S3 | F95: KTT0002A | G95: PJ added New | H95: N | I95: 1 | J95: 0 | K95: 1 | L95: 60 | M95: 20 | N95: 200 | O95: 400 | P95: 175 | Q95: 300 | R95: 62 | S95: 0.5 | T95: 1.4 | U95: 2.4 | V95: 3.76 | W95: 1 | X95: 63 | Y95: 100 | Z95: 300 | AA95: 263 | AB95: 0.8 | AC95: (NULL) | AD95: (NULL) | AE95: (NULL) | AF95: 0.0029 | AG95: (NULL) | AH95: (NULL) | AI95: 0.002 | AJ95: 0.93 | AK95: 30 | AL95: 13 | AM95: 9.4 | AN95: 63 | AO95: 140 | AP95: 5.5 | AQ95: 5.09 | AR95: 5.59 | AS95: 9.95 | AT95: 0.89 | AU95: 11.6 | AV95: 0.557 | AW95: 0.024 | AX95: 0.662 | AY95: 30 | AZ95: 10 | BA95: 0.1 | BB95: 27 | BC95: 1.5 | BD95: 400 | BE95: 6 | BF95: 100 | BG95: 60 | BH95: 2 | BI95: 60 | BJ95: 0.1 | BK95: 0.17 | BL95: N | BM95: 0.9 | BN95: (NULL) | BO95: (NULL) | BP95: (NULL) | BQ95: Y | BR95: http://www.ti.com/lit/ds/symlink/csd18535ktt.pdf | BS95: (NULL) | BT95: 1.6 | BU95: 3.9 | BV95: 214 | BW95: 10.4 | BX95: 15.7 | BY95: (NULL) | BZ95: DDPAK | CA95: N | CB95: (NULL) | CC95: 42577 | CD95: (NULL) | CE95: 2592 | CF95: 1.21
A96: CSD18536KCS | B96: 146 | C96: Y | D96: A | E96: WB_MOSFET_N_D2G1S3 | F96: KCS0003B | G96: Updated by PJ; Oliver updated Thermal_Id set symbol Automotive Mount and set Available to A and ROHS to E | H96: N | I96: 1 | J96: 0 | K96: 4 | L96: 60 | M96: 20 | N96: 200 | O96: 400 | P96: 175 | Q96: 375 | R96: 62 | S96: 0.4 | T96: 1.4 | U96: 2.2 | V96: 3.2 | W96: 1 | X96: 86 | Y96: 100 | Z96: 300 | AA96: 312 | AB96: 0.7 | AC96: (NULL) | AD96: (NULL) | AE96: (NULL) | AF96: 0.0022 | AG96: (NULL) | AH96: (NULL) | AI96: 0.0016 | AJ96: 0.72 | AK96: 54 | AL96: 20.5 | AM96: 17 | AN96: 108 | AO96: 230 | AP96: 9.55 | AQ96: 8.79 | AR96: 9.69 | AS96: 16.9 | AT96: 1.7 | AU96: 18.7 | AV96: 1.01 | AW96: 0.039 | AX96: 1.14 | AY96: 30 | AZ96: 10 | BA96: 0.1 | BB96: 32.5 | BC96: 1.2 | BD96: 400 | BE96: 2.33 | BF96: 400 | BG96: 100 | BH96: 0.79 | BI96: 100 | BJ96: 0.1 | BK96: 0.11 | BL96: N | BM96: 0.9 | BN96: (NULL) | BO96: (NULL) | BP96: (NULL) | BQ96: E | BR96: http://www.ti.com/lit/ds/symlink/csd18536kcs.pdf | BS96: (NULL) | BT96: 1.4 | BU96: 3.5 | BV96: 323 | BW96: 14 | BX96: 18 | BY96: N | BZ96: TO-220 | CA96: N | CB96: (NULL) | CC96: 42577 | CD96: 42664 | CE96: 2542 | CF96: 1.76
A97: CSD18536KTT | B97: 146 | C97: Y | D97: N | E97: (NULL) | F97: (NULL) | G97: PJ added New | H97: N | I97: 1 | J97: 0 | K97: (NULL) | L97: 60 | M97: 20 | N97: 200 | O97: 400 | P97: 175 | Q97: 375 | R97: 62 | S97: 0.4 | T97: 1.4 | U97: 2.2 | V97: 3.4 | W97: 1 | X97: 86 | Y97: 100 | Z97: 300 | AA97: 312 | AB97: 0.7 | AC97: (NULL) | AD97: (NULL) | AE97: (NULL) | AF97: 0.0022 | AG97: (NULL) | AH97: (NULL) | AI97: 0.0016 | AJ97: 0.88 | AK97: 54 | AL97: 20.5 | AM97: 17 | AN97: 108 | AO97: 230 | AP97: 9.55 | AQ97: 8.79 | AR97: 9.69 | AS97: 16.9 | AT97: 1.41 | AU97: 18.7 | AV97: 1.01 | AW97: 0.039 | AX97: 1.14 | AY97: 30 | AZ97: 10 | BA97: 0.1 | BB97: 32 | BC97: 1.2 | BD97: 400 | BE97: 2.1 | BF97: 400 | BG97: 60 | BH97: 3 | BI97: 60 | BJ97: 0.1 | BK97: 0.11 | BL97: N | BM97: 0.9 | BN97: (NULL) | BO97: (NULL) | BP97: (NULL) | BQ97: Y | BR97: http://www.ti.com/lit/ds/symlink/csd18536ktt.pdf | BS97: (NULL) | BT97: 1.4 | BU97: 3.9 | BV97: 323 | BW97: 14 | BX97: 18 | BY97: (NULL) | BZ97: DDPAK | CA97: (NULL) | CB97: (NULL) | CC97: 42577 | CD97: (NULL) | CE97: 2593 | CF97: 1.8
A98: CSD18537NKCS | B98: 146 | C98: Y | D98: N | E98: WB_MOSFET_N_D2G1S3 | F98: TO-220AB | G98: Updated by PJ Added by Kris | H98: N | I98: 1 | J98: 0 | K98: 4 | L98: 60 | M98: 20 | N98: 50 | O98: 127 | P98: 175 | Q98: 94 | R98: 62 | S98: 1.6 | T98: 2.6 | U98: 3.5 | V98: 5 | W98: 1 | X98: 50 | Y98: 25 | Z98: 300 | AA98: 100 | AB98: 5.5 | AC98: (NULL) | AD98: (NULL) | AE98: (NULL) | AF98: (NULL) | AG98: 0.018 | AH98: (NULL) | AI98: 0.014 | AJ98: 0.94 | AK98: 7 | AL98: 2.5 | AM98: 3.3 | AN98: 14 | AO98: 25 | AP98: 1.2 | AQ98: 1.14 | AR98: 1.21 | AS98: 1.28 | AT98: 0.136 | AU98: 1.56 | AV98: 0.106 | AW98: 0.004 | AX98: 0.119 | AY98: 30 | AZ98: 10 | BA98: 0.1 | BB98: 3.3 | BC98: 1.7 | BD98: 61.25 | BE98: 2.98 | BF98: 61.25 | BG98: 60 | BH98: 0.66 | BI98: 60 | BJ98: 0.1 | BK98: 0.72 | BL98: N | BM98: 0.9 | BN98: (NULL) | BO98: 42 | BP98: 1.084 | BQ98: Y | BR98: http://www.ti.com/lit/ds/symlink/csd18537nkcs.pdf | BS98: (NULL) | BT98: 11 | BU98: 4.75 | BV98: 77 | BW98: 2.3 | BX98: 5.2 | BY98: (NULL) | BZ98: TO-220 | CA98: (NULL) | CB98: (NULL) | CC98: 41554 | CD98: 42577 | CE98: 2543 | CF98: 0.39
A99: CSD18537NQ5A | B99: 146 | C99: Y | D99: Y | E99: WB_MOSFET_N_D56789G4S123 | F99: TRANS_NexFET_Q5A | G99: PJ added new params from PL;Added by Kris | H99: N | I99: 1 | J99: 0 | K99: 1 | L99: 60 | M99: 20 | N99: 50 | O99: 151 | P99: 150 | Q99: 3.125 | R99: 50 | S99: 2.1 | T99: 2.6 | U99: 3.5 | V99: 4.5 | W99: 1 | X99: 40 | Y99: 12 | Z99: 300 | AA99: 62 | AB99: 5.5 | AC99: (NULL) | AD99: (NULL) | AE99: (NULL) | AF99: (NULL) | AG99: 0.017 | AH99: (NULL) | AI99: 0.013 | AJ99: 0.95 | AK99: 7 | AL99: 2.5 | AM99: 3.3 | AN99: 14 | AO99: 25 | AP99: 1.2 | AQ99: 1.14 | AR99: 1.24 | AS99: 1.31 | AT99: 0.136 | AU99: 1.6 | AV99: 0.1 | AW99: 0.004 | AX99: 0.12 | AY99: 30 | AZ99: 10 | BA99: 0.1 | BB99: 4 | BC99: 1.3 | BD99: 50 | BE99: 2.3 | BF99: 50 | BG99: 60 | BH99: 0.45 | BI99: 60 | BJ99: 0.1 | BK99: 0.78 | BL99: N | BM99: 0.8 | BN99: (NULL) | BO99: 1155 | BP99: 1.12 | BQ99: Y | BR99: http://www.ti.com/lit/ds/symlink/csd18537nq5a.pdf | BS99: (NULL) | BT99: 11 | BU99: 4.75 | BV99: 54 | BW99: 2.3 | BX99: 4.7 | BY99: (NULL) | BZ99: SON5X6 | CA99: (NULL) | CB99: (NULL) | CC99: 41554 | CD99: 42564 | CE99: 2054 | CF99: 0.26
A100: CSD18540Q5B | B100: 146 | C100: Y | D100: Y | E100: WB_MOSFET_N_D56789G4S123 | F100: DNK0008A | G100: Updated by PJ; Oliver set Thermal_Id Mount Automotive and symbol set Available to A | H100: N | I100: 1 | J100: 0 | K100: 1 | L100: 60 | M100: 20 | N100: 100 | O100: 400 | P100: 175 | Q100: 3.8 | R100: 50 | S100: 0.8 | T100: 1.5 | U100: 2.3 | V100: 3.1 | W100: 1 | X100: 82 | Y100: 28 | Z100: 300 | AA100: 116 | AB100: 0.8 | AC100: (NULL) | AD100: (NULL) | AE100: (NULL) | AF100: 0.0033 | AG100: (NULL) | AH100: (NULL) | AI100: 0.0022 | AJ100: 0.82 | AK100: 20 | AL100: 8.3 | AM100: 6.3 | AN100: 41 | AO100: 83 | AP100: 3.43 | AQ100: 3.25 | AR100: 3.49 | AS100: 5.24 | AT100: 0.622 | AU100: 6.21 | AV100: 0.244 | AW100: 0.015 | AX100: 0.294 | AY100: 30 | AZ100: 10 | BA100: 0.1 | BB100: 22.5 | BC100: 1.5 | BD100: 278 | BE100: 1.69 | BF100: 278 | BG100: 60 | BH100: 1.53 | BI100: 60 | BJ100: 0.1 | BK100: 0.25 | BL100: N | BM100: 0.8 | BN100: (NULL) | BO100: (NULL) | BP100: 3.196 | BQ100: Y | BR100: http://www.ti.com/lit/ds/symlink/csd18540q5b.pdf | BS100: (NULL) | BT100: 1.6 | BU100: 3.3 | BV100: 145 | BW100: 6.7 | BX100: 8.6 | BY100: N | BZ100: SON5X6 | CA100: N | CB100: (NULL) | CC100: 42577 | CD100: 42664 | CE100: 2544 | CF100: 0.83
A101: CSD18542KCS | B101: 146 | C101: Y | D101: N | E101: (NULL) | F101: (NULL) | G101: Updated by PJ | H101: N | I101: 1 | J101: 0 | K101: (NULL) | L101: 60 | M101: 20 | N101: 200 | O101: 400 | P101: 175 | Q101: 200 | R101: 62 | S101: 0.6 | T101: 1.5 | U101: 2.2 | V101: 3.3 | W101: 1 | X101: 53 | Y101: 100 | Z101: 300 | AA101: 198 | AB101: 1.3 | AC101: (NULL) | AD101: (NULL) | AE101: (NULL) | AF101: 0.0051 | AG101: (NULL) | AH101: (NULL) | AI101: 0.004 | AJ101: 0.94 | AK101: 21 | AL101: 10.5 | AM101: 7.3 | AN101: 44 | AO101: 63 | AP101: 4.21 | AQ101: 3.9 | AR101: 4.26 | AS101: 4.84 | AT101: 0.57 | AU101: 5.47 | AV101: 0.33 | AW101: 0.011 | AX101: 0.362 | AY101: 30 | AZ101: 10 | BA101: 0.1 | BB101: 11.55 | BC101: 1.6 | BD101: 196.93 | BE101: 2.47 | BF101: 196.93 | BG101: 60 | BH101: 1.27 | BI101: 60 | BJ101: 0.1 | BK101: 0.23 | BL101: N | BM101: 0.9 | BN101: (NULL) | BO101: (NULL) | BP101: (NULL) | BQ101: Y | BR101: http://www.ti.com/lit/ds/symlink/csd18542kcs.pdf | BS101: (NULL) | BT101: 2.6 | BU101: 3.1 | BV101: 148 | BW101: 6.9 | BX101: 10 | BY101: (NULL) | BZ101: TO-220 | CA101: (NULL) | CB101: (NULL) | CC101: 42577 | CD101: 42577 | CE101: 2545 | CF101: 0.78
A102: CSD18542KTT | B102: 146 | C102: Y | D102: A | E102: WB_MOSFET_N_D2G1S3 | F102: KTT0002A | G102: PJ added New; Oliver set Thermal_Id symbol Mount Automotive and set Available to A | H102: N | I102: 1 | J102: 0 | K102: 1 | L102: 60 | M102: 20 | N102: 200 | O102: 400 | P102: 175 | Q102: 250 | R102: 62 | S102: 0.6 | T102: 1.5 | U102: 2.2 | V102: 3.71 | W102: 1 | X102: 73 | Y102: 100 | Z102: 300 | AA102: 198 | AB102: 1.3 | AC102: (NULL) | AD102: (NULL) | AE102: (NULL) | AF102: 0.0051 | AG102: (NULL) | AH102: (NULL) | AI102: 0.004 | AJ102: 0.94 | AK102: 21 | AL102: 10.5 | AM102: 7.3 | AN102: 45 | AO102: 63 | AP102: 4.21 | AQ102: 3.9 | AR102: 4.26 | AS102: 4.84 | AT102: 0.5 | AU102: 5.47 | AV102: 0.33 | AW102: 0.011 | AX102: 0.362 | AY102: 30 | AZ102: 10 | BA102: 0.1 | BB102: 12 | BC102: 1.7 | BD102: 200 | BE102: 2.9 | BF102: 200 | BG102: 60 | BH102: 1 | BI102: 60 | BJ102: 0.1 | BK102: 0.24 | BL102: N | BM102: 0.9 | BN102: (NULL) | BO102: (NULL) | BP102: (NULL) | BQ102: Y | BR102: http://www.ti.com/lit/ds/symlink/csd18542ktt.pdf | BS102: (NULL) | BT102: 2.6 | BU102: 3.8 | BV102: 132 | BW102: 6.9 | BX102: 13 | BY102: (NULL) | BZ102: DDPAK | CA102: N | CB102: (NULL) | CC102: 42577 | CD102: 42664 | CE102: 2595 | CF102: 0.82
A103: CSD18543Q3A | B103: 146 | C103: N | D103: Y | E103: WB_MOSFET_N_D56789G4S123 | F103: TRANS_NexFET_Q5A | G103: JW | H103: N | I103: 1 | J103: 0 | K103: 1 | L103: 60 | M103: 20 | N103: 35 | O103: 156 | P103: 150 | Q103: 2.8 | R103: 55 | S103: 1.9 | T103: 1.5 | U103: 2.7 | V103: 3.6 | W103: 1 | X103: 27 | Y103: 12 | Z103: 300 | AA103: 40 | AB103: 0.5 | AC103: (NULL) | AD103: (NULL) | AE103: (NULL) | AF103: 0.0156 | AG103: (NULL) | AH103: (NULL) | AI103: 0.0099 | AJ103: 0.95 | AK103: 5.6 | AL103: 2 | AM103: 2 | AN103: 11.1 | AO103: 24 | AP103: 0.953 | AQ103: 0.888 | AR103: 0.973 | AS103: 1.45 | AT103: 0.169 | AU103: 1.71 | AV103: 0.117 | AW103: 0.0134 | AX103: 0.144 | AY103: 30 | AZ103: 10 | BA103: 0.1 | BB103: 7 | BC103: 1.4 | BD103: 95 | BE103: 7 | BF103: 20 | BG103: 30 | BH103: 3 | BI103: 60 | BJ103: 0.1 | BK103: 0.7 | BL103: N | BM103: 0.8 | BN103: (NULL) | BO103: 1155 | BP103: 1.125 | BQ103: Y | BR103: http://www.ti.com/lit/ds/symlink/csd18543q3a.pdf | BS103: (NULL) | BT103: 1 | BU103: 3.75 | BV103: 37 | BW103: 1.7 | BX103: 3.1 | BY103: (NULL) | BZ103: SON3X3 | CA103: N | CB103: (NULL) | CC103: 43724 | CD103: 43724 | CE103: 2055 | CF103: 0.25
A104: CSD18563Q5A | B104: 146 | C104: Y | D104: Y | E104: WB_MOSFET_N_D56789G4S123 | F104: TRANS_NexFET_Q5A | G104: PJ added new params from PL;Added by Kris | H104: N | I104: 1 | J104: 0 | K104: 1 | L104: 60 | M104: 20 | N104: 100 | O104: 251 | P104: 150 | Q104: 3.2 | R104: 50 | S104: 1.3 | T104: 1.7 | U104: 2.4 | V104: 3.3 | W104: 1 | X104: 49 | Y104: 18 | Z104: 300 | AA104: 60 | AB104: 1.5 | AC104: (NULL) | AD104: (NULL) | AE104: (NULL) | AF104: 0.0108 | AG104: (NULL) | AH104: (NULL) | AI104: 0.0068 | AJ104: 0.95 | AK104: 7.3 | AL104: 3 | AM104: 2.3 | AN104: 15 | AO104: 36 | AP104: 1.25 | AQ104: 1.15 | AR104: 1.27 | AS104: 2.6 | AT104: 0.28 | AU104: 3.2 | AV104: 0.12 | AW104: 0.01 | AX104: 0.145 | AY104: 30 | AZ104: 10 | BA104: 0.1 | BB104: 7 | BC104: 1.4 | BD104: 95 | BE104: 7 | BF104: 20 | BG104: 30 | BH104: 3 | BI104: 60 | BJ104: 0.1 | BK104: 0.7 | BL104: N | BM104: 0.8 | BN104: (NULL) | BO104: 1155 | BP104: 1.125 | BQ104: Y | BR104: http://www.ti.com/lit/ds/symlink/csd18563q5a.pdf | BS104: (NULL) | BT104: 3 | BU104: 3.75 | BV104: 63 | BW104: 2.9 | BX104: 3.3 | BY104: (NULL) | BZ104: SON5X6 | CA104: N | CB104: (NULL) | CC104: 41554 | CD104: 42564 | CE104: 2055 | CF104: 0.45
A105: CSD19501KCS | B105: 146 | C105: Y | D105: A | E105: WB_MOSFET_N_D2G1S3 | F105: KCS0003B | G105: Updated by PJ; Oliver set Thermal_Id symbol Mount Automotive and Available to A | H105: N | I105: 1 | J105: 0 | K105: 4 | L105: 80 | M105: 20 | N105: 100 | O105: 305 | P105: 175 | Q105: 217 | R105: 62 | S105: 0.7 | T105: 2.2 | U105: 2.3 | V105: 4.41 | W105: 1.1 | X105: 74 | Y105: 60 | Z105: 300 | AA105: 137 | AB105: 1.3 | AC105: (NULL) | AD105: (NULL) | AE105: (NULL) | AF105: (NULL) | AG105: 0.0079 | AH105: (NULL) | AI105: 0.0066 | AJ105: 0.94 | AK105: 23 | AL105: 7 | AM105: 7.5 | AN105: 38 | AO105: 98 | AP105: 3.28 | AQ105: 3.06 | AR105: 3.35 | AS105: 4.16 | AT105: 0.784 | AU105: 4.99 | AV105: 0.245 | AW105: 0.0124 | AX105: 0.307 | AY105: 40 | AZ105: 10 | BA105: 0.1 | BB105: 6.5 | BC105: 2.2 | BD105: 120 | BE105: 80 | BF105: 0.5 | BG105: 80 | BH105: 0.1 | BI105: 80 | BJ105: 0.1 | BK105: 0.27 | BL105: N | BM105: 0.9 | BN105: (NULL) | BO105: (NULL) | BP105: (NULL) | BQ105: Y | BR105: http://www.ti.com/lit/ds/symlink/csd19501kcs.pdf | BS105: (NULL) | BT105: 1.3 | BU105: 4.2 | BV105: 230 | BW105: 5.8 | BX105: 12.4 | BY105: (NULL) | BZ105: TO-220 | CA105: N | CB105: (NULL) | CC105: 42577 | CD105: 42664 | CE105: 2546 | CF105: 0.69
A106: CSD19502Q5B | B106: 146 | C106: Y | D106: Y | E106: WB_MOSFET_N_D12568G3S47 | F106: DQK0006C | G106: Updated by PJ 8/3 Bob for Tattiana Davenport | H106: N | I106: 1 | J106: 0 | K106: 1 | L106: 80 | M106: 20 | N106: 100 | O106: 400 | P106: 150 | Q106: 3.1 | R106: 50 | S106: 0.8 | T106: 2.2 | U106: 3.3 | V106: 4 | W106: 1 | X106: 72 | Y106: 19 | Z106: 300 | AA106: 88 | AB106: 1.2 | AC106: (NULL) | AD106: (NULL) | AE106: (NULL) | AF106: (NULL) | AG106: 0.0048 | AH106: (NULL) | AI106: 0.0041 | AJ106: 0.93 | AK106: 30 | AL106: 9 | AM106: 10 | AN106: 48 | AO106: 130 | AP106: 4.08 | AQ106: 3.75 | AR106: 4.2 | AS106: 5.17 | AT106: 0.925 | AU106: 6.6 | AV106: 0.392 | AW106: 0.017 | AX106: 0.52 | AY106: 40 | AZ106: 10 | BA106: 0.1 | BB106: 12.67 | BC106: 1.5 | BD106: 190 | BE106: 2.48 | BF106: 190 | BG106: 80 | BH106: 0.69 | BI106: 80 | BJ106: 0.1 | BK106: 0.21 | BL106: N | BM106: 0.8 | BN106: (NULL) | BO106: (NULL) | BP106: 3.68 | BQ106: N | BR106: http://www.ti.com/lit/ds/symlink/csd19502q5b.pdf | BS106: (NULL) | BT106: 2.4 | BU106: 3.9 | BV106: 275 | BW106: 8.6 | BX106: 14 | BY106: (NULL) | BZ106: SON5X6 | CA106: N | CB106: (NULL) | CC106: 42422 | CD106: 42585 | CE106: 2547 | CF106: 0.85
A107: CSD19503KCS | B107: 146 | C107: Y | D107: A | E107: WB_MOSFET_N_D2G1S3 | F107: KCS0003B | G107: Updated by PJ; Oliver set Thermal_Id symbol Mount Automotive and set Available to A | H107: N | I107: 1 | J107: 0 | K107: 4 | L107: 80 | M107: 20 | N107: 100 | O107: 247 | P107: 175 | Q107: 188 | R107: 62 | S107: 0.8 | T107: 2.2 | U107: 3.4 | V107: 4.84 | W107: 1.1 | X107: 72 | Y107: 60 | Z107: 300 | AA107: 110 | AB107: 1.2 | AC107: (NULL) | AD107: (NULL) | AE107: (NULL) | AF107: (NULL) | AG107: 0.0109 | AH107: (NULL) | AI107: 0.0092 | AJ107: 0.77 | AK107: 18 | AL107: 5.55 | AM107: 6.1 | AN107: 28 | AO107: 71 | AP107: 2.26 | AQ107: 2.1 | AR107: 2.31 | AS107: 2.91 | AT107: 0.555 | AU107: 3.47 | AV107: 0.215 | AW107: 0.0085 | AX107: 0.266 | AY107: 40 | AZ107: 10 | BA107: 0.1 | BB107: 5.66 | BC107: 1.79 | BD107: 101.52 | BE107: 80 | BF107: 0.42 | BG107: 80 | BH107: 0.1 | BI107: 80 | BJ107: 0.1 | BK107: 0.38 | BL107: N | BM107: 0.9 | BN107: (NULL) | BO107: (NULL) | BP107: (NULL) | BQ107: Y | BR107: http://www.ti.com/lit/ds/symlink/csd19503kcs.pdf | BS107: (NULL) | BT107: 2.4 | BU107: 5 | BV107: 119 | BW107: 5.4 | BX107: 9.8 | BY107: (NULL) | BZ107: TO-220 | CA107: N | CB107: (NULL) | CC107: 42577 | CD107: 42577 | CE107: 2548 | CF107: 0.56
A108: CSD19505KCS | B108: 146 | C108: Y | D108: N | E108: (NULL) | F108: (NULL) | G108: Updated by PJ | H108: N | I108: 1 | J108: 0 | K108: (NULL) | L108: 80 | M108: 20 | N108: 150 | O108: 400 | P108: 175 | Q108: 300 | R108: 62 | S108: 0.5 | T108: 2.2 | U108: 3.2 | V108: 4.46 | W108: 1.1 | X108: 88 | Y108: 100 | Z108: 300 | AA108: 262 | AB108: 1.4 | AC108: (NULL) | AD108: (NULL) | AE108: (NULL) | AF108: (NULL) | AG108: 0.0038 | AH108: (NULL) | AI108: 0.0031 | AJ108: 0.92 | AK108: 46 | AL108: 15 | AM108: 15 | AN108: 76 | AO108: 214 | AP108: 6.55 | AQ108: 6.09 | AR108: 6.7 | AS108: 8.85 | AT108: 1.6 | AU108: 10.3 | AV108: 0.439 | AW108: 0.026 | AX108: 0.44 | AY108: 40 | AZ108: 10 | BA108: 0.1 | BB108: 15 | BC108: 2.47 | BD108: 332 | BE108: 3.16 | BF108: 260 | BG108: 80 | BH108: 1.21 | BI108: 80 | BJ108: 0.1 | BK108: 0.13 | BL108: N | BM108: 0.9 | BN108: (NULL) | BO108: (NULL) | BP108: (NULL) | BQ108: Y | BR108: http://www.ti.com/lit/ds/symlink/csd19505kcs.pdf | BS108: (NULL) | BT108: 2.8 | BU108: 4.3 | BV108: 400 | BW108: 11 | BX108: 25 | BY108: (NULL) | BZ108: TO-220 | CA108: (NULL) | CB108: (NULL) | CC108: 42577 | CD108: 42577 | CE108: 2549 | CF108: 1.21
A109: CSD19505KTT | B109: 146 | C109: Y | D109: N | E109: (NULL) | F109: (NULL) | G109: PJ added New | H109: N | I109: 1 | J109: 0 | K109: (NULL) | L109: 80 | M109: 20 | N109: 200 | O109: 400 | P109: 175 | Q109: 300 | R109: 62 | S109: 0.5 | T109: 2.2 | U109: 3.2 | V109: 4.6 | W109: 1.1 | X109: 88 | Y109: 100 | Z109: 300 | AA109: 262 | AB109: 1.4 | AC109: (NULL) | AD109: (NULL) | AE109: (NULL) | AF109: (NULL) | AG109: 0.0038 | AH109: (NULL) | AI109: 0.0031 | AJ109: 0.92 | AK109: 46 | AL109: 15 | AM109: 15 | AN109: 76 | AO109: 214 | AP109: 6.55 | AQ109: 6.09 | AR109: 6.7 | AS109: 8.85 | AT109: 1.6 | AU109: 10.3 | AV109: 0.439 | AW109: 0.026 | AX109: 0.44 | AY109: 40 | AZ109: 10 | BA109: 0.1 | BB109: 15 | BC109: 2.47 | BD109: 332 | BE109: 3.16 | BF109: 260 | BG109: 80 | BH109: 1.21 | BI109: 80 | BJ109: 0.1 | BK109: 0.14 | BL109: N | BM109: 0.9 | BN109: (NULL) | BO109: (NULL) | BP109: (NULL) | BQ109: Y | BR109: http://www.ti.com/lit/ds/symlink/csd19505ktt.pdf | BS109: (NULL) | BT109: 2.8 | BU109: 4.3 | BV109: 400 | BW109: 11 | BX109: 25 | BY109: (NULL) | BZ109: DDPAK | CA109: (NULL) | CB109: (NULL) | CC109: 42577 | CD109: (NULL) | CE109: 2596 | CF109: 1.25
A110: CSD19506KCS | B110: 146 | C110: Y | D110: N | E110: (NULL) | F110: (NULL) | G110: Updated by PJ | H110: N | I110: 1 | J110: 0 | K110: (NULL) | L110: 80 | M110: 20 | N110: 150 | O110: 400 | P110: 175 | Q110: 375 | R110: 62 | S110: 0.4 | T110: 2.1 | U110: 3.2 | V110: 4.27 | W110: 1.1 | X110: 107 | Y110: 100 | Z110: 300 | AA110: 297 | AB110: 1.3 | AC110: (NULL) | AD110: (NULL) | AE110: (NULL) | AF110: (NULL) | AG110: 0.0028 | AH110: (NULL) | AI110: 0.0023 | AJ110: 0.82 | AK110: 72 | AL110: 25 | AM110: 25 | AN110: 120 | AO110: 345 | AP110: 10.4 | AQ110: 9.38 | AR110: 10.6 | AS110: 15.3 | AT110: 2.26 | AU110: 17.6 | AV110: 0.898 | AW110: 0.042 | AX110: 1.11 | AY110: 40 | AZ110: 10 | BA110: 0.1 | BB110: 21.6 | BC110: 1.85 | BD110: 400 | BE110: 80 | BF110: 1.66 | BG110: 80 | BH110: 0.1 | BI110: 80 | BJ110: 0.1 | BK110: 0.08 | BL110: N | BM110: 0.9 | BN110: (NULL) | BO110: (NULL) | BP110: (NULL) | BQ110: Y | BR110: http://www.ti.com/lit/ds/symlink/csd19506kcs.pdf | BS110: (NULL) | BT110: 2.6 | BU110: 4 | BV110: 525 | BW110: 20 | BX110: 37 | BY110: (NULL) | BZ110: TO-220 | CA110: (NULL) | CB110: (NULL) | CC110: 42577 | CD110: 42577 | CE110: 2550 | CF110: 1.83
A111: CSD19506KTT | B111: 146 | C111: Y | D111: A | E111: WB_MOSFET_N_D2G1S3 | F111: KTT0002A | G111: PJ added New; Oliver set Thermal_Id Mount Symbol and Available =A | H111: N | I111: 1 | J111: 0 | K111: 1 | L111: 80 | M111: 20 | N111: 200 | O111: 400 | P111: 175 | Q111: 375 | R111: 62 | S111: 0.4 | T111: 2.1 | U111: 3.2 | V111: 4.6 | W111: 1.1 | X111: 107 | Y111: 100 | Z111: 300 | AA111: 297 | AB111: 1.3 | AC111: (NULL) | AD111: (NULL) | AE111: (NULL) | AF111: (NULL) | AG111: 0.0028 | AH111: (NULL) | AI111: 0.0023 | AJ111: 0.82 | AK111: 72 | AL111: 25 | AM111: 25 | AN111: 120 | AO111: 345 | AP111: 10.4 | AQ111: 9.38 | AR111: 10.6 | AS111: 15.3 | AT111: 2.26 | AU111: 17.8 | AV111: 0.898 | AW111: 0.042 | AX111: 1.11 | AY111: 40 | AZ111: 10 | BA111: 0.1 | BB111: 25 | BC111: 1.8 | BD111: 400 | BE111: 2.1 | BF111: 400 | BG111: 80 | BH111: 2.5 | BI111: 80 | BJ111: 0.1 | BK111: 0.08 | BL111: N | BM111: 0.9 | BN111: (NULL) | BO111: (NULL) | BP111: (NULL) | BQ111: Y | BR111: http://www.ti.com/lit/ds/symlink/csd19506ktt.pdf | BS111: (NULL) | BT111: 2.6 | BU111: 4.2 | BV111: 525 | BW111: 20 | BX111: 37 | BY111: (NULL) | BZ111: DDPAK | CA111: N | CB111: (NULL) | CC111: 42577 | CD111: (NULL) | CE111: 2597 | CF111: 1.88
A112: CSD19531KCS | B112: 146 | C112: Y | D112: N | E112: WB_MOSFET_N_D2G1S3 | F112: TO-220AB | G112: Updated by PJ Added by Kris | H112: N | I112: 1 | J112: 0 | K112: 4 | L112: 100 | M112: 20 | N112: 100 | O112: 285 | P112: 175 | Q112: 214 | R112: 62 | S112: 0.7 | T112: 2.2 | U112: 3.3 | V112: 4.6 | W112: 1 | X112: 83 | Y112: 60 | Z112: 300 | AA112: 137 | AB112: 1.3 | AC112: (NULL) | AD112: (NULL) | AE112: (NULL) | AF112: (NULL) | AG112: 0.0088 | AH112: (NULL) | AI112: 0.0077 | AJ112: 1 | AK112: 23 | AL112: 7.2 | AM112: 7.3 | AN112: 38 | AO112: 98 | AP112: 3.32 | AQ112: 2.98 | AR112: 3.41 | AS112: 3.75 | AT112: 0.56 | AU112: 4.38 | AV112: 0.268 | AW112: 0.013 | AX112: 0.318 | AY112: 50 | AZ112: 10 | BA112: 0.1 | BB112: 6.1 | BC112: 2 | BD112: 122 | BE112: 4 | BF112: 100 | BG112: 100 | BH112: 0.66 | BI112: 100 | BJ112: 0.1 | BK112: 0.29 | BL112: N | BM112: 0.9 | BN112: (NULL) | BO112: 42 | BP112: 3.05 | BQ112: Y | BR112: http://www.ti.com/lit/ds/symlink/csd19531kcs.pdf | BS112: (NULL) | BT112: 2.6 | BU112: 4.5 | BV112: 270 | BW112: 7.5 | BX112: 11.9 | BY112: (NULL) | BZ112: TO-220 | CA112: (NULL) | CB112: (NULL) | CC112: 41572 | CD112: 42577 | CE112: 2551 | CF112: 0.69
A113: CSD19531Q5A | B113: 146 | C113: Y | D113: Y | E113: WB_MOSFET_N_D56789G4S123 | F113: TRANS_NexFET_Q5A | G113: PJ added new params from PL;Added by Kris-Modified by Hadi | H113: N | I113: 1 | J113: 0 | K113: 1 | L113: 100 | M113: 20 | N113: 100 | O113: 337 | P113: 150 | Q113: 3.125 | R113: 50 | S113: 1 | T113: 2.2 | U113: 3.3 | V113: 4 | W113: 1 | X113: 148 | Y113: 16 | Z113: 300 | AA113: 82 | AB113: 1.3 | AC113: (NULL) | AD113: (NULL) | AE113: (NULL) | AF113: (NULL) | AG113: 0.0078 | AH113: (NULL) | AI113: 0.0064 | AJ113: 0.98 | AK113: 23 | AL113: 7.3 | AM113: 7.3 | AN113: 38 | AO113: 97 | AP113: 3.2 | AQ113: 2.98 | AR113: 3.2 | AS113: 3.76 | AT113: 0.6 | AU113: 4.4 | AV113: 0.25 | AW113: 0.012 | AX113: 0.3 | AY113: 50 | AZ113: 10 | BA113: 0.1 | BB113: 8 | BC113: 1.6 | BD113: 120 | BE113: 2.9 | BF113: 120 | BG113: 100 | BH113: 0.35 | BI113: 100 | BJ113: 0.1 | BK113: 0.29 | BL113: N | BM113: 0.8 | BN113: (NULL) | BO113: 1155 | BP113: 2.9 | BQ113: Y | BR113: http://www.ti.com/lit/ds/symlink/csd19531q5a.pdf | BS113: (NULL) | BT113: 2.6 | BU113: 3.8 | BV113: 226 | BW113: 6.6 | BX113: 10.5 | BY113: (NULL) | BZ113: SON5X6 | CA113: (NULL) | CB113: (NULL) | CC113: 41984 | CD113: 42564 | CE113: 2056 | CF113: 0.58
A114: CSD19532KTT | B114: 146 | C114: (NULL) | D114: A | E114: WB_MOSFET_N_D2G1S3 | F114: KTT0002A | G114: Altium for Brett Barr | H114: N | I114: 1 | J114: 0 | K114: 1 | L114: 100 | M114: 20 | N114: 136 | O114: 400 | P114: 175 | Q114: 250 | R114: 62 | S114: (NULL) | T114: 2.2 | U114: 3.2 | V114: 4.7 | W114: (NULL) | X114: 74 | Y114: (NULL) | Z114: (NULL) | AA114: 113 | AB114: 1.3 | AC114: (NULL) | AD114: (NULL) | AE114: (NULL) | AF114: (NULL) | AG114: 0.0066 | AH114: (NULL) | AI114: 0.0056 | AJ114: 1.32 | AK114: 27 | AL114: (NULL) | AM114: 9.6 | AN114: 44 | AO114: 124 | AP114: (NULL) | AQ114: (NULL) | AR114: 5060 | AS114: (NULL) | AT114: (NULL) | AU114: 876 | AV114: (NULL) | AW114: (NULL) | AX114: 18 | AY114: (NULL) | AZ114: (NULL) | BA114: (NULL) | BB114: (NULL) | BC114: (NULL) | BD114: (NULL) | BE114: (NULL) | BF114: (NULL) | BG114: (NULL) | BH114: (NULL) | BI114: (NULL) | BJ114: (NULL) | BK114: (NULL) | BL114: (NULL) | BM114: 0.9 | BN114: (NULL) | BO114: (NULL) | BP114: (NULL) | BQ114: Y | BR114: http://www.ti.com/lit/ds/symlink/csd19532ktt.pdf | BS114: (NULL) | BT114: 2.6 | BU114: (NULL) | BV114: 326 | BW114: 5.6 | BX114: 17 | BY114: (NULL) | BZ114: DDPAK | CA114: N | CB114: (NULL) | CC114: 42312 | CD114: (NULL) | CE114: 2074 | CF114: 0.87
A115: CSD19532Q5B | B115: 146 | C115: Y | D115: Y | E115: WB_MOSFET_N_D56789G4S123 | F115: DNK0008A | G115: Updated by PJ Added by Hadi | H115: N | I115: 1 | J115: 0 | K115: 1 | L115: 100 | M115: 20 | N115: 100 | O115: 400 | P115: 150 | Q115: 3.1 | R115: 50 | S115: 0.8 | T115: 2.2 | U115: 3.2 | V115: 3.8 | W115: 1 | X115: 80 | Y115: 17 | Z115: 300 | AA115: 84 | AB115: 1.2 | AC115: (NULL) | AD115: (NULL) | AE115: (NULL) | AF115: (NULL) | AG115: 0.0057 | AH115: (NULL) | AI115: 0.0049 | AJ115: 1.03 | AK115: 27 | AL115: 9.4 | AM115: 9.5 | AN115: 44 | AO115: 128 | AP115: 3.94 | AQ115: 3.7 | AR115: 4.04 | AS115: 4.29 | AT115: 0.706 | AU115: 5.67 | AV115: 0.354 | AW115: 0.014 | AX115: 0.442 | AY115: 50 | AZ115: 10 | BA115: 0.1 | BB115: 10.1 | BC115: 1.61 | BD115: 162 | BE115: 2.73 | BF115: 162 | BG115: 100 | BH115: 0.48 | BI115: 100 | BJ115: 0.1 | BK115: 0.22 | BL115: N | BM115: 0.8 | BN115: (NULL) | BO115: 1345 | BP115: 3.6 | BQ115: Y | BR115: http://www.ti.com/lit/ds/symlink/csd19532q5b.pdf | BS115: (NULL) | BT115: 2.4 | BU115: 3 | BV115: 249 | BW115: 8.7 | BX115: 13 | BY115: (NULL) | BZ115: SON5X6 | CA115: N | CB115: (NULL) | CC115: 41954 | CD115: 42577 | CE115: 2552 | CF115: 0.85
A116: CSD19533KCS | B116: 146 | C116: Y | D116: N | E116: (NULL) | F116: (NULL) | G116: Updated by PJ | H116: N | I116: 1 | J116: 0 | K116: (NULL) | L116: 100 | M116: 20 | N116: 100 | O116: 207 | P116: 175 | Q116: 188 | R116: 62 | S116: 0.8 | T116: 2.2 | U116: 3.4 | V116: 4.68 | W116: 1.1 | X116: 77 | Y116: 55 | Z116: 300 | AA116: 115 | AB116: 1.2 | AC116: (NULL) | AD116: (NULL) | AE116: (NULL) | AF116: (NULL) | AG116: 0.0122 | AH116: (NULL) | AI116: 0.0105 | AJ116: 1.07 | AK116: 16.5 | AL116: 5 | AM116: 3.9 | AN116: 27 | AO116: 79 | AP116: 2.19 | AQ116: 2.05 | AR116: 2.22 | AS116: 2.54 | AT116: 0.395 | AU116: 2.97 | AV116: 0.186 | AW116: 0.0096 | AX116: 0.213 | AY116: 50 | AZ116: 10 | BA116: 0.1 | BB116: 4.1 | BC116: 2.32 | BD116: 95 | BE116: 100 | BF116: 0.43 | BG116: 100 | BH116: 0.1 | BI116: 100 | BJ116: 0.1 | BK116: 0.4 | BL116: N | BM116: 0.9 | BN116: (NULL) | BO116: (NULL) | BP116: (NULL) | BQ116: Y | BR116: http://www.ti.com/lit/ds/symlink/csd19533kcs.pdf | BS116: (NULL) | BT116: 2.4 | BU116: 4.5 | BV116: 211 | BW116: 5.4 | BX116: 9 | BY116: (NULL) | BZ116: TO-220 | CA116: (NULL) | CB116: (NULL) | CC116: 42577 | CD116: 42577 | CE116: 2553 | CF116: 0.56
A117: CSD19533Q5A | B117: 146 | C117: Y | D117: Y | E117: WB_MOSFET_N_D56789G4S123 | F117: TRANS_NexFET_Q5A | G117: PJ added new params from PL;Added by Hadi | H117: N | I117: 1 | J117: 0 | K117: 1 | L117: 100 | M117: 20 | N117: 100 | O117: 231 | P117: 150 | Q117: 3.125 | R117: 50 | S117: 1.3 | T117: 2.2 | U117: 3.4 | V117: 4.05 | W117: 1 | X117: 62 | Y117: 13 | Z117: 300 | AA117: 63 | AB117: 1.2 | AC117: (NULL) | AD117: (NULL) | AE117: (NULL) | AF117: (NULL) | AG117: 0.011 | AH117: (NULL) | AI117: 0.0094 | AJ117: 0.98 | AK117: 16.5 | AL117: 5.12 | AM117: 5.7 | AN117: 27 | AO117: 75 | AP117: 2.17 | AQ117: 2.05 | AR117: 2.2 | AS117: 2.56 | AT117: 0.4 | AU117: 3.04 | AV117: 0.184 | AW117: 0.0096 | AX117: 0.22 | AY117: 50 | AZ117: 10 | BA117: 0.1 | BB117: 4.8 | BC117: 1.5 | BD117: 75 | BE117: 1.5 | BF117: 75 | BG117: 100 | BH117: 0.3 | BI117: 100 | BJ117: 0.1 | BK117: 0.41 | BL117: N | BM117: 0.8 | BN117: (NULL) | BO117: 1155 | BP117: 2.6 | BQ117: Y | BR117: http://www.ti.com/lit/ds/symlink/csd19533q5a.pdf | BS117: (NULL) | BT117: 2.4 | BU117: 4.5 | BV117: 163 | BW117: 4.9 | BX117: 7.9 | BY117: (NULL) | BZ117: SON5X6 | CA117: (NULL) | CB117: (NULL) | CC117: 41954 | CD117: 42564 | CE117: 2057 | CF117: 0.46
A118: CSD19534KCS | B118: 146 | C118: Y | D118: N | E118: (NULL) | F118: (NULL) | G118: Updated by PJ | H118: N | I118: 1 | J118: 0 | K118: (NULL) | L118: 100 | M118: 20 | N118: 100 | O118: 138 | P118: 175 | Q118: 118 | R118: 62 | S118: 1.3 | T118: 2.4 | U118: 3.4 | V118: 4.72 | W118: 1.1 | X118: 72 | Y118: 30 | Z118: 300 | AA118: 80 | AB118: 1.1 | AC118: (NULL) | AD118: (NULL) | AE118: (NULL) | AF118: (NULL) | AG118: 0.02 | AH118: (NULL) | AI118: 0.0165 | AJ118: 1.09 | AK118: 11 | AL118: 3 | AM118: 3.3 | AN118: 17 | AO118: 44 | AP118: 1.39 | AQ118: 1.29 | AR118: 1.42 | AS118: 1.52 | AT118: 0.257 | AU118: 1.79 | AV118: 0.137 | AW118: 0.0057 | AX118: 0.164 | AY118: 50 | AZ118: 10 | BA118: 0.1 | BB118: 2.5 | BC118: 2.82 | BD118: 58.6 | BE118: 3.19 | BF118: 58.6 | BG118: 100 | BH118: 0.27 | BI118: 100 | BJ118: 0.1 | BK118: 0.63 | BL118: N | BM118: 0.9 | BN118: (NULL) | BO118: (NULL) | BP118: (NULL) | BQ118: Y | BR118: http://www.ti.com/lit/ds/symlink/csd19534kcs.pdf | BS118: (NULL) | BT118: 2.2 | BU118: 4.7 | BV118: 195 | BW118: 3.2 | BX118: 5.1 | BY118: (NULL) | BZ118: TO-220 | CA118: (NULL) | CB118: (NULL) | CC118: 42577 | CD118: 42577 | CE118: 2554 | CF118: 0.45
A119: CSD19534Q5A | B119: 146 | C119: Y | D119: Y | E119: WB_MOSFET_N_D56789G4S123 | F119: TRANS_NexFET_Q5A | G119: PJ added new params from PL;Added by Hadi | H119: N | I119: 1 | J119: 0 | K119: 1 | L119: 100 | M119: 20 | N119: 50 | O119: 137 | P119: 150 | Q119: 3.125 | R119: 50 | S119: 2 | T119: 2.4 | U119: 3.4 | V119: 4.22 | W119: 1 | X119: 53 | Y119: 10 | Z119: 300 | AA119: 47 | AB119: 1.1 | AC119: (NULL) | AD119: (NULL) | AE119: (NULL) | AF119: (NULL) | AG119: 0.0176 | AH119: (NULL) | AI119: 0.0151 | AJ119: 0.98 | AK119: 11 | AL119: 3.2 | AM119: 3.3 | AN119: 17 | AO119: 44 | AP119: 1.38 | AQ119: 1.29 | AR119: 1.41 | AS119: 1.52 | AT119: 0.25 | AU119: 1.79 | AV119: 0.14 | AW119: 0.006 | AX119: 0.17 | AY119: 50 | AZ119: 10 | BA119: 0.1 | BB119: 3 | BC119: 1.6 | BD119: 50 | BE119: 2.5 | BF119: 50 | BG119: 100 | BH119: 0.3 | BI119: 100 | BJ119: 0.1 | BK119: 0.625 | BL119: N | BM119: 0.8 | BN119: (NULL) | BO119: 1155 | BP119: 1.68 | BQ119: Y | BR119: http://www.ti.com/lit/ds/symlink/csd19534q5a.pdf | BS119: (NULL) | BT119: 2.2 | BU119: 4.5 | BV119: 134 | BW119: 3.2 | BX119: 5.1 | BY119: (NULL) | BZ119: SON5X6 | CA119: (NULL) | CB119: (NULL) | CC119: 41954 | CD119: 42564 | CE119: 2058 | CF119: 0.32
A120: CSD19535KCS | B120: 146 | C120: Y | D120: N | E120: WB_MOSFET_N_D2G1S3 | F120: TO-220AB | G120: Updated by PJ Added by Hadi | H120: N | I120: 1 | J120: 0 | K120: 4 | L120: 100 | M120: 20 | N120: 150 | O120: 400 | P120: 175 | Q120: 300 | R120: 62 | S120: 0.5 | T120: 2.2 | U120: 3.4 | V120: 4.43 | W120: 1.1 | X120: 89 | Y120: 100 | Z120: 300 | AA120: 274 | AB120: 1.4 | AC120: (NULL) | AD120: (NULL) | AE120: (NULL) | AF120: (NULL) | AG120: 0.0044 | AH120: (NULL) | AI120: 0.0036 | AJ120: 0.99 | AK120: 48 | AL120: 15 | AM120: 16 | AN120: 78 | AO120: 196 | AP120: 6.65 | AQ120: 6.1 | AR120: 6.75 | AS120: 7.83 | AT120: 1.16 | AU120: 9.16 | AV120: 0.664 | AW120: 0.029 | AX120: 0.751 | AY120: 50 | AZ120: 10 | BA120: 0.1 | BB120: 12.4 | BC120: 2.27 | BD120: 280 | BE120: 100 | BF120: 0.83 | BG120: 100 | BH120: 0.1 | BI120: 100 | BJ120: 0.1 | BK120: 0.125 | BL120: N | BM120: 0.9 | BN120: (NULL) | BO120: 42 | BP120: 6 | BQ120: Y | BR120: http://www.ti.com/lit/ds/symlink/csd19535kcs.pdf | BS120: (NULL) | BT120: 2.8 | BU120: 4.5 | BV120: 421 | BW120: 13 | BX120: 25 | BY120: (NULL) | BZ120: TO-220 | CA120: (NULL) | CB120: (NULL) | CC120: 41955 | CD120: 42577 | CE120: 2555 | CF120: 1.21
A121: CSD19535KTT | B121: 146 | C121: Y | D121: N | E121: (NULL) | F121: (NULL) | G121: Updated by PJ | H121: N | I121: 1 | J121: 0 | K121: (NULL) | L121: 100 | M121: 20 | N121: 200 | O121: 400 | P121: 175 | Q121: 300 | R121: 62 | S121: 0.5 | T121: 2.2 | U121: 3.4 | V121: 4.6 | W121: 1.1 | X121: 85 | Y121: 100 | Z121: 300 | AA121: 301 | AB121: 1.4 | AC121: (NULL) | AD121: (NULL) | AE121: (NULL) | AF121: (NULL) | AG121: 0.0041 | AH121: (NULL) | AI121: 0.0034 | AJ121: 1.01 | AK121: 48 | AL121: 14.8 | AM121: 16 | AN121: 78 | AO121: 210 | AP121: 6.8 | AQ121: 6.1 | AR121: 6.901 | AS121: 8.5 | AT121: 1.16 | AU121: 10 | AV121: 0.6 | AW121: 0.029 | AX121: 0.736 | AY121: 50 | AZ121: 10 | BA121: 0.1 | BB121: 13 | BC121: 2.14 | BD121: 278 | BE121: 100 | BF121: 0.87 | BG121: 100 | BH121: 0.1 | BI121: 100 | BJ121: 0.1 | BK121: 0.14 | BL121: N | BM121: 0.9 | BN121: (NULL) | BO121: (NULL) | BP121: (NULL) | BQ121: Y | BR121: http://www.ti.com/lit/ds/symlink/csd19535ktt.pdf | BS121: (NULL) | BT121: 2.8 | BU121: 4.5 | BV121: 435 | BW121: 11 | BX121: 25 | BY121: (NULL) | BZ121: DDPAK | CA121: (NULL) | CB121: (NULL) | CC121: 42577 | CD121: 42577 | CE121: 2556 | CF121: 1.25
A122: CSD19536KCS | B122: 146 | C122: Y | D122: N | E122: WB_MOSFET_N_D2G1S3 | F122: TO-220AB | G122: Updated by PJ Added by Kris | H122: N | I122: 1 | J122: 0 | K122: 4 | L122: 100 | M122: 20 | N122: 150 | O122: 400 | P122: 175 | Q122: 375 | R122: 62 | S122: 0.4 | T122: 2.1 | U122: 3.2 | V122: 4.26 | W122: 1.1 | X122: 110 | Y122: 100 | Z122: 300 | AA122: 307 | AB122: 1.4 | AC122: (NULL) | AD122: (NULL) | AE122: (NULL) | AF122: (NULL) | AG122: 0.0032 | AH122: (NULL) | AI122: 0.0027 | AJ122: 0.92 | AK122: 72 | AL122: 24 | AM122: 24 | AN122: 118 | AO122: 335 | AP122: 10.3 | AQ122: 9.25 | AR122: 10.5 | AS122: 13.3 | AT122: 1.82 | AU122: 15.6 | AV122: 0.845 | AW122: 0.0471 | AX122: 1.18 | AY122: 50 | AZ122: 10 | BA122: 0.1 | BB122: 16.2 | BC122: 2.4 | BD122: 350 | BE122: 100 | BF122: 1.48 | BG122: 100 | BH122: 0.1 | BI122: 100 | BJ122: 0.1 | BK122: 0.083 | BL122: N | BM122: 0.9 | BN122: (NULL) | BO122: 42 | BP122: 9.32 | BQ122: Y | BR122: http://www.ti.com/lit/ds/symlink/csd19536kcs.pdf | BS122: (NULL) | BT122: 2.8 | BU122: 4.3 | BV122: 548 | BW122: 17 | BX122: 37 | BY122: (NULL) | BZ122: TO-220 | CA122: (NULL) | CB122: (NULL) | CC122: 41937 | CD122: 42577 | CE122: 2557 | CF122: 1.83
A123: CSD19536KTT | B123: 146 | C123: Y | D123: N | E123: (NULL) | F123: KTT0002A | H123: N | I123: 1 | J123: 0 | K123: (NULL) | L123: 100 | M123: 20 | N123: 200 | O123: 400 | P123: 175 | Q123: 375 | R123: 62 | S123: 0.4 | T123: 2.1 | U123: 3.2 | V123: 4 | W123: 1.1 | X123: 110 | Y123: 100 | Z123: 300 | AA123: 307 | AB123: 1.4 | AC123: (NULL) | AD123: (NULL) | AE123: (NULL) | AF123: (NULL) | AG123: 0.0032 | AH123: (NULL) | AI123: 0.0027 | AJ123: 0.92 | AK123: 72 | AL123: 24 | AM123: 24 | AN123: 118 | AO123: 335 | AP123: 10.3 | AQ123: 9.25 | AR123: 10.5 | AS123: 13.3 | AT123: 1.82 | AU123: 15.6 | AV123: 0.845 | AW123: 0.0471 | AX123: 1.18 | AY123: 50 | AZ123: 10 | BA123: 0.1 | BB123: 16.2 | BC123: 2.4 | BD123: 350 | BE123: 100 | BF123: 1.48 | BG123: 100 | BH123: 0.1 | BI123: 100 | BJ123: 0.1 | BK123: 0.083 | BL123: N | BM123: 0.9 | BN123: (NULL) | BO123: 42 | BP123: 9.32 | BQ123: Y | BR123: http://www.ti.com/lit/ds/symlink/csd19536kcs.pdf | BS123: (NULL) | BT123: 2.8 | BU123: 4.3 | BV123: 548 | BW123: 17 | BX123: 37 | BY123: (NULL) | BZ123: DDPAK | CA123: (NULL) | CB123: (NULL) | CC123: 41937 | CD123: 42577 | CE123: 2557 | CF123: 1.88
A124: CSD19537Q3 | B124: 146 | C124: Y | D124: Y | E124: WB_MOSFET_N_D56789G4S123 | F124: DQG0008A | G124: Added by Hadi; PJ added new params from PL; Oliver updated Thermal_Id | H124: N | I124: 1 | J124: 0 | K124: 1 | L124: 100 | M124: 20 | N124: 50 | O124: 219 | P124: 150 | Q124: 83 | R124: 55 | S124: 1.5 | T124: 2.6 | U124: 3.6 | V124: 4.6 | W124: 1 | X124: 36 | Y124: 10 | Z124: 300 | AA124: 45 | AB124: 1.2 | AC124: (NULL) | AD124: (NULL) | AE124: (NULL) | AF124: (NULL) | AG124: 0.0166 | AH124: (NULL) | AI124: 0.0145 | AJ124: 1.02 | AK124: 10 | AL124: 3 | AM124: 3.8 | AN124: 16 | AO124: 44 | AP124: 1.45 | AQ124: 1.29 | AR124: 1.46 | AS124: 1.63 | AT124: 0.25 | AU124: 1.84 | AV124: 0.142 | AW124: 0.013 | AX124: 0.16 | AY124: 50 | AZ124: (NULL) | BA124: 0.1 | BB124: 3.5 | BC124: 1.8 | BD124: 60 | BE124: 5 | BF124: 20 | BG124: 30 | BH124: 1.6 | BI124: 100 | BJ124: 0.1 | BK124: 1.35 | BL124: N | BM124: 0.8 | BN124: (NULL) | BO124: (NULL) | BP124: 1.3 | BQ124: (NULL) | BR124: http://www.ti.com/lit/ds/symlink/csd19537q3.pdf | BS124: (NULL) | BT124: 2.4 | BU124: 4.5 | BV124: 134 | BW124: 2.9 | BX124: 5.5 | BY124: (NULL) | BZ124: SON3X3 | CA124: (NULL) | CB124: (NULL) | CC124: 42265 | CD124: 42599 | CE124: 2059 | CF124: 0.38
A125: CSD19538Q2 | B125: 146 | C125: Y | D125: Y | E125: WB_MOSFET_N_D12568G3S47 | F125: DQK0006C | G125: Updated by PJ 8/3 Bob for Tattiana Davenport | H125: N | I125: 1 | J125: 0 | K125: 1 | L125: 100 | M125: 20 | N125: 14.4 | O125: 34.4 | P125: 150 | Q125: 20.2 | R125: 65 | S125: 6.2 | T125: 2.8 | U125: 3.8 | V125: 4.7 | W125: 1 | X125: 34 | Y125: 5 | Z125: 300 | AA125: 19 | AB125: 4.6 | AC125: (NULL) | AD125: (NULL) | AE125: (NULL) | AF125: (NULL) | AG125: 0.072 | AH125: (NULL) | AI125: 0.059 | AJ125: 1 | AK125: 2.7 | AL125: 0.75 | AM125: 1 | AN125: 4.3 | AO125: 12.3 | AP125: 0.36 | AQ125: 0.35 | AR125: 0.38 | AS125: 0.4 | AT125: 0.069 | AU125: 0.47 | AV125: 0.04 | AW125: 0.009 | AX125: 0.048 | AY125: 50 | AZ125: 10 | BA125: 0.1 | BB125: 3.5 | BC125: 1.8 | BD125: 60 | BE125: 2.5 | BF125: 60 | BG125: 100 | BH125: 0.29 | BI125: 100 | BJ125: 0.1 | BK125: 0.41 | BL125: N | BM125: 0.85 | BN125: (NULL) | BO125: (NULL) | BP125: 0.332 | BQ125: Y | BR125: http://www.ti.com/lit/ds/symlink/csd19538q2.pdf | BS125: (NULL) | BT125: 9.2 | BU125: 4.5 | BV125: 94 | BW125: 0.8 | BX125: 2 | BY125: (NULL) | BZ125: SON2X2 | CA125: N | CB125: (NULL) | CC125: 42422 | CD125: 42585 | CE125: 2559 | CF125: 0.15
A126: CSD19538Q3A | B126: 146 | C126: Y | D126: Y | E126: WB_MOSFET_N_D56789G4S123 | F126: DNH0008A | G126: Updated by PJ Bob for John Betten | H126: N | I126: 1 | J126: 0 | K126: 1 | L126: 100 | M126: 20 | N126: 15 | O126: 37 | P126: 150 | Q126: 2.8 | R126: 55 | S126: 5.5 | T126: 2.8 | U126: 3.8 | V126: 4.9 | W126: 1 | X126: 32 | Y126: 5 | Z126: 300 | AA126: 6.1 | AB126: 4.6 | AC126: (NULL) | AD126: (NULL) | AE126: (NULL) | AF126: (NULL) | AG126: 0.072 | AH126: (NULL) | AI126: 0.059 | AJ126: 0.98 | AK126: 2.7 | AL126: 0.7 | AM126: 1 | AN126: 4.3 | AO126: 12.3 | AP126: 0.368 | AQ126: 0.349 | AR126: 0.375 | AS126: 0.405 | AT126: 0.069 | AU126: 0.493 | AV126: 0.0409 | AW126: 0.0126 | AX126: 0.0504 | AY126: 50 | AZ126: 10 | BA126: 0.1 | BB126: 0.8 | BC126: 1.8 | BD126: 60 | BE126: 3.8 | BF126: 60 | BG126: 100 | BH126: 0.14 | BI126: 100 | BJ126: 0.1 | BK126: 2.57 | BL126: N | BM126: 0.85 | BN126: (NULL) | BO126: (NULL) | BP126: 0.324 | BQ126: Y | BR126: http://www.ti.com/lit/ds/symlink/csd19538q3a.pdf | BS126: (NULL) | BT126: 9.2 | BU126: 4.1 | BV126: 94 | BW126: 0.8 | BX126: 1.6 | BY126: (NULL) | BZ126: SON3X3 | CA126: N | CB126: (NULL) | CC126: 42354 | CD126: 42577 | CE126: 2560 | CF126: 0.15
A127: CSD85301Q2 (CONT) | B127: 146 | C127: Y | D127: A | E127: WB_MOSFET_N_D67G2S1_N_D38G5S4_PD | F127: DQK0006B | G127: Bob for Kevin Tsin | H127: N | I127: 2 | J127: 0 | K127: 1 | L127: 20 | M127: 10 | N127: 5 | O127: 26 | P127: 150 | Q127: 2.3 | R127: 70 | S127: (NULL) | T127: 0.6 | U127: 1.2 | V127: 1.85 | W127: 1 | X127: 14 | Y127: 5 | Z127: 300 | AA127: 20 | AB127: 7.3 | AC127: (NULL) | AD127: 0.039 | AE127: (NULL) | AF127: 0.027 | AG127: (NULL) | AH127: (NULL) | AI127: (NULL) | AJ127: 0.48 | AK127: 4.2 | AL127: (NULL) | AM127: 0.5 | AN127: (NULL) | AO127: 1.3 | AP127: 0.46 | AQ127: 0.38 | AR127: 0.5 | AS127: 0.2 | AT127: 0.07 | AU127: 0.32 | AV127: 0.13 | AW127: 0.05 | AX127: 0.18 | AY127: 10 | AZ127: 10 | BA127: 0.1 | BB127: 2.6 | BC127: 0.46 | BD127: 12 | BE127: 4 | BF127: 2.5 | BG127: 20 | BH127: 0.2 | BI127: 20 | BJ127: 0.1 | BK127: (NULL) | BL127: N | BM127: 0.8 | BN127: (NULL) | BO127: (NULL) | BP127: 0.32 | BQ127: Y | BR127: http://www.ti.com/lit/ds/symlink/csd85301q2.pdf | BS127: (NULL) | BT127: (NULL) | BU127: (NULL) | BV127: 7.2 | BW127: 1 | BX127: 1.1 | BY127: (NULL) | BZ127: SON2X2 | CA127: N | CB127: (NULL) | CC127: (NULL) | CD127: (NULL) | CE127: 2913 | CF127: 0.14
A128: CSD85301Q2 (SYNC) | B128: 146 | C128: Y | D128: A | E128: WB_MOSFET_N_D67G2S1_N_D38G5S4_PD | F128: DQK0006B | G128: Bob for Kevin Tsin | H128: N | I128: 2 | J128: 1 | K128: 1 | L128: 20 | M128: 10 | N128: 5 | O128: 26 | P128: 150 | Q128: 2.3 | R128: 70 | S128: (NULL) | T128: 0.6 | U128: 1.2 | V128: 1.85 | W128: 1 | X128: 14 | Y128: 5 | Z128: 300 | AA128: 20 | AB128: 7.3 | AC128: (NULL) | AD128: 0.039 | AE128: (NULL) | AF128: 0.027 | AG128: (NULL) | AH128: (NULL) | AI128: (NULL) | AJ128: 0.48 | AK128: 4.2 | AL128: (NULL) | AM128: 0.5 | AN128: (NULL) | AO128: 1.3 | AP128: 0.46 | AQ128: 0.38 | AR128: 0.5 | AS128: 0.2 | AT128: 0.07 | AU128: 0.32 | AV128: 0.13 | AW128: 0.05 | AX128: 0.18 | AY128: 10 | AZ128: 10 | BA128: 0.1 | BB128: 2.6 | BC128: 0.46 | BD128: 12 | BE128: 4 | BF128: 2.5 | BG128: 20 | BH128: 0.2 | BI128: 20 | BJ128: 0.1 | BK128: (NULL) | BL128: N | BM128: 0.8 | BN128: (NULL) | BO128: (NULL) | BP128: 0.32 | BQ128: Y | BR128: http://www.ti.com/lit/ds/symlink/csd85301q2.pdf | BS128: (NULL) | BT128: (NULL) | BU128: (NULL) | BV128: 7.2 | BW128: 1 | BX128: 1.1 | BY128: (NULL) | BZ128: SON2X2 | CA128: N | CB128: (NULL) | CC128: (NULL) | CD128: (NULL) | CE128: 2914 | CF128: 0.14
A129: CSD86330Q3D (CONT) | B129: 146 | C129: Y | D129: N | E129: WB_POWERBLOCK_9 | F129: DQZ0008A | G129: DBA - vasudev_g@ti.com: Available "Y" -> "P" - 2016-08-18 23:11:31.306407 | H129: N | I129: 2 | J129: 0 | K129: 1 | L129: 25 | M129: 10 | N129: 20 | O129: 60 | P129: 150 | Q129: 6 | R129: 73 | S129: 2.5 | T129: 0.9 | U129: 2.1 | V129: 2.42 | W129: 1 | X129: 13.9 | Y129: 14 | Z129: 300 | AA129: 52 | AB129: 1.5 | AC129: (NULL) | AD129: (NULL) | AE129: (NULL) | AF129: 0.0115 | AG129: (NULL) | AH129: 0.0096 | AI129: (NULL) | AJ129: 0.34 | AK129: 4.8 | AL129: 1.66 | AM129: 0.9 | AN129: 10.5 | AO129: 7.2 | AP129: 0.751 | AQ129: 0.71 | AR129: 0.78 | AS129: 0.651 | AT129: 0.35 | AU129: 0.836 | AV129: 0.068 | AW129: 0.018 | AX129: 0.102 | AY129: 12.5 | AZ129: (NULL) | BA129: (NULL) | BB129: (NULL) | BC129: (NULL) | BD129: (NULL) | BE129: (NULL) | BF129: (NULL) | BG129: (NULL) | BH129: (NULL) | BI129: (NULL) | BJ129: (NULL) | BK129: 0.96 | BL129: Y | BM129: 0.85 | BN129: (NULL) | BO129: (NULL) | BP129: 0.678 | BQ129: Y | BR129: http://www.ti.com/lit/ds/symlink/csd86330q3d.pdf | BS129: (NULL) | BT129: 3 | BU129: 2.5 | BV129: 3.9 | BW129: 0.9 | BX129: 1.6 | BY129: (NULL) | BZ129: SON3x3 | CA129: N | CB129: (NULL) | CC129: 42452 | CD129: 42541 | CE129: 2306 | CF129: 0.62
A130: CSD86330Q3D (SYNC) | B130: 146 | C130: Y | D130: N | E130: WB_POWERBLOCK_9 | F130: DQZ0008A | G130: DBA - vasudev_g@ti.com: Available "Y" -> "P" - 2016-08-18 23:11:34.237810 | H130: N | I130: 2 | J130: 1 | K130: 1 | L130: 25 | M130: 10 | N130: 20 | O130: 60 | P130: 150 | Q130: 6 | R130: 73 | S130: 2.5 | T130: 0.9 | U130: 1.6 | V130: 1.79 | W130: 1 | X130: 19 | Y130: 14 | Z130: 300 | AA130: 82 | AB130: 1.2 | AC130: (NULL) | AD130: (NULL) | AE130: (NULL) | AF130: 0.006 | AG130: (NULL) | AH130: 0.0052 | AI130: (NULL) | AJ130: 0.34 | AK130: 9.2 | AL130: 5.22 | AM130: 1.2 | AN130: 20 | AO130: 13.6 | AP130: 1.38 | AQ130: 1.28 | AR130: 1.45 | AS130: 1.27 | AT130: 0.68 | AU130: 1.65 | AV130: 0.145 | AW130: 0.038 | AX130: 0.231 | AY130: 12.5 | AZ130: (NULL) | BA130: (NULL) | BB130: (NULL) | BC130: (NULL) | BD130: (NULL) | BE130: (NULL) | BF130: (NULL) | BG130: (NULL) | BH130: (NULL) | BI130: (NULL) | BJ130: (NULL) | BK130: 0.5 | BL130: Y | BM130: 0.8 | BN130: (NULL) | BO130: (NULL) | BP130: 1.219 | BQ130: Y | BR130: http://www.ti.com/lit/ds/symlink/csd86330q3d.pdf | BS130: (NULL) | BT130: 2.4 | BU130: 2 | BV130: 7.3 | BW130: 1.6 | BX130: 2.1 | BY130: (NULL) | BZ130: SON3x3 | CA130: N | CB130: (NULL) | CC130: 42452 | CD130: 42541 | CE130: 2307 | CF130: 0.62
A131: CSD86336Q3D (CONT) | B131: 146 | C131: Y | D131: A | E131: 0 | F131: FP-CSD86336Q3D_VSON-CLIP8-MFG | G131: Pallavi for Gerold | H131: N | I131: 2 | J131: 0 | K131: 1 | L131: 25 | M131: 8 | N131: 20 | O131: 60 | P131: 125 | Q131: 6 | R131: 55 | S131: 17 | T131: 1.1 | U131: 1.9 | V131: 3 | W131: 1 | X131: 15 | Y131: 14 | Z131: 300 | AA131: 40 | AB131: 4 | AC131: (NULL) | AD131: (NULL) | AE131: (NULL) | AF131: 0.0114 | AG131: (NULL) | AH131: (NULL) | AI131: (NULL) | AJ131: 0.26 | AK131: 2.9 | AL131: (NULL) | AM131: 0.6 | AN131: (NULL) | AO131: 5.4 | AP131: 0.41 | AQ131: 0.39 | AR131: 0.45 | AS131: 0.55 | AT131: 0.26 | AU131: 0.7 | AV131: 0.07 | AW131: 0.015 | AX131: 0.11 | AY131: 12.5 | AZ131: (NULL) | BA131: (NULL) | BB131: (NULL) | BC131: (NULL) | BD131: (NULL) | BE131: (NULL) | BF131: (NULL) | BG131: (NULL) | BH131: (NULL) | BI131: (NULL) | BJ131: (NULL) | BK131: (NULL) | BL131: Y | BM131: 0.86 | BN131: N | BO131: (NULL) | BP131: 0.34 | BQ131: Y | BR131: http://www.ti.com/lit/ds/symlink/csd86336q3d.pdf | BS131: (NULL) | BT131: 8 | BU131: 3.3 | BV131: 14.7 | BW131: 0.6 | BX131: 1.4 | BY131: N | BZ131: SON3x3 | CA131: N | CB131: (NULL) | CC131: 43475 | CD131: 43475 | CE131: 3647 | CF131: 0.49
A132: CSD86336Q3D (SYNC) | B132: 146 | C132: Y | D132: A | E132: 0 | F132: FP-CSD86336Q3D_VSON-CLIP8-MFG | G132: Pallavi for Gerold | H132: N | I132: 2 | J132: 1 | K132: 1 | L132: 25 | M132: 8 | N132: 20 | O132: 60 | P132: 125 | Q132: 6 | R132: 55 | S132: 17 | T132: 1 | U132: 1.6 | V132: 2.59 | W132: 0.95 | X132: 18 | Y132: 14 | Z132: 300 | AA132: 57 | AB132: 0.65 | AC132: (NULL) | AD132: (NULL) | AE132: (NULL) | AF132: 0.0057 | AG132: (NULL) | AH132: (NULL) | AI132: (NULL) | AJ132: 0.24 | AK132: 5.7 | AL132: (NULL) | AM132: 1 | AN132: (NULL) | AO132: 10.3 | AP132: 0.8 | AQ132: 0.73 | AR132: 0.79 | AS132: 1.1 | AT132: 0.5 | AU132: 1.4 | AV132: 0.15 | AW132: 0.026 | AX132: 0.11 | AY132: 12.5 | AZ132: (NULL) | BA132: (NULL) | BB132: (NULL) | BC132: (NULL) | BD132: (NULL) | BE132: (NULL) | BF132: (NULL) | BG132: (NULL) | BH132: (NULL) | BI132: (NULL) | BJ132: (NULL) | BK132: (NULL) | BL132: Y | BM132: 0.82 | BN132: N | BO132: (NULL) | BP132: 0.68 | BQ132: Y | BR132: http://www.ti.com/lit/ds/symlink/csd86336q3d.pdf | BS132: (NULL) | BT132: 1.3 | BU132: 2.85 | BV132: 25.4 | BW132: 1.2 | BX132: 2.1 | BY132: N | BZ132: SON3x3 | CA132: N | CB132: (NULL) | CC132: 43475 | CD132: 43475 | CE132: 3648 | CF132: 0.49
A133: CSD86350Q5D (CONT) | B133: 146 | C133: Y | D133: N | E133: WB_POWERBLOCK_9 | F133: DQY0008A | G133: PJELLA; PJ updated on 6/20 per PL data; Oliver set symbol and Thermal_Id | H133: N | I133: 2 | J133: 0 | K133: 1 | L133: 25 | M133: 10 | N133: 40 | O133: 120 | P133: 150 | Q133: 13 | R133: 50 | S133: 2 | T133: 0.9 | U133: 2.1 | V133: 2.72 | W133: 1 | X133: 22 | Y133: 20 | Z133: 300 | AA133: 103 | AB133: 1.4 | AC133: (NULL) | AD133: (NULL) | AE133: (NULL) | AF133: 0.0066 | AG133: (NULL) | AH133: 0.006 | AI133: (NULL) | AJ133: 0.39 | AK133: 8.2 | AL133: 4.5 | AM133: 1.9 | AN133: 16.7 | AO133: 9.9 | AP133: 1.44 | AQ133: 1.28 | AR133: 1.6 | AS133: 1.21 | AT133: 0.645 | AU133: 1.7 | AV133: 0.079 | AW133: 0.022 | AX133: 0.103 | AY133: 12.5 | AZ133: (NULL) | BA133: (NULL) | BB133: (NULL) | BC133: (NULL) | BD133: (NULL) | BE133: (NULL) | BF133: (NULL) | BG133: (NULL) | BH133: (NULL) | BI133: (NULL) | BJ133: (NULL) | BK133: 0.57 | BL133: Y | BM133: 0.85 | BN133: (NULL) | BO133: (NULL) | BP133: 1.497 | BQ133: Y | BR133: http://www.ti.com/lit/ds/symlink/csd86350q5d.pdf | BS133: (NULL) | BT133: 2.8 | BU133: 2.8 | BV133: 16 | BW133: 1 | BX133: 3.2 | BY133: (NULL) | BZ133: SON5x6 | CA133: N | CB133: (NULL) | CC133: 42452 | CD133: 42600 | CE133: 2308 | CF133: 0.89
A134: CSD86350Q5D (SYNC) | B134: 146 | C134: Y | D134: N | E134: WB_POWERBLOCK_9 | F134: DQY0008A | G134: PJELLA; PJ updated on 6/20 per PL data; Oliver set symbol and Thermal_Id | H134: N | I134: 2 | J134: 1 | K134: 1 | L134: 25 | M134: 10 | N134: 40 | O134: 120 | P134: 150 | Q134: 13 | R134: 50 | S134: 2 | T134: 0.9 | U134: 1.6 | V134: 1.8 | W134: 1 | X134: 32 | Y134: 20 | Z134: 300 | AA134: 132 | AB134: 1.4 | AC134: (NULL) | AD134: (NULL) | AE134: (NULL) | AF134: 0.0027 | AG134: (NULL) | AH134: 0.0025 | AI134: (NULL) | AJ134: 0.36 | AK134: 19.4 | AL134: 10 | AM134: 2.8 | AN134: 38 | AO134: 28 | AP134: 3.08 | AQ134: 3.01 | AR134: 3.3 | AS134: 2.92 | AT134: 1.55 | AU134: 3.7 | AV134: 0.19 | AW134: 0.045 | AX134: 0.24 | AY134: 12.5 | AZ134: (NULL) | BA134: (NULL) | BB134: (NULL) | BC134: (NULL) | BD134: (NULL) | BE134: (NULL) | BF134: (NULL) | BG134: (NULL) | BH134: (NULL) | BI134: (NULL) | BJ134: (NULL) | BK134: 0.26 | BL134: Y | BM134: 0.77 | BN134: (NULL) | BO134: (NULL) | BP134: 3.06 | BQ134: Y | BR134: http://www.ti.com/lit/ds/symlink/csd86350q5d.pdf | BS134: (NULL) | BT134: 2.8 | BU134: 2 | BV134: 40 | BW134: 2.5 | BX134: 5.1 | BY134: (NULL) | BZ134: SON5x6 | CA134: N | CB134: (NULL) | CC134: 42452 | CD134: 42600 | CE134: 2309 | CF134: 0.89
A135: CSD86356Q5D (CONT) | B135: 146 | C135: Y | D135: A | E135: 0 | F135: FP-CSD86356Q5D_VSON-CLIP8-MFG | G135: Pallavi for Gerold | H135: N | I135: 2 | J135: 0 | K135: 1 | L135: 25 | M135: 8 | N135: 40 | O135: 120 | P135: 150 | Q135: 12 | R135: 50 | S135: 12 | T135: 0.95 | U135: 1.85 | V135: 2.73 | W135: 0.95 | X135: 23 | Y135: 20 | Z135: 300 | AA135: 70 | AB135: 2.1 | AC135: (NULL) | AD135: (NULL) | AE135: (NULL) | AF135: 0.0056 | AG135: (NULL) | AH135: (NULL) | AI135: (NULL) | AJ135: 0.32 | AK135: 6 | AL135: (NULL) | AM135: 1.2 | AN135: (NULL) | AO135: 10.3 | AP135: 0.9 | AQ135: 0.8 | AR135: 0.99 | AS135: 1.3 | AT135: 0.55 | AU135: 1.5 | AV135: 0.18 | AW135: 0.028 | AX135: 0.23 | AY135: 12.5 | AZ135: (NULL) | BA135: (NULL) | BB135: (NULL) | BC135: (NULL) | BD135: (NULL) | BE135: (NULL) | BF135: (NULL) | BG135: (NULL) | BH135: (NULL) | BI135: (NULL) | BJ135: (NULL) | BK135: (NULL) | BL135: Y | BM135: 0.84 | BN135: N | BO135: (NULL) | BP135: 0.76 | BQ135: Y | BR135: http://www.ti.com/lit/ds/symlink/csd86356q5d.pdf | BS135: (NULL) | BT135: 4.2 | BU135: 3.1 | BV135: 34 | BW135: 1.3 | BX135: 2.6 | BY135: N | BZ135: SON5x6 | CA135: N | CB135: (NULL) | CC135: 43475 | CD135: 43475 | CE135: 3645 | CF135: 0.77
A136: CSD86356Q5D (SYNC) | B136: 146 | C136: Y | D136: A | E136: 0 | F136: FP-CSD86356Q5D_VSON-CLIP8-MFG | G136: Pallavi for Gerold | H136: N | I136: 2 | J136: 1 | K136: 1 | L136: 25 | M136: 8 | N136: 40 | O136: 120 | P136: 150 | Q136: 12 | R136: 50 | S136: 12 | T136: 0.9 | U136: 1.5 | V136: 2.34 | W136: 0.95 | X136: 30 | Y136: 20 | Z136: 300 | AA136: 70 | AB136: 0.8 | AC136: (NULL) | AD136: (NULL) | AE136: (NULL) | AF136: 0.0022 | AG136: (NULL) | AH136: (NULL) | AI136: (NULL) | AJ136: 0.295 | AK136: 14.8 | AL136: (NULL) | AM136: 2.5 | AN136: (NULL) | AO136: 24.9 | AP136: 2.15 | AQ136: 1.995 | AR136: 2.4 | AS136: 3 | AT136: 1.5 | AU136: 3.5 | AV136: 0.35 | AW136: 0.065 | AX136: 0.525 | AY136: 12.5 | AZ136: (NULL) | BA136: (NULL) | BB136: (NULL) | BC136: (NULL) | BD136: (NULL) | BE136: (NULL) | BF136: (NULL) | BG136: (NULL) | BH136: (NULL) | BI136: (NULL) | BJ136: (NULL) | BK136: (NULL) | BL136: Y | BM136: 0.79 | BN136: N | BO136: (NULL) | BP136: 1.875 | BQ136: Y | BR136: http://www.ti.com/lit/ds/symlink/csd86356q5d.pdf | BS136: (NULL) | BT136: 1.6 | BU136: 2.65 | BV136: 60 | BW136: 3.3 | BX136: 5.2 | BY136: N | BZ136: SON5x6 | CA136: N | CB136: (NULL) | CC136: 43475 | CD136: 43475 | CE136: 3646 | CF136: 0.77
A137: CSD86360Q5D (CONT) | B137: 146 | C137: Y | D137: N | E137: WB_POWERBLOCK_9 | F137: DQY0008A | G137: PJELLA; PJ updated on 6/20 per PL data; Oliver set symbol and Thermal_Id | H137: N | I137: 2 | J137: 0 | K137: 1 | L137: 25 | M137: 10 | N137: 50 | O137: 120 | P137: 150 | Q137: 13 | R137: 50 | S137: 2 | T137: 1 | U137: 2.1 | V137: 2.52 | W137: 1 | X137: 22 | Y137: 20 | Z137: 300 | AA137: 113 | AB137: 1.2 | AC137: (NULL) | AD137: (NULL) | AE137: (NULL) | AF137: 0.0045 | AG137: (NULL) | AH137: 0.0039 | AI137: (NULL) | AJ137: 0.32 | AK137: 9.7 | AL137: 5 | AM137: 1.9 | AN137: 22 | AO137: 15.1 | AP137: 1.73 | AQ137: 1.59 | AR137: 1.79 | AS137: 1.54 | AT137: 0.84 | AU137: 1.83 | AV137: 0.158 | AW137: 0.042 | AX137: 0.235 | AY137: 12.5 | AZ137: (NULL) | BA137: (NULL) | BB137: (NULL) | BC137: (NULL) | BD137: (NULL) | BE137: (NULL) | BF137: (NULL) | BG137: (NULL) | BH137: (NULL) | BI137: (NULL) | BJ137: (NULL) | BK137: 0.45 | BL137: Y | BM137: 0.85 | BN137: (NULL) | BO137: (NULL) | BP137: 1.555 | BQ137: Y | BR137: http://www.ti.com/lit/ds/symlink/csd86360q5d.pdf | BS137: (NULL) | BT137: 2.5 | BU137: 2.5 | BV137: 27 | BW137: 2.3 | BX137: 3.5 | BY137: (NULL) | BZ137: SON5x6 | CA137: N | CB137: (NULL) | CC137: 42452 | CD137: 42600 | CE137: 2310 | CF137: 0.92
A138: CSD86360Q5D (SYNC) | B138: 146 | C138: Y | D138: N | E138: WB_POWERBLOCK_9 | F138: DQY0008A | G138: PJELLA; PJ updated on 6/20 per PL data; Oliver set symbol and Thermal_Id | H138: N | I138: 2 | J138: 1 | K138: 1 | L138: 25 | M138: 10 | N138: 50 | O138: 120 | P138: 150 | Q138: 13 | R138: 50 | S138: 2 | T138: 0.75 | U138: 1.15 | V138: 1.75 | W138: 0.82 | X138: 34 | Y138: 20 | Z138: 300 | AA138: 169 | AB138: 1.1 | AC138: (NULL) | AD138: (NULL) | AE138: (NULL) | AF138: 0.0019 | AG138: (NULL) | AH138: 0.0016 | AI138: (NULL) | AJ138: 0.35 | AK138: 23 | AL138: 13 | AM138: 3.5 | AN138: 51 | AO138: 33 | AP138: 3.93 | AQ138: 3.91 | AR138: 4 | AS138: 3.96 | AT138: 1.97 | AU138: 4.58 | AV138: 0.33 | AW138: 0.053 | AX138: 0.5 | AY138: 12.5 | AZ138: (NULL) | BA138: (NULL) | BB138: (NULL) | BC138: (NULL) | BD138: (NULL) | BE138: (NULL) | BF138: (NULL) | BG138: (NULL) | BH138: (NULL) | BI138: (NULL) | BJ138: (NULL) | BK138: 0.2 | BL138: Y | BM138: 0.75 | BN138: (NULL) | BO138: (NULL) | BP138: 3.5 | BQ138: Y | BR138: http://www.ti.com/lit/ds/symlink/csd86360q5d.pdf | BS138: (NULL) | BT138: 2.2 | BU138: 1.8 | BV138: 50 | BW138: 3.6 | BX138: 6 | BY138: (NULL) | BZ138: SON5x6 | CA138: N | CB138: (NULL) | CC138: 42452 | CD138: 42600 | CE138: 2311 | CF138: 0.92
A139: CSD87330Q3D (CONT) | B139: 146 | C139: Y | D139: N | E139: WB_POWERBLOCK_9 | F139: DQZ0008A | G139: PJELLA; Oliver set Thermal_Id to DQZ0008A; PJ updated on 6/20 per PL data | H139: N | I139: 2 | J139: 0 | K139: 1 | L139: 30 | M139: 10 | N139: 20 | O139: 60 | P139: 150 | Q139: 6 | R139: 60 | S139: 2.5 | T139: 1 | U139: 2.1 | V139: 2.28 | W139: 1 | X139: 14 | Y139: 15 | Z139: 300 | AA139: 51 | AB139: 1.5 | AC139: (NULL) | AD139: (NULL) | AE139: (NULL) | AF139: 0.0113 | AG139: (NULL) | AH139: 0.0097 | AI139: (NULL) | AJ139: 0.38 | AK139: 4.8 | AL139: 2.4 | AM139: 0.9 | AN139: 9.5 | AO139: 6 | AP139: 0.796 | AQ139: 0.75 | AR139: 0.839 | AS139: 0.63 | AT139: 0.31 | AU139: 0.821 | AV139: 0.0672 | AW139: 0.013 | AX139: 0.115 | AY139: 15 | AZ139: (NULL) | BA139: (NULL) | BB139: (NULL) | BC139: (NULL) | BD139: (NULL) | BE139: (NULL) | BF139: (NULL) | BG139: (NULL) | BH139: (NULL) | BI139: (NULL) | BJ139: (NULL) | BK139: 1.06 | BL139: Y | BM139: 0.85 | BN139: (NULL) | BO139: (NULL) | BP139: 0.724 | BQ139: Y | BR139: http://www.ti.com/lit/ds/symlink/csd87330q3d.pdf | BS139: (NULL) | BT139: 3 | BU139: 2.5 | BV139: 10 | BW139: 0.9 | BX139: 1.5 | BY139: (NULL) | BZ139: SON3x3 | CA139: N | CB139: (NULL) | CC139: 42452 | CD139: 42541 | CE139: 2312 | CF139: 0.49
A140: CSD87330Q3D (SYNC) | B140: 146 | C140: Y | D140: N | E140: WB_POWERBLOCK_9 | F140: DQZ0008A | G140: PJELLA; Oliver set Thermal_Id to DQZ0008A; PJ updated on 6/20 per PL data | H140: N | I140: 2 | J140: 1 | K140: 1 | L140: 30 | M140: 10 | N140: 20 | O140: 60 | P140: 150 | Q140: 6 | R140: 60 | S140: 2.5 | T140: 0.75 | U140: 1.15 | V140: 1.72 | W140: 1 | X140: 18 | Y140: 15 | Z140: 300 | AA140: 76 | AB140: 0.8 | AC140: (NULL) | AD140: (NULL) | AE140: (NULL) | AF140: 0.0057 | AG140: (NULL) | AH140: 0.0049 | AI140: (NULL) | AJ140: 0.38 | AK140: 9.6 | AL140: 5.2 | AM140: 1.1 | AN140: 20.7 | AO140: 11 | AP140: 1.48 | AQ140: 1.36 | AR140: 1.57 | AS140: 1.24 | AT140: 0.58 | AU140: 1.64 | AV140: 0.14 | AW140: 0.035 | AX140: 0.239 | AY140: 15 | AZ140: (NULL) | BA140: (NULL) | BB140: (NULL) | BC140: (NULL) | BD140: (NULL) | BE140: (NULL) | BF140: (NULL) | BG140: (NULL) | BH140: (NULL) | BI140: (NULL) | BJ140: (NULL) | BK140: 0.488 | BL140: Y | BM140: 0.85 | BN140: (NULL) | BO140: (NULL) | BP140: 1.331 | BQ140: Y | BR140: http://www.ti.com/lit/ds/symlink/csd87330q3d.pdf | BS140: (NULL) | BT140: 1.6 | BU140: 1.8 | BV140: 15 | BW140: 1.8 | BX140: 2 | BY140: (NULL) | BZ140: SON3x3 | CA140: N | CB140: (NULL) | CC140: 42452 | CD140: 42541 | CE140: 2313 | CF140: 0.49
A141: CSD87331Q3D (CONT) | B141: 146 | C141: Y | D141: N | E141: WB_POWERBLOCK_9 | F141: DQZ0008A | G141: PJELLA; Oliver set Thermal_Id to DQZ0008A; PJ updated on 6/20 per PL data | H141: N | I141: 2 | J141: 0 | K141: 1 | L141: 30 | M141: 10 | N141: 15 | O141: 45 | P141: 150 | Q141: 6 | R141: 80 | S141: 3.1 | T141: 1 | U141: 2.1 | V141: 2.44 | W141: 1 | X141: 10 | Y141: 8 | Z141: 300 | AA141: 26 | AB141: 5.2 | AC141: (NULL) | AD141: (NULL) | AE141: (NULL) | AF141: 0.022 | AG141: (NULL) | AH141: 0.018 | AI141: (NULL) | AJ141: 0.39 | AK141: 2.7 | AL141: 0.75 | AM141: 0.5 | AN141: 6.1 | AO141: 3.6 | AP141: 0.427 | AQ141: 0.431 | AR141: 0.446 | AS141: 0.332 | AT141: 0.158 | AU141: 0.431 | AV141: 0.0342 | AW141: 0.007 | AX141: 0.057 | AY141: 15 | AZ141: (NULL) | BA141: (NULL) | BB141: (NULL) | BC141: (NULL) | BD141: (NULL) | BE141: (NULL) | BF141: (NULL) | BG141: (NULL) | BH141: (NULL) | BI141: (NULL) | BJ141: (NULL) | BK141: 1.6 | BL141: Y | BM141: 0.85 | BN141: (NULL) | BO141: (NULL) | BP141: 0.389 | BQ141: Y | BR141: http://www.ti.com/lit/ds/symlink/csd87331q3d.pdf | BS141: (NULL) | BT141: 6.5 | BU141: 2.6 | BV141: 4 | BW141: 0.4 | BX141: 0.9 | BY141: (NULL) | BZ141: SON3x3 | CA141: N | CB141: (NULL) | CC141: 42452 | CD141: 42541 | CE141: 2314 | CF141: 0.38
A142: CSD87331Q3D (SYNC) | B142: 146 | C142: Y | D142: N | E142: WB_POWERBLOCK_9 | F142: DQZ0008A | G142: PJELLA; Oliver set Thermal_Id to DQZ0008A; PJ updated on 6/20 per PL data | H142: N | I142: 2 | J142: 1 | K142: 1 | L142: 30 | M142: 10 | N142: 15 | O142: 45 | P142: 150 | Q142: 6 | R142: 80 | S142: 3.1 | T142: 0.8 | U142: 1.2 | V142: 1.84 | W142: 1 | X142: 13 | Y142: 8 | Z142: 300 | AA142: 48 | AB142: 0.7 | AC142: (NULL) | AD142: (NULL) | AE142: (NULL) | AF142: 0.008 | AG142: (NULL) | AH142: 0.0071 | AI142: (NULL) | AJ142: 0.38 | AK142: 6.4 | AL142: 3.5 | AM142: 0.8 | AN142: 13.9 | AO142: 7.7 | AP142: 0.98 | AQ142: 0.926 | AR142: 1.05 | AS142: 0.8 | AT142: 0.378 | AU142: 1.1 | AV142: 0.1 | AW142: 0.024 | AX142: 0.18 | AY142: 15 | AZ142: (NULL) | BA142: (NULL) | BB142: (NULL) | BC142: (NULL) | BD142: (NULL) | BE142: (NULL) | BF142: (NULL) | BG142: (NULL) | BH142: (NULL) | BI142: (NULL) | BJ142: (NULL) | BK142: 0.73 | BL142: Y | BM142: 0.85 | BN142: (NULL) | BO142: (NULL) | BP142: 0.87 | BQ142: Y | BR142: http://www.ti.com/lit/ds/symlink/csd87331q3d.pdf | BS142: (NULL) | BT142: 1.5 | BU142: 2 | BV142: 5.9 | BW142: 1.1 | BX142: 1.5 | BY142: (NULL) | BZ142: SON3x3 | CA142: N | CB142: (NULL) | CC142: 42452 | CD142: 42541 | CE142: 2315 | CF142: 0.38
A143: CSD87333Q3D (CONT) | B143: 146 | C143: Y | D143: N | E143: WB_POWERBLOCK_9 | F143: DQZ0008A | G143: PJELLA; Oliver set Thermal_Id to DPB0008A; PJ updated on 6/20 per PL data | H143: N | I143: 2 | J143: 0 | K143: 1 | L143: 30 | M143: 10 | N143: 15 | O143: 40 | P143: 150 | Q143: 6 | R143: 80 | S143: 3.7 | T143: 0.75 | U143: 1.2 | V143: 2.54 | W143: 1 | X143: 11 | Y143: 4 | Z143: 300 | AA143: 43 | AB143: 3.4 | AC143: (NULL) | AD143: (NULL) | AE143: (NULL) | AF143: 0.0161 | AG143: (NULL) | AH143: 0.0143 | AI143: (NULL) | AJ143: 0.43 | AK143: 3.5 | AL143: 1.7 | AM143: 0.6 | AN143: 7.6 | AO143: 5.3 | AP143: 0.554 | AQ143: 0.509 | AR143: 0.568 | AS143: 0.445 | AT143: 0.222 | AU143: 0.502 | AV143: 0.0424 | AW143: 0.0082 | AX143: 0.0598 | AY143: 15 | AZ143: (NULL) | BA143: (NULL) | BB143: (NULL) | BC143: (NULL) | BD143: (NULL) | BE143: (NULL) | BF143: (NULL) | BG143: (NULL) | BH143: (NULL) | BI143: (NULL) | BJ143: (NULL) | BK143: 1.315 | BL143: Y | BM143: 0.8 | BN143: (NULL) | BO143: (NULL) | BP143: 0.5082 | BQ143: Y | BR143: http://www.ti.com/lit/ds/symlink/csd87333q3d.pdf | BS143: (NULL) | BT143: 6.8 | BU143: 1.8 | BV143: 10 | BW143: 0.3 | BX143: 1.6 | BY143: (NULL) | BZ143: SON3x3 | CA143: N | CB143: (NULL) | CC143: 42452 | CD143: 42541 | CE143: 2316 | CF143: 0.36
A144: CSD87333Q3D (SYNC) | B144: 146 | C144: Y | D144: N | E144: WB_POWERBLOCK_9 | F144: DQZ0008A | G144: PJELLA; Oliver set Thermal_Id to DPB0008A; PJ updated on 6/20 per PL data | H144: N | I144: 2 | J144: 1 | K144: 1 | L144: 30 | M144: 10 | N144: 15 | O144: 40 | P144: 150 | Q144: 6 | R144: 80 | S144: 3.7 | T144: 0.75 | U144: 1.2 | V144: 2.51 | W144: 1 | X144: 11 | Y144: 4 | Z144: 300 | AA144: 43 | AB144: 3.4 | AC144: (NULL) | AD144: (NULL) | AE144: (NULL) | AF144: 0.0161 | AG144: (NULL) | AH144: 0.0143 | AI144: (NULL) | AJ144: 0.42 | AK144: 3.5 | AL144: 1.7 | AM144: 0.6 | AN144: 7.6 | AO144: 5.3 | AP144: 0.543 | AQ144: 0.509 | AR144: 0.557 | AS144: 0.462 | AT144: 0.222 | AU144: 0.54 | AV144: 0.0416 | AW144: 0.0082 | AX144: 0.058 | AY144: 15 | AZ144: (NULL) | BA144: (NULL) | BB144: (NULL) | BC144: (NULL) | BD144: (NULL) | BE144: (NULL) | BF144: (NULL) | BG144: (NULL) | BH144: (NULL) | BI144: (NULL) | BJ144: (NULL) | BK144: 1.315 | BL144: Y | BM144: 0.8 | BN144: (NULL) | BO144: (NULL) | BP144: 0.499 | BQ144: Y | BR144: http://www.ti.com/lit/ds/symlink/csd87333q3d.pdf | BS144: (NULL) | BT144: 6.8 | BU144: 1.8 | BV144: 10 | BW144: 0.3 | BX144: 1.6 | BY144: (NULL) | BZ144: SON3x3 | CA144: N | CB144: (NULL) | CC144: 42452 | CD144: 42541 | CE144: 2317 | CF144: 0.36
A145: CSD87334Q3D (CONT) | B145: 146 | C145: Y | D145: N | E145: WB_POWERBLOCK_9 | F145: DQZ0008A | G145: PJELLA; Oliver set Thermal_Id to DPB0008A; PJ updated on 6/20 per PL data | H145: N | I145: 2 | J145: 0 | K145: 1 | L145: 30 | M145: 10 | N145: 20 | O145: 60 | P145: 150 | Q145: 6 | R145: 75 | S145: 2.1 | T145: 0.75 | U145: 1.2 | V145: 1.75 | W145: 1 | X145: 18 | Y145: 12 | Z145: 300 | AA145: 62 | AB145: 1 | AC145: (NULL) | AD145: (NULL) | AE145: (NULL) | AF145: 0.007 | AG145: (NULL) | AH145: 0.006 | AI145: (NULL) | AJ145: 0.4 | AK145: 6.4 | AL145: 3.7 | AM145: 0.9 | AN145: 13.6 | AO145: 10.5 | AP145: 1.02 | AQ145: 0.971 | AR145: 1.09 | AS145: 0.946 | AT145: 0.453 | AU145: 1.35 | AV145: 0.0946 | AW145: 0.016 | AX145: 0.157 | AY145: 15 | AZ145: (NULL) | BA145: (NULL) | BB145: (NULL) | BC145: (NULL) | BD145: (NULL) | BE145: (NULL) | BF145: (NULL) | BG145: (NULL) | BH145: (NULL) | BI145: (NULL) | BJ145: (NULL) | BK145: 0.75 | BL145: Y | BM145: 0.8 | BN145: (NULL) | BO145: (NULL) | BP145: 0.933 | BQ145: Y | BR145: http://www.ti.com/lit/ds/symlink/csd87334q3d.pdf | BS145: (NULL) | BT145: 2 | BU145: 2 | BV145: 23 | BW145: 1 | BX145: 1.9 | BY145: (NULL) | BZ145: SON3x3 | CA145: N | CB145: (NULL) | CC145: 42452 | CD145: 42541 | CE145: 2318 | CF145: 0.45
A146: CSD87334Q3D (SYNC) | B146: 146 | C146: Y | D146: N | E146: WB_POWERBLOCK_9 | F146: DQZ0008A | G146: PJELLA; Oliver set Thermal_Id to DPB0008A; PJ updated on 6/20 per PL data | H146: N | I146: 2 | J146: 1 | K146: 1 | L146: 30 | M146: 10 | N146: 20 | O146: 60 | P146: 150 | Q146: 6 | R146: 75 | S146: 2.1 | T146: 0.75 | U146: 1.2 | V146: 1.74 | W146: 1 | X146: 18 | Y146: 12 | Z146: 300 | AA146: 62 | AB146: 1 | AC146: (NULL) | AD146: (NULL) | AE146: (NULL) | AF146: 0.007 | AG146: (NULL) | AH146: 0.006 | AI146: (NULL) | AJ146: 0.39 | AK146: 6.4 | AL146: 3.6 | AM146: 0.9 | AN146: 13.4 | AO146: 10.5 | AP146: 1.02 | AQ146: 0.971 | AR146: 1.09 | AS146: 0.946 | AT146: 0.453 | AU146: 1.35 | AV146: 0.0946 | AW146: 0.016 | AX146: 0.157 | AY146: 15 | AZ146: (NULL) | BA146: (NULL) | BB146: (NULL) | BC146: (NULL) | BD146: (NULL) | BE146: (NULL) | BF146: (NULL) | BG146: (NULL) | BH146: (NULL) | BI146: (NULL) | BJ146: (NULL) | BK146: 0.76 | BL146: Y | BM146: 0.8 | BN146: (NULL) | BO146: (NULL) | BP146: 0.933 | BQ146: Y | BR146: http://www.ti.com/lit/ds/symlink/csd87334q3d.pdf | BS146: (NULL) | BT146: 2 | BU146: 2 | BV146: 23 | BW146: 1 | BX146: 1.9 | BY146: (NULL) | BZ146: SON3x3 | CA146: N | CB146: (NULL) | CC146: 42452 | CD146: 42541 | CE146: 2319 | CF146: 0.45
A147: CSD87335Q3D (CONT) | B147: 146 | C147: Y | D147: N | E147: WB_POWERBLOCK_9 | F147: DQZ0008A | G147: PJELLA; Oliver set Thermal_Id to DQZ0008A; PJ updated on 6/20 per PL data | H147: N | I147: 2 | J147: 0 | K147: 1 | L147: 30 | M147: 10 | N147: 25 | O147: 70 | P147: 150 | Q147: 6 | R147: 73 | S147: 2.5 | T147: 1 | U147: 1.9 | V147: 1.71 | W147: 1 | X147: 17 | Y147: 15 | Z147: 300 | AA147: 59 | AB147: 1.2 | AC147: (NULL) | AD147: (NULL) | AE147: (NULL) | AF147: 0.0081 | AG147: (NULL) | AH147: 0.0066 | AI147: (NULL) | AJ147: 0.4 | AK147: 5.7 | AL147: 2.82 | AM147: 1.1 | AN147: 12.6 | AO147: 11 | AP147: 0.88 | AQ147: 0.805 | AR147: 0.964 | AS147: 0.92 | AT147: 0.412 | AU147: 1.25 | AV147: 0.108 | AW147: 0.015 | AX147: 0.188 | AY147: 15 | AZ147: (NULL) | BA147: (NULL) | BB147: (NULL) | BC147: (NULL) | BD147: (NULL) | BE147: (NULL) | BF147: (NULL) | BG147: (NULL) | BH147: (NULL) | BI147: (NULL) | BJ147: (NULL) | BK147: 0.8 | BL147: Y | BM147: 0.8 | BN147: (NULL) | BO147: (NULL) | BP147: 0.776 | BQ147: Y | BR147: http://www.ti.com/lit/ds/symlink/csd87335q3d.pdf | BS147: (NULL) | BT147: 2.4 | BU147: 2.6 | BV147: 24 | BW147: 1.1 | BX147: 2.1 | BY147: (NULL) | BZ147: SON3x3 | CA147: N | CB147: (NULL) | CC147: 42452 | CD147: 42541 | CE147: 2320 | CF147: 0.53
A148: CSD87335Q3D (SYNC) | B148: 146 | C148: Y | D148: N | E148: WB_POWERBLOCK_9 | F148: DQZ0008A | G148: PJELLA; Oliver set Thermal_Id to DQZ0008A; PJ updated on 6/20 per PL data | H148: N | I148: 2 | J148: 1 | K148: 1 | L148: 30 | M148: 10 | N148: 25 | O148: 70 | P148: 150 | Q148: 6 | R148: 73 | S148: 2.5 | T148: 0.75 | U148: 1.2 | V148: 2.48 | W148: 1 | X148: 22 | Y148: 15 | Z148: 300 | AA148: 107 | AB148: 0.6 | AC148: (NULL) | AD148: (NULL) | AE148: (NULL) | AF148: 0.0039 | AG148: (NULL) | AH148: 0.0034 | AI148: (NULL) | AJ148: 0.37 | AK148: 10.7 | AL148: 6 | AM148: 1.4 | AN148: 23.3 | AO148: 19 | AP148: 1.72 | AQ148: 1.62 | AR148: 1.82 | AS148: 1.72 | AT148: 0.783 | AU148: 2.3 | AV148: 0.17 | AW148: 0.028 | AX148: 0.258 | AY148: 15 | AZ148: (NULL) | BA148: (NULL) | BB148: (NULL) | BC148: (NULL) | BD148: (NULL) | BE148: (NULL) | BF148: (NULL) | BG148: (NULL) | BH148: (NULL) | BI148: (NULL) | BJ148: (NULL) | BK148: 0.435 | BL148: Y | BM148: 0.8 | BN148: (NULL) | BO148: (NULL) | BP148: 1.562 | BQ148: Y | BR148: http://www.ti.com/lit/ds/symlink/csd87335q3d.pdf | BS148: (NULL) | BT148: 1.2 | BU148: 1.8 | BV148: 40 | BW148: 1.7 | BX148: 2.8 | BY148: (NULL) | BZ148: SON3x3 | CA148: N | CB148: (NULL) | CC148: 42452 | CD148: 42541 | CE148: 2321 | CF148: 0.53
A149: CSD87350Q5D (CONT) | B149: 146 | C149: Y | D149: N | E149: WB_POWERBLOCK_9 | F149: DQY0008A | G149: PJELLA; PJ updated on 6/20 per PL data; Oliver set symbol and Thermal_Id | H149: N | I149: 2 | J149: 0 | K149: 1 | L149: 30 | M149: 10 | N149: 40 | O149: 120 | P149: 150 | Q149: 12 | R149: 50 | S149: 2 | T149: 1 | U149: 2.1 | V149: 2.3 | W149: 1 | X149: 22 | Y149: 20 | Z149: 300 | AA149: 97 | AB149: 1.3 | AC149: (NULL) | AD149: (NULL) | AE149: (NULL) | AF149: 0.0068 | AG149: (NULL) | AH149: 0.0059 | AI149: (NULL) | AJ149: 0.4 | AK149: 8.4 | AL149: 4.4 | AM149: 1.6 | AN149: 18.4 | AO149: 9.7 | AP149: 1.43 | AQ149: 1.36 | AR149: 1.49 | AS149: 1.2 | AT149: 0.565 | AU149: 1.59 | AV149: 0.114 | AW149: 0.019 | AX149: 0.19 | AY149: 15 | AZ149: (NULL) | BA149: (NULL) | BB149: (NULL) | BC149: (NULL) | BD149: (NULL) | BE149: (NULL) | BF149: (NULL) | BG149: (NULL) | BH149: (NULL) | BI149: (NULL) | BJ149: (NULL) | BK149: 0.55 | BL149: Y | BM149: 0.85 | BN149: (NULL) | BO149: (NULL) | BP149: 1.3 | BQ149: Y | BR149: http://www.ti.com/lit/ds/symlink/csd87350q5d.pdf | BS149: (NULL) | BT149: 3 | BU149: 2.5 | BV149: 12.5 | BW149: 1.6 | BX149: 2.6 | BY149: (NULL) | BZ149: SON5x6 | CA149: N | CB149: (NULL) | CC149: 42452 | CD149: 42600 | CE149: 2322 | CF149: 0.86
A150: CSD87350Q5D (SYNC) | B150: 146 | C150: Y | D150: N | E150: WB_POWERBLOCK_9 | F150: DQY0008A | G150: PJELLA; PJ updated on 6/20 per PL data; Oliver set symbol and Thermal_Id | H150: N | I150: 2 | J150: 1 | K150: 1 | L150: 30 | M150: 10 | N150: 40 | O150: 120 | P150: 150 | Q150: 12 | R150: 50 | S150: 2 | T150: 0.75 | U150: 1.4 | V150: 1.7 | W150: 1 | X150: 28 | Y150: 20 | Z150: 300 | AA150: 157 | AB150: 0.8 | AC150: (NULL) | AD150: (NULL) | AE150: (NULL) | AF150: 0.0028 | AG150: (NULL) | AH150: 0.0025 | AI150: (NULL) | AJ150: 0.33 | AK150: 20 | AL150: 12.5 | AM150: 2.3 | AN150: 43.6 | AO150: 28 | AP150: 3.16 | AQ150: 2.95 | AR150: 3.36 | AS150: 2.81 | AT150: 1.3 | AU150: 3.7 | AV150: 0.286 | AW150: 0.05 | AX150: 0.46 | AY150: 15 | AZ150: (NULL) | BA150: (NULL) | BB150: (NULL) | BC150: (NULL) | BD150: (NULL) | BE150: (NULL) | BF150: (NULL) | BG150: (NULL) | BH150: (NULL) | BI150: (NULL) | BJ150: (NULL) | BK150: 0.226 | BL150: Y | BM150: 0.77 | BN150: (NULL) | BO150: (NULL) | BP150: 2.9 | BQ150: Y | BR150: http://www.ti.com/lit/ds/symlink/csd87350q5d.pdf | BS150: (NULL) | BT150: 2 | BU150: 1.8 | BV150: 32 | BW150: 3.6 | BX150: 4.3 | BY150: (NULL) | BZ150: SON5x6 | CA150: N | CB150: (NULL) | CC150: 42452 | CD150: 42600 | CE150: 2323 | CF150: 0.86
A151: CSD87351Q5D (CONT) | B151: 146 | C151: Y | D151: N | E151: WB_POWERBLOCK_9 | F151: DQY0008A | G151: PJELLA; PJ updated on 6/20 per PL data; Oliver set symbol and Thermal_Id | H151: N | I151: 2 | J151: 0 | K151: 1 | L151: 30 | M151: 10 | N151: 32 | O151: 96 | P151: 150 | Q151: 12 | R151: 62 | S151: 2.3 | T151: 1 | U151: 2.1 | V151: 2.66 | W151: 1 | X151: 16 | Y151: 20 | Z151: 300 | AA151: 75 | AB151: 0.9 | AC151: (NULL) | AD151: (NULL) | AE151: (NULL) | AF151: 0.0088 | AG151: (NULL) | AH151: 0.0076 | AI151: (NULL) | AJ151: 0.39 | AK151: 5.9 | AL151: 1.8 | AM151: 1.1 | AN151: 13.5 | AO151: 6.5 | AP151: 1.03 | AQ151: 0.966 | AR151: 1.08 | AS151: 0.8 | AT151: 0.382 | AU151: 1.07 | AV151: 0.08 | AW151: 0.019 | AX151: 0.15 | AY151: 15 | AZ151: (NULL) | BA151: (NULL) | BB151: (NULL) | BC151: (NULL) | BD151: (NULL) | BE151: (NULL) | BF151: (NULL) | BG151: (NULL) | BH151: (NULL) | BI151: (NULL) | BJ151: (NULL) | BK151: 0.73 | BL151: Y | BM151: 0.86 | BN151: (NULL) | BO151: (NULL) | BP151: 0.93 | BQ151: Y | BR151: http://www.ti.com/lit/ds/symlink/csd87351q5d.pdf | BS151: (NULL) | BT151: 1.8 | BU151: 2.5 | BV151: 8.6 | BW151: 1.1 | BX151: 2.1 | BY151: (NULL) | BZ151: SON5x6 | CA151: N | CB151: (NULL) | CC151: 42452 | CD151: 42600 | CE151: 2324 | CF151: 0.7
A152: CSD87351Q5D (SYNC) | B152: 146 | C152: Y | D152: N | E152: WB_POWERBLOCK_9 | F152: DQY0008A | G152: PJELLA; PJ updated on 6/20 per PL data; Oliver set symbol and Thermal_Id | H152: N | I152: 2 | J152: 1 | K152: 1 | L152: 30 | M152: 10 | N152: 32 | O152: 96 | P152: 150 | Q152: 12 | R152: 62 | S152: 2.3 | T152: 0.75 | U152: 1.15 | V152: 1.77 | W152: 1 | X152: 24 | Y152: 20 | Z152: 300 | AA152: 142 | AB152: 1 | AC152: (NULL) | AD152: (NULL) | AE152: (NULL) | AF152: 0.0031 | AG152: (NULL) | AH152: 0.0026 | AI152: (NULL) | AJ152: 0.37 | AK152: 17 | AL152: 10 | AM152: 2 | AN152: 37 | AO152: 23 | AP152: 2.64 | AQ152: 2.41 | AR152: 2.8 | AS152: 2.43 | AT152: 1.13 | AU152: 3.17 | AV152: 0.24 | AW152: 0.045 | AX152: 0.413 | AY152: 15 | AZ152: (NULL) | BA152: (NULL) | BB152: (NULL) | BC152: (NULL) | BD152: (NULL) | BE152: (NULL) | BF152: (NULL) | BG152: (NULL) | BH152: (NULL) | BI152: (NULL) | BJ152: (NULL) | BK152: 0.277 | BL152: Y | BM152: 0.78 | BN152: (NULL) | BO152: (NULL) | BP152: 2.387 | BQ152: Y | BR152: http://www.ti.com/lit/ds/symlink/csd87351q5d.pdf | BS152: (NULL) | BT152: 2 | BU152: 1.8 | BV152: 23 | BW152: 3.1 | BX152: 3.7 | BY152: (NULL) | BZ152: SON5x6 | CA152: N | CB152: (NULL) | CC152: 42452 | CD152: 42600 | CE152: 2325 | CF152: 0.7
A153: CSD87351ZQ5D (CONT) | B153: 146 | C153: Y | D153: N | E153: WB_POWERBLOCK_9 | F153: DQY0008A | G153: PJELLA; PJ updated on 6/20 per PL data; Oliver set symbol and Thermal_Id | H153: N | I153: 2 | J153: 0 | K153: 1 | L153: 30 | M153: 10 | N153: 32 | O153: 96 | P153: 150 | Q153: 12 | R153: 62 | S153: 2.3 | T153: 1 | U153: 2.1 | V153: 2.56 | W153: 1 | X153: 16 | Y153: 20 | Z153: 300 | AA153: 75 | AB153: 0.9 | AC153: (NULL) | AD153: (NULL) | AE153: (NULL) | AF153: 0.0088 | AG153: (NULL) | AH153: 0.0076 | AI153: (NULL) | AJ153: 0.37 | AK153: 5.9 | AL153: 1.9 | AM153: 1.1 | AN153: 15.8 | AO153: 6.5 | AP153: 1.06 | AQ153: 0.966 | AR153: 1.09 | AS153: 0.8 | AT153: 0.382 | AU153: 0.925 | AV153: 0.098 | AW153: 0.019 | AX153: 0.138 | AY153: 15 | AZ153: (NULL) | BA153: (NULL) | BB153: (NULL) | BC153: (NULL) | BD153: (NULL) | BE153: (NULL) | BF153: (NULL) | BG153: (NULL) | BH153: (NULL) | BI153: (NULL) | BJ153: (NULL) | BK153: 0.65 | BL153: Y | BM153: 0.86 | BN153: (NULL) | BO153: (NULL) | BP153: 0.952 | BQ153: Y | BR153: http://www.ti.com/lit/ds/symlink/csd87351zq5d.pdf | BS153: (NULL) | BT153: 1.8 | BU153: 2.5 | BV153: 8.6 | BW153: 1.1 | BX153: 2.1 | BY153: (NULL) | BZ153: SON5x6 | CA153: N | CB153: (NULL) | CC153: 42452 | CD153: 42600 | CE153: 2326 | CF153: 0.7
A154: CSD87351ZQ5D (SYNC) | B154: 146 | C154: Y | D154: N | E154: WB_POWERBLOCK_9 | F154: DQY0008A | G154: PJELLA; PJ updated on 6/20 per PL data; Oliver set symbol and Thermal_Id | H154: N | I154: 2 | J154: 1 | K154: 1 | L154: 30 | M154: 10 | N154: 32 | O154: 96 | P154: 150 | Q154: 12 | R154: 62 | S154: 2.3 | T154: 0.75 | U154: 1.15 | V154: 1.72 | W154: 1 | X154: 24 | Y154: 20 | Z154: 300 | AA154: 142 | AB154: 1 | AC154: (NULL) | AD154: (NULL) | AE154: (NULL) | AF154: 0.0031 | AG154: (NULL) | AH154: 0.0026 | AI154: (NULL) | AJ154: 0.39 | AK154: 17 | AL154: 10 | AM154: 2 | AN154: 40 | AO154: 23 | AP154: 2.71 | AQ154: 2.41 | AR154: 2.81 | AS154: 2.43 | AT154: 1.13 | AU154: 2.92 | AV154: 0.25 | AW154: 0.045 | AX154: 0.36 | AY154: 15 | AZ154: (NULL) | BA154: (NULL) | BB154: (NULL) | BC154: (NULL) | BD154: (NULL) | BE154: (NULL) | BF154: (NULL) | BG154: (NULL) | BH154: (NULL) | BI154: (NULL) | BJ154: (NULL) | BK154: 0.25 | BL154: Y | BM154: 0.78 | BN154: (NULL) | BO154: (NULL) | BP154: 2.45 | BQ154: Y | BR154: http://www.ti.com/lit/ds/symlink/csd87351zq5d.pdf | BS154: (NULL) | BT154: 2 | BU154: 1.8 | BV154: 23 | BW154: 3.1 | BX154: 3.7 | BY154: (NULL) | BZ154: SON5x6 | CA154: N | CB154: (NULL) | CC154: 42452 | CD154: 42600 | CE154: 2327 | CF154: 0.7
A155: CSD87352Q5D (CONT) | B155: 146 | C155: Y | D155: N | E155: WB_POWERBLOCK_9 | F155: DQY0008A | G155: PJELLA; PJ updated on 6/20 per PL data; Oliver set symbol and Thermal_Id | H155: N | I155: 2 | J155: 0 | K155: 1 | L155: 30 | M155: 10 | N155: 25 | O155: 60 | P155: 150 | Q155: 8.5 | R155: 82 | S155: 2.8 | T155: 1 | U155: 2.1 | V155: 2.49 | W155: 1 | X155: 16 | Y155: 15 | Z155: 300 | AA155: 51 | AB155: 1.2 | AC155: (NULL) | AD155: (NULL) | AE155: (NULL) | AF155: 0.0108 | AG155: (NULL) | AH155: 0.0092 | AI155: (NULL) | AJ155: 0.39 | AK155: 4.6 | AL155: 1.5 | AM155: 0.9 | AN155: 9.7 | AO155: 6.6 | AP155: 0.792 | AQ155: 0.74 | AR155: 0.832 | AS155: 0.643 | AT155: 0.315 | AU155: 0.837 | AV155: 0.0677 | AW155: 0.013 | AX155: 0.115 | AY155: 15 | AZ155: (NULL) | BA155: (NULL) | BB155: (NULL) | BC155: (NULL) | BD155: (NULL) | BE155: (NULL) | BF155: (NULL) | BG155: (NULL) | BH155: (NULL) | BI155: (NULL) | BJ155: (NULL) | BK155: 1.04 | BL155: Y | BM155: 0.8 | BN155: (NULL) | BO155: (NULL) | BP155: 0.717 | BQ155: Y | BR155: http://www.ti.com/lit/ds/symlink/csd87352q5d.pdf | BS155: (NULL) | BT155: 2.4 | BU155: 2.6 | BV155: 11.3 | BW155: 0.9 | BX155: 1.5 | BY155: (NULL) | BZ155: SON5x6 | CA155: N | CB155: (NULL) | CC155: 42452 | CD155: 42600 | CE155: 2328 | CF155: 0.58
A156: CSD87352Q5D (SYNC) | B156: 146 | C156: Y | D156: N | E156: WB_POWERBLOCK_9 | F156: DQY0008A | G156: PJELLA; PJ updated on 6/20 per PL data; Oliver set symbol and Thermal_Id | H156: N | I156: 2 | J156: 1 | K156: 1 | L156: 30 | M156: 10 | N156: 25 | O156: 60 | P156: 150 | Q156: 8.5 | R156: 82 | S156: 2.8 | T156: 0.75 | U156: 1.15 | V156: 1.79 | W156: 1 | X156: 20 | Y156: 15 | Z156: 300 | AA156: 87 | AB156: 0.6 | AC156: (NULL) | AD156: (NULL) | AE156: (NULL) | AF156: 0.0048 | AG156: (NULL) | AH156: 0.0042 | AI156: (NULL) | AJ156: 0.38 | AK156: 10.4 | AL156: 6 | AM156: 1.2 | AN156: 22.9 | AO156: 13 | AP156: 1.62 | AQ156: 1.5 | AR156: 1.72 | AS156: 1.37 | AT156: 0.645 | AU156: 1.8 | AV156: 0.155 | AW156: 0.038 | AX156: 0.264 | AY156: 15 | AZ156: (NULL) | BA156: (NULL) | BB156: (NULL) | BC156: (NULL) | BD156: (NULL) | BE156: (NULL) | BF156: (NULL) | BG156: (NULL) | BH156: (NULL) | BI156: (NULL) | BJ156: (NULL) | BK156: 0.45 | BL156: Y | BM156: 0.8 | BN156: (NULL) | BO156: (NULL) | BP156: 1.456 | BQ156: Y | BR156: http://www.ti.com/lit/ds/symlink/csd87352q5d.pdf | BS156: (NULL) | BT156: 1.2 | BU156: 1.9 | BV156: 16.3 | BW156: 1.9 | BX156: 2.2 | BY156: (NULL) | BZ156: SON5x6 | CA156: N | CB156: (NULL) | CC156: 42452 | CD156: 42600 | CE156: 2329 | CF156: 0.58
A157: CSD87353Q5D (CONT) | B157: 146 | C157: Y | D157: N | E157: WB_POWERBLOCK_9 | F157: DQY0008A | G157: PJELLA; PJ updated on 6/20 per PL data; Oliver set symbol and Thermal_Id | H157: N | I157: 2 | J157: 0 | K157: 1 | L157: 30 | M157: 10 | N157: 40 | O157: 120 | P157: 150 | Q157: 12 | R157: 50 | S157: 2 | T157: 1.1 | U157: 2.1 | V157: 2.43 | W157: 1 | X157: 25 | Y157: 20 | Z157: 300 | AA157: 135 | AB157: 0.9 | AC157: (NULL) | AD157: (NULL) | AE157: (NULL) | AF157: 0.0034 | AG157: (NULL) | AH157: 0.0029 | AI157: (NULL) | AJ157: 0.35 | AK157: 16 | AL157: 7.8 | AM157: 2.8 | AN157: 35.7 | AO157: 22 | AP157: 2.84 | AQ157: 2.66 | AR157: 2.99 | AS157: 2.38 | AT157: 1.11 | AU157: 3.12 | AV157: 0.228 | AW157: 0.043 | AX157: 0.391 | AY157: 15 | AZ157: (NULL) | BA157: (NULL) | BB157: (NULL) | BC157: (NULL) | BD157: (NULL) | BE157: (NULL) | BF157: (NULL) | BG157: (NULL) | BH157: (NULL) | BI157: (NULL) | BJ157: (NULL) | BK157: 0.278 | BL157: Y | BM157: 0.8 | BN157: (NULL) | BO157: (NULL) | BP157: 2.599 | BQ157: Y | BR157: http://www.ti.com/lit/ds/symlink/csd87353q5d.pdf | BS157: (NULL) | BT157: 2 | BU157: 2.2 | BV157: 29 | BW157: 3 | BX157: 4.9 | BY157: (NULL) | BZ157: SON5x6 | CA157: N | CB157: (NULL) | CC157: 42452 | CD157: 42600 | CE157: 2330 | CF157: 0.95
A158: CSD87353Q5D (SYNC) | B158: 146 | C158: Y | D158: N | E158: WB_POWERBLOCK_9 | F158: DQY0008A | G158: PJELLA; PJ updated on 6/20 per PL data; Oliver set symbol and Thermal_Id | H158: N | I158: 2 | J158: 1 | K158: 1 | L158: 30 | M158: 10 | N158: 40 | O158: 120 | P158: 150 | Q158: 12 | R158: 50 | S158: 2 | T158: 0.75 | U158: 1.15 | V158: 1.78 | W158: 1 | X158: 27 | Y158: 20 | Z158: 300 | AA158: 160 | AB158: 0.7 | AC158: (NULL) | AD158: (NULL) | AE158: (NULL) | AF158: 0.0026 | AG158: (NULL) | AH158: 0.0023 | AI158: (NULL) | AJ158: 0.38 | AK158: 20 | AL158: 12 | AM158: 2.4 | AN158: 44 | AO158: 26 | AP158: 3.13 | AQ158: 2.91 | AR158: 3.32 | AS158: 2.8 | AT158: 1.32 | AU158: 3.69 | AV158: 0.282 | AW158: 0.051 | AX158: 0.503 | AY158: 15 | AZ158: (NULL) | BA158: (NULL) | BB158: (NULL) | BC158: (NULL) | BD158: (NULL) | BE158: (NULL) | BF158: (NULL) | BG158: (NULL) | BH158: (NULL) | BI158: (NULL) | BJ158: (NULL) | BK158: 0.227 | BL158: Y | BM158: 0.8 | BN158: (NULL) | BO158: (NULL) | BP158: 2.817 | BQ158: Y | BR158: http://www.ti.com/lit/ds/symlink/csd87353q5d.pdf | BS158: (NULL) | BT158: 1.5 | BU158: 1.8 | BV158: 33 | BW158: 3.6 | BX158: 4.2 | BY158: (NULL) | BZ158: SON5x6 | CA158: N | CB158: (NULL) | CC158: 42452 | CD158: 42600 | CE158: 2331 | CF158: 0.95
A159: CSD87355Q5D (CONT) | B159: 146 | C159: Y | D159: N | E159: WB_POWERBLOCK_9 | F159: DQY0008A | G159: PJELLA; PJ updated on 6/20 per PL data; Oliver set symbol and Thermal_Id | H159: N | I159: 2 | J159: 0 | K159: 1 | L159: 30 | M159: 10 | N159: 45 | O159: 120 | P159: 150 | Q159: 12 | R159: 50 | S159: 2 | T159: 1 | U159: 1.9 | V159: 2.35 | W159: 1 | X159: 23.8 | Y159: 20 | Z159: 300 | AA159: 90 | AB159: 0.6 | AC159: (NULL) | AD159: (NULL) | AE159: (NULL) | AF159: 0.0041 | AG159: (NULL) | AH159: 0.0034 | AI159: (NULL) | AJ159: 0.37 | AK159: 10.5 | AL159: 5.5 | AM159: 1.7 | AN159: 20 | AO159: 18 | AP159: (NULL) | AQ159: 1.43 | AR159: (NULL) | AS159: (NULL) | AT159: 0.716 | AU159: (NULL) | AV159: (NULL) | AW159: 0.025 | AX159: (NULL) | AY159: 15 | AZ159: (NULL) | BA159: (NULL) | BB159: (NULL) | BC159: (NULL) | BD159: (NULL) | BE159: (NULL) | BF159: (NULL) | BG159: (NULL) | BH159: (NULL) | BI159: (NULL) | BJ159: (NULL) | BK159: (NULL) | BL159: Y | BM159: 0.8 | BN159: (NULL) | BO159: (NULL) | BP159: (NULL) | BQ159: Y | BR159: http://www.ti.com/lit/ds/symlink/csd87355q5d.pdf | BS159: (NULL) | BT159: 1.2 | BU159: (NULL) | BV159: 43 | BW159: 2.3 | BX159: 3.2 | BY159: (NULL) | BZ159: SON5x6 | CA159: N | CB159: (NULL) | CC159: 42452 | CD159: 42600 | CE159: 2333 | CF159: 0.88
A160: CSD87355Q5D (SYNC) | B160: 146 | C160: Y | D160: N | E160: WB_POWERBLOCK_9 | F160: DQY0008A | G160: PJELLA; PJ updated on 6/20 per PL data; Oliver set symbol and Thermal_Id | H160: N | I160: 2 | J160: 1 | K160: 1 | L160: 30 | M160: 10 | N160: 45 | O160: 120 | P160: 150 | Q160: 12 | R160: 50 | S160: 2 | T160: 0.75 | U160: 1.2 | V160: 1.65 | W160: 1 | X160: 32.3 | Y160: 20 | Z160: 300 | AA160: 151 | AB160: 0.7 | AC160: (NULL) | AD160: (NULL) | AE160: (NULL) | AF160: 0.0018 | AG160: (NULL) | AH160: 0.0016 | AI160: (NULL) | AJ160: 0.41 | AK160: 24.3 | AL160: 13.5 | AM160: 2.8 | AN160: 52 | AO160: 40 | AP160: 3.81 | AQ160: 3.57 | AR160: 4.06 | AS160: 3.85 | AT160: 1.73 | AU160: 4.93 | AV160: 0.353 | AW160: 0.052 | AX160: 0.56 | AY160: 15 | AZ160: (NULL) | BA160: (NULL) | BB160: (NULL) | BC160: (NULL) | BD160: (NULL) | BE160: (NULL) | BF160: (NULL) | BG160: (NULL) | BH160: (NULL) | BI160: (NULL) | BJ160: (NULL) | BK160: 0.196 | BL160: Y | BM160: 0.8 | BN160: (NULL) | BO160: (NULL) | BP160: 3.5 | BQ160: Y | BR160: http://www.ti.com/lit/ds/symlink/csd87355q5d.pdf | BS160: (NULL) | BT160: 1.4 | BU160: 1.75 | BV160: 82 | BW160: 4.1 | BX160: 5.6 | BY160: (NULL) | BZ160: SON5x6 | CA160: N | CB160: (NULL) | CC160: 42452 | CD160: 42600 | CE160: 2333 | CF160: 0.88
A161: CSD87381P (CONT) | B161: 18 | C161: Y | D161: Y | E161: WB_MOSFET_N_TG1VIN2GND3BG4SW5 | F161: MPC0005A | G161: Hoang for Frank Glaser | H161: N | I161: 2 | J161: 0 | K161: 1 | L161: 30 | M161: 8 | N161: 15 | O161: 40 | P161: 150 | Q161: 4 | R161: 84 | S161: 4.9 | T161: 1.1 | U161: 1.9 | V161: 2.53 | W161: 0.85 | X161: 13 | Y161: 8 | Z161: 300 | AA161: 40 | AB161: 5 | AC161: (NULL) | AD161: (NULL) | AE161: (NULL) | AF161: 0.0189 | AG161: (NULL) | AH161: 0.0163 | AI161: (NULL) | AJ161: 0.47 | AK161: 3.9 | AL161: 1.5 | AM161: 0.7 | AN161: 7.8 | AO161: 4.9 | AP161: 0.49 | AQ161: 0.45 | AR161: 0.49 | AS161: 0.48 | AT161: 0.24 | AU161: 0.57 | AV161: 0.06 | AW161: 0.98 | AX161: 0.076 | AY161: 15 | AZ161: (NULL) | BA161: (NULL) | BB161: (NULL) | BC161: (NULL) | BD161: (NULL) | BE161: (NULL) | BF161: (NULL) | BG161: (NULL) | BH161: (NULL) | BI161: (NULL) | BJ161: (NULL) | BK161: (NULL) | BL161: Y | BM161: 0.85 | BN161: (NULL) | BO161: (NULL) | BP161: 0.414 | BQ161: Y | BR161: http://www.ti.com/lit/ds/symlink/csd87381p.pdf | BS161: (NULL) | BT161: 6.4 | BU161: 2.6 | BV161: 8 | BW161: 0.9 | BX161: 1.2 | BY161: (NULL) | BZ161: LGA3x2.5 | CA161: N | CB161: (NULL) | CC161: 43445 | CD161: 43445 | CE161: 3626 | CF161: 0.27
A162: CSD87381P (SYNC) | B162: 18 | C162: Y | D162: Y | E162: WB_MOSFET_N_TG1VIN2GND3BG4SW5 | F162: MPC0005A | G162: Hoang for Frank Glaser | H162: N | I162: 2 | J162: 1 | K162: 1 | L162: 30 | M162: 8 | N162: 15 | O162: 40 | P162: 150 | Q162: 4 | R162: 84 | S162: 4.9 | T162: 1 | U162: 1.7 | V162: 1.97 | W162: 0.79 | X162: 17 | Y162: 8 | Z162: 300 | AA162: 89 | AB162: 1.25 | AC162: (NULL) | AD162: (NULL) | AE162: (NULL) | AF162: 0.0084 | AG162: (NULL) | AH162: 0.0076 | AI162: (NULL) | AJ162: 0.65 | AK162: 8.9 | AL162: 4.5 | AM162: 1.3 | AN162: 18.1 | AO162: 8.5 | AP162: 1.25 | AQ162: 1.12 | AR162: 1.3 | AS162: 1.2 | AT162: 0.3 | AU162: 1.5 | AV162: 0.2 | AW162: 0.04 | AX162: 0.27 | AY162: 15 | AZ162: (NULL) | BA162: (NULL) | BB162: (NULL) | BC162: (NULL) | BD162: (NULL) | BE162: (NULL) | BF162: (NULL) | BG162: (NULL) | BH162: (NULL) | BI162: (NULL) | BJ162: (NULL) | BK162: (NULL) | BL162: Y | BM162: 0.79 | BN162: (NULL) | BO162: (NULL) | BP162: 1.03 | BQ162: Y | BR162: http://www.ti.com/lit/ds/symlink/csd87381p.pdf | BS162: (NULL) | BT162: 2.5 | BU162: 2.3 | BV162: 16 | BW162: 2.5 | BX162: 2 | BY162: (NULL) | BZ162: LGA3x2.5 | CA162: N | CB162: (NULL) | CC162: 43445 | CD162: 43445 | CE162: 3625 | CF162: 0.27
A163: CSD87384M (CONT) | B163: 146 | C163: Y | D163: A | E163: 0 | F163: MPB0005A_100um | G163: Pallavi for Gerold | H163: N | I163: 2 | J163: 0 | K163: 1 | L163: 30 | M163: 8 | N163: 30 | O163: 95 | P163: 150 | Q163: 8 | R163: 67 | S163: 3 | T163: 1.1 | U163: 1.9 | V163: 2.68 | W163: 0.85 | X163: 21 | Y163: 25 | Z163: 300 | AA163: 67 | AB163: 1 | AC163: (NULL) | AD163: (NULL) | AE163: (NULL) | AF163: 0.0089 | AG163: (NULL) | AH163: 0.0077 | AI163: (NULL) | AJ163: 0.5 | AK163: 7.1 | AL163: (NULL) | AM163: 1.3 | AN163: (NULL) | AO163: 11.3 | AP163: 0.95 | AQ163: 0.9 | AR163: 0.99 | AS163: 0.9 | AT163: 0.46 | AU163: 1.1 | AV163: 0.1 | AW163: 0.0185 | AX163: 0.13 | AY163: 15 | AZ163: (NULL) | BA163: (NULL) | BB163: (NULL) | BC163: (NULL) | BD163: (NULL) | BE163: (NULL) | BF163: (NULL) | BG163: (NULL) | BH163: (NULL) | BI163: (NULL) | BJ163: (NULL) | BK163: (NULL) | BL163: Y | BM163: 0.85 | BN163: N | BO163: (NULL) | BP163: 0.86 | BQ163: Y | BR163: http://www.ti.com/lit/ds/symlink/csd87384m.pdf | BS163: (NULL) | BT163: 2 | BU163: 2.75 | BV163: 21 | BW163: 1.5 | BX163: 2.7 | BY163: N | BZ163: LGA5x3.5 | CA163: N | CB163: (NULL) | CC163: 43475 | CD163: 43475 | CE163: 3649 | CF163: 0.56
A164: CSD87384M (SYNC) | B164: 146 | C164: Y | D164: A | E164: 0 | F164: MPB0005A_100um | G164: Pallavi for Gerold | H164: N | I164: 2 | J164: 1 | K164: 1 | L164: 30 | M164: 8 | N164: 30 | O164: 95 | P164: 150 | Q164: 8 | R164: 67 | S164: 3 | T164: 1.1 | U164: 1.7 | V164: 2.23 | W164: 0.8 | X164: 32 | Y164: 25 | Z164: 300 | AA164: 240 | AB164: 0.7 | AC164: (NULL) | AD164: (NULL) | AE164: (NULL) | AF164: 0.0026 | AG164: (NULL) | AH164: 0.0024 | AI164: (NULL) | AJ164: 0.695 | AK164: 31 | AL164: (NULL) | AM164: 5.4 | AN164: (NULL) | AO164: 37 | AP164: 4.3 | AQ164: 4 | AR164: 4.5 | AS164: 4 | AT164: 1.2 | AU164: 5 | AV164: 0.48 | AW164: 0.085 | AX164: 0.66 | AY164: 15 | AZ164: (NULL) | BA164: (NULL) | BB164: (NULL) | BC164: (NULL) | BD164: (NULL) | BE164: (NULL) | BF164: (NULL) | BG164: (NULL) | BH164: (NULL) | BI164: (NULL) | BJ164: (NULL) | BK164: (NULL) | BL164: Y | BM164: 0.8 | BN164: N | BO164: (NULL) | BP164: 3.84 | BQ164: Y | BR164: http://www.ti.com/lit/ds/symlink/csd87384m.pdf | BS164: (NULL) | BT164: 1.4 | BU164: 2.5 | BV164: 51 | BW164: 8.6 | BX164: 8.6 | BY164: N | BZ164: LGA5x3.5 | CA164: N | CB164: (NULL) | CC164: 43475 | CD164: 43475 | CE164: 3650 | CF164: 0.56
A165: CSD87502Q2 (CONT) | B165: 146 | C165: Y | D165: A | E165: WB_MOSFET_N_D67G2S1_N_D38G5S4_PD | F165: DQK0006B | G165: Altium for Yinyang Ou | H165: N | I165: 2 | J165: 0 | K165: 1 | L165: 30 | M165: 20 | N165: 5 | O165: 23 | P165: 150 | Q165: 2.3 | R165: 70 | S165: (NULL) | T165: 1.2 | U165: 2 | V165: 2.82 | W165: 1 | X165: 6.4 | Y165: 4 | Z165: 300 | AA165: 75 | AB165: 6.9 | AC165: (NULL) | AD165: (NULL) | AE165: (NULL) | AF165: 0.042 | AG165: (NULL) | AH165: (NULL) | AI165: 0.0324 | AJ165: 0.61 | AK165: 2.2 | AL165: (NULL) | AM165: 0.5 | AN165: 4.7 | AO165: 1.4 | AP165: 0.34 | AQ165: 0.285 | AR165: 0.36 | AS165: 0.165 | AT165: 0.045 | AU165: 0.33 | AV165: 0.06 | AW165: 0.03 | AX165: 0.093 | AY165: 15 | AZ165: 10 | BA165: 0.1 | BB165: 1.9 | BC165: 0.55 | BD165: 10 | BE165: 9 | BF165: 1 | BG165: 30 | BH165: 0.17 | BI165: 30 | BJ165: 0.01 | BK165: (NULL) | BL165: N | BM165: 0.85 | BN165: (NULL) | BO165: (NULL) | BP165: 0.267 | BQ165: Y | BR165: http://www.ti.com/lit/ds/symlink/csd87502q2.pdf | BS165: (NULL) | BT165: (NULL) | BU165: (NULL) | BV165: 4 | BW165: 0.5 | BX165: 1 | BY165: (NULL) | BZ165: SON2X2 | CA165: N | CB165: (NULL) | CC165: 42374 | CD165: (NULL) | CE165: 2110 | CF165: 0.15
A166: CSD87502Q2 (SYNC) | B166: 146 | C166: Y | D166: A | E166: WB_MOSFET_N_D67G2S1_N_D38G5S4_PD | F166: DQK0006B | G166: Altium for Yinyang Ou | H166: N | I166: 2 | J166: 1 | K166: 1 | L166: 30 | M166: 20 | N166: 5 | O166: 23 | P166: 150 | Q166: 2.3 | R166: 70 | S166: (NULL) | T166: 1.2 | U166: 2 | V166: 2.82 | W166: 1 | X166: 6.4 | Y166: 4 | Z166: 300 | AA166: 75 | AB166: 6.9 | AC166: (NULL) | AD166: (NULL) | AE166: (NULL) | AF166: 0.042 | AG166: (NULL) | AH166: (NULL) | AI166: 0.0324 | AJ166: 0.61 | AK166: 2.2 | AL166: (NULL) | AM166: 0.5 | AN166: 4.7 | AO166: 1.4 | AP166: 0.34 | AQ166: 0.285 | AR166: 0.36 | AS166: 0.165 | AT166: 0.045 | AU166: 0.33 | AV166: 0.06 | AW166: 0.03 | AX166: 0.093 | AY166: 15 | AZ166: 10 | BA166: 0.1 | BB166: 1.9 | BC166: 0.55 | BD166: 10 | BE166: 9 | BF166: 1 | BG166: 30 | BH166: 0.17 | BI166: 30 | BJ166: 0.01 | BK166: (NULL) | BL166: N | BM166: 0.85 | BN166: (NULL) | BO166: (NULL) | BP166: 0.267 | BQ166: Y | BR166: http://www.ti.com/lit/ds/symlink/csd87502q2.pdf | BS166: (NULL) | BT166: (NULL) | BU166: (NULL) | BV166: 4 | BW166: 0.5 | BX166: 1 | BY166: (NULL) | BZ166: SON2X2 | CA166: N | CB166: (NULL) | CC166: 42374 | CD166: (NULL) | CE166: 2111 | CF166: 0.15
A167: CSD87588N (CONT) | B167: 146 | C167: Y | D167: N | E167: WB_MOSFET_N_PB2_A | F167: MPA0005A | G167: Hadi | H167: N | I167: 2 | J167: 0 | K167: 1 | L167: 30 | M167: 16 | N167: 25 | O167: 50 | P167: 150 | Q167: 6 | R167: 70 | S167: 3.7 | T167: 1.1 | U167: 1.9 | V167: 2.35 | W167: 0.85 | X167: 16 | Y167: 15 | Z167: 300 | AA167: 43 | AB167: 1.2 | AC167: (NULL) | AD167: (NULL) | AE167: (NULL) | AF167: 0.0125 | AG167: (NULL) | AH167: 0.0095 | AI167: 0.0096 | AJ167: 0.45 | AK167: 3.2 | AL167: 1.5 | AM167: 0.8 | AN167: 7.1 | AO167: 7 | AP167: 0.6 | AQ167: 0.6 | AR167: 0.63 | AS167: 0.8 | AT167: 0.35 | AU167: 0.85 | AV167: 0.06 | AW167: 0.01 | AX167: 0.068 | AY167: 15 | AZ167: (NULL) | BA167: (NULL) | BB167: (NULL) | BC167: (NULL) | BD167: (NULL) | BE167: (NULL) | BF167: (NULL) | BG167: (NULL) | BH167: (NULL) | BI167: (NULL) | BJ167: (NULL) | BK167: 0.35 | BL167: Y | BM167: 0.85 | BN167: (NULL) | BO167: (NULL) | BP167: 0.562 | BQ167: Y | BR167: http://www.ti.com/lit/ds/symlink/csd87588n.pdf | BS167: (NULL) | BT167: 2.4 | BU167: 2.9 | BV167: 12.5 | BW167: 0.7 | BX167: 1.4 | BY167: (NULL) | BZ167: LGA5x2.5 | CA167: N | CB167: (NULL) | CC167: 43320 | CD167: (NULL) | CE167: 3465 | CF167: 0.41
A168: CSD87588N (SYNC) | B168: 146 | C168: Y | D168: N | E168: WB_MOSFET_N_PB2_A | F168: MPA0005A | G168: Hadi | H168: N | I168: 2 | J168: 1 | K168: 1 | L168: 30 | M168: 16 | N168: 25 | O168: 50 | P168: 150 | Q168: 6 | R168: 70 | S168: 3.7 | T168: 1.1 | U168: 1.9 | V168: 2.3 | W168: 0.78 | X168: 23 | Y168: 15 | Z168: 300 | AA168: 93 | AB168: 1.1 | AC168: (NULL) | AD168: (NULL) | AE168: (NULL) | AF168: 0.0042 | AG168: (NULL) | AH168: 0.0045 | AI168: 0.0035 | AJ168: 0.72 | AK168: 13.7 | AL168: 8 | AM168: 2.8 | AN168: 28 | AO168: 18.6 | AP168: 2.85 | AQ168: 2.4 | AR168: 2.7 | AS168: 2.9 | AT168: 0.7 | AU168: 3.2 | AV168: 0.37 | AW168: 0.065 | AX168: 0.43 | AY168: 15 | AZ168: (NULL) | BA168: (NULL) | BB168: (NULL) | BC168: (NULL) | BD168: (NULL) | BE168: (NULL) | BF168: (NULL) | BG168: (NULL) | BH168: (NULL) | BI168: (NULL) | BJ168: (NULL) | BK168: 0.35 | BL168: Y | BM168: 0.78 | BN168: (NULL) | BO168: (NULL) | BP168: 2.27 | BQ168: Y | BR168: http://www.ti.com/lit/ds/symlink/csd87588n.pdf | BS168: (NULL) | BT168: 2.2 | BU168: 2.6 | BV168: 26.7 | BW168: 4.3 | BX168: 4.3 | BY168: (NULL) | BZ168: LGA5x2.5 | CA168: N | CB168: (NULL) | CC168: 43320 | CD168: (NULL) | CE168: 3466 | CF168: 0.41
A169: CSD88537ND (CONT) | B169: 146 | C169: (NULL) | D169: A | E169: WB_MOSFET_N_D78G2S1_N_D56G4S3 | F169: D0008A | G169: Altium for Kristen Mogensen | H169: N | I169: 2 | J169: 0 | K169: 1 | L169: 60 | M169: 20 | N169: 15 | O169: 108 | P169: 150 | Q169: 2.1 | R169: 75 | S169: 20 | T169: 2.6 | U169: 3.6 | V169: 4.39 | W169: 1 | X169: 30 | Y169: (NULL) | Z169: (NULL) | AA169: 42 | AB169: 5.5 | AC169: (NULL) | AD169: (NULL) | AE169: (NULL) | AF169: (NULL) | AG169: 0.019 | AH169: (NULL) | AI169: 0.015 | AJ169: 0.7 | AK169: 14 | AL169: (NULL) | AM169: 3.4 | AN169: 18 | AO169: 25 | AP169: (NULL) | AQ169: (NULL) | AR169: 1400 | AS169: (NULL) | AT169: (NULL) | AU169: 173 | AV169: (NULL) | AW169: (NULL) | AX169: 5.2 | AY169: (NULL) | AZ169: (NULL) | BA169: (NULL) | BB169: (NULL) | BC169: (NULL) | BD169: (NULL) | BE169: (NULL) | BF169: (NULL) | BG169: (NULL) | BH169: (NULL) | BI169: (NULL) | BJ169: (NULL) | BK169: (NULL) | BL169: (NULL) | BM169: 0.8 | BN169: (NULL) | BO169: (NULL) | BP169: (NULL) | BQ169: Y | BR169: http://www.ti.com/lit/ds/symlink/csd88537nd.pdf | BS169: (NULL) | BT169: 11 | BU169: (NULL) | BV169: 50 | BW169: 2.3 | BX169: 4.6 | BY169: (NULL) | BZ169: SO8 | CA169: N | CB169: (NULL) | CC169: 42213 | CD169: (NULL) | CE169: 3162 | CF169: 0.36
A170: CSD88537ND (SYNC) | B170: 146 | C170: (NULL) | D170: A | E170: WB_MOSFET_N_D78G2S1_N_D56G4S3 | F170: D0008A | G170: Altium for Kristen Mogensen | H170: N | I170: 2 | J170: 1 | K170: 1 | L170: 60 | M170: 20 | N170: 15 | O170: 108 | P170: 150 | Q170: 2.1 | R170: 75 | S170: 20 | T170: 2.6 | U170: 3.6 | V170: 4.39 | W170: 1 | X170: 30 | Y170: (NULL) | Z170: (NULL) | AA170: 42 | AB170: 5.5 | AC170: (NULL) | AD170: (NULL) | AE170: (NULL) | AF170: (NULL) | AG170: 0.019 | AH170: (NULL) | AI170: 0.015 | AJ170: 0.7 | AK170: 14 | AL170: (NULL) | AM170: 3.4 | AN170: 18 | AO170: 25 | AP170: (NULL) | AQ170: (NULL) | AR170: 1400 | AS170: (NULL) | AT170: (NULL) | AU170: 173 | AV170: (NULL) | AW170: (NULL) | AX170: 5.2 | AY170: (NULL) | AZ170: (NULL) | BA170: (NULL) | BB170: (NULL) | BC170: (NULL) | BD170: (NULL) | BE170: (NULL) | BF170: (NULL) | BG170: (NULL) | BH170: (NULL) | BI170: (NULL) | BJ170: (NULL) | BK170: (NULL) | BL170: (NULL) | BM170: 0.8 | BN170: (NULL) | BO170: (NULL) | BP170: (NULL) | BQ170: Y | BR170: http://www.ti.com/lit/ds/symlink/csd88537nd.pdf | BS170: (NULL) | BT170: 11 | BU170: (NULL) | BV170: 50 | BW170: 2.3 | BX170: 4.6 | BY170: (NULL) | BZ170: SO8 | CA170: N | CB170: (NULL) | CC170: 42213 | CD170: (NULL) | CE170: 3163 | CF170: 0.36
A171: CSD88539ND (CONT) | B171: 146 | C171: (NULL) | D171: A | E171: WB_MOSFET_N_D78G2S1_N_D56G4S3 | F171: D0008A | G171: Bob for Sanjay Pithadia | H171: N | I171: 2 | J171: 0 | K171: 1 | L171: 60 | M171: 20 | N171: 6.3 | O171: 46 | P171: 150 | Q171: 2.1 | R171: 75 | S171: 20 | T171: 2.6 | U171: 3.6 | V171: 4.76 | W171: 1 | X171: (NULL) | Y171: (NULL) | Z171: (NULL) | AA171: 19 | AB171: 6.6 | AC171: (NULL) | AD171: (NULL) | AE171: (NULL) | AF171: (NULL) | AG171: 0.034 | AH171: (NULL) | AI171: 0.028 | AJ171: 0.7 | AK171: 7.2 | AL171: (NULL) | AM171: 1.8 | AN171: 9.4 | AO171: 9.6 | AP171: (NULL) | AQ171: (NULL) | AR171: (NULL) | AS171: (NULL) | AT171: (NULL) | AU171: (NULL) | AV171: (NULL) | AW171: (NULL) | AX171: (NULL) | AY171: (NULL) | AZ171: (NULL) | BA171: (NULL) | BB171: (NULL) | BC171: (NULL) | BD171: (NULL) | BE171: (NULL) | BF171: (NULL) | BG171: (NULL) | BH171: (NULL) | BI171: (NULL) | BJ171: (NULL) | BK171: (NULL) | BL171: (NULL) | BM171: 0.8 | BN171: (NULL) | BO171: (NULL) | BP171: (NULL) | BQ171: Y | BR171: http://www.ti.com/lit/ds/symlink/csd88539nd.pdf | BS171: (NULL) | BT171: 13.2 | BU171: (NULL) | BV171: 37 | BW171: 1.1 | BX171: 2.7 | BY171: (NULL) | BZ171: SO8 | CA171: N | CB171: (NULL) | CC171: (NULL) | CD171: 42104 | CE171: 2837 | CF171: 0.22
A172: CSD88539ND (SYNC) | B172: 146 | C172: (NULL) | D172: A | E172: WB_MOSFET_N_D78G2S1_N_D56G4S3 | F172: D0008A | G172: Bob for Sanjay Pithadia; Oliver updated Thermal_Id | H172: N | I172: 2 | J172: 1 | K172: 1 | L172: 60 | M172: 20 | N172: 6.3 | O172: 46 | P172: 150 | Q172: 2.1 | R172: 75 | S172: 20 | T172: 2.6 | U172: 3.6 | V172: 4.76 | W172: 1 | X172: (NULL) | Y172: (NULL) | Z172: (NULL) | AA172: 19 | AB172: 6.6 | AC172: (NULL) | AD172: (NULL) | AE172: (NULL) | AF172: (NULL) | AG172: 0.034 | AH172: (NULL) | AI172: 0.028 | AJ172: 0.7 | AK172: 7.2 | AL172: (NULL) | AM172: 1.8 | AN172: 9.4 | AO172: 9.6 | AP172: (NULL) | AQ172: (NULL) | AR172: (NULL) | AS172: (NULL) | AT172: (NULL) | AU172: (NULL) | AV172: (NULL) | AW172: (NULL) | AX172: (NULL) | AY172: (NULL) | AZ172: (NULL) | BA172: (NULL) | BB172: (NULL) | BC172: (NULL) | BD172: (NULL) | BE172: (NULL) | BF172: (NULL) | BG172: (NULL) | BH172: (NULL) | BI172: (NULL) | BJ172: (NULL) | BK172: (NULL) | BL172: (NULL) | BM172: 0.8 | BN172: (NULL) | BO172: (NULL) | BP172: (NULL) | BQ172: Y | BR172: http://www.ti.com/lit/ds/symlink/csd88539nd.pdf | BS172: (NULL) | BT172: 13.2 | BU172: (NULL) | BV172: 37 | BW172: 1.1 | BX172: 2.7 | BY172: (NULL) | BZ172: SO8 | CA172: N | CB172: (NULL) | CC172: (NULL) | CD172: 42643 | CE172: 2838 | CF172: 0.22

Sheet Logic (hidden)
A1: INCLUDED FETS IN DROPDOWN | B1: MOST BLANKS REMOVED ROW2 BLANK | C1: VGS_VDS_OK BVDSS>=1.2xVI VGS>=1.2xVDR | D1: BVDSS<=30V IF VI<=25V | E1: BVDSS=40V IF 20V<=VI<=33V | F1: BVDSS=60V IF 25V<=VI<=50V | G1: BVDSS=80V IF 36V<=VI<=66V | H1: BVDSS=100V IF 48V<=Vi<=83V | I1: MAX VDS OK OR(D:H) | J1: VD<2.5V & VGS=1.8V | K1: 2.5V<=VD<3V VGSmin<=2.5V | L1: 3V<=VD<4.5V VGSmin<=3V | M1: 4.5V<=VD<6V VGSmin<=4.5V | N1: 6<=VD<8V VGSmin<=6V | O1: 8V<=VD<10V VGSmin<=8V | P1: VD>=10V VGSmin<=10V | Q1: VGS OK OR(J:O) | R1: INCLUDE FET AND(C,I,P)
A2: =IF(R2,Discrete_NFET[[#This Row],[PARTNUMBER]],"") -> CSD13202Q2 | C2: =AND((Discrete_NFET[[#This Row],[VDSMAX]]>Vi*1.25),(Discrete_NFET[[#This Row],[VGSMAX]]>=Vd*1.2)) -> TRUE | D2: =AND(Vi<=25,Discrete_NFET[[#This Row],[VDSMAX]]<=30) -> TRUE | E2: =AND(Vi<=33,Vi>=20,Discrete_NFET[[#This Row],[VDSMAX]]=40) -> FALSE | F2: =AND(Vi<=50,Vi>=24,Discrete_NFET[[#This Row],[VDSMAX]]=60) -> FALSE | G2: =AND(Vi<=66,Vi>=36,Discrete_NFET[[#This Row],[VDSMAX]]=80) -> FALSE | H2: =AND(Vi<=83,Vi>=48,Discrete_NFET[[#This Row],[VDSMAX]]=100) -> FALSE | I2: =OR(D2:H2) -> TRUE | J2: =AND(((Vd)<2.5),('FET Data'!$AC2<>"(Null)")) -> FALSE | K2: =AND(((Vd)>=2.5),((Vd)<3),OR(('FET Data'!$AD2<>"(Null)"),('FET Data'!$AC2<>"(Null)"))) -> FALSE | L2: =AND(((Vd)>=3),((Vd)<4.5),OR(('FET Data'!$AE2<>"(Null)"),('FET Data'!$AD2<>"(Null)"),('FET Data'!$AC2<>"(Null)"))) -> FALSE | M2: =AND(((Vd)>=4.5),((Vd)<6),OR(('FET Data'!$AF2<>"(Null)"),('FET Data'!$AE2<>"(Null)"),('FET Data'!$AD2<>"(Null)"),('FET Data'!$AC2<>"(Null)"))) -> TRUE | N2: =AND(((Vd)>=6),((Vd)<8),OR(('FET Data'!$AG2<>"(Null)"),('FET Data'!$AF2<>"(Null)"),('FET Data'!$AE2<>"(Null)"),('FET Data'!$AD2<>"(Null)"),('FET Data'!$AC2<>"(Null)"))) -> FALSE | O2: =AND(((Vd)>=8),((Vd)<10),OR(('FET Data'!$AH2<>"(Null)"),('FET Data'!$AG2<>"(Null)"),('FET Data'!$AF2<>"(Null)"),('FET Data'!$AE2<>"(Null)"),('FET Data'!$AD2<>"(Null)"),('FET Data'!$AC2<>"(Null)"))) -> FALSE | P2: =AND(((Vd)>=10),OR(('FET Data'!$AI2<>"(Null)"),('FET Data'!$AH2<>"(Null)"),('FET Data'!$AG2<>"(Null)"),('FET Data'!$AF2<>"(Null)"),('FET Data'!$AE2<>"(Null)"),('FET Data'!$AD2<>"(Null)"),('FET Data'!$AC2<>"(Null)"))) -> FALSE | Q2: =OR(J2:P2) -> TRUE | R2: =AND(C2,I2,Q2) -> TRUE
A3: =IF(R3,Discrete_NFET[[#This Row],[PARTNUMBER]],"") -> CSD15571Q2 | B3: CSD13202Q2 | C3: =AND((Discrete_NFET[[#This Row],[VDSMAX]]>Vi*1.25),(Discrete_NFET[[#This Row],[VGSMAX]]>=Vd*1.2)) -> TRUE | D3: =AND(Vi<=25,Discrete_NFET[[#This Row],[VDSMAX]]<=30) -> TRUE | E3: =AND(Vi<=33,Vi>=20,Discrete_NFET[[#This Row],[VDSMAX]]=40) -> FALSE | F3: =AND(Vi<=50,Vi>=24,Discrete_NFET[[#This Row],[VDSMAX]]=60) -> FALSE | G3: =AND(Vi<=66,Vi>=36,Discrete_NFET[[#This Row],[VDSMAX]]=80) -> FALSE | H3: =AND(Vi<=83,Vi>=48,Discrete_NFET[[#This Row],[VDSMAX]]=100) -> FALSE | I3: =OR(D3:H3) -> TRUE | J3: =AND(((Vd)<2.5),('FET Data'!$AC3<>"(Null)")) -> FALSE | K3: =AND(((Vd)>=2.5),((Vd)<3),OR(('FET Data'!$AD3<>"(Null)"),('FET Data'!$AC3<>"(Null)"))) -> FALSE | L3: =AND(((Vd)>=3),((Vd)<4.5),OR(('FET Data'!$AE3<>"(Null)"),('FET Data'!$AD3<>"(Null)"),('FET Data'!$AC3<>"(Null)"))) -> FALSE | M3: =AND(((Vd)>=4.5),((Vd)<6),OR(('FET Data'!$AF3<>"(Null)"),('FET Data'!$AE3<>"(Null)"),('FET Data'!$AD3<>"(Null)"),('FET Data'!$AC3<>"(Null)"))) -> TRUE | N3: =AND(((Vd)>=6),((Vd)<8),OR(('FET Data'!$AG3<>"(Null)"),('FET Data'!$AF3<>"(Null)"),('FET Data'!$AE3<>"(Null)"),('FET Data'!$AD3<>"(Null)"),('FET Data'!$AC3<>"(Null)"))) -> FALSE | O3: =AND(((Vd)>=8),((Vd)<10),OR(('FET Data'!$AH3<>"(Null)"),('FET Data'!$AG3<>"(Null)"),('FET Data'!$AF3<>"(Null)"),('FET Data'!$AE3<>"(Null)"),('FET Data'!$AD3<>"(Null)"),('FET Data'!$AC3<>"(Null)"))) -> FALSE | P3: =AND(((Vd)>=10),OR(('FET Data'!$AI3<>"(Null)"),('FET Data'!$AH3<>"(Null)"),('FET Data'!$AG3<>"(Null)"),('FET Data'!$AF3<>"(Null)"),('FET Data'!$AE3<>"(Null)"),('FET Data'!$AD3<>"(Null)"),('FET Data'!$AC3<>"(Null)"))) -> FALSE | Q3: =OR(J3:P3) -> TRUE | R3: =AND(C3,I3,Q3) -> TRUE
A4: =IF(R4,Discrete_NFET[[#This Row],[PARTNUMBER]],"") -> CSD16301Q2 | B4: CSD15571Q2 | C4: =AND((Discrete_NFET[[#This Row],[VDSMAX]]>Vi*1.25),(Discrete_NFET[[#This Row],[VGSMAX]]>=Vd*1.2)) -> TRUE | D4: =AND(Vi<=25,Discrete_NFET[[#This Row],[VDSMAX]]<=30) -> TRUE | E4: =AND(Vi<=33,Vi>=20,Discrete_NFET[[#This Row],[VDSMAX]]=40) -> FALSE | F4: =AND(Vi<=50,Vi>=24,Discrete_NFET[[#This Row],[VDSMAX]]=60) -> FALSE | G4: =AND(Vi<=66,Vi>=36,Discrete_NFET[[#This Row],[VDSMAX]]=80) -> FALSE | H4: =AND(Vi<=83,Vi>=48,Discrete_NFET[[#This Row],[VDSMAX]]=100) -> FALSE | I4: TRUE | J4: =AND(((Vd)<2.5),('FET Data'!$AC4<>"(Null)")) -> FALSE | K4: =AND(((Vd)>=2.5),((Vd)<3),OR(('FET Data'!$AD4<>"(Null)"),('FET Data'!$AC4<>"(Null)"))) -> FALSE | L4: =AND(((Vd)>=3),((Vd)<4.5),OR(('FET Data'!$AE4<>"(Null)"),('FET Data'!$AD4<>"(Null)"),('FET Data'!$AC4<>"(Null)"))) -> FALSE | M4: =AND(((Vd)>=4.5),((Vd)<6),OR(('FET Data'!$AF4<>"(Null)"),('FET Data'!$AE4<>"(Null)"),('FET Data'!$AD4<>"(Null)"),('FET Data'!$AC4<>"(Null)"))) -> TRUE | N4: =AND(((Vd)>=6),((Vd)<8),OR(('FET Data'!$AG4<>"(Null)"),('FET Data'!$AF4<>"(Null)"),('FET Data'!$AE4<>"(Null)"),('FET Data'!$AD4<>"(Null)"),('FET Data'!$AC4<>"(Null)"))) -> FALSE | O4: =AND(((Vd)>=8),((Vd)<10),OR(('FET Data'!$AH4<>"(Null)"),('FET Data'!$AG4<>"(Null)"),('FET Data'!$AF4<>"(Null)"),('FET Data'!$AE4<>"(Null)"),('FET Data'!$AD4<>"(Null)"),('FET Data'!$AC4<>"(Null)"))) -> FALSE | P4: =AND(((Vd)>=10),OR(('FET Data'!$AI4<>"(Null)"),('FET Data'!$AH4<>"(Null)"),('FET Data'!$AG4<>"(Null)"),('FET Data'!$AF4<>"(Null)"),('FET Data'!$AE4<>"(Null)"),('FET Data'!$AD4<>"(Null)"),('FET Data'!$AC4<>"(Null)"))) -> FALSE | Q4: TRUE | R4: TRUE | U4: SELECT RDS(ON) CLOSEST TO VDRIVE
A5: =IF(R5,Discrete_NFET[[#This Row],[PARTNUMBER]],"") -> CSD16321Q5 | B5: CSD16301Q2 | C5: =AND((Discrete_NFET[[#This Row],[VDSMAX]]>Vi*1.25),(Discrete_NFET[[#This Row],[VGSMAX]]>=Vd*1.2)) -> TRUE | D5: =AND(Vi<=25,Discrete_NFET[[#This Row],[VDSMAX]]<=30) -> TRUE | E5: =AND(Vi<=33,Vi>=20,Discrete_NFET[[#This Row],[VDSMAX]]=40) -> FALSE | F5: =AND(Vi<=50,Vi>=24,Discrete_NFET[[#This Row],[VDSMAX]]=60) -> FALSE | G5: =AND(Vi<=66,Vi>=36,Discrete_NFET[[#This Row],[VDSMAX]]=80) -> FALSE | H5: =AND(Vi<=83,Vi>=48,Discrete_NFET[[#This Row],[VDSMAX]]=100) -> FALSE | I5: TRUE | J5: =AND(((Vd)<2.5),('FET Data'!$AC5<>"(Null)")) -> FALSE | K5: =AND(((Vd)>=2.5),((Vd)<3),OR(('FET Data'!$AD5<>"(Null)"),('FET Data'!$AC5<>"(Null)"))) -> FALSE | L5: =AND(((Vd)>=3),((Vd)<4.5),OR(('FET Data'!$AE5<>"(Null)"),('FET Data'!$AD5<>"(Null)"),('FET Data'!$AC5<>"(Null)"))) -> FALSE | M5: =AND(((Vd)>=4.5),((Vd)<6),OR(('FET Data'!$AF5<>"(Null)"),('FET Data'!$AE5<>"(Null)"),('FET Data'!$AD5<>"(Null)"),('FET Data'!$AC5<>"(Null)"))) -> TRUE | N5: =AND(((Vd)>=6),((Vd)<8),OR(('FET Data'!$AG5<>"(Null)"),('FET Data'!$AF5<>"(Null)"),('FET Data'!$AE5<>"(Null)"),('FET Data'!$AD5<>"(Null)"),('FET Data'!$AC5<>"(Null)"))) -> FALSE | O5: =AND(((Vd)>=8),((Vd)<10),OR(('FET Data'!$AH5<>"(Null)"),('FET Data'!$AG5<>"(Null)"),('FET Data'!$AF5<>"(Null)"),('FET Data'!$AE5<>"(Null)"),('FET Data'!$AD5<>"(Null)"),('FET Data'!$AC5<>"(Null)"))) -> FALSE | P5: =AND(((Vd)>=10),OR(('FET Data'!$AI5<>"(Null)"),('FET Data'!$AH5<>"(Null)"),('FET Data'!$AG5<>"(Null)"),('FET Data'!$AF5<>"(Null)"),('FET Data'!$AE5<>"(Null)"),('FET Data'!$AD5<>"(Null)"),('FET Data'!$AC5<>"(Null)"))) -> FALSE | Q5: TRUE | R5: TRUE | V5: RDSON25 | W5: RDSON3 | X5: RDS45 | Y5: RDSON6 | Z5: RDSON8 | AA5: RDSON10
A6: =IF(R6,Discrete_NFET[[#This Row],[PARTNUMBER]],"") -> CSD16322Q5 | B6: CSD16321Q5 | C6: =AND((Discrete_NFET[[#This Row],[VDSMAX]]>Vi*1.25),(Discrete_NFET[[#This Row],[VGSMAX]]>=Vd*1.2)) -> TRUE | D6: =AND(Vi<=25,Discrete_NFET[[#This Row],[VDSMAX]]<=30) -> TRUE | E6: =AND(Vi<=33,Vi>=20,Discrete_NFET[[#This Row],[VDSMAX]]=40) -> FALSE | F6: =AND(Vi<=50,Vi>=24,Discrete_NFET[[#This Row],[VDSMAX]]=60) -> FALSE | G6: =AND(Vi<=66,Vi>=36,Discrete_NFET[[#This Row],[VDSMAX]]=80) -> FALSE | H6: =AND(Vi<=83,Vi>=48,Discrete_NFET[[#This Row],[VDSMAX]]=100) -> FALSE | I6: TRUE | J6: =AND(((Vd)<2.5),('FET Data'!$AC6<>"(Null)")) -> FALSE | K6: =AND(((Vd)>=2.5),((Vd)<3),OR(('FET Data'!$AD6<>"(Null)"),('FET Data'!$AC6<>"(Null)"))) -> FALSE | L6: =AND(((Vd)>=3),((Vd)<4.5),OR(('FET Data'!$AE6<>"(Null)"),('FET Data'!$AD6<>"(Null)"),('FET Data'!$AC6<>"(Null)"))) -> FALSE | M6: =AND(((Vd)>=4.5),((Vd)<6),OR(('FET Data'!$AF6<>"(Null)"),('FET Data'!$AE6<>"(Null)"),('FET Data'!$AD6<>"(Null)"),('FET Data'!$AC6<>"(Null)"))) -> TRUE | N6: =AND(((Vd)>=6),((Vd)<8),OR(('FET Data'!$AG6<>"(Null)"),('FET Data'!$AF6<>"(Null)"),('FET Data'!$AE6<>"(Null)"),('FET Data'!$AD6<>"(Null)"),('FET Data'!$AC6<>"(Null)"))) -> FALSE | O6: =AND(((Vd)>=8),((Vd)<10),OR(('FET Data'!$AH6<>"(Null)"),('FET Data'!$AG6<>"(Null)"),('FET Data'!$AF6<>"(Null)"),('FET Data'!$AE6<>"(Null)"),('FET Data'!$AD6<>"(Null)"),('FET Data'!$AC6<>"(Null)"))) -> FALSE | P6: =AND(((Vd)>=10),OR(('FET Data'!$AI6<>"(Null)"),('FET Data'!$AH6<>"(Null)"),('FET Data'!$AG6<>"(Null)"),('FET Data'!$AF6<>"(Null)"),('FET Data'!$AE6<>"(Null)"),('FET Data'!$AD6<>"(Null)"),('FET Data'!$AC6<>"(Null)"))) -> FALSE | Q6: TRUE | R6: TRUE | V6: 2.5V<=VGS<3V | W6: 3V<=VGS<4V | X6: 4V<=VGS<5.5V | Y6: 5.5V<=VGS<7 | Z6: 7V<=VGS<9V | AA6: 9V<=VGS<=16V | AB6: RDSON
A7: =IF(R7,Discrete_NFET[[#This Row],[PARTNUMBER]],"") -> CSD16323Q3 | B7: CSD16322Q5 | C7: =AND((Discrete_NFET[[#This Row],[VDSMAX]]>Vi*1.25),(Discrete_NFET[[#This Row],[VGSMAX]]>=Vd*1.2)) -> TRUE | D7: =AND(Vi<=25,Discrete_NFET[[#This Row],[VDSMAX]]<=30) -> TRUE | E7: =AND(Vi<=33,Vi>=20,Discrete_NFET[[#This Row],[VDSMAX]]=40) -> FALSE | F7: =AND(Vi<=50,Vi>=24,Discrete_NFET[[#This Row],[VDSMAX]]=60) -> FALSE | G7: =AND(Vi<=66,Vi>=36,Discrete_NFET[[#This Row],[VDSMAX]]=80) -> FALSE | H7: =AND(Vi<=83,Vi>=48,Discrete_NFET[[#This Row],[VDSMAX]]=100) -> FALSE | I7: TRUE | J7: =AND(((Vd)<2.5),('FET Data'!$AC7<>"(Null)")) -> FALSE | K7: =AND(((Vd)>=2.5),((Vd)<3),OR(('FET Data'!$AD7<>"(Null)"),('FET Data'!$AC7<>"(Null)"))) -> FALSE | L7: =AND(((Vd)>=3),((Vd)<4.5),OR(('FET Data'!$AE7<>"(Null)"),('FET Data'!$AD7<>"(Null)"),('FET Data'!$AC7<>"(Null)"))) -> FALSE | M7: =AND(((Vd)>=4.5),((Vd)<6),OR(('FET Data'!$AF7<>"(Null)"),('FET Data'!$AE7<>"(Null)"),('FET Data'!$AD7<>"(Null)"),('FET Data'!$AC7<>"(Null)"))) -> TRUE | N7: =AND(((Vd)>=6),((Vd)<8),OR(('FET Data'!$AG7<>"(Null)"),('FET Data'!$AF7<>"(Null)"),('FET Data'!$AE7<>"(Null)"),('FET Data'!$AD7<>"(Null)"),('FET Data'!$AC7<>"(Null)"))) -> FALSE | O7: =AND(((Vd)>=8),((Vd)<10),OR(('FET Data'!$AH7<>"(Null)"),('FET Data'!$AG7<>"(Null)"),('FET Data'!$AF7<>"(Null)"),('FET Data'!$AE7<>"(Null)"),('FET Data'!$AD7<>"(Null)"),('FET Data'!$AC7<>"(Null)"))) -> FALSE | P7: =AND(((Vd)>=10),OR(('FET Data'!$AI7<>"(Null)"),('FET Data'!$AH7<>"(Null)"),('FET Data'!$AG7<>"(Null)"),('FET Data'!$AF7<>"(Null)"),('FET Data'!$AE7<>"(Null)"),('FET Data'!$AD7<>"(Null)"),('FET Data'!$AC7<>"(Null)"))) -> FALSE | Q7: TRUE | R7: TRUE | V7: =(Vd>=2.5) -> TRUE | W7: =(Vd>=3) -> TRUE | X7: =(Vd>=4) -> TRUE | Y7: =(Vd>=5.5) -> FALSE | Z7: =(Vd>=7) -> FALSE | AA7: =AND(Vd>=8) -> FALSE | AB7: =IF(AA10,LOOKUP(Q2_Part_Number,Discrete_NFET[PARTNUMBER],Discrete_NFET[RDSON10])*1000,IF(Z10,LOOKUP(Q2_Part_Number,Discrete_NFET[PARTNUMBER],Discrete_NFET[RDSON8])*1000,IF(Y10,LOOKUP(Q2_Part_Number,Discrete_NFET[PARTNUMBER],Discrete_NFET[RDSON6])*1000,IF(X10,LOOKUP(Q2_Part_Number,Discrete_NFET[PARTNUMBER],Discrete_NFET[RDSON45])*1000,IF(W10,LOOKUP(Q2_Part_Number,Discrete_NFET[PARTNUMBER],Discrete_NFET[RDSON3])*1000,IF(V10,LOOKUP(Q2_Part_Number,Discrete_NFET[PARTNUMBER],Discrete_NFET[RDSON25])*1000,"")))))) -> 8.4
A8: =IF(R8,Discrete_NFET[[#This Row],[PARTNUMBER]],"") -> CSD16325Q5 | B8: CSD16323Q3 | C8: =AND((Discrete_NFET[[#This Row],[VDSMAX]]>Vi*1.25),(Discrete_NFET[[#This Row],[VGSMAX]]>=Vd*1.2)) -> TRUE | D8: =AND(Vi<=25,Discrete_NFET[[#This Row],[VDSMAX]]<=30) -> TRUE | E8: =AND(Vi<=33,Vi>=20,Discrete_NFET[[#This Row],[VDSMAX]]=40) -> FALSE | F8: =AND(Vi<=50,Vi>=24,Discrete_NFET[[#This Row],[VDSMAX]]=60) -> FALSE | G8: =AND(Vi<=66,Vi>=36,Discrete_NFET[[#This Row],[VDSMAX]]=80) -> FALSE | H8: =AND(Vi<=83,Vi>=48,Discrete_NFET[[#This Row],[VDSMAX]]=100) -> FALSE | I8: TRUE | J8: =AND(((Vd)<2.5),('FET Data'!$AC8<>"(Null)")) -> FALSE | K8: =AND(((Vd)>=2.5),((Vd)<3),OR(('FET Data'!$AD8<>"(Null)"),('FET Data'!$AC8<>"(Null)"))) -> FALSE | L8: =AND(((Vd)>=3),((Vd)<4.5),OR(('FET Data'!$AE8<>"(Null)"),('FET Data'!$AD8<>"(Null)"),('FET Data'!$AC8<>"(Null)"))) -> FALSE | M8: =AND(((Vd)>=4.5),((Vd)<6),OR(('FET Data'!$AF8<>"(Null)"),('FET Data'!$AE8<>"(Null)"),('FET Data'!$AD8<>"(Null)"),('FET Data'!$AC8<>"(Null)"))) -> TRUE | N8: =AND(((Vd)>=6),((Vd)<8),OR(('FET Data'!$AG8<>"(Null)"),('FET Data'!$AF8<>"(Null)"),('FET Data'!$AE8<>"(Null)"),('FET Data'!$AD8<>"(Null)"),('FET Data'!$AC8<>"(Null)"))) -> FALSE | O8: =AND(((Vd)>=8),((Vd)<10),OR(('FET Data'!$AH8<>"(Null)"),('FET Data'!$AG8<>"(Null)"),('FET Data'!$AF8<>"(Null)"),('FET Data'!$AE8<>"(Null)"),('FET Data'!$AD8<>"(Null)"),('FET Data'!$AC8<>"(Null)"))) -> FALSE | P8: =AND(((Vd)>=10),OR(('FET Data'!$AI8<>"(Null)"),('FET Data'!$AH8<>"(Null)"),('FET Data'!$AG8<>"(Null)"),('FET Data'!$AF8<>"(Null)"),('FET Data'!$AE8<>"(Null)"),('FET Data'!$AD8<>"(Null)"),('FET Data'!$AC8<>"(Null)"))) -> FALSE | Q8: TRUE | R8: TRUE | V8: =IF(LOOKUP(Q2_Part_Number,Discrete_NFET[PARTNUMBER],Discrete_NFET[RDSON25])="(NULL)","0","1") -> 0 | W8: =IF(LOOKUP(Q2_Part_Number,Discrete_NFET[PARTNUMBER],Discrete_NFET[RDSON3])="(NULL)","0","1") -> 0 | X8: =IF(LOOKUP(Q2_Part_Number,Discrete_NFET[PARTNUMBER],Discrete_NFET[RDSON45])="(NULL)","0","1") -> 1 | Y8: =IF(LOOKUP(Q2_Part_Number,Discrete_NFET[PARTNUMBER],Discrete_NFET[RDSON6])="(NULL)","0","1") -> 0 | Z8: =IF(LOOKUP(Q2_Part_Number,Discrete_NFET[PARTNUMBER],Discrete_NFET[RDSON8])="(NULL)","0","1") -> 1 | AA8: =IF(LOOKUP(Q2_Part_Number,Discrete_NFET[PARTNUMBER],Discrete_NFET[RDSON10])="(NULL)","0","1") -> 0
A9: =IF(R9,Discrete_NFET[[#This Row],[PARTNUMBER]],"") -> CSD16327Q3 | B9: CSD16325Q5 | C9: =AND((Discrete_NFET[[#This Row],[VDSMAX]]>Vi*1.25),(Discrete_NFET[[#This Row],[VGSMAX]]>=Vd*1.2)) -> TRUE | D9: =AND(Vi<=25,Discrete_NFET[[#This Row],[VDSMAX]]<=30) -> TRUE | E9: =AND(Vi<=33,Vi>=20,Discrete_NFET[[#This Row],[VDSMAX]]=40) -> FALSE | F9: =AND(Vi<=50,Vi>=24,Discrete_NFET[[#This Row],[VDSMAX]]=60) -> FALSE | G9: =AND(Vi<=66,Vi>=36,Discrete_NFET[[#This Row],[VDSMAX]]=80) -> FALSE | H9: =AND(Vi<=83,Vi>=48,Discrete_NFET[[#This Row],[VDSMAX]]=100) -> FALSE | I9: TRUE | J9: =AND(((Vd)<2.5),('FET Data'!$AC9<>"(Null)")) -> FALSE | K9: =AND(((Vd)>=2.5),((Vd)<3),OR(('FET Data'!$AD9<>"(Null)"),('FET Data'!$AC9<>"(Null)"))) -> FALSE | L9: =AND(((Vd)>=3),((Vd)<4.5),OR(('FET Data'!$AE9<>"(Null)"),('FET Data'!$AD9<>"(Null)"),('FET Data'!$AC9<>"(Null)"))) -> FALSE | M9: =AND(((Vd)>=4.5),((Vd)<6),OR(('FET Data'!$AF9<>"(Null)"),('FET Data'!$AE9<>"(Null)"),('FET Data'!$AD9<>"(Null)"),('FET Data'!$AC9<>"(Null)"))) -> TRUE | N9: =AND(((Vd)>=6),((Vd)<8),OR(('FET Data'!$AG9<>"(Null)"),('FET Data'!$AF9<>"(Null)"),('FET Data'!$AE9<>"(Null)"),('FET Data'!$AD9<>"(Null)"),('FET Data'!$AC9<>"(Null)"))) -> FALSE | O9: =AND(((Vd)>=8),((Vd)<10),OR(('FET Data'!$AH9<>"(Null)"),('FET Data'!$AG9<>"(Null)"),('FET Data'!$AF9<>"(Null)"),('FET Data'!$AE9<>"(Null)"),('FET Data'!$AD9<>"(Null)"),('FET Data'!$AC9<>"(Null)"))) -> FALSE | P9: =AND(((Vd)>=10),OR(('FET Data'!$AI9<>"(Null)"),('FET Data'!$AH9<>"(Null)"),('FET Data'!$AG9<>"(Null)"),('FET Data'!$AF9<>"(Null)"),('FET Data'!$AE9<>"(Null)"),('FET Data'!$AD9<>"(Null)"),('FET Data'!$AC9<>"(Null)"))) -> FALSE | Q9: TRUE | R9: TRUE | V9: =AND(V7,V8="1") -> FALSE | W9: FALSE | X9: TRUE | Y9: FALSE | Z9: FALSE | AA9: FALSE
A10: =IF(R10,Discrete_NFET[[#This Row],[PARTNUMBER]],"") -> CSD16340Q3 | B10: CSD16327Q3 | C10: =AND((Discrete_NFET[[#This Row],[VDSMAX]]>Vi*1.25),(Discrete_NFET[[#This Row],[VGSMAX]]>=Vd*1.2)) -> TRUE | D10: =AND(Vi<=25,Discrete_NFET[[#This Row],[VDSMAX]]<=30) -> TRUE | E10: =AND(Vi<=33,Vi>=20,Discrete_NFET[[#This Row],[VDSMAX]]=40) -> FALSE | F10: =AND(Vi<=50,Vi>=24,Discrete_NFET[[#This Row],[VDSMAX]]=60) -> FALSE | G10: =AND(Vi<=66,Vi>=36,Discrete_NFET[[#This Row],[VDSMAX]]=80) -> FALSE | H10: =AND(Vi<=83,Vi>=48,Discrete_NFET[[#This Row],[VDSMAX]]=100) -> FALSE | I10: TRUE | J10: =AND(((Vd)<2.5),('FET Data'!$AC10<>"(Null)")) -> FALSE | K10: =AND(((Vd)>=2.5),((Vd)<3),OR(('FET Data'!$AD10<>"(Null)"),('FET Data'!$AC10<>"(Null)"))) -> FALSE | L10: =AND(((Vd)>=3),((Vd)<4.5),OR(('FET Data'!$AE10<>"(Null)"),('FET Data'!$AD10<>"(Null)"),('FET Data'!$AC10<>"(Null)"))) -> FALSE | M10: =AND(((Vd)>=4.5),((Vd)<6),OR(('FET Data'!$AF10<>"(Null)"),('FET Data'!$AE10<>"(Null)"),('FET Data'!$AD10<>"(Null)"),('FET Data'!$AC10<>"(Null)"))) -> TRUE | N10: =AND(((Vd)>=6),((Vd)<8),OR(('FET Data'!$AG10<>"(Null)"),('FET Data'!$AF10<>"(Null)"),('FET Data'!$AE10<>"(Null)"),('FET Data'!$AD10<>"(Null)"),('FET Data'!$AC10<>"(Null)"))) -> FALSE | O10: =AND(((Vd)>=8),((Vd)<10),OR(('FET Data'!$AH10<>"(Null)"),('FET Data'!$AG10<>"(Null)"),('FET Data'!$AF10<>"(Null)"),('FET Data'!$AE10<>"(Null)"),('FET Data'!$AD10<>"(Null)"),('FET Data'!$AC10<>"(Null)"))) -> FALSE | P10: =AND(((Vd)>=10),OR(('FET Data'!$AI10<>"(Null)"),('FET Data'!$AH10<>"(Null)"),('FET Data'!$AG10<>"(Null)"),('FET Data'!$AF10<>"(Null)"),('FET Data'!$AE10<>"(Null)"),('FET Data'!$AD10<>"(Null)"),('FET Data'!$AC10<>"(Null)"))) -> FALSE | Q10: TRUE | R10: TRUE | U10: =OR(V9:AA9) -> TRUE | V10: =AND($U$7,V7,V8="1") -> FALSE | W10: FALSE | X10: TRUE | Y10: FALSE | Z10: FALSE | AA10: FALSE
A11: =IF(R11,Discrete_NFET[[#This Row],[PARTNUMBER]],"") -> CSD16342Q5A | B11: CSD16340Q3 | C11: =AND((Discrete_NFET[[#This Row],[VDSMAX]]>Vi*1.25),(Discrete_NFET[[#This Row],[VGSMAX]]>=Vd*1.2)) -> TRUE | D11: =AND(Vi<=25,Discrete_NFET[[#This Row],[VDSMAX]]<=30) -> TRUE | E11: =AND(Vi<=33,Vi>=20,Discrete_NFET[[#This Row],[VDSMAX]]=40) -> FALSE | F11: =AND(Vi<=50,Vi>=24,Discrete_NFET[[#This Row],[VDSMAX]]=60) -> FALSE | G11: =AND(Vi<=66,Vi>=36,Discrete_NFET[[#This Row],[VDSMAX]]=80) -> FALSE | H11: =AND(Vi<=83,Vi>=48,Discrete_NFET[[#This Row],[VDSMAX]]=100) -> FALSE | I11: TRUE | J11: =AND(((Vd)<2.5),('FET Data'!$AC11<>"(Null)")) -> FALSE | K11: =AND(((Vd)>=2.5),((Vd)<3),OR(('FET Data'!$AD11<>"(Null)"),('FET Data'!$AC11<>"(Null)"))) -> FALSE | L11: =AND(((Vd)>=3),((Vd)<4.5),OR(('FET Data'!$AE11<>"(Null)"),('FET Data'!$AD11<>"(Null)"),('FET Data'!$AC11<>"(Null)"))) -> FALSE | M11: =AND(((Vd)>=4.5),((Vd)<6),OR(('FET Data'!$AF11<>"(Null)"),('FET Data'!$AE11<>"(Null)"),('FET Data'!$AD11<>"(Null)"),('FET Data'!$AC11<>"(Null)"))) -> TRUE | N11: =AND(((Vd)>=6),((Vd)<8),OR(('FET Data'!$AG11<>"(Null)"),('FET Data'!$AF11<>"(Null)"),('FET Data'!$AE11<>"(Null)"),('FET Data'!$AD11<>"(Null)"),('FET Data'!$AC11<>"(Null)"))) -> FALSE | O11: =AND(((Vd)>=8),((Vd)<10),OR(('FET Data'!$AH11<>"(Null)"),('FET Data'!$AG11<>"(Null)"),('FET Data'!$AF11<>"(Null)"),('FET Data'!$AE11<>"(Null)"),('FET Data'!$AD11<>"(Null)"),('FET Data'!$AC11<>"(Null)"))) -> FALSE | P11: =AND(((Vd)>=10),OR(('FET Data'!$AI11<>"(Null)"),('FET Data'!$AH11<>"(Null)"),('FET Data'!$AG11<>"(Null)"),('FET Data'!$AF11<>"(Null)"),('FET Data'!$AE11<>"(Null)"),('FET Data'!$AD11<>"(Null)"),('FET Data'!$AC11<>"(Null)"))) -> FALSE | Q11: TRUE | R11: TRUE | U11: =NOT(AND((Vd<=6),('FET Data'!$AD2="(Null)"))) -> TRUE
A12: =IF(R12,Discrete_NFET[[#This Row],[PARTNUMBER]],"") -> CSD16401Q5 | B12: CSD16342Q5A | C12: =AND((Discrete_NFET[[#This Row],[VDSMAX]]>Vi*1.25),(Discrete_NFET[[#This Row],[VGSMAX]]>=Vd*1.2)) -> TRUE | D12: =AND(Vi<=25,Discrete_NFET[[#This Row],[VDSMAX]]<=30) -> TRUE | E12: =AND(Vi<=33,Vi>=20,Discrete_NFET[[#This Row],[VDSMAX]]=40) -> FALSE | F12: =AND(Vi<=50,Vi>=24,Discrete_NFET[[#This Row],[VDSMAX]]=60) -> FALSE | G12: =AND(Vi<=66,Vi>=36,Discrete_NFET[[#This Row],[VDSMAX]]=80) -> FALSE | H12: =AND(Vi<=83,Vi>=48,Discrete_NFET[[#This Row],[VDSMAX]]=100) -> FALSE | I12: TRUE | J12: =AND(((Vd)<2.5),('FET Data'!$AC12<>"(Null)")) -> FALSE | K12: =AND(((Vd)>=2.5),((Vd)<3),OR(('FET Data'!$AD12<>"(Null)"),('FET Data'!$AC12<>"(Null)"))) -> FALSE | L12: =AND(((Vd)>=3),((Vd)<4.5),OR(('FET Data'!$AE12<>"(Null)"),('FET Data'!$AD12<>"(Null)"),('FET Data'!$AC12<>"(Null)"))) -> FALSE | M12: =AND(((Vd)>=4.5),((Vd)<6),OR(('FET Data'!$AF12<>"(Null)"),('FET Data'!$AE12<>"(Null)"),('FET Data'!$AD12<>"(Null)"),('FET Data'!$AC12<>"(Null)"))) -> TRUE | N12: =AND(((Vd)>=6),((Vd)<8),OR(('FET Data'!$AG12<>"(Null)"),('FET Data'!$AF12<>"(Null)"),('FET Data'!$AE12<>"(Null)"),('FET Data'!$AD12<>"(Null)"),('FET Data'!$AC12<>"(Null)"))) -> FALSE | O12: =AND(((Vd)>=8),((Vd)<10),OR(('FET Data'!$AH12<>"(Null)"),('FET Data'!$AG12<>"(Null)"),('FET Data'!$AF12<>"(Null)"),('FET Data'!$AE12<>"(Null)"),('FET Data'!$AD12<>"(Null)"),('FET Data'!$AC12<>"(Null)"))) -> FALSE | P12: =AND(((Vd)>=10),OR(('FET Data'!$AI12<>"(Null)"),('FET Data'!$AH12<>"(Null)"),('FET Data'!$AG12<>"(Null)"),('FET Data'!$AF12<>"(Null)"),('FET Data'!$AE12<>"(Null)"),('FET Data'!$AD12<>"(Null)"),('FET Data'!$AC12<>"(Null)"))) -> FALSE | Q12: TRUE | R12: TRUE
A13: =IF(R13,Discrete_NFET[[#This Row],[PARTNUMBER]],"") -> CSD16403Q5A | B13: CSD16401Q5 | C13: =AND((Discrete_NFET[[#This Row],[VDSMAX]]>Vi*1.25),(Discrete_NFET[[#This Row],[VGSMAX]]>=Vd*1.2)) -> TRUE | D13: =AND(Vi<=25,Discrete_NFET[[#This Row],[VDSMAX]]<=30) -> TRUE | E13: =AND(Vi<=33,Vi>=20,Discrete_NFET[[#This Row],[VDSMAX]]=40) -> FALSE | F13: =AND(Vi<=50,Vi>=24,Discrete_NFET[[#This Row],[VDSMAX]]=60) -> FALSE | G13: =AND(Vi<=66,Vi>=36,Discrete_NFET[[#This Row],[VDSMAX]]=80) -> FALSE | H13: =AND(Vi<=83,Vi>=48,Discrete_NFET[[#This Row],[VDSMAX]]=100) -> FALSE | I13: TRUE | J13: =AND(((Vd)<2.5),('FET Data'!$AC13<>"(Null)")) -> FALSE | K13: =AND(((Vd)>=2.5),((Vd)<3),OR(('FET Data'!$AD13<>"(Null)"),('FET Data'!$AC13<>"(Null)"))) -> FALSE | L13: =AND(((Vd)>=3),((Vd)<4.5),OR(('FET Data'!$AE13<>"(Null)"),('FET Data'!$AD13<>"(Null)"),('FET Data'!$AC13<>"(Null)"))) -> FALSE | M13: =AND(((Vd)>=4.5),((Vd)<6),OR(('FET Data'!$AF13<>"(Null)"),('FET Data'!$AE13<>"(Null)"),('FET Data'!$AD13<>"(Null)"),('FET Data'!$AC13<>"(Null)"))) -> TRUE | N13: =AND(((Vd)>=6),((Vd)<8),OR(('FET Data'!$AG13<>"(Null)"),('FET Data'!$AF13<>"(Null)"),('FET Data'!$AE13<>"(Null)"),('FET Data'!$AD13<>"(Null)"),('FET Data'!$AC13<>"(Null)"))) -> FALSE | O13: =AND(((Vd)>=8),((Vd)<10),OR(('FET Data'!$AH13<>"(Null)"),('FET Data'!$AG13<>"(Null)"),('FET Data'!$AF13<>"(Null)"),('FET Data'!$AE13<>"(Null)"),('FET Data'!$AD13<>"(Null)"),('FET Data'!$AC13<>"(Null)"))) -> FALSE | P13: =AND(((Vd)>=10),OR(('FET Data'!$AI13<>"(Null)"),('FET Data'!$AH13<>"(Null)"),('FET Data'!$AG13<>"(Null)"),('FET Data'!$AF13<>"(Null)"),('FET Data'!$AE13<>"(Null)"),('FET Data'!$AD13<>"(Null)"),('FET Data'!$AC13<>"(Null)"))) -> FALSE | Q13: TRUE | R13: TRUE | V13: RDSON25 | W13: RDSON3 | X13: RDS45 | Y13: RDSON6 | Z13: RDSON8 | AA13: RDSON10
A14: =IF(R14,Discrete_NFET[[#This Row],[PARTNUMBER]],"") -> CSD16404Q5A | B14: CSD16403Q5A | C14: =AND((Discrete_NFET[[#This Row],[VDSMAX]]>Vi*1.25),(Discrete_NFET[[#This Row],[VGSMAX]]>=Vd*1.2)) -> TRUE | D14: =AND(Vi<=25,Discrete_NFET[[#This Row],[VDSMAX]]<=30) -> TRUE | E14: =AND(Vi<=33,Vi>=20,Discrete_NFET[[#This Row],[VDSMAX]]=40) -> FALSE | F14: =AND(Vi<=50,Vi>=24,Discrete_NFET[[#This Row],[VDSMAX]]=60) -> FALSE | G14: =AND(Vi<=66,Vi>=36,Discrete_NFET[[#This Row],[VDSMAX]]=80) -> FALSE | H14: =AND(Vi<=83,Vi>=48,Discrete_NFET[[#This Row],[VDSMAX]]=100) -> FALSE | I14: TRUE | J14: =AND(((Vd)<2.5),('FET Data'!$AC14<>"(Null)")) -> FALSE | K14: =AND(((Vd)>=2.5),((Vd)<3),OR(('FET Data'!$AD14<>"(Null)"),('FET Data'!$AC14<>"(Null)"))) -> FALSE | L14: =AND(((Vd)>=3),((Vd)<4.5),OR(('FET Data'!$AE14<>"(Null)"),('FET Data'!$AD14<>"(Null)"),('FET Data'!$AC14<>"(Null)"))) -> FALSE | M14: =AND(((Vd)>=4.5),((Vd)<6),OR(('FET Data'!$AF14<>"(Null)"),('FET Data'!$AE14<>"(Null)"),('FET Data'!$AD14<>"(Null)"),('FET Data'!$AC14<>"(Null)"))) -> TRUE | N14: =AND(((Vd)>=6),((Vd)<8),OR(('FET Data'!$AG14<>"(Null)"),('FET Data'!$AF14<>"(Null)"),('FET Data'!$AE14<>"(Null)"),('FET Data'!$AD14<>"(Null)"),('FET Data'!$AC14<>"(Null)"))) -> FALSE | O14: =AND(((Vd)>=8),((Vd)<10),OR(('FET Data'!$AH14<>"(Null)"),('FET Data'!$AG14<>"(Null)"),('FET Data'!$AF14<>"(Null)"),('FET Data'!$AE14<>"(Null)"),('FET Data'!$AD14<>"(Null)"),('FET Data'!$AC14<>"(Null)"))) -> FALSE | P14: =AND(((Vd)>=10),OR(('FET Data'!$AI14<>"(Null)"),('FET Data'!$AH14<>"(Null)"),('FET Data'!$AG14<>"(Null)"),('FET Data'!$AF14<>"(Null)"),('FET Data'!$AE14<>"(Null)"),('FET Data'!$AD14<>"(Null)"),('FET Data'!$AC14<>"(Null)"))) -> FALSE | Q14: TRUE | R14: TRUE | V14: 2.5V<=VGS<3V | W14: 3V<=VGS<4V | X14: 4V<=VGS<5.5V | Y14: 5.5V<=VGS<7 | Z14: 7V<=VGS<9V | AA14: 9V<=VGS<=16V | AB14: RDSON
A15: =IF(R15,Discrete_NFET[[#This Row],[PARTNUMBER]],"") -> CSD16406Q3 | B15: CSD16404Q5A | C15: =AND((Discrete_NFET[[#This Row],[VDSMAX]]>Vi*1.25),(Discrete_NFET[[#This Row],[VGSMAX]]>=Vd*1.2)) -> TRUE | D15: =AND(Vi<=25,Discrete_NFET[[#This Row],[VDSMAX]]<=30) -> TRUE | E15: =AND(Vi<=33,Vi>=20,Discrete_NFET[[#This Row],[VDSMAX]]=40) -> FALSE | F15: =AND(Vi<=50,Vi>=24,Discrete_NFET[[#This Row],[VDSMAX]]=60) -> FALSE | G15: =AND(Vi<=66,Vi>=36,Discrete_NFET[[#This Row],[VDSMAX]]=80) -> FALSE | H15: =AND(Vi<=83,Vi>=48,Discrete_NFET[[#This Row],[VDSMAX]]=100) -> FALSE | I15: TRUE | J15: =AND(((Vd)<2.5),('FET Data'!$AC15<>"(Null)")) -> FALSE | K15: =AND(((Vd)>=2.5),((Vd)<3),OR(('FET Data'!$AD15<>"(Null)"),('FET Data'!$AC15<>"(Null)"))) -> FALSE | L15: =AND(((Vd)>=3),((Vd)<4.5),OR(('FET Data'!$AE15<>"(Null)"),('FET Data'!$AD15<>"(Null)"),('FET Data'!$AC15<>"(Null)"))) -> FALSE | M15: =AND(((Vd)>=4.5),((Vd)<6),OR(('FET Data'!$AF15<>"(Null)"),('FET Data'!$AE15<>"(Null)"),('FET Data'!$AD15<>"(Null)"),('FET Data'!$AC15<>"(Null)"))) -> TRUE | N15: =AND(((Vd)>=6),((Vd)<8),OR(('FET Data'!$AG15<>"(Null)"),('FET Data'!$AF15<>"(Null)"),('FET Data'!$AE15<>"(Null)"),('FET Data'!$AD15<>"(Null)"),('FET Data'!$AC15<>"(Null)"))) -> FALSE | O15: =AND(((Vd)>=8),((Vd)<10),OR(('FET Data'!$AH15<>"(Null)"),('FET Data'!$AG15<>"(Null)"),('FET Data'!$AF15<>"(Null)"),('FET Data'!$AE15<>"(Null)"),('FET Data'!$AD15<>"(Null)"),('FET Data'!$AC15<>"(Null)"))) -> FALSE | P15: =AND(((Vd)>=10),OR(('FET Data'!$AI15<>"(Null)"),('FET Data'!$AH15<>"(Null)"),('FET Data'!$AG15<>"(Null)"),('FET Data'!$AF15<>"(Null)"),('FET Data'!$AE15<>"(Null)"),('FET Data'!$AD15<>"(Null)"),('FET Data'!$AC15<>"(Null)"))) -> FALSE | Q15: TRUE | R15: TRUE | V15: =(Vd>=2.5) -> TRUE | W15: =(Vd>=3) -> TRUE | X15: =(Vd>=4) -> TRUE | Y15: =(Vd>=5.5) -> FALSE | Z15: =(Vd>=7) -> FALSE | AA15: =AND(Vd>=8) -> FALSE | AB15: =IF(AA18,LOOKUP(Q1_Part_Number,Discrete_NFET[PARTNUMBER],Discrete_NFET[RDSON10])*1000,IF(Z18,LOOKUP(Q1_Part_Number,Discrete_NFET[PARTNUMBER],Discrete_NFET[RDSON8])*1000,IF(Y18,LOOKUP(Q1_Part_Number,Discrete_NFET[PARTNUMBER],Discrete_NFET[RDSON6])*1000,IF(X18,LOOKUP(Q1_Part_Number,Discrete_NFET[PARTNUMBER],Discrete_NFET[RDSON45])*1000,IF(W18,LOOKUP(Q1_Part_Number,Discrete_NFET[PARTNUMBER],Discrete_NFET[RDSON3])*1000,IF(V18,LOOKUP(Q1_Part_Number,Discrete_NFET[PARTNUMBER],Discrete_NFET[RDSON25])*1000,"")))))) -> 18.9
A16: =IF(R16,Discrete_NFET[[#This Row],[PARTNUMBER]],"") -> CSD16407Q5 | B16: CSD16406Q3 | C16: =AND((Discrete_NFET[[#This Row],[VDSMAX]]>Vi*1.25),(Discrete_NFET[[#This Row],[VGSMAX]]>=Vd*1.2)) -> TRUE | D16: =AND(Vi<=25,Discrete_NFET[[#This Row],[VDSMAX]]<=30) -> TRUE | E16: =AND(Vi<=33,Vi>=20,Discrete_NFET[[#This Row],[VDSMAX]]=40) -> FALSE | F16: =AND(Vi<=50,Vi>=24,Discrete_NFET[[#This Row],[VDSMAX]]=60) -> FALSE | G16: =AND(Vi<=66,Vi>=36,Discrete_NFET[[#This Row],[VDSMAX]]=80) -> FALSE | H16: =AND(Vi<=83,Vi>=48,Discrete_NFET[[#This Row],[VDSMAX]]=100) -> FALSE | I16: TRUE | J16: =AND(((Vd)<2.5),('FET Data'!$AC16<>"(Null)")) -> FALSE | K16: =AND(((Vd)>=2.5),((Vd)<3),OR(('FET Data'!$AD16<>"(Null)"),('FET Data'!$AC16<>"(Null)"))) -> FALSE | L16: =AND(((Vd)>=3),((Vd)<4.5),OR(('FET Data'!$AE16<>"(Null)"),('FET Data'!$AD16<>"(Null)"),('FET Data'!$AC16<>"(Null)"))) -> FALSE | M16: =AND(((Vd)>=4.5),((Vd)<6),OR(('FET Data'!$AF16<>"(Null)"),('FET Data'!$AE16<>"(Null)"),('FET Data'!$AD16<>"(Null)"),('FET Data'!$AC16<>"(Null)"))) -> TRUE | N16: =AND(((Vd)>=6),((Vd)<8),OR(('FET Data'!$AG16<>"(Null)"),('FET Data'!$AF16<>"(Null)"),('FET Data'!$AE16<>"(Null)"),('FET Data'!$AD16<>"(Null)"),('FET Data'!$AC16<>"(Null)"))) -> FALSE | O16: =AND(((Vd)>=8),((Vd)<10),OR(('FET Data'!$AH16<>"(Null)"),('FET Data'!$AG16<>"(Null)"),('FET Data'!$AF16<>"(Null)"),('FET Data'!$AE16<>"(Null)"),('FET Data'!$AD16<>"(Null)"),('FET Data'!$AC16<>"(Null)"))) -> FALSE | P16: =AND(((Vd)>=10),OR(('FET Data'!$AI16<>"(Null)"),('FET Data'!$AH16<>"(Null)"),('FET Data'!$AG16<>"(Null)"),('FET Data'!$AF16<>"(Null)"),('FET Data'!$AE16<>"(Null)"),('FET Data'!$AD16<>"(Null)"),('FET Data'!$AC16<>"(Null)"))) -> FALSE | Q16: TRUE | R16: TRUE | V16: =IF(LOOKUP(Q2_Part_Number,Discrete_NFET[PARTNUMBER],Discrete_NFET[RDSON25])="(NULL)","0","1") -> 0 | W16: =IF(LOOKUP(Q2_Part_Number,Discrete_NFET[PARTNUMBER],Discrete_NFET[RDSON3])="(NULL)","0","1") -> 0 | X16: =IF(LOOKUP(Q2_Part_Number,Discrete_NFET[PARTNUMBER],Discrete_NFET[RDSON45])="(NULL)","0","1") -> 1 | Y16: =IF(LOOKUP(Q2_Part_Number,Discrete_NFET[PARTNUMBER],Discrete_NFET[RDSON6])="(NULL)","0","1") -> 0 | Z16: =IF(LOOKUP(Q2_Part_Number,Discrete_NFET[PARTNUMBER],Discrete_NFET[RDSON8])="(NULL)","0","1") -> 1 | AA16: =IF(LOOKUP(Q2_Part_Number,Discrete_NFET[PARTNUMBER],Discrete_NFET[RDSON10])="(NULL)","0","1") -> 0
A17: =IF(R17,Discrete_NFET[[#This Row],[PARTNUMBER]],"") -> CSD16408Q5 | B17: CSD16407Q5 | C17: =AND((Discrete_NFET[[#This Row],[VDSMAX]]>Vi*1.25),(Discrete_NFET[[#This Row],[VGSMAX]]>=Vd*1.2)) -> TRUE | D17: =AND(Vi<=25,Discrete_NFET[[#This Row],[VDSMAX]]<=30) -> TRUE | E17: =AND(Vi<=33,Vi>=20,Discrete_NFET[[#This Row],[VDSMAX]]=40) -> FALSE | F17: =AND(Vi<=50,Vi>=24,Discrete_NFET[[#This Row],[VDSMAX]]=60) -> FALSE | G17: =AND(Vi<=66,Vi>=36,Discrete_NFET[[#This Row],[VDSMAX]]=80) -> FALSE | H17: =AND(Vi<=83,Vi>=48,Discrete_NFET[[#This Row],[VDSMAX]]=100) -> FALSE | I17: TRUE | J17: =AND(((Vd)<2.5),('FET Data'!$AC17<>"(Null)")) -> FALSE | K17: =AND(((Vd)>=2.5),((Vd)<3),OR(('FET Data'!$AD17<>"(Null)"),('FET Data'!$AC17<>"(Null)"))) -> FALSE | L17: =AND(((Vd)>=3),((Vd)<4.5),OR(('FET Data'!$AE17<>"(Null)"),('FET Data'!$AD17<>"(Null)"),('FET Data'!$AC17<>"(Null)"))) -> FALSE | M17: =AND(((Vd)>=4.5),((Vd)<6),OR(('FET Data'!$AF17<>"(Null)"),('FET Data'!$AE17<>"(Null)"),('FET Data'!$AD17<>"(Null)"),('FET Data'!$AC17<>"(Null)"))) -> TRUE | N17: =AND(((Vd)>=6),((Vd)<8),OR(('FET Data'!$AG17<>"(Null)"),('FET Data'!$AF17<>"(Null)"),('FET Data'!$AE17<>"(Null)"),('FET Data'!$AD17<>"(Null)"),('FET Data'!$AC17<>"(Null)"))) -> FALSE | O17: =AND(((Vd)>=8),((Vd)<10),OR(('FET Data'!$AH17<>"(Null)"),('FET Data'!$AG17<>"(Null)"),('FET Data'!$AF17<>"(Null)"),('FET Data'!$AE17<>"(Null)"),('FET Data'!$AD17<>"(Null)"),('FET Data'!$AC17<>"(Null)"))) -> FALSE | P17: =AND(((Vd)>=10),OR(('FET Data'!$AI17<>"(Null)"),('FET Data'!$AH17<>"(Null)"),('FET Data'!$AG17<>"(Null)"),('FET Data'!$AF17<>"(Null)"),('FET Data'!$AE17<>"(Null)"),('FET Data'!$AD17<>"(Null)"),('FET Data'!$AC17<>"(Null)"))) -> FALSE | Q17: TRUE | R17: TRUE | V17: =AND(V15,V16="1") -> FALSE | W17: FALSE | X17: TRUE | Y17: FALSE | Z17: FALSE | AA17: FALSE
A18: =IF(R18,Discrete_NFET[[#This Row],[PARTNUMBER]],"") -> CSD16409Q3 | B18: CSD16408Q5 | C18: =AND((Discrete_NFET[[#This Row],[VDSMAX]]>Vi*1.25),(Discrete_NFET[[#This Row],[VGSMAX]]>=Vd*1.2)) -> TRUE | D18: =AND(Vi<=25,Discrete_NFET[[#This Row],[VDSMAX]]<=30) -> TRUE | E18: =AND(Vi<=33,Vi>=20,Discrete_NFET[[#This Row],[VDSMAX]]=40) -> FALSE | F18: =AND(Vi<=50,Vi>=24,Discrete_NFET[[#This Row],[VDSMAX]]=60) -> FALSE | G18: =AND(Vi<=66,Vi>=36,Discrete_NFET[[#This Row],[VDSMAX]]=80) -> FALSE | H18: =AND(Vi<=83,Vi>=48,Discrete_NFET[[#This Row],[VDSMAX]]=100) -> FALSE | I18: TRUE | J18: =AND(((Vd)<2.5),('FET Data'!$AC18<>"(Null)")) -> FALSE | K18: =AND(((Vd)>=2.5),((Vd)<3),OR(('FET Data'!$AD18<>"(Null)"),('FET Data'!$AC18<>"(Null)"))) -> FALSE | L18: =AND(((Vd)>=3),((Vd)<4.5),OR(('FET Data'!$AE18<>"(Null)"),('FET Data'!$AD18<>"(Null)"),('FET Data'!$AC18<>"(Null)"))) -> FALSE | M18: =AND(((Vd)>=4.5),((Vd)<6),OR(('FET Data'!$AF18<>"(Null)"),('FET Data'!$AE18<>"(Null)"),('FET Data'!$AD18<>"(Null)"),('FET Data'!$AC18<>"(Null)"))) -> TRUE | N18: =AND(((Vd)>=6),((Vd)<8),OR(('FET Data'!$AG18<>"(Null)"),('FET Data'!$AF18<>"(Null)"),('FET Data'!$AE18<>"(Null)"),('FET Data'!$AD18<>"(Null)"),('FET Data'!$AC18<>"(Null)"))) -> FALSE | O18: =AND(((Vd)>=8),((Vd)<10),OR(('FET Data'!$AH18<>"(Null)"),('FET Data'!$AG18<>"(Null)"),('FET Data'!$AF18<>"(Null)"),('FET Data'!$AE18<>"(Null)"),('FET Data'!$AD18<>"(Null)"),('FET Data'!$AC18<>"(Null)"))) -> FALSE | P18: =AND(((Vd)>=10),OR(('FET Data'!$AI18<>"(Null)"),('FET Data'!$AH18<>"(Null)"),('FET Data'!$AG18<>"(Null)"),('FET Data'!$AF18<>"(Null)"),('FET Data'!$AE18<>"(Null)"),('FET Data'!$AD18<>"(Null)"),('FET Data'!$AC18<>"(Null)"))) -> FALSE | Q18: TRUE | R18: TRUE | U18: =OR(V17:AA17) -> TRUE | V18: =AND($U$7,V15,V16="1") -> FALSE | W18: FALSE | X18: TRUE | Y18: FALSE | Z18: FALSE | AA18: FALSE
A19: =IF(R19,Discrete_NFET[[#This Row],[PARTNUMBER]],"") -> CSD16410Q5A | B19: CSD16409Q3 | C19: =AND((Discrete_NFET[[#This Row],[VDSMAX]]>Vi*1.25),(Discrete_NFET[[#This Row],[VGSMAX]]>=Vd*1.2)) -> TRUE | D19: =AND(Vi<=25,Discrete_NFET[[#This Row],[VDSMAX]]<=30) -> TRUE | E19: =AND(Vi<=33,Vi>=20,Discrete_NFET[[#This Row],[VDSMAX]]=40) -> FALSE | F19: =AND(Vi<=50,Vi>=24,Discrete_NFET[[#This Row],[VDSMAX]]=60) -> FALSE | G19: =AND(Vi<=66,Vi>=36,Discrete_NFET[[#This Row],[VDSMAX]]=80) -> FALSE | H19: =AND(Vi<=83,Vi>=48,Discrete_NFET[[#This Row],[VDSMAX]]=100) -> FALSE | I19: TRUE | J19: =AND(((Vd)<2.5),('FET Data'!$AC19<>"(Null)")) -> FALSE | K19: =AND(((Vd)>=2.5),((Vd)<3),OR(('FET Data'!$AD19<>"(Null)"),('FET Data'!$AC19<>"(Null)"))) -> FALSE | L19: =AND(((Vd)>=3),((Vd)<4.5),OR(('FET Data'!$AE19<>"(Null)"),('FET Data'!$AD19<>"(Null)"),('FET Data'!$AC19<>"(Null)"))) -> FALSE | M19: =AND(((Vd)>=4.5),((Vd)<6),OR(('FET Data'!$AF19<>"(Null)"),('FET Data'!$AE19<>"(Null)"),('FET Data'!$AD19<>"(Null)"),('FET Data'!$AC19<>"(Null)"))) -> TRUE | N19: =AND(((Vd)>=6),((Vd)<8),OR(('FET Data'!$AG19<>"(Null)"),('FET Data'!$AF19<>"(Null)"),('FET Data'!$AE19<>"(Null)"),('FET Data'!$AD19<>"(Null)"),('FET Data'!$AC19<>"(Null)"))) -> FALSE | O19: =AND(((Vd)>=8),((Vd)<10),OR(('FET Data'!$AH19<>"(Null)"),('FET Data'!$AG19<>"(Null)"),('FET Data'!$AF19<>"(Null)"),('FET Data'!$AE19<>"(Null)"),('FET Data'!$AD19<>"(Null)"),('FET Data'!$AC19<>"(Null)"))) -> FALSE | P19: =AND(((Vd)>=10),OR(('FET Data'!$AI19<>"(Null)"),('FET Data'!$AH19<>"(Null)"),('FET Data'!$AG19<>"(Null)"),('FET Data'!$AF19<>"(Null)"),('FET Data'!$AE19<>"(Null)"),('FET Data'!$AD19<>"(Null)"),('FET Data'!$AC19<>"(Null)"))) -> FALSE | Q19: TRUE | R19: TRUE | U19: =NOT(AND((Vd<=6),('FET Data'!$AD10="(Null)"))) -> TRUE
A20: =IF(R20,Discrete_NFET[[#This Row],[PARTNUMBER]],"") -> CSD16411Q3 | B20: CSD16410Q5A | C20: =AND((Discrete_NFET[[#This Row],[VDSMAX]]>Vi*1.25),(Discrete_NFET[[#This Row],[VGSMAX]]>=Vd*1.2)) -> TRUE | D20: =AND(Vi<=25,Discrete_NFET[[#This Row],[VDSMAX]]<=30) -> TRUE | E20: =AND(Vi<=33,Vi>=20,Discrete_NFET[[#This Row],[VDSMAX]]=40) -> FALSE | F20: =AND(Vi<=50,Vi>=24,Discrete_NFET[[#This Row],[VDSMAX]]=60) -> FALSE | G20: =AND(Vi<=66,Vi>=36,Discrete_NFET[[#This Row],[VDSMAX]]=80) -> FALSE | H20: =AND(Vi<=83,Vi>=48,Discrete_NFET[[#This Row],[VDSMAX]]=100) -> FALSE | I20: TRUE | J20: =AND(((Vd)<2.5),('FET Data'!$AC20<>"(Null)")) -> FALSE | K20: =AND(((Vd)>=2.5),((Vd)<3),OR(('FET Data'!$AD20<>"(Null)"),('FET Data'!$AC20<>"(Null)"))) -> FALSE | L20: =AND(((Vd)>=3),((Vd)<4.5),OR(('FET Data'!$AE20<>"(Null)"),('FET Data'!$AD20<>"(Null)"),('FET Data'!$AC20<>"(Null)"))) -> FALSE | M20: =AND(((Vd)>=4.5),((Vd)<6),OR(('FET Data'!$AF20<>"(Null)"),('FET Data'!$AE20<>"(Null)"),('FET Data'!$AD20<>"(Null)"),('FET Data'!$AC20<>"(Null)"))) -> TRUE | N20: =AND(((Vd)>=6),((Vd)<8),OR(('FET Data'!$AG20<>"(Null)"),('FET Data'!$AF20<>"(Null)"),('FET Data'!$AE20<>"(Null)"),('FET Data'!$AD20<>"(Null)"),('FET Data'!$AC20<>"(Null)"))) -> FALSE | O20: =AND(((Vd)>=8),((Vd)<10),OR(('FET Data'!$AH20<>"(Null)"),('FET Data'!$AG20<>"(Null)"),('FET Data'!$AF20<>"(Null)"),('FET Data'!$AE20<>"(Null)"),('FET Data'!$AD20<>"(Null)"),('FET Data'!$AC20<>"(Null)"))) -> FALSE | P20: =AND(((Vd)>=10),OR(('FET Data'!$AI20<>"(Null)"),('FET Data'!$AH20<>"(Null)"),('FET Data'!$AG20<>"(Null)"),('FET Data'!$AF20<>"(Null)"),('FET Data'!$AE20<>"(Null)"),('FET Data'!$AD20<>"(Null)"),('FET Data'!$AC20<>"(Null)"))) -> FALSE | Q20: TRUE | R20: TRUE
A21: =IF(R21,Discrete_NFET[[#This Row],[PARTNUMBER]],"") -> CSD16412Q5A | B21: CSD16411Q3 | C21: =AND((Discrete_NFET[[#This Row],[VDSMAX]]>Vi*1.25),(Discrete_NFET[[#This Row],[VGSMAX]]>=Vd*1.2)) -> TRUE | D21: =AND(Vi<=25,Discrete_NFET[[#This Row],[VDSMAX]]<=30) -> TRUE | E21: =AND(Vi<=33,Vi>=20,Discrete_NFET[[#This Row],[VDSMAX]]=40) -> FALSE | F21: =AND(Vi<=50,Vi>=24,Discrete_NFET[[#This Row],[VDSMAX]]=60) -> FALSE | G21: =AND(Vi<=66,Vi>=36,Discrete_NFET[[#This Row],[VDSMAX]]=80) -> FALSE | H21: =AND(Vi<=83,Vi>=48,Discrete_NFET[[#This Row],[VDSMAX]]=100) -> FALSE | I21: TRUE | J21: =AND(((Vd)<2.5),('FET Data'!$AC21<>"(Null)")) -> FALSE | K21: =AND(((Vd)>=2.5),((Vd)<3),OR(('FET Data'!$AD21<>"(Null)"),('FET Data'!$AC21<>"(Null)"))) -> FALSE | L21: =AND(((Vd)>=3),((Vd)<4.5),OR(('FET Data'!$AE21<>"(Null)"),('FET Data'!$AD21<>"(Null)"),('FET Data'!$AC21<>"(Null)"))) -> FALSE | M21: =AND(((Vd)>=4.5),((Vd)<6),OR(('FET Data'!$AF21<>"(Null)"),('FET Data'!$AE21<>"(Null)"),('FET Data'!$AD21<>"(Null)"),('FET Data'!$AC21<>"(Null)"))) -> TRUE | N21: =AND(((Vd)>=6),((Vd)<8),OR(('FET Data'!$AG21<>"(Null)"),('FET Data'!$AF21<>"(Null)"),('FET Data'!$AE21<>"(Null)"),('FET Data'!$AD21<>"(Null)"),('FET Data'!$AC21<>"(Null)"))) -> FALSE | O21: =AND(((Vd)>=8),((Vd)<10),OR(('FET Data'!$AH21<>"(Null)"),('FET Data'!$AG21<>"(Null)"),('FET Data'!$AF21<>"(Null)"),('FET Data'!$AE21<>"(Null)"),('FET Data'!$AD21<>"(Null)"),('FET Data'!$AC21<>"(Null)"))) -> FALSE | P21: =AND(((Vd)>=10),OR(('FET Data'!$AI21<>"(Null)"),('FET Data'!$AH21<>"(Null)"),('FET Data'!$AG21<>"(Null)"),('FET Data'!$AF21<>"(Null)"),('FET Data'!$AE21<>"(Null)"),('FET Data'!$AD21<>"(Null)"),('FET Data'!$AC21<>"(Null)"))) -> FALSE | Q21: TRUE | R21: TRUE | U21: =NOT(AND((Vd<=4.5),('FET Data'!#REF!="(Null)"))) -> 
A22: =IF(R22,Discrete_NFET[[#This Row],[PARTNUMBER]],"") -> CSD16413Q5A | B22: CSD16412Q5A | C22: =AND((Discrete_NFET[[#This Row],[VDSMAX]]>Vi*1.25),(Discrete_NFET[[#This Row],[VGSMAX]]>=Vd*1.2)) -> TRUE | D22: =AND(Vi<=25,Discrete_NFET[[#This Row],[VDSMAX]]<=30) -> TRUE | E22: =AND(Vi<=33,Vi>=20,Discrete_NFET[[#This Row],[VDSMAX]]=40) -> FALSE | F22: =AND(Vi<=50,Vi>=24,Discrete_NFET[[#This Row],[VDSMAX]]=60) -> FALSE | G22: =AND(Vi<=66,Vi>=36,Discrete_NFET[[#This Row],[VDSMAX]]=80) -> FALSE | H22: =AND(Vi<=83,Vi>=48,Discrete_NFET[[#This Row],[VDSMAX]]=100) -> FALSE | I22: TRUE | J22: =AND(((Vd)<2.5),('FET Data'!$AC22<>"(Null)")) -> FALSE | K22: =AND(((Vd)>=2.5),((Vd)<3),OR(('FET Data'!$AD22<>"(Null)"),('FET Data'!$AC22<>"(Null)"))) -> FALSE | L22: =AND(((Vd)>=3),((Vd)<4.5),OR(('FET Data'!$AE22<>"(Null)"),('FET Data'!$AD22<>"(Null)"),('FET Data'!$AC22<>"(Null)"))) -> FALSE | M22: =AND(((Vd)>=4.5),((Vd)<6),OR(('FET Data'!$AF22<>"(Null)"),('FET Data'!$AE22<>"(Null)"),('FET Data'!$AD22<>"(Null)"),('FET Data'!$AC22<>"(Null)"))) -> TRUE | N22: =AND(((Vd)>=6),((Vd)<8),OR(('FET Data'!$AG22<>"(Null)"),('FET Data'!$AF22<>"(Null)"),('FET Data'!$AE22<>"(Null)"),('FET Data'!$AD22<>"(Null)"),('FET Data'!$AC22<>"(Null)"))) -> FALSE | O22: =AND(((Vd)>=8),((Vd)<10),OR(('FET Data'!$AH22<>"(Null)"),('FET Data'!$AG22<>"(Null)"),('FET Data'!$AF22<>"(Null)"),('FET Data'!$AE22<>"(Null)"),('FET Data'!$AD22<>"(Null)"),('FET Data'!$AC22<>"(Null)"))) -> FALSE | P22: =AND(((Vd)>=10),OR(('FET Data'!$AI22<>"(Null)"),('FET Data'!$AH22<>"(Null)"),('FET Data'!$AG22<>"(Null)"),('FET Data'!$AF22<>"(Null)"),('FET Data'!$AE22<>"(Null)"),('FET Data'!$AD22<>"(Null)"),('FET Data'!$AC22<>"(Null)"))) -> FALSE | Q22: TRUE | R22: TRUE
A23: =IF(R23,Discrete_NFET[[#This Row],[PARTNUMBER]],"") -> CSD16414Q5 | B23: CSD16413Q5A | C23: =AND((Discrete_NFET[[#This Row],[VDSMAX]]>Vi*1.25),(Discrete_NFET[[#This Row],[VGSMAX]]>=Vd*1.2)) -> TRUE | D23: =AND(Vi<=25,Discrete_NFET[[#This Row],[VDSMAX]]<=30) -> TRUE | E23: =AND(Vi<=33,Vi>=20,Discrete_NFET[[#This Row],[VDSMAX]]=40) -> FALSE | F23: =AND(Vi<=50,Vi>=24,Discrete_NFET[[#This Row],[VDSMAX]]=60) -> FALSE | G23: =AND(Vi<=66,Vi>=36,Discrete_NFET[[#This Row],[VDSMAX]]=80) -> FALSE | H23: =AND(Vi<=83,Vi>=48,Discrete_NFET[[#This Row],[VDSMAX]]=100) -> FALSE | I23: TRUE | J23: =AND(((Vd)<2.5),('FET Data'!$AC23<>"(Null)")) -> FALSE | K23: =AND(((Vd)>=2.5),((Vd)<3),OR(('FET Data'!$AD23<>"(Null)"),('FET Data'!$AC23<>"(Null)"))) -> FALSE | L23: =AND(((Vd)>=3),((Vd)<4.5),OR(('FET Data'!$AE23<>"(Null)"),('FET Data'!$AD23<>"(Null)"),('FET Data'!$AC23<>"(Null)"))) -> FALSE | M23: =AND(((Vd)>=4.5),((Vd)<6),OR(('FET Data'!$AF23<>"(Null)"),('FET Data'!$AE23<>"(Null)"),('FET Data'!$AD23<>"(Null)"),('FET Data'!$AC23<>"(Null)"))) -> TRUE | N23: =AND(((Vd)>=6),((Vd)<8),OR(('FET Data'!$AG23<>"(Null)"),('FET Data'!$AF23<>"(Null)"),('FET Data'!$AE23<>"(Null)"),('FET Data'!$AD23<>"(Null)"),('FET Data'!$AC23<>"(Null)"))) -> FALSE | O23: =AND(((Vd)>=8),((Vd)<10),OR(('FET Data'!$AH23<>"(Null)"),('FET Data'!$AG23<>"(Null)"),('FET Data'!$AF23<>"(Null)"),('FET Data'!$AE23<>"(Null)"),('FET Data'!$AD23<>"(Null)"),('FET Data'!$AC23<>"(Null)"))) -> FALSE | P23: =AND(((Vd)>=10),OR(('FET Data'!$AI23<>"(Null)"),('FET Data'!$AH23<>"(Null)"),('FET Data'!$AG23<>"(Null)"),('FET Data'!$AF23<>"(Null)"),('FET Data'!$AE23<>"(Null)"),('FET Data'!$AD23<>"(Null)"),('FET Data'!$AC23<>"(Null)"))) -> FALSE | Q23: TRUE | R23: TRUE | T23: 10V
A24: =IF(R24,Discrete_NFET[[#This Row],[PARTNUMBER]],"") -> CSD16415Q5 | B24: CSD16414Q5 | C24: =AND((Discrete_NFET[[#This Row],[VDSMAX]]>Vi*1.25),(Discrete_NFET[[#This Row],[VGSMAX]]>=Vd*1.2)) -> TRUE | D24: =AND(Vi<=25,Discrete_NFET[[#This Row],[VDSMAX]]<=30) -> TRUE | E24: =AND(Vi<=33,Vi>=20,Discrete_NFET[[#This Row],[VDSMAX]]=40) -> FALSE | F24: =AND(Vi<=50,Vi>=24,Discrete_NFET[[#This Row],[VDSMAX]]=60) -> FALSE | G24: =AND(Vi<=66,Vi>=36,Discrete_NFET[[#This Row],[VDSMAX]]=80) -> FALSE | H24: =AND(Vi<=83,Vi>=48,Discrete_NFET[[#This Row],[VDSMAX]]=100) -> FALSE | I24: TRUE | J24: =AND(((Vd)<2.5),('FET Data'!$AC24<>"(Null)")) -> FALSE | K24: =AND(((Vd)>=2.5),((Vd)<3),OR(('FET Data'!$AD24<>"(Null)"),('FET Data'!$AC24<>"(Null)"))) -> FALSE | L24: =AND(((Vd)>=3),((Vd)<4.5),OR(('FET Data'!$AE24<>"(Null)"),('FET Data'!$AD24<>"(Null)"),('FET Data'!$AC24<>"(Null)"))) -> FALSE | M24: =AND(((Vd)>=4.5),((Vd)<6),OR(('FET Data'!$AF24<>"(Null)"),('FET Data'!$AE24<>"(Null)"),('FET Data'!$AD24<>"(Null)"),('FET Data'!$AC24<>"(Null)"))) -> TRUE | N24: =AND(((Vd)>=6),((Vd)<8),OR(('FET Data'!$AG24<>"(Null)"),('FET Data'!$AF24<>"(Null)"),('FET Data'!$AE24<>"(Null)"),('FET Data'!$AD24<>"(Null)"),('FET Data'!$AC24<>"(Null)"))) -> FALSE | O24: =AND(((Vd)>=8),((Vd)<10),OR(('FET Data'!$AH24<>"(Null)"),('FET Data'!$AG24<>"(Null)"),('FET Data'!$AF24<>"(Null)"),('FET Data'!$AE24<>"(Null)"),('FET Data'!$AD24<>"(Null)"),('FET Data'!$AC24<>"(Null)"))) -> FALSE | P24: =AND(((Vd)>=10),OR(('FET Data'!$AI24<>"(Null)"),('FET Data'!$AH24<>"(Null)"),('FET Data'!$AG24<>"(Null)"),('FET Data'!$AF24<>"(Null)"),('FET Data'!$AE24<>"(Null)"),('FET Data'!$AD24<>"(Null)"),('FET Data'!$AC24<>"(Null)"))) -> FALSE | Q24: TRUE | R24: TRUE | T24: 8V
A25: =IF(R25,Discrete_NFET[[#This Row],[PARTNUMBER]],"") -> CSD16556Q5B | B25: CSD16415Q5 | C25: =AND((Discrete_NFET[[#This Row],[VDSMAX]]>Vi*1.25),(Discrete_NFET[[#This Row],[VGSMAX]]>=Vd*1.2)) -> TRUE | D25: =AND(Vi<=25,Discrete_NFET[[#This Row],[VDSMAX]]<=30) -> TRUE | E25: =AND(Vi<=33,Vi>=20,Discrete_NFET[[#This Row],[VDSMAX]]=40) -> FALSE | F25: =AND(Vi<=50,Vi>=24,Discrete_NFET[[#This Row],[VDSMAX]]=60) -> FALSE | G25: =AND(Vi<=66,Vi>=36,Discrete_NFET[[#This Row],[VDSMAX]]=80) -> FALSE | H25: =AND(Vi<=83,Vi>=48,Discrete_NFET[[#This Row],[VDSMAX]]=100) -> FALSE | I25: TRUE | J25: =AND(((Vd)<2.5),('FET Data'!$AC25<>"(Null)")) -> FALSE | K25: =AND(((Vd)>=2.5),((Vd)<3),OR(('FET Data'!$AD25<>"(Null)"),('FET Data'!$AC25<>"(Null)"))) -> FALSE | L25: =AND(((Vd)>=3),((Vd)<4.5),OR(('FET Data'!$AE25<>"(Null)"),('FET Data'!$AD25<>"(Null)"),('FET Data'!$AC25<>"(Null)"))) -> FALSE | M25: =AND(((Vd)>=4.5),((Vd)<6),OR(('FET Data'!$AF25<>"(Null)"),('FET Data'!$AE25<>"(Null)"),('FET Data'!$AD25<>"(Null)"),('FET Data'!$AC25<>"(Null)"))) -> TRUE | N25: =AND(((Vd)>=6),((Vd)<8),OR(('FET Data'!$AG25<>"(Null)"),('FET Data'!$AF25<>"(Null)"),('FET Data'!$AE25<>"(Null)"),('FET Data'!$AD25<>"(Null)"),('FET Data'!$AC25<>"(Null)"))) -> FALSE | O25: =AND(((Vd)>=8),((Vd)<10),OR(('FET Data'!$AH25<>"(Null)"),('FET Data'!$AG25<>"(Null)"),('FET Data'!$AF25<>"(Null)"),('FET Data'!$AE25<>"(Null)"),('FET Data'!$AD25<>"(Null)"),('FET Data'!$AC25<>"(Null)"))) -> FALSE | P25: =AND(((Vd)>=10),OR(('FET Data'!$AI25<>"(Null)"),('FET Data'!$AH25<>"(Null)"),('FET Data'!$AG25<>"(Null)"),('FET Data'!$AF25<>"(Null)"),('FET Data'!$AE25<>"(Null)"),('FET Data'!$AD25<>"(Null)"),('FET Data'!$AC25<>"(Null)"))) -> FALSE | Q25: TRUE | R25: TRUE | T25: 6V | U25: =LOOKUP('User Input'!F15,Discrete_NFET[PARTNUMBER],Discrete_NFET[RDSON25])*1000 -> 
A26: =IF(R26,Discrete_NFET[[#This Row],[PARTNUMBER]],"") -> CSD17301Q5A | B26: CSD16556Q5B | C26: =AND((Discrete_NFET[[#This Row],[VDSMAX]]>Vi*1.25),(Discrete_NFET[[#This Row],[VGSMAX]]>=Vd*1.2)) -> TRUE | D26: =AND(Vi<=25,Discrete_NFET[[#This Row],[VDSMAX]]<=30) -> TRUE | E26: =AND(Vi<=33,Vi>=20,Discrete_NFET[[#This Row],[VDSMAX]]=40) -> FALSE | F26: =AND(Vi<=50,Vi>=24,Discrete_NFET[[#This Row],[VDSMAX]]=60) -> FALSE | G26: =AND(Vi<=66,Vi>=36,Discrete_NFET[[#This Row],[VDSMAX]]=80) -> FALSE | H26: =AND(Vi<=83,Vi>=48,Discrete_NFET[[#This Row],[VDSMAX]]=100) -> FALSE | I26: TRUE | J26: =AND(((Vd)<2.5),('FET Data'!$AC26<>"(Null)")) -> FALSE | K26: =AND(((Vd)>=2.5),((Vd)<3),OR(('FET Data'!$AD26<>"(Null)"),('FET Data'!$AC26<>"(Null)"))) -> FALSE | L26: =AND(((Vd)>=3),((Vd)<4.5),OR(('FET Data'!$AE26<>"(Null)"),('FET Data'!$AD26<>"(Null)"),('FET Data'!$AC26<>"(Null)"))) -> FALSE | M26: =AND(((Vd)>=4.5),((Vd)<6),OR(('FET Data'!$AF26<>"(Null)"),('FET Data'!$AE26<>"(Null)"),('FET Data'!$AD26<>"(Null)"),('FET Data'!$AC26<>"(Null)"))) -> TRUE | N26: =AND(((Vd)>=6),((Vd)<8),OR(('FET Data'!$AG26<>"(Null)"),('FET Data'!$AF26<>"(Null)"),('FET Data'!$AE26<>"(Null)"),('FET Data'!$AD26<>"(Null)"),('FET Data'!$AC26<>"(Null)"))) -> FALSE | O26: =AND(((Vd)>=8),((Vd)<10),OR(('FET Data'!$AH26<>"(Null)"),('FET Data'!$AG26<>"(Null)"),('FET Data'!$AF26<>"(Null)"),('FET Data'!$AE26<>"(Null)"),('FET Data'!$AD26<>"(Null)"),('FET Data'!$AC26<>"(Null)"))) -> FALSE | P26: =AND(((Vd)>=10),OR(('FET Data'!$AI26<>"(Null)"),('FET Data'!$AH26<>"(Null)"),('FET Data'!$AG26<>"(Null)"),('FET Data'!$AF26<>"(Null)"),('FET Data'!$AE26<>"(Null)"),('FET Data'!$AD26<>"(Null)"),('FET Data'!$AC26<>"(Null)"))) -> FALSE | Q26: TRUE | R26: TRUE | T26: 4.5V
A27: =IF(R27,Discrete_NFET[[#This Row],[PARTNUMBER]],"") -> CSD17302Q5A | B27: CSD17301Q5A | C27: =AND((Discrete_NFET[[#This Row],[VDSMAX]]>Vi*1.25),(Discrete_NFET[[#This Row],[VGSMAX]]>=Vd*1.2)) -> TRUE | D27: =AND(Vi<=25,Discrete_NFET[[#This Row],[VDSMAX]]<=30) -> TRUE | E27: =AND(Vi<=33,Vi>=20,Discrete_NFET[[#This Row],[VDSMAX]]=40) -> FALSE | F27: =AND(Vi<=50,Vi>=24,Discrete_NFET[[#This Row],[VDSMAX]]=60) -> FALSE | G27: =AND(Vi<=66,Vi>=36,Discrete_NFET[[#This Row],[VDSMAX]]=80) -> FALSE | H27: =AND(Vi<=83,Vi>=48,Discrete_NFET[[#This Row],[VDSMAX]]=100) -> FALSE | I27: TRUE | J27: =AND(((Vd)<2.5),('FET Data'!$AC27<>"(Null)")) -> FALSE | K27: =AND(((Vd)>=2.5),((Vd)<3),OR(('FET Data'!$AD27<>"(Null)"),('FET Data'!$AC27<>"(Null)"))) -> FALSE | L27: =AND(((Vd)>=3),((Vd)<4.5),OR(('FET Data'!$AE27<>"(Null)"),('FET Data'!$AD27<>"(Null)"),('FET Data'!$AC27<>"(Null)"))) -> FALSE | M27: =AND(((Vd)>=4.5),((Vd)<6),OR(('FET Data'!$AF27<>"(Null)"),('FET Data'!$AE27<>"(Null)"),('FET Data'!$AD27<>"(Null)"),('FET Data'!$AC27<>"(Null)"))) -> TRUE | N27: =AND(((Vd)>=6),((Vd)<8),OR(('FET Data'!$AG27<>"(Null)"),('FET Data'!$AF27<>"(Null)"),('FET Data'!$AE27<>"(Null)"),('FET Data'!$AD27<>"(Null)"),('FET Data'!$AC27<>"(Null)"))) -> FALSE | O27: =AND(((Vd)>=8),((Vd)<10),OR(('FET Data'!$AH27<>"(Null)"),('FET Data'!$AG27<>"(Null)"),('FET Data'!$AF27<>"(Null)"),('FET Data'!$AE27<>"(Null)"),('FET Data'!$AD27<>"(Null)"),('FET Data'!$AC27<>"(Null)"))) -> FALSE | P27: =AND(((Vd)>=10),OR(('FET Data'!$AI27<>"(Null)"),('FET Data'!$AH27<>"(Null)"),('FET Data'!$AG27<>"(Null)"),('FET Data'!$AF27<>"(Null)"),('FET Data'!$AE27<>"(Null)"),('FET Data'!$AD27<>"(Null)"),('FET Data'!$AC27<>"(Null)"))) -> FALSE | Q27: TRUE | R27: TRUE | T27: 3V | U27: =(AND((Vd<4.5),NOT(AND('FET Data'!$AC3="(Null)",'FET Data'!#REF!="(Null)")))) -> 
A28: =IF(R28,Discrete_NFET[[#This Row],[PARTNUMBER]],"") -> CSD17303Q5 | B28: CSD17302Q5A | C28: =AND((Discrete_NFET[[#This Row],[VDSMAX]]>Vi*1.25),(Discrete_NFET[[#This Row],[VGSMAX]]>=Vd*1.2)) -> TRUE | D28: =AND(Vi<=25,Discrete_NFET[[#This Row],[VDSMAX]]<=30) -> TRUE | E28: =AND(Vi<=33,Vi>=20,Discrete_NFET[[#This Row],[VDSMAX]]=40) -> FALSE | F28: =AND(Vi<=50,Vi>=24,Discrete_NFET[[#This Row],[VDSMAX]]=60) -> FALSE | G28: =AND(Vi<=66,Vi>=36,Discrete_NFET[[#This Row],[VDSMAX]]=80) -> FALSE | H28: =AND(Vi<=83,Vi>=48,Discrete_NFET[[#This Row],[VDSMAX]]=100) -> FALSE | I28: TRUE | J28: =AND(((Vd)<2.5),('FET Data'!$AC28<>"(Null)")) -> FALSE | K28: =AND(((Vd)>=2.5),((Vd)<3),OR(('FET Data'!$AD28<>"(Null)"),('FET Data'!$AC28<>"(Null)"))) -> FALSE | L28: =AND(((Vd)>=3),((Vd)<4.5),OR(('FET Data'!$AE28<>"(Null)"),('FET Data'!$AD28<>"(Null)"),('FET Data'!$AC28<>"(Null)"))) -> FALSE | M28: =AND(((Vd)>=4.5),((Vd)<6),OR(('FET Data'!$AF28<>"(Null)"),('FET Data'!$AE28<>"(Null)"),('FET Data'!$AD28<>"(Null)"),('FET Data'!$AC28<>"(Null)"))) -> TRUE | N28: =AND(((Vd)>=6),((Vd)<8),OR(('FET Data'!$AG28<>"(Null)"),('FET Data'!$AF28<>"(Null)"),('FET Data'!$AE28<>"(Null)"),('FET Data'!$AD28<>"(Null)"),('FET Data'!$AC28<>"(Null)"))) -> FALSE | O28: =AND(((Vd)>=8),((Vd)<10),OR(('FET Data'!$AH28<>"(Null)"),('FET Data'!$AG28<>"(Null)"),('FET Data'!$AF28<>"(Null)"),('FET Data'!$AE28<>"(Null)"),('FET Data'!$AD28<>"(Null)"),('FET Data'!$AC28<>"(Null)"))) -> FALSE | P28: =AND(((Vd)>=10),OR(('FET Data'!$AI28<>"(Null)"),('FET Data'!$AH28<>"(Null)"),('FET Data'!$AG28<>"(Null)"),('FET Data'!$AF28<>"(Null)"),('FET Data'!$AE28<>"(Null)"),('FET Data'!$AD28<>"(Null)"),('FET Data'!$AC28<>"(Null)"))) -> FALSE | Q28: TRUE | R28: TRUE | T28: 2.5V | U28: =OR('FET Data'!$AC2="(Null)",'FET Data'!#REF!="(Null)") -> 
A29: =IF(R29,Discrete_NFET[[#This Row],[PARTNUMBER]],"") -> CSD17304Q3 | B29: CSD17303Q5 | C29: =AND((Discrete_NFET[[#This Row],[VDSMAX]]>Vi*1.25),(Discrete_NFET[[#This Row],[VGSMAX]]>=Vd*1.2)) -> TRUE | D29: =AND(Vi<=25,Discrete_NFET[[#This Row],[VDSMAX]]<=30) -> TRUE | E29: =AND(Vi<=33,Vi>=20,Discrete_NFET[[#This Row],[VDSMAX]]=40) -> FALSE | F29: =AND(Vi<=50,Vi>=24,Discrete_NFET[[#This Row],[VDSMAX]]=60) -> FALSE | G29: =AND(Vi<=66,Vi>=36,Discrete_NFET[[#This Row],[VDSMAX]]=80) -> FALSE | H29: =AND(Vi<=83,Vi>=48,Discrete_NFET[[#This Row],[VDSMAX]]=100) -> FALSE | I29: TRUE | J29: =AND(((Vd)<2.5),('FET Data'!$AC29<>"(Null)")) -> FALSE | K29: =AND(((Vd)>=2.5),((Vd)<3),OR(('FET Data'!$AD29<>"(Null)"),('FET Data'!$AC29<>"(Null)"))) -> FALSE | L29: =AND(((Vd)>=3),((Vd)<4.5),OR(('FET Data'!$AE29<>"(Null)"),('FET Data'!$AD29<>"(Null)"),('FET Data'!$AC29<>"(Null)"))) -> FALSE | M29: =AND(((Vd)>=4.5),((Vd)<6),OR(('FET Data'!$AF29<>"(Null)"),('FET Data'!$AE29<>"(Null)"),('FET Data'!$AD29<>"(Null)"),('FET Data'!$AC29<>"(Null)"))) -> TRUE | N29: =AND(((Vd)>=6),((Vd)<8),OR(('FET Data'!$AG29<>"(Null)"),('FET Data'!$AF29<>"(Null)"),('FET Data'!$AE29<>"(Null)"),('FET Data'!$AD29<>"(Null)"),('FET Data'!$AC29<>"(Null)"))) -> FALSE | O29: =AND(((Vd)>=8),((Vd)<10),OR(('FET Data'!$AH29<>"(Null)"),('FET Data'!$AG29<>"(Null)"),('FET Data'!$AF29<>"(Null)"),('FET Data'!$AE29<>"(Null)"),('FET Data'!$AD29<>"(Null)"),('FET Data'!$AC29<>"(Null)"))) -> FALSE | P29: =AND(((Vd)>=10),OR(('FET Data'!$AI29<>"(Null)"),('FET Data'!$AH29<>"(Null)"),('FET Data'!$AG29<>"(Null)"),('FET Data'!$AF29<>"(Null)"),('FET Data'!$AE29<>"(Null)"),('FET Data'!$AD29<>"(Null)"),('FET Data'!$AC29<>"(Null)"))) -> FALSE | Q29: TRUE | R29: TRUE | V29: RDSONSPEC
A30: =IF(R30,Discrete_NFET[[#This Row],[PARTNUMBER]],"") -> CSD17305Q5A | B30: CSD17304Q3 | C30: =AND((Discrete_NFET[[#This Row],[VDSMAX]]>Vi*1.25),(Discrete_NFET[[#This Row],[VGSMAX]]>=Vd*1.2)) -> TRUE | D30: =AND(Vi<=25,Discrete_NFET[[#This Row],[VDSMAX]]<=30) -> TRUE | E30: =AND(Vi<=33,Vi>=20,Discrete_NFET[[#This Row],[VDSMAX]]=40) -> FALSE | F30: =AND(Vi<=50,Vi>=24,Discrete_NFET[[#This Row],[VDSMAX]]=60) -> FALSE | G30: =AND(Vi<=66,Vi>=36,Discrete_NFET[[#This Row],[VDSMAX]]=80) -> FALSE | H30: =AND(Vi<=83,Vi>=48,Discrete_NFET[[#This Row],[VDSMAX]]=100) -> FALSE | I30: TRUE | J30: =AND(((Vd)<2.5),('FET Data'!$AC30<>"(Null)")) -> FALSE | K30: =AND(((Vd)>=2.5),((Vd)<3),OR(('FET Data'!$AD30<>"(Null)"),('FET Data'!$AC30<>"(Null)"))) -> FALSE | L30: =AND(((Vd)>=3),((Vd)<4.5),OR(('FET Data'!$AE30<>"(Null)"),('FET Data'!$AD30<>"(Null)"),('FET Data'!$AC30<>"(Null)"))) -> FALSE | M30: =AND(((Vd)>=4.5),((Vd)<6),OR(('FET Data'!$AF30<>"(Null)"),('FET Data'!$AE30<>"(Null)"),('FET Data'!$AD30<>"(Null)"),('FET Data'!$AC30<>"(Null)"))) -> TRUE | N30: =AND(((Vd)>=6),((Vd)<8),OR(('FET Data'!$AG30<>"(Null)"),('FET Data'!$AF30<>"(Null)"),('FET Data'!$AE30<>"(Null)"),('FET Data'!$AD30<>"(Null)"),('FET Data'!$AC30<>"(Null)"))) -> FALSE | O30: =AND(((Vd)>=8),((Vd)<10),OR(('FET Data'!$AH30<>"(Null)"),('FET Data'!$AG30<>"(Null)"),('FET Data'!$AF30<>"(Null)"),('FET Data'!$AE30<>"(Null)"),('FET Data'!$AD30<>"(Null)"),('FET Data'!$AC30<>"(Null)"))) -> FALSE | P30: =AND(((Vd)>=10),OR(('FET Data'!$AI30<>"(Null)"),('FET Data'!$AH30<>"(Null)"),('FET Data'!$AG30<>"(Null)"),('FET Data'!$AF30<>"(Null)"),('FET Data'!$AE30<>"(Null)"),('FET Data'!$AD30<>"(Null)"),('FET Data'!$AC30<>"(Null)"))) -> FALSE | Q30: TRUE | R30: TRUE | U30: =AND((Vd>=10),OR(('FET Data'!$AG2<>"(Null)"),('FET Data'!$AF2<>"(Null)"),('FET Data'!$AE2<>"(Null)"),('FET Data'!$AD2<>"(Null)"),('FET Data'!$AC2<>"(Null)"),('FET Data'!#REF!<>"(Null)"))) ->  | V30: =('FET Data'!$AG2<>"(Null)") -> FALSE
A31: =IF(R31,Discrete_NFET[[#This Row],[PARTNUMBER]],"") -> CSD17306Q5A | B31: CSD17305Q5A | C31: =AND((Discrete_NFET[[#This Row],[VDSMAX]]>Vi*1.25),(Discrete_NFET[[#This Row],[VGSMAX]]>=Vd*1.2)) -> TRUE | D31: =AND(Vi<=25,Discrete_NFET[[#This Row],[VDSMAX]]<=30) -> TRUE | E31: =AND(Vi<=33,Vi>=20,Discrete_NFET[[#This Row],[VDSMAX]]=40) -> FALSE | F31: =AND(Vi<=50,Vi>=24,Discrete_NFET[[#This Row],[VDSMAX]]=60) -> FALSE | G31: =AND(Vi<=66,Vi>=36,Discrete_NFET[[#This Row],[VDSMAX]]=80) -> FALSE | H31: =AND(Vi<=83,Vi>=48,Discrete_NFET[[#This Row],[VDSMAX]]=100) -> FALSE | I31: TRUE | J31: =AND(((Vd)<2.5),('FET Data'!$AC31<>"(Null)")) -> FALSE | K31: =AND(((Vd)>=2.5),((Vd)<3),OR(('FET Data'!$AD31<>"(Null)"),('FET Data'!$AC31<>"(Null)"))) -> FALSE | L31: =AND(((Vd)>=3),((Vd)<4.5),OR(('FET Data'!$AE31<>"(Null)"),('FET Data'!$AD31<>"(Null)"),('FET Data'!$AC31<>"(Null)"))) -> FALSE | M31: =AND(((Vd)>=4.5),((Vd)<6),OR(('FET Data'!$AF31<>"(Null)"),('FET Data'!$AE31<>"(Null)"),('FET Data'!$AD31<>"(Null)"),('FET Data'!$AC31<>"(Null)"))) -> TRUE | N31: =AND(((Vd)>=6),((Vd)<8),OR(('FET Data'!$AG31<>"(Null)"),('FET Data'!$AF31<>"(Null)"),('FET Data'!$AE31<>"(Null)"),('FET Data'!$AD31<>"(Null)"),('FET Data'!$AC31<>"(Null)"))) -> FALSE | O31: =AND(((Vd)>=8),((Vd)<10),OR(('FET Data'!$AH31<>"(Null)"),('FET Data'!$AG31<>"(Null)"),('FET Data'!$AF31<>"(Null)"),('FET Data'!$AE31<>"(Null)"),('FET Data'!$AD31<>"(Null)"),('FET Data'!$AC31<>"(Null)"))) -> FALSE | P31: =AND(((Vd)>=10),OR(('FET Data'!$AI31<>"(Null)"),('FET Data'!$AH31<>"(Null)"),('FET Data'!$AG31<>"(Null)"),('FET Data'!$AF31<>"(Null)"),('FET Data'!$AE31<>"(Null)"),('FET Data'!$AD31<>"(Null)"),('FET Data'!$AC31<>"(Null)"))) -> FALSE | Q31: TRUE | R31: TRUE | U31: =AND((Vd>=8),(Vd<10),OR(('FET Data'!$AF2<>"(Null)"),('FET Data'!$AE2<>"(Null)"),('FET Data'!$AD2<>"(Null)"),('FET Data'!$AC2<>"(Null)"),('FET Data'!#REF!<>"(Null)"))) ->  | V31: =('FET Data'!$AF2<>"(Null)") -> TRUE
A32: =IF(R32,Discrete_NFET[[#This Row],[PARTNUMBER]],"") -> CSD17307Q5A | B32: CSD17306Q5A | C32: =AND((Discrete_NFET[[#This Row],[VDSMAX]]>Vi*1.25),(Discrete_NFET[[#This Row],[VGSMAX]]>=Vd*1.2)) -> TRUE | D32: =AND(Vi<=25,Discrete_NFET[[#This Row],[VDSMAX]]<=30) -> TRUE | E32: =AND(Vi<=33,Vi>=20,Discrete_NFET[[#This Row],[VDSMAX]]=40) -> FALSE | F32: =AND(Vi<=50,Vi>=24,Discrete_NFET[[#This Row],[VDSMAX]]=60) -> FALSE | G32: =AND(Vi<=66,Vi>=36,Discrete_NFET[[#This Row],[VDSMAX]]=80) -> FALSE | H32: =AND(Vi<=83,Vi>=48,Discrete_NFET[[#This Row],[VDSMAX]]=100) -> FALSE | I32: TRUE | J32: =AND(((Vd)<2.5),('FET Data'!$AC32<>"(Null)")) -> FALSE | K32: =AND(((Vd)>=2.5),((Vd)<3),OR(('FET Data'!$AD32<>"(Null)"),('FET Data'!$AC32<>"(Null)"))) -> FALSE | L32: =AND(((Vd)>=3),((Vd)<4.5),OR(('FET Data'!$AE32<>"(Null)"),('FET Data'!$AD32<>"(Null)"),('FET Data'!$AC32<>"(Null)"))) -> FALSE | M32: =AND(((Vd)>=4.5),((Vd)<6),OR(('FET Data'!$AF32<>"(Null)"),('FET Data'!$AE32<>"(Null)"),('FET Data'!$AD32<>"(Null)"),('FET Data'!$AC32<>"(Null)"))) -> TRUE | N32: =AND(((Vd)>=6),((Vd)<8),OR(('FET Data'!$AG32<>"(Null)"),('FET Data'!$AF32<>"(Null)"),('FET Data'!$AE32<>"(Null)"),('FET Data'!$AD32<>"(Null)"),('FET Data'!$AC32<>"(Null)"))) -> FALSE | O32: =AND(((Vd)>=8),((Vd)<10),OR(('FET Data'!$AH32<>"(Null)"),('FET Data'!$AG32<>"(Null)"),('FET Data'!$AF32<>"(Null)"),('FET Data'!$AE32<>"(Null)"),('FET Data'!$AD32<>"(Null)"),('FET Data'!$AC32<>"(Null)"))) -> FALSE | P32: =AND(((Vd)>=10),OR(('FET Data'!$AI32<>"(Null)"),('FET Data'!$AH32<>"(Null)"),('FET Data'!$AG32<>"(Null)"),('FET Data'!$AF32<>"(Null)"),('FET Data'!$AE32<>"(Null)"),('FET Data'!$AD32<>"(Null)"),('FET Data'!$AC32<>"(Null)"))) -> FALSE | Q32: TRUE | R32: TRUE | U32: =AND((Vd>=6),(Vd<8),OR(('FET Data'!$AE2<>"(Null)"),('FET Data'!$AD2<>"(Null)"),('FET Data'!$AC2<>"(Null)"),('FET Data'!#REF!<>"(Null)"))) ->  | V32: =('FET Data'!$AE2<>"(Null)") -> TRUE
A33: =IF(R33,Discrete_NFET[[#This Row],[PARTNUMBER]],"") -> CSD17308Q3 | B33: CSD17307Q5A | C33: =AND((Discrete_NFET[[#This Row],[VDSMAX]]>Vi*1.25),(Discrete_NFET[[#This Row],[VGSMAX]]>=Vd*1.2)) -> TRUE | D33: =AND(Vi<=25,Discrete_NFET[[#This Row],[VDSMAX]]<=30) -> TRUE | E33: =AND(Vi<=33,Vi>=20,Discrete_NFET[[#This Row],[VDSMAX]]=40) -> FALSE | F33: =AND(Vi<=50,Vi>=24,Discrete_NFET[[#This Row],[VDSMAX]]=60) -> FALSE | G33: =AND(Vi<=66,Vi>=36,Discrete_NFET[[#This Row],[VDSMAX]]=80) -> FALSE | H33: =AND(Vi<=83,Vi>=48,Discrete_NFET[[#This Row],[VDSMAX]]=100) -> FALSE | I33: TRUE | J33: =AND(((Vd)<2.5),('FET Data'!$AC33<>"(Null)")) -> FALSE | K33: =AND(((Vd)>=2.5),((Vd)<3),OR(('FET Data'!$AD33<>"(Null)"),('FET Data'!$AC33<>"(Null)"))) -> FALSE | L33: =AND(((Vd)>=3),((Vd)<4.5),OR(('FET Data'!$AE33<>"(Null)"),('FET Data'!$AD33<>"(Null)"),('FET Data'!$AC33<>"(Null)"))) -> FALSE | M33: =AND(((Vd)>=4.5),((Vd)<6),OR(('FET Data'!$AF33<>"(Null)"),('FET Data'!$AE33<>"(Null)"),('FET Data'!$AD33<>"(Null)"),('FET Data'!$AC33<>"(Null)"))) -> TRUE | N33: =AND(((Vd)>=6),((Vd)<8),OR(('FET Data'!$AG33<>"(Null)"),('FET Data'!$AF33<>"(Null)"),('FET Data'!$AE33<>"(Null)"),('FET Data'!$AD33<>"(Null)"),('FET Data'!$AC33<>"(Null)"))) -> FALSE | O33: =AND(((Vd)>=8),((Vd)<10),OR(('FET Data'!$AH33<>"(Null)"),('FET Data'!$AG33<>"(Null)"),('FET Data'!$AF33<>"(Null)"),('FET Data'!$AE33<>"(Null)"),('FET Data'!$AD33<>"(Null)"),('FET Data'!$AC33<>"(Null)"))) -> FALSE | P33: =AND(((Vd)>=10),OR(('FET Data'!$AI33<>"(Null)"),('FET Data'!$AH33<>"(Null)"),('FET Data'!$AG33<>"(Null)"),('FET Data'!$AF33<>"(Null)"),('FET Data'!$AE33<>"(Null)"),('FET Data'!$AD33<>"(Null)"),('FET Data'!$AC33<>"(Null)"))) -> FALSE | Q33: TRUE | R33: TRUE | U33: =AND((Vd>=4.5),(Vd<6),OR(('FET Data'!$AD2<>"(Null)"),('FET Data'!$AC2<>"(Null)"),('FET Data'!#REF!<>"(Null)"))) ->  | V33: =('FET Data'!$AD2<>"(Null)") -> TRUE
